Workbook

Sheet Cover
C5: Budget Impact Analysis Template
C9: This budget impact analysis (BIA) template was developed by Canada's Drug Agency to provide users with a structured series of inputs that allow for the derivation of the budget impact resulting from adding a new treatment to an existing mix of treatments. The template adheres to the Application Requirements for BIAs outlined in the Procedures for Reimbursement Reviews.
C11: Users will provide inputs for the market size, market shares, drug costs, administration costs, and companion testing costs (if applicable), and the template will calculate expenditures associated with current and future reimbursement scenarios relating to the indication of interest.
C14: How to Use This Excel Tool
C16: Do not use on a web browser platform. This tool is intended for use within the desktop Microsoft Excel app.
C18: Enable macros: To simplify the viewing of this tool, and to clear user inputs, macros have been used. In order to ensure the full functionality of the tool, users must enable macros. If macros are not enabled the tool will be functional though irrelevant data and steps may be displayed. The scenario analysis section also requires the user to use the pre-built functionality though this macro simply copy and pastes the live results and therefore can be easily replicated by the user.
C21: Navigation: The template has worksheet tabs at the bottom of the screen. To complete the template, the user progresses through the Inputs worksheets in a stepwise fashion. The tabs for the 9 Inputs worksheets have “Inputs” at the beginning and are in medium blue, the calculations worksheets for the provinces and NIHB are in light blue, the outputs worksheets have “Outputs” at the beginning and are in dark blue, the remaining worksheets at the end have no color and contain data used to inform some of the calculations. After entering all input values in the Inputs sheets, the results of the analysis can be viewed on the Results sheet.
C25: Model Legend: On each of the respective Inputs worksheets in the tool, the input cells for each modifiable input parameter are denoted in light blue under User Input (User Input is denoted at the top of the Worksheet to denote to column(s) where user input can be entered.
F29: Fixed input or formula cell - user should not modify. Usually represents a current value or output cell
F31: User-modifiable cell where the user can input value
F33: User-modifiable cell where the user can select an alternative value from a dropdown menu
F35: Notes cell explaining the input parameter, including assumptions.
D37: Error | F37: There may be instances when the tool is used incorrectly and is expected to produce erroneous results. In such instances, either an "Error" message or cells with red font are programmed to appear.
C41: Saving the model: As with any file in Excel, this tool must be saved if any changes are made that need to be retained. Multiple versions of the tool may be saved to handle different scenarios or input parameters. Using File/Save As allows the user to save multiple versions of the tool under different file names.

Sheet Assumptions
B4: Assumptions
B6: Parameter | D6: Assumption
B8: Market size
B10: Market size expansion | D10: The template will permit both a static budget impact analysis (BIA), in which the population size only increases due to population growth across the time horizon, and a dynamic BIA, in which the incidence or prevalence of a condition can change over time.
B13: Entry of new patients into the BIA | D13: All new patients (i.e., new incident patients in an incidence based model, or new cases entering due to population growth or an increase in prevalence or incidence) enter at the beginning of the year and therefore incur the full cost of the year in which they enter the BIA.
B16: Market shares
B18: Number of comparators | D18: The template will permit up to 10 comparator treatments.
B20: Time horizon | D20: The template will permit a 3, 4, or 5 year time horizon.
B22: Application of market shares in incidence based model | D22: When an incidence based model is selected, the market shares only apply to patients who enter the BIA that year. Patients who were diagnosed in prior years are assumed to not be considered for the new treatment. If treatment switching is relevant, a prevalence based model should be considered.
B24: Untreated as a comparator | D24: Some patients who meet the criteria for treatment may not receive a treatment and thus remain 'untreated'. When a new treatment is funded the proportion of patients who remain untreated may decrease even if active therapies currently exist. In this analysis untreated is therefore included as a comparator. The user must specify whether the size of the untreated population will be impacted by funding a new therapy.
B26: Costs
B28: Perspective | D28: The base case perspective for the analysis is that of the public drug payer. Users may consider a broader healthcare payer perspective, when appropriate, by including administration and/or companion diagnostic testing costs.
B31: Drug costs in a prevalence-based model | D31: As it is difficult to determine how long the current prevalent cohort has been on therapy, drug costs for all comparators other than the drug under review in a prevalence-based model should represent average drug costs and be equal across all years.
B34: Discounting and inflation | D34: Over the time horizon, costs are neither discounted or inflated.
B36: Mark-ups and dispensing fees | D36: Mark-ups and dispensing fees are excluded.
B38: Proportion receiving subsequent therapy | D38: In a prevalence based model it is assumed the proportion who require subsequent therapy each year is constant over time
B40: Additional assumptions implemented by the user

Sheet Inputs-Market Size
B4: Inputs - Market Size
B6: Step 1. Establish market size
B7: o arrive at the size of the target population, users must first determine the type of epidemiological approach to use, a prevalence, incidence, incidence derived through prevalence, or incidence plus bolus-based approach. Once this is determined, the user needs to specify the proportion of the population who meet the criteria to be considered eligible for the drug under review. If a companion diagnostic test is required to become eligible for the drug under review, the user can specify testing uptake and diagnostic accuracy. The user also needs to specify the drug coverage rate for the eligible population to determine the size of the budget impact on public drug budgets.
B10: Note that users can enter either a pan-Canadian input value or, if a parameter is expected to vary by jurisdiction, a jurisdiction-specific value. If both a pan-Canadian and jurisdiction-specific value are inputted, the jurisdiction-specific value will override the pan-Canadian value.
B13: Parameter | D13: Notes | F13: User Input | S13: Reference | U13: Current value
B15: Drug characteristics
B16: Is the drug under review an oncology or non-oncology product? | D16: This is used to determine the size of the NIHB population
B18: Is the drug an oral or take home product or delivered intravenously? | D18: This is used to determine the size of the NIHB population
B20: Population size | F20: Pan Canadian | H20: Newfoundland and Labrador | I20: Prince Edward Island | J20: Nova Scotia | K20: New Brunswick | L20: Ontario | M20: Manitoba | N20: Saskatchewan | O20: Alberta | P20: British Columbia | Q20: NIHB
B21: Jurisdiction size | F21: =SUM(H21:Q21) -> 31249195 | H21: =INDEX('Data store'!$B$1:$K$5,IF(Switch_oncvsnononc="Non-oncology",3,IF(AND(Switch_oncvsnononc="Oncology",Switch_IVvstakehome="Intravenous"),5,4)),MATCH(H20,'Data store'!$B$1:$K$1,0)) -> 524221.1969 | I21: =INDEX('Data store'!$B$1:$K$5,IF(Switch_oncvsnononc="Non-oncology",3,IF(AND(Switch_oncvsnononc="Oncology",Switch_IVvstakehome="Intravenous"),5,4)),MATCH(I20,'Data store'!$B$1:$K$1,0)) -> 169145.9031 | J21: =INDEX('Data store'!$B$1:$K$5,IF(Switch_oncvsnononc="Non-oncology",3,IF(AND(Switch_oncvsnononc="Oncology",Switch_IVvstakehome="Intravenous"),5,4)),MATCH(J20,'Data store'!$B$1:$K$1,0)) -> 1030420.876 | K21: =INDEX('Data store'!$B$1:$K$5,IF(Switch_oncvsnononc="Non-oncology",3,IF(AND(Switch_oncvsnononc="Oncology",Switch_IVvstakehome="Intravenous"),5,4)),MATCH(K20,'Data store'!$B$1:$K$1,0)) -> 812400.0242 | L21: =INDEX('Data store'!$B$1:$K$5,IF(Switch_oncvsnononc="Non-oncology",3,IF(AND(Switch_oncvsnononc="Oncology",Switch_IVvstakehome="Intravenous"),5,4)),MATCH(L20,'Data store'!$B$1:$K$1,0)) -> 15482531 | M21: =INDEX('Data store'!$B$1:$K$5,IF(Switch_oncvsnononc="Non-oncology",3,IF(AND(Switch_oncvsnononc="Oncology",Switch_IVvstakehome="Intravenous"),5,4)),MATCH(M20,'Data store'!$B$1:$K$1,0)) -> 1289047 | N21: =INDEX('Data store'!$B$1:$K$5,IF(Switch_oncvsnononc="Non-oncology",3,IF(AND(Switch_oncvsnononc="Oncology",Switch_IVvstakehome="Intravenous"),5,4)),MATCH(N20,'Data store'!$B$1:$K$1,0)) -> 1209107 | O21: =INDEX('Data store'!$B$1:$K$5,IF(Switch_oncvsnononc="Non-oncology",3,IF(AND(Switch_oncvsnononc="Oncology",Switch_IVvstakehome="Intravenous"),5,4)),MATCH(O20,'Data store'!$B$1:$K$1,0)) -> 4695290 | P21: =INDEX('Data store'!$B$1:$K$5,IF(Switch_oncvsnononc="Non-oncology",3,IF(AND(Switch_oncvsnononc="Oncology",Switch_IVvstakehome="Intravenous"),5,4)),MATCH(P20,'Data store'!$B$1:$K$1,0)) -> 5501116 | Q21: =INDEX('Data store'!$B$1:$K$5,IF(Switch_oncvsnononc="Non-oncology",3,IF(AND(Switch_oncvsnononc="Oncology",Switch_IVvstakehome="Intravenous"),5,4)),MATCH(Q20,'Data store'!$B$1:$K$1,0)) -> 535916 | S21: Statistics Canada Table: 17-10-0005-01 and 2023 NIHB Annual report Population estimates for 2023. Accessed April 11,2024
B22: Population growth rate | H22: =INDEX('Data store'!$B$6:$K$6,1,MATCH('Inputs-Market Size'!H20,'Data store'!$B$1:$K$1,0)) -> 0.005109813387 | I22: =INDEX('Data store'!$B$6:$K$6,1,MATCH('Inputs-Market Size'!I20,'Data store'!$B$1:$K$1,0)) -> 0.02692611482 | J22: =INDEX('Data store'!$B$6:$K$6,1,MATCH('Inputs-Market Size'!J20,'Data store'!$B$1:$K$1,0)) -> 0.02014134923 | K22: =INDEX('Data store'!$B$6:$K$6,1,MATCH('Inputs-Market Size'!K20,'Data store'!$B$1:$K$1,0)) -> 0.01757863239 | L22: =INDEX('Data store'!$B$6:$K$6,1,MATCH('Inputs-Market Size'!L20,'Data store'!$B$1:$K$1,0)) -> 0.01696234326 | M22: =INDEX('Data store'!$B$6:$K$6,1,MATCH('Inputs-Market Size'!M20,'Data store'!$B$1:$K$1,0)) -> 0.01487735668 | N22: =INDEX('Data store'!$B$6:$K$6,1,MATCH('Inputs-Market Size'!N20,'Data store'!$B$1:$K$1,0)) -> 0.009363825469 | O22: =INDEX('Data store'!$B$6:$K$6,1,MATCH('Inputs-Market Size'!O20,'Data store'!$B$1:$K$1,0)) -> 0.01852871994 | P22: =INDEX('Data store'!$B$6:$K$6,1,MATCH('Inputs-Market Size'!P20,'Data store'!$B$1:$K$1,0)) -> 0.01898295118 | Q22: =INDEX('Data store'!$B$6:$K$6,1,MATCH('Inputs-Market Size'!Q20,'Data store'!$B$1:$K$1,0)) -> 0.022 | S22: Statistics Canada. Table: 17-10-0005-01. Calculated based on the average % change year to year from 2019-2023.
B24: Is the market size based on prevalence, incidence or incidence plus a bolus of patients? | D24: 'Incidence' models should be used when the decision problem only impacts new patients. 'Prevalence' models should be used when the decision problem impacts new and existing patients, meaning patients will switch to this new therapy from their current treatment. 'Incidence plus bolus' should be used when the decision problem only impacts new patients, outside of an existing group of prevalent patients who are relevant in the first year only. 'Incidence derived using prevalence' should be used when the user needs to calculate the number of prevalent patients to derive the size of the incident cohort
F26: pan-Canadian | H26: Newfoundland and Labrador | I26: Prince Edward Island | J26: Nova Scotia | K26: New Brunswick | L26: Ontario | M26: Manitoba | N26: Saskatchewan | O26: Alberta | P26: British Columbia | Q26: NIHB | U26: Newfoundland and Labrador | V26: Prince Edward Island | W26: Nova Scotia | X26: New Brunswick | Y26: Ontario | Z26: Manitoba | AA26: Saskatchewan | AB26: Alberta | AC26: British Columbia | AD26: NIHB
B27: Prevalence (the proportion of the population that currently has the condition) | D27: If any inputs are jurisdiction-specific use columns H:Q. If jurisdiction estimates are available for some, but not all jurisdictions, column F should be used as the default (pan-Canadian) value which will allow jurisdictions with missing data. | U27: =IF(ISBLANK(H27)=TRUE,IF(ISBLANK($F27)=TRUE,0%,$F27),H27) -> 0 | V27: 0 | W27: 0 | X27: 0 | Y27: 0 | Z27: 0 | AA27: 0 | AB27: 0 | AC27: 0 | AD27: 0
B28: Incidence (the proportion of the population who will be diagnosed with the condition each year) | U28: 0 | V28: 0 | W28: 0 | X28: 0 | Y28: 0 | Z28: 0 | AA28: 0 | AB28: 0 | AC28: 0 | AD28: 0
B30: Is the prevalence or incidence rate expected to remain constant?
B31: What is the percentage increase in the prevalence/incidence over time? | D31: If the rate is constant (i.e F30 = 'Yes') then skip this question.
B34: Is a companion diagnostic required to determine eligibility for the drug under review? | D34: If a companion diagnostic test is required, do not enter inputs related to testing in the following epidemiological filters (rows 40:62). A separate section is provided for testing (refer to rows 64:75). Note: A companion diagnostic test ONLY applies when it is specific to the drug under review.
B36: When applying epidemiological filters, does the user wish to consider subgroups? | D36: When deriving the size of the eligible population some filters may apply to some subgroups of the population and not others. In these cases the user can enter epidemiological filters for individual subgroups. To do this the user must refer to the "Inputs - Subgroups" worksheet
F38: pan-Canadian | H38: Newfoundland and Labrador | I38: Prince Edward Island | J38: Nova Scotia | K38: New Brunswick | L38: Ontario | M38: Manitoba | N38: Saskatchewan | O38: Alberta | P38: British Columbia | Q38: NIHB | U38: Newfoundland and Labrador | V38: Prince Edward Island | W38: Nova Scotia | X38: New Brunswick | Y38: Ontario | Z38: Manitoba | AA38: Saskatchewan | AB38: Alberta | AC38: British Columbia | AD38: NIHB
B39: Epidemiologic filters for refining incident population (provide description) using data on disease incidence | F39: Percentage of population | H39: Percentage of population
B40: Proportion 18+ | D40: If the incidence estimate used only applies to a subsection of the overall population (e.g., adults aged ≥ 65 years), the proportion of the population who fall into that subsection should be specified as 1 of the criteria. If the user wishes to derive epidemiological filters for subgroups, these cells should be derived in the Inputs–Subgroups sheet | U40: =IF(ISBLANK(H40)=TRUE,IF(ISBLANK($F40)=TRUE,100%,$F40),H40) -> 1 | V40: =IF(ISBLANK(I40)=TRUE,IF(ISBLANK($F40)=TRUE,100%,$F40),I40) -> 1 | W40: 1 | X40: 1 | Y40: 1 | Z40: 1 | AA40: 1 | AB40: 1 | AC40: 1 | AD40: 1
B41: Proportion with moderate to high severity condition | U41: =IF(ISBLANK(H41)=TRUE,IF(ISBLANK($F41)=TRUE,100%,$F41),H41) -> 1 | V41: 1 | W41: 1 | X41: 1 | Y41: 1 | Z41: 1 | AA41: 1 | AB41: 1 | AC41: 1 | AD41: 1
U42: 1 | V42: 1 | W42: 1 | X42: 1 | Y42: 1 | Z42: 1 | AA42: 1 | AB42: 1 | AC42: 1 | AD42: 1
U43: 1 | V43: 1 | W43: 1 | X43: 1 | Y43: 1 | Z43: 1 | AA43: 1 | AB43: 1 | AC43: 1 | AD43: 1
U44: 1 | V44: 1 | W44: 1 | X44: 1 | Y44: 1 | Z44: 1 | AA44: 1 | AB44: 1 | AC44: 1 | AD44: 1
U45: 1 | V45: 1 | W45: 1 | X45: 1 | Y45: 1 | Z45: 1 | AA45: 1 | AB45: 1 | AC45: 1 | AD45: 1
U46: 1 | V46: 1 | W46: 1 | X46: 1 | Y46: 1 | Z46: 1 | AA46: 1 | AB46: 1 | AC46: 1 | AD46: 1
U47: 1 | V47: 1 | W47: 1 | X47: 1 | Y47: 1 | Z47: 1 | AA47: 1 | AB47: 1 | AC47: 1 | AD47: 1
U48: 1 | V48: 1 | W48: 1 | X48: 1 | Y48: 1 | Z48: 1 | AA48: 1 | AB48: 1 | AC48: 1 | AD48: 1
U49: 1 | V49: 1 | W49: 1 | X49: 1 | Y49: 1 | Z49: 1 | AA49: 1 | AB49: 1 | AC49: 1 | AD49: 1 | AG49: `
F51: pan-Canadian | H51: Newfoundland and Labrador | I51: Prince Edward Island | J51: Nova Scotia | K51: New Brunswick | L51: Ontario | M51: Manitoba | N51: Saskatchewan | O51: Alberta | P51: British Columbia | Q51: NIHB | U51: Newfoundland and Labrador | V51: Prince Edward Island | W51: Nova Scotia | X51: New Brunswick | Y51: Ontario | Z51: Manitoba | AA51: Saskatchewan | AB51: Alberta | AC51: British Columbia | AD51: NIHB
B52: =CONCATENATE(IF(Switch_Prev_Incidence="Prevalence","Additional epidemiologic filters for refining prevalent population (provide description below)","Epidemiologic filters applied to the prevalent population to derive the size of the incident population")) -> Epidemiologic filters applied to the prevalent population to derive the size of the incident population | F52: Percentage of population | H52: Percentage of population
D53: If the prevalence estimate used only applies to a subsection of the overall population (e.g., adults aged ≥ 65 years), the proportion of the population who fall into that subsection should be specified as 1 of the criteria. If incidence plus bolus is selected, these epidemiological filters will be used to determine the size of the bolus. If incidence derived using prevalence is selected, these epidemiological filters will be used to determine the size of the population that becomes eligible through prevalent patients. If the user wishes to derive epidemiological filters for subgroups, these cells should be derived in the Inputs–Subgroups sheet. | U53: =IF(ISBLANK(H53)=TRUE,IF(ISBLANK($F53)=TRUE,100%,$F53),H53) -> 1 | V53: =IF(ISBLANK(I53)=TRUE,IF(ISBLANK($F53)=TRUE,100%,$F53),I53) -> 1 | W53: 1 | X53: 1 | Y53: 1 | Z53: 1 | AA53: 1 | AB53: 1 | AC53: 1 | AD53: 1
U54: =IF(ISBLANK(H54)=TRUE,IF(ISBLANK($F54)=TRUE,100%,$F54),H54) -> 1 | V54: 1 | W54: 1 | X54: 1 | Y54: 1 | Z54: 1 | AA54: 1 | AB54: 1 | AC54: 1 | AD54: 1
U55: 1 | V55: 1 | W55: 1 | X55: 1 | Y55: 1 | Z55: 1 | AA55: 1 | AB55: 1 | AC55: 1 | AD55: 1
U56: 1 | V56: 1 | W56: 1 | X56: 1 | Y56: 1 | Z56: 1 | AA56: 1 | AB56: 1 | AC56: 1 | AD56: 1
U57: 1 | V57: 1 | W57: 1 | X57: 1 | Y57: 1 | Z57: 1 | AA57: 1 | AB57: 1 | AC57: 1 | AD57: 1
U58: 1 | V58: 1 | W58: 1 | X58: 1 | Y58: 1 | Z58: 1 | AA58: 1 | AB58: 1 | AC58: 1 | AD58: 1
U59: 1 | V59: 1 | W59: 1 | X59: 1 | Y59: 1 | Z59: 1 | AA59: 1 | AB59: 1 | AC59: 1 | AD59: 1
U60: 1 | V60: 1 | W60: 1 | X60: 1 | Y60: 1 | Z60: 1 | AA60: 1 | AB60: 1 | AC60: 1 | AD60: 1
U61: 1 | V61: 1 | W61: 1 | X61: 1 | Y61: 1 | Z61: 1 | AA61: 1 | AB61: 1 | AC61: 1 | AD61: 1
U62: 1 | V62: 1 | W62: 1 | X62: 1 | Y62: 1 | Z62: 1 | AA62: 1 | AB62: 1 | AC62: 1 | AD62: 1
B64: Testing uptake in eligible population
B65: Using the epidemiological filters above what percentage of the incident cohort is eligible for testing? | D65: This is used to determine the cost of companion testing only. | U65: =IF(ISBLANK(H65)=TRUE,IF(ISBLANK($F65)=TRUE,100%,$F65),H65) -> 1 | V65: =IF(ISBLANK(I65)=TRUE,IF(ISBLANK($F65)=TRUE,100%,$F65),I65) -> 1 | W65: =IF(ISBLANK(J65)=TRUE,IF(ISBLANK($F65)=TRUE,100%,$F65),J65) -> 1 | X65: =IF(ISBLANK(K65)=TRUE,IF(ISBLANK($F65)=TRUE,100%,$F65),K65) -> 1 | Y65: =IF(ISBLANK(L65)=TRUE,IF(ISBLANK($F65)=TRUE,100%,$F65),L65) -> 1 | Z65: =IF(ISBLANK(M65)=TRUE,IF(ISBLANK($F65)=TRUE,100%,$F65),M65) -> 1 | AA65: =IF(ISBLANK(N65)=TRUE,IF(ISBLANK($F65)=TRUE,100%,$F65),N65) -> 1 | AB65: =IF(ISBLANK(O65)=TRUE,IF(ISBLANK($F65)=TRUE,100%,$F65),O65) -> 1 | AC65: =IF(ISBLANK(P65)=TRUE,IF(ISBLANK($F65)=TRUE,100%,$F65),P65) -> 1 | AD65: =IF(ISBLANK(Q65)=TRUE,IF(ISBLANK($F65)=TRUE,100%,$F65),Q65) -> 1
B66: Using the epidemiological filters above what percentage of the prevalent cohort is eligible for testing? | U66: 1 | V66: 1 | W66: 1 | X66: 1 | Y66: 1 | Z66: 1 | AA66: 1 | AB66: 1 | AC66: 1 | AD66: 1
B68: What proportion of eligible patients are currently tested? | D68: These inputs refer to a companion diagnostic test that is only required to determine eligibility for the drug under review. If only a 3 year time horizon is considered leave years 4 and 5 blank | U68: =IF($F$34="No",100%,IF(ISBLANK(H68)=TRUE,$F68,H68)) -> 0 | V68: =IF($F$34="No",100%,IF(ISBLANK(I68)=TRUE,$F68,I68)) -> 0 | W68: 0 | X68: 0 | Y68: 0 | Z68: 0 | AA68: 0 | AB68: 0 | AC68: 0 | AD68: 0
B69: What proportion of eligible patients will be tested in the first year of drug coverage? | U69: =IF($F$34="No",100%,IF(ISBLANK(H69)=TRUE,$F69,H69)) -> 0 | V69: 0 | W69: 0 | X69: 0 | Y69: 0 | Z69: 0 | AA69: 0 | AB69: 0 | AC69: 0 | AD69: 0
B70: What proportion of eligible patients will be tested in the second year of drug coverage? | U70: 0 | V70: 0 | W70: 0 | X70: 0 | Y70: 0 | Z70: 0 | AA70: 0 | AB70: 0 | AC70: 0 | AD70: 0
B71: What proportion of eligible patients will be tested in the third year of drug coverage? | U71: 0 | V71: 0 | W71: 0 | X71: 0 | Y71: 0 | Z71: 0 | AA71: 0 | AB71: 0 | AC71: 0 | AD71: 0
B72: What proportion of eligible patients will be tested in the fourth year of drug coverage? | U72: 0 | V72: 0 | W72: 0 | X72: 0 | Y72: 0 | Z72: 0 | AA72: 0 | AB72: 0 | AC72: 0 | AD72: 0
B73: What proportion of eligible patients will be tested in the fifth year of drug coverage? | U73: 0 | V73: 0 | W73: 0 | X73: 0 | Y73: 0 | Z73: 0 | AA73: 0 | AB73: 0 | AC73: 0 | AD73: 0
B75: What is the probability the test is positive? | D75: The probability the test is positive includes both true and false positives. If the test is 100% accurate the probability of the test being positive will equal the percentage of true positives. | U75: =IF($F$34="No",100%,$F75) -> 0 | V75: =IF($F$34="No",100%,$F75) -> 0 | W75: 0 | X75: 0 | Y75: 0 | Z75: 0 | AA75: 0 | AB75: 0 | AC75: 0 | AD75: 0
B77: Age distribution (needed for estimating coverage rates)
B78: What proportion of the indicated population are aged <25 years? | D78: The age distribution specified here is used to determine coverage rates only as coverage is expected to vary most based on these age cut offs. | U78: =IF(ISBLANK(H78)=TRUE,$F78,H78) -> 0 | V78: =IF(ISBLANK(I78)=TRUE,$F78,I78) -> 0 | W78: 0 | X78: 0 | Y78: 0 | Z78: 0 | AA78: 0 | AB78: 0 | AC78: 0 | AD78: 0
B79: What proportion of the indicated population are aged between 25 and 64 years? | U79: =IF(ISBLANK(H79)=TRUE,$F79,H79) -> 0 | V79: 0 | W79: 0 | X79: 0 | Y79: 0 | Z79: 0 | AA79: 0 | AB79: 0 | AC79: 0 | AD79: 0
B80: What proportion of the indicated population are aged >64 years? | U80: 0 | V80: 0 | W80: 0 | X80: 0 | Y80: 0 | Z80: 0 | AA80: 0 | AB80: 0 | AC80: 0 | AD80: 0
B81: Total | F81: =SUM(F78:F80) -> 0 | H81: =SUM(H78:H80) -> 0 | I81: =SUM(I78:I80) -> 0 | J81: 0 | K81: 0 | L81: 0 | M81: 0 | N81: 0 | O81: 0 | P81: 0 | Q81: 0
F82: =IF(OR(F81=1,F81=0),"","ERROR: value must sum to 100%") ->  | H82: =IF(OR(H81=1,H81=0),"","ERROR: value must sum to 100%") ->  | I82: =IF(OR(I81=1,I81=0),"","ERROR: value must sum to 100%") -> 
B83: Coverage rates by age
B84: Proportion aged <25 years who will receive treatment under public coverage | U84: =IF(ISBLANK(H84)=TRUE,$F84,H84) -> 0 | V84: =IF(ISBLANK(I84)=TRUE,$F84,I84) -> 0 | W84: 0 | X84: 0 | Y84: 0 | Z84: 0 | AA84: 0 | AB84: 0 | AC84: 0 | AD84: 0
B85: Proportion aged 25 to 64 years who will receive treatment under public coverage | U85: =IF(ISBLANK(H85)=TRUE,$F85,H85) -> 0 | V85: 0 | W85: 0 | X85: 0 | Y85: 0 | Z85: 0 | AA85: 0 | AB85: 0 | AC85: 0 | AD85: 0
B86: Proportion aged >64 years who will receive treatment under public coverage | U86: 0 | V86: 0 | W86: 0 | X86: 0 | Y86: 0 | Z86: 0 | AA86: 0 | AB86: 0 | AC86: 0 | AD86: 0
B88: Overall public coverage rate, weighted by age | F88: =SUMPRODUCT(Coverage_Rates_Tables,'Data store'!B7:K7) -> 0 | H88: =SUMPRODUCT(U78:U80,U84:U86) -> 0 | I88: 0 | J88: 0 | K88: 0 | L88: 0 | M88: 0 | N88: 0 | O88: 0 | P88: 0 | Q88: 0
B90: Population Outputs
F91: Pan Canadian | H91: Newfoundland and Labrador | I91: Prince Edward Island | J91: Nova Scotia | K91: New Brunswick | L91: Ontario | M91: Manitoba | N91: Saskatchewan | O91: Alberta | P91: British Columbia | Q91: NIHB
B92: Population size Baseline (2024) | F92: =SUM(H92:Q92) -> 31249195 | H92: =H21 -> 524221.1969 | I92: 169145.9031 | J92: 1030420.876 | K92: 812400.0242 | L92: 15482531 | M92: 1289047 | N92: 1209107 | O92: 4695290 | P92: 5501116 | Q92: 535916
B93: Population size Year 1 (2025) | F93: =SUM(H93:Q93) -> 31787797.83 | H93: =H92+H92*H$22 -> 526899.8694 | I93: 173700.3451 | J93: 1051174.943 | K93: 826680.9056 | L93: 15745151.01 | M93: 1308224.612 | N93: 1220428.867 | O93: 4782287.713 | P93: 5605543.416 | Q93: 547706.152
B94: Population size Year 2 (2026) | F94: =SUM(H94:Q94) -> 32335905.69 | H94: 529592.2294 | I94: 178377.4206 | J94: 1072347.024 | K94: 841212.8253 | L94: 16012225.66 | M94: 1327687.536 | N94: 1231856.75 | O94: 4870897.383 | P94: 5711953.173 | Q94: 559755.6873
B95: Population size Year 3 (2027) | F95: =SUM(H95:Q95) -> 32893688.79 | H95: 532298.3468 | I95: 183180.4315 | J95: 1093945.54 | K95: 856000.1964 | L95: 16283830.53 | M95: 1347440.017 | N95: 1243391.641 | O95: 4961148.877 | P95: 5820382.902 | Q95: 572070.3125
B96: Population size Year 4 (2028) | F96: 33461320.43 | H96: 535018.2921 | I96: 188112.7688 | J96: 1115979.079 | K96: 871047.5091 | L96: 16560042.45 | M96: 1367486.363 | N96: 1255034.544 | O96: 5053072.615 | P96: 5930870.946 | Q96: 584655.8593
B97: Population size Year 5 (2029) | F97: 34038977.03 | H97: 537752.1357 | I97: 193177.9148 | J97: 1138456.404 | K97: 886359.3331 | L97: 16840939.58 | M97: 1387830.945 | N97: 1266786.468 | O97: 5146699.582 | P97: 6043456.38 | Q97: 597518.2882
F99: Pan Canadian | H99: Newfoundland and Labrador | I99: Prince Edward Island | J99: Nova Scotia | K99: New Brunswick | L99: Ontario | M99: Manitoba | N99: Saskatchewan | O99: Alberta | P99: British Columbia | Q99: NIHB | U99: Prevalence
B100: Number of Prevalent Patients at Baseline | F100: =SUM(H100:Q100) -> 0 | H100: =IF(Switch_Prev_Incidence="Incidence",0,H92*U100) -> 0 | I100: 0 | J100: 0 | K100: 0 | L100: 0 | M100: 0 | N100: 0 | O100: 0 | P100: 0 | Q100: 0 | U100: =U27 -> 0 | V100: 0 | W100: 0 | X100: 0 | Y100: 0 | Z100: 0 | AA100: 0 | AB100: 0 | AC100: 0 | AD100: 0
B101: Number of Prevalent Patients, Year 1 | F101: =SUM(H101:Q101) -> 0 | H101: 0 | I101: 0 | J101: 0 | K101: 0 | L101: 0 | M101: 0 | N101: 0 | O101: 0 | P101: 0 | Q101: 0 | U101: =IF(AND(Switch_epi_annual_increase="no",Switch_Prev_Incidence="Prevalence"),U100*(1+$F$31),U$100) -> 0 | V101: 0 | W101: 0 | X101: 0 | Y101: 0 | Z101: 0 | AA101: 0 | AB101: 0 | AC101: 0 | AD101: 0
B102: Number of Prevalent Patients, Year 2 | F102: =SUM(H102:Q102) -> 0 | H102: =IF(Switch_Prev_Incidence="Incidence",0,IF(Switch_Prev_Incidence="Incidence with bolus of prevalent patients",0,H94*U102)) -> 0 | I102: 0 | J102: 0 | K102: 0 | L102: 0 | M102: 0 | N102: 0 | O102: 0 | P102: 0 | Q102: 0 | U102: 0 | V102: 0 | W102: 0 | X102: 0 | Y102: 0 | Z102: 0 | AA102: 0 | AB102: 0 | AC102: 0 | AD102: 0
B103: Number of Prevalent Patients, Year 3 | F103: =SUM(H103:Q103) -> 0 | H103: 0 | I103: 0 | J103: 0 | K103: 0 | L103: 0 | M103: 0 | N103: 0 | O103: 0 | P103: 0 | Q103: 0 | U103: 0 | V103: 0 | W103: 0 | X103: 0 | Y103: 0 | Z103: 0 | AA103: 0 | AB103: 0 | AC103: 0 | AD103: 0
B104: Number of Prevalent Patients, Year 4 | F104: 0 | H104: 0 | I104: 0 | J104: 0 | K104: 0 | L104: 0 | M104: 0 | N104: 0 | O104: 0 | P104: 0 | Q104: 0 | U104: 0 | V104: 0 | W104: 0 | X104: 0 | Y104: 0 | Z104: 0 | AA104: 0 | AB104: 0 | AC104: 0 | AD104: 0
B105: Number of Prevalent Patients, Year 5 | F105: 0 | H105: 0 | I105: 0 | J105: 0 | K105: 0 | L105: 0 | M105: 0 | N105: 0 | O105: 0 | P105: 0 | Q105: 0 | U105: 0 | V105: 0 | W105: 0 | X105: 0 | Y105: 0 | Z105: 0 | AA105: 0 | AB105: 0 | AC105: 0 | AD105: 0
U106: Incidence
B107: Number of Incidence Patients at Baseline | F107: =SUM(H107:Q107) -> 0 | H107: =IF(Switch_Prev_Incidence="prevalence",0,H92*U107) -> 0 | I107: 0 | J107: 0 | K107: 0 | L107: 0 | M107: 0 | N107: 0 | O107: 0 | P107: 0 | Q107: 0 | U107: =U28 -> 0 | V107: 0 | W107: 0 | X107: 0 | Y107: 0 | Z107: 0 | AA107: 0 | AB107: 0 | AC107: 0 | AD107: 0
B108: Number of Incident Patients, Year 1 | F108: =SUM(H108:Q108) -> 0 | H108: 0 | I108: 0 | J108: 0 | K108: 0 | L108: 0 | M108: 0 | N108: 0 | O108: 0 | P108: 0 | Q108: 0 | U108: =IF(Switch_epi_annual_increase="yes",U$107,U107*(1+$F$31)) -> 0 | V108: 0 | W108: 0 | X108: 0 | Y108: 0 | Z108: 0 | AA108: 0 | AB108: 0 | AC108: 0 | AD108: 0
B109: Number of Incident Patients, Year 2 | F109: 0 | H109: 0 | I109: 0 | J109: 0 | K109: 0 | L109: 0 | M109: 0 | N109: 0 | O109: 0 | P109: 0 | Q109: 0 | U109: 0 | V109: 0 | W109: 0 | X109: 0 | Y109: 0 | Z109: 0 | AA109: 0 | AB109: 0 | AC109: 0 | AD109: 0
B110: Number of Incident Patients, Year 3 | F110: =SUM(H110:Q110) -> 0 | H110: 0 | I110: 0 | J110: 0 | K110: 0 | L110: 0 | M110: 0 | N110: 0 | O110: 0 | P110: 0 | Q110: 0 | U110: 0 | V110: 0 | W110: 0 | X110: 0 | Y110: 0 | Z110: 0 | AA110: 0 | AB110: 0 | AC110: 0 | AD110: 0
B111: Number of Incident Patients, Year 4 | F111: 0 | H111: 0 | I111: 0 | J111: 0 | K111: 0 | L111: 0 | M111: 0 | N111: 0 | O111: 0 | P111: 0 | Q111: 0 | U111: 0 | V111: 0 | W111: 0 | X111: 0 | Y111: 0 | Z111: 0 | AA111: 0 | AB111: 0 | AC111: 0 | AD111: 0
B112: Number of Incident Patients, Year 5 | F112: 0 | H112: 0 | I112: 0 | J112: 0 | K112: 0 | L112: 0 | M112: 0 | N112: 0 | O112: 0 | P112: 0 | Q112: 0 | U112: 0 | V112: 0 | W112: 0 | X112: 0 | Y112: 0 | Z112: 0 | AA112: 0 | AB112: 0 | AC112: 0 | AD112: 0
B114: Overall population Size, Based on Prevalence and incidence Switch
B115: Population Size Baseline Year | F115: =SUM(H115:Q115) -> 0 | H115: =H100+H107 -> 0 | I115: =I100+I107 -> 0 | J115: 0 | K115: 0 | L115: 0 | M115: 0 | N115: 0 | O115: 0 | P115: 0 | Q115: 0
B116: Population Size Year 1 | F116: =SUM(H116:Q116) -> 0 | H116: =H101+H108 -> 0 | I116: 0 | J116: 0 | K116: 0 | L116: 0 | M116: 0 | N116: 0 | O116: 0 | P116: 0 | Q116: 0
B117: Population Size Year 2 | F117: 0 | H117: 0 | I117: 0 | J117: 0 | K117: 0 | L117: 0 | M117: 0 | N117: 0 | O117: 0 | P117: 0 | Q117: 0
B118: Population Size Year 3 | F118: 0 | H118: 0 | I118: 0 | J118: 0 | K118: 0 | L118: 0 | M118: 0 | N118: 0 | O118: 0 | P118: 0 | Q118: 0
B119: Population Size Year 4 | F119: 0 | H119: 0 | I119: 0 | J119: 0 | K119: 0 | L119: 0 | M119: 0 | N119: 0 | O119: 0 | P119: 0 | Q119: 0
B120: Population Size Year 5 | F120: 0 | H120: 0 | I120: 0 | J120: 0 | K120: 0 | L120: 0 | M120: 0 | N120: 0 | O120: 0 | P120: 0 | Q120: 0
B122: Population eligible for testing (if applicable)
B123: Baseline | F123: =SUM(H123:Q123) -> 0 | H123: =H100*$F$66+H107*$F$65 -> 0 | I123: =I100*$F$66+I107*$F$65 -> 0 | J123: 0 | K123: 0 | L123: 0 | M123: 0 | N123: 0 | O123: 0 | P123: 0 | Q123: 0
B124: Year 1 | F124: 0 | H124: =H101*$F$66+H108*$F$65 -> 0 | I124: 0 | J124: 0 | K124: 0 | L124: 0 | M124: 0 | N124: 0 | O124: 0 | P124: 0 | Q124: 0
B125: Year 2 | F125: 0 | H125: 0 | I125: 0 | J125: 0 | K125: 0 | L125: 0 | M125: 0 | N125: 0 | O125: 0 | P125: 0 | Q125: 0
B126: Year 3 | F126: 0 | H126: 0 | I126: 0 | J126: 0 | K126: 0 | L126: 0 | M126: 0 | N126: 0 | O126: 0 | P126: 0 | Q126: 0
B127: Year 4 | F127: 0 | H127: 0 | I127: 0 | J127: 0 | K127: 0 | L127: 0 | M127: 0 | N127: 0 | O127: 0 | P127: 0 | Q127: 0
B128: Year 5 | F128: 0 | H128: 0 | I128: 0 | J128: 0 | K128: 0 | L128: 0 | M128: 0 | N128: 0 | O128: 0 | P128: 0 | Q128: 0
B130: Population size with epidemiological and testing (if applicable) filters applied
B131: Baseline | F131: =SUM(H131:Q131) -> 0 | H131: =(IF(Switch_Prev_Incidence="Prevalence",H115*PRODUCT(U$53:U$62), IF(Switch_Prev_Incidence="Incidence",H115*PRODUCT(U$40:U$49), H100*PRODUCT(U$53:U$62)+H107*PRODUCT(U$40:U$49) )))*U68*$U$75 -> 0 | I131: 0 | J131: 0 | K131: 0 | L131: 0 | M131: 0 | N131: 0 | O131: 0 | P131: 0 | Q131: 0
B132: Year 1 | F132: =SUM(H132:Q132) -> 0 | H132: =(IF(Switch_Prev_Incidence="Prevalence",H116*PRODUCT(U$53:U$62), IF(Switch_Prev_Incidence="Incidence",H116*PRODUCT(U$40:U$49), IF(Switch_Prev_Incidence="Incidence derived using prevalence",H101*PRODUCT(U$53:U$62)+H108*PRODUCT(U$40:U$49), H100*PRODUCT(U$53:U$62)+H108*PRODUCT(U$40:U$49)))))*U69*$U$75 -> 0 | I132: 0 | J132: 0 | K132: 0 | L132: 0 | M132: 0 | N132: 0 | O132: 0 | P132: 0 | Q132: 0
B133: Year 2 | F133: =SUM(H133:Q133) -> 0 | H133: =(IF(Switch_Prev_Incidence="Prevalence",H117*PRODUCT(U$53:U$62), IF(Switch_Prev_Incidence="Incidence",H117*PRODUCT(U$40:U$49), IF(Switch_Prev_Incidence="Incidence derived using prevalence",H102*PRODUCT(U$53:U$62)+H109*PRODUCT(U$40:U$49), H117*PRODUCT(U$40:U$49))) ))*U70*$U$75 -> 0 | I133: 0 | J133: 0 | K133: 0 | L133: 0 | M133: 0 | N133: 0 | O133: 0 | P133: 0 | Q133: 0
B134: Year 3 | F134: 0 | H134: 0 | I134: 0 | J134: 0 | K134: 0 | L134: 0 | M134: 0 | N134: 0 | O134: 0 | P134: 0 | Q134: 0
B135: Year 4 | F135: 0 | H135: 0 | I135: 0 | J135: 0 | K135: 0 | L135: 0 | M135: 0 | N135: 0 | O135: 0 | P135: 0 | Q135: 0
B136: Year 5 | F136: 0 | H136: 0 | I136: 0 | J136: 0 | K136: 0 | L136: 0 | M136: 0 | N136: 0 | O136: 0 | P136: 0 | Q136: 0
B138: Population size with coverage rates
B139: Baseline | F139: =SUM(H139:Q139) -> 0 | H139: =H131*H$88 -> 0 | I139: =I131*I$88 -> 0 | J139: 0 | K139: 0 | L139: =L131*L$88 -> 0 | M139: 0 | N139: 0 | O139: 0 | P139: 0 | Q139: 0
B140: Year 1 | F140: =SUM(H140:Q140) -> 0 | H140: =H132*H$88 -> 0 | I140: =I132*I$88 -> 0 | J140: 0 | K140: 0 | L140: =L132*L$88 -> 0 | M140: 0 | N140: 0 | O140: 0 | P140: 0 | Q140: 0
B141: Year 2 | F141: 0 | H141: =H133*H$88 -> 0 | I141: =I133*I$88 -> 0 | J141: 0 | K141: 0 | L141: 0 | M141: 0 | N141: 0 | O141: 0 | P141: 0 | Q141: 0
B142: Year 3 | F142: 0 | H142: 0 | I142: 0 | J142: 0 | K142: 0 | L142: 0 | M142: 0 | N142: 0 | O142: 0 | P142: 0 | Q142: 0
B143: Year 4 | F143: 0 | H143: 0 | I143: 0 | J143: 0 | K143: 0 | L143: =L135*L$88 -> 0 | M143: 0 | N143: 0 | O143: 0 | P143: 0 | Q143: 0
B144: Year 5 | F144: 0 | H144: 0 | I144: 0 | J144: 0 | K144: 0 | L144: 0 | M144: 0 | N144: 0 | O144: 0 | P144: 0 | Q144: 0

Sheet Inputs-Subgroups
B4: =IF(Subgroup_Switch="Yes","Deriving epidemiological filters when considering subgroups","Not applicable - please proceed to next sheet") -> Not applicable - please proceed to next sheet
B6: When deriving epidemiological filters, subgroups are sometimes considered to derive more accurate estimates. If the user wishes to consider subgroups when deriving epidemiological filters, this sheet can help derive these estimates. If the user does not want to consider subgroups because they have robust data on the entire cohort, this sheet can be skipped.
B10: Epidemiological filters for refining incident population
B12: Name of subgroup 1 to derive epidemiological filters for:
B13: Name of subgroup 2 to derive epidemiological filters for:
B15: The user must specify what percentage of the cohort the subgroup applies to. If the subgroups are mutually exclusive (meaning a patient cannot be considered in both subgroups), the percentages should sum to 100%. If they sum to less than 100%, the user assumes any patients not covered by these subgroups are ineligible for treatment. If the subgroups are not mutually exclusive, the user must ensure no double-counting occurs when deriving data for the epidemiological filters.
D17: =CONCATENATE(IF(ISBLANK(D12)=TRUE,"Subgroup 1",D12)) -> Subgroup 1 | E17: =CONCATENATE(IF(ISBLANK(D13)=TRUE,"Subgroup 2",D13)) -> Subgroup 2
B18: Percentage of the population comprising the subgroup
B20: The user must enter all the epidemiological filters that apply.
B21: If a filter only applies to 1 subgroup, leave the cell blank in the subgroup it does not apply to (do not set to 0%).
B22: Epidemiological filter | D22: =CONCATENATE("Percentage applied to patients who meet the criteria for subgroup: ",D12) -> Percentage applied to patients who meet the criteria for subgroup: | E22: =CONCATENATE("Percentage applied to patients who meet the criteria for subgroup: ",D13) -> Percentage applied to patients who meet the criteria for subgroup: | F22: Weighted average | H22: =CONCATENATE("Filter applied to patients who meet criteria for ",D12) -> Filter applied to patients who meet criteria for | I22: Filter applied to remaining patients | J22: Weighted average calculation
F23: =IF(J23=0%,100%,J23) -> 1 | H23: =IF(ISBLANK(D23)=TRUE,100%,100*D23*D18) -> 1 | I23: =IF(ISBLANK(E23)=TRUE,0,E23*E18*100) -> 0 | J23: =IF(D23+E23=0,0,SUM(H23:I23)/100) -> 0
F24: =IF(J24=0%,100%,J24) -> 1 | H24: =IF(ISBLANK(D24)=TRUE,H23*100%,D24*H23) -> 1 | I24: =IF(ISBLANK(E24)=TRUE,I23*100%,E24*I23) -> 0 | J24: =IF(D24+E24=0,0,SUM(H24:I24)/SUM(H23:I23)) -> 0
F25: 1 | H25: =IF(ISBLANK(D25)=TRUE,H24*100%,D25*H24) -> 1 | I25: =IF(ISBLANK(E25)=TRUE,I24*100%,E25*I24) -> 0 | J25: =IF(D25+E25=0,0,SUM(H25:I25)/SUM(H24:I24)) -> 0
F26: 1 | H26: 1 | I26: 0 | J26: 0
F27: 1 | H27: 1 | I27: 0 | J27: 0
F28: 1 | H28: 1 | I28: 0 | J28: 0
F29: 1 | H29: 1 | I29: 0 | J29: 0
F30: 1 | H30: 1 | I30: 0 | J30: 0
F31: 1 | H31: 1 | I31: 0 | J31: 0
F32: 1 | H32: 1 | I32: 0 | J32: 0
B34: Once these epidemiological filters have been applied and the user is satisfied the results are valid by checking the following patient flow, click the Apply Epi Weights (Incidence) button to enter these into the market size sheet
B36: Patient Flow (Incidence)
B38: The following cells show patient flow for the selected jurisdiction. The first section applies the filters separately to each subgroup. The total population size with “weighted average” filters is applied to the full population. “Total derived by applying filters to each subgroup” should equal “Total derived using ‘weighted’ average.”
B40: Select Jurisdiction you wish to apply filters to: | D40: pan Canadian
B41: Size of population | D41: =INDEX('Inputs-Market Size'!$F$20:$Q$21,2,MATCH('Inputs-Subgroups'!D40,'Inputs-Market Size'!$F$20:$Q$20,0)) -> 31249195
B43: Incident population | D43: =D41*IF(D40="pan Canadian",Pancan_incidence,INDEX(Inc_Prev_Table,3,MATCH('Inputs-Subgroups'!D40,'Inputs-Market Size'!H26:Q26,0))) -> 0
B45: =CONCATENATE("Number of patients in subgroup: ",D17) -> Number of patients in subgroup: Subgroup 1 | D45: =D43*D18 -> 0
B46: =CONCATENATE("Number of patients in subgroup: ",E17) -> Number of patients in subgroup: Subgroup 2 | D46: =D43*E18 -> 0
D48: =D17 -> Subgroup 1 | E48: =E17 -> Subgroup 2
B49: =IF(ISBLANK(B23)=TRUE,"No additional filter applied",B23) -> No additional filter applied | D49: =D45*IF(ISBLANK(D23)=TRUE,100%,D23) -> 0 | E49: =D46*IF(ISBLANK(E23)=TRUE,100%,E23) -> 0
B50: No additional filter applied | D50: =D49*IF(ISBLANK(D24)=TRUE,100%,D24) -> 0 | E50: =E49*IF(ISBLANK(E24)=TRUE,100%,E24) -> 0
B51: No additional filter applied | D51: =D50*IF(ISBLANK(D25)=TRUE,100%,D25) -> 0 | E51: =E50*IF(ISBLANK(E25)=TRUE,100%,E25) -> 0
B52: No additional filter applied | D52: =D51*IF(ISBLANK(D26)=TRUE,100%,D26) -> 0 | E52: =E51*IF(ISBLANK(E26)=TRUE,100%,E26) -> 0
B53: No additional filter applied | D53: 0 | E53: 0
B54: No additional filter applied | D54: 0 | E54: 0
B55: No additional filter applied | D55: 0 | E55: 0
B56: No additional filter applied | D56: 0 | E56: 0
B57: No additional filter applied | D57: 0 | E57: 0
B58: No additional filter applied | D58: 0 | E58: 0
B60: Total for each subgroup | D60: =MIN(IF(D49:D58<>0,D49:D58)) -> 0 | E60: =MIN(IF(E49:E58<>0,E49:E58)) -> 0
B62: Total derived by applying filters to each subgroup | D62: =D60+E60 -> 0
B63: Total derived using 'weighted' average | D63: =D43*PRODUCT(F23:F32) -> 0
B66: Epidemiological filters for refining prevalent population
B68: Name of subgroup 1 to derive epidemiological filters for:
B69: Name of subgroup 2 to derive epidemiological filters for:
B71: The user must specify what percentage of the cohort the subgroup applies to. If the subgroups are mutually exclusive (meaning a patient cannot be considered in both subgroups) then the percentages should sum to 100%. If they sum to less than 100% then the user assumes any patients not covered by these subgroups are ineligible for treatment. If the subgroups are not mutually exclusive the user must ensure no double counting occurs when deriving data for the epidemiological filters.
D73: =CONCATENATE(IF(ISBLANK(D68)=TRUE,"Subgroup 1",D68)) -> Subgroup 1 | E73: =CONCATENATE(IF(ISBLANK(D69)=TRUE,"Subgroup 2",D69)) -> Subgroup 2
B74: What proportion of the population do the filters apply to?
B76: Epidemiological filter | D76: =CONCATENATE("Percentage applied to patients who meet the criteria for subgroup: ",D68) -> Percentage applied to patients who meet the criteria for subgroup: | E76: =CONCATENATE("Percentage applied to patients who meet the criteria for subgroup: ",D69) -> Percentage applied to patients who meet the criteria for subgroup: | F76: Weighted average | H76: =CONCATENATE("Filter applied to patients who meet criteria for ",D68) -> Filter applied to patients who meet criteria for | I76: Filter applied to remaining patients | J76: Weighted average calculation
F77: =IF(J77=0%,100%,J77) -> 1 | H77: =IF(ISBLANK(D77)=TRUE,100%,100*D77*D74) -> 1 | I77: =IF(ISBLANK(E77)=TRUE,0,E77*E74*100) -> 0 | J77: =IF(D77+E77=0,0,SUM(H77:I77)/100) -> 0
F78: 1 | H78: =IF(ISBLANK(D78)=TRUE,H77*100%,D78*H77) -> 1 | I78: =IF(ISBLANK(E78)=TRUE,I77*100%,E78*I77) -> 0 | J78: =IF(D78+E78=0,0,SUM(H78:I78)/SUM(H77:I77)) -> 0
F79: 1 | H79: =IF(ISBLANK(D79)=TRUE,H78*100%,D79*H78) -> 1 | I79: =IF(ISBLANK(E79)=TRUE,I78*100%,E79*I78) -> 0 | J79: =IF(D79+E79=0,0,SUM(H79:I79)/SUM(H78:I78)) -> 0
F80: 1 | H80: 1 | I80: 0 | J80: 0
F81: =IF(J81=0%,100%,J81) -> 1 | H81: 1 | I81: 0 | J81: 0
F82: =IF(J82=0%,100%,J82) -> 1 | H82: 1 | I82: 0 | J82: 0
F83: 1 | H83: 1 | I83: 0 | J83: 0
F84: 1 | H84: 1 | I84: 0 | J84: 0
F85: 1 | H85: 1 | I85: 0 | J85: 0
F86: 1 | H86: 1 | I86: 0 | J86: 0
B88: Once these epidemiological filters have been applied and the user is satisfied the results are valid by checking the following patient flow, click the Apply Epi Weights (Prevalence) button to enter these into the market size sheet
B90: Patient Flow (Prevalence)
B92: The following cells show patient flow for the selected jurisdiction. The first section applies the filters separately to each subgroup. The total population size with “weighted average” filters is applied to the full population. “Total derived by applying filters to each subgroup” should equal “Total derived using ‘weighted’ average.”
B94: Select Jurisdiction you wish to apply filters to: | D94: pan Canadian
B95: Size of population | D95: =INDEX('Inputs-Market Size'!$F$20:$Q$21,2,MATCH('Inputs-Subgroups'!D94,'Inputs-Market Size'!$F$20:$Q$20,0)) -> 31249195
B97: Prevalent population | D97: =D95*IF(D40="pan Canadian",Pancan_prev,INDEX(Inc_Prev_Table,2,MATCH('Inputs-Subgroups'!D40,'Inputs-Market Size'!H26:Q26,0))) -> 0
B99: =CONCATENATE("Number of patients in subgroup: ",D73) -> Number of patients in subgroup: Subgroup 1 | D99: =D97*D74 -> 0
B100: =CONCATENATE("Number of patients in subgroup: ",E73) -> Number of patients in subgroup: Subgroup 2 | D100: =D97*E74 -> 0
D102: =D73 -> Subgroup 1 | E102: =E73 -> Subgroup 2
B103: =IF(ISBLANK(B77)=TRUE,"No additional filters applied",B77) -> No additional filters applied | D103: =D99*IF(ISBLANK(D77)=TRUE,100%,D77) -> 0 | E103: =D100*IF(ISBLANK(E77)=TRUE,100%,E77) -> 0
B104: No additional filters applied | D104: =D103*IF(ISBLANK(D78)=TRUE,100%,D78) -> 0 | E104: =E103*IF(ISBLANK(E78)=TRUE,100%,E78) -> 0
B105: No additional filters applied | D105: =D104*IF(ISBLANK(D79)=TRUE,100%,D79) -> 0 | E105: =E104*IF(ISBLANK(E79)=TRUE,100%,E79) -> 0
B106: No additional filters applied | D106: =D105*IF(ISBLANK(D80)=TRUE,100%,D80) -> 0 | E106: 0
B107: No additional filters applied | D107: 0 | E107: 0
B108: No additional filters applied | D108: 0 | E108: 0
B109: No additional filters applied | D109: 0 | E109: 0
B110: No additional filters applied | D110: 0 | E110: 0
B111: No additional filters applied | D111: 0 | E111: 0
B112: No additional filters applied | D112: 0 | E112: 0
B114: Total for each subgroup | D114: =MIN(IF(D103:D112<>0,D103:D112)) -> 0 | E114: =MIN(IF(E103:E112<>0,E103:E112)) -> 0
B116: Total derived by applying filters to each subgroup | D116: =D114+E114 -> 0
B117: Total derived using 'weighted' average | D117: =D97*PRODUCT(F77:F86) -> 0

Sheet Outputs-Patient flow
B4: Outputs - Patient flow
B6: This sheets allows the user to visual patient flow to ensure the numbers calculated match expectations
G7: Jurisdiction code
C8: Select the jurisdiction for patient flow | E8: pan Canadian | G8: =IF(E8="Pan Canadian","N/A",INDEX('Data store'!$B$19:$K$19,1,MATCH(E8,'Data store'!$B$18:$K$18,0))) -> N/A
C11: Filters applied to incidence (not applicable if a prevalence based model has been selected) | L11: Filters applied to prevalence (not applicable if an incidence only based model has been selected)
C13: Epidemiological filters | E13: Percentage applied | G13: Size of population | L13: Epidemiological filters | N13: Percentage applied | P13: Size of population
C15: Starting population | E15: 1 | G15: =IF(E8="pan Canadian",'Inputs-Market Size'!F21,INDEX('Data store'!$B$1:$K$5,IF(Switch_oncvsnononc="Non-oncology",3,IF(AND(Switch_oncvsnononc="Oncology",Switch_IVvstakehome="Intravenous"),5,4)),MATCH(E8,'Data store'!$B$1:$K$1,0))) -> 31249195 | L15: Starting population | N15: 1 | P15: =IF(E8="pan Canadian",'Inputs-Market Size'!F21,INDEX('Data store'!$B$1:$K$5,IF(Switch_oncvsnononc="Non-oncology",3,IF(AND(Switch_oncvsnononc="Oncology",Switch_IVvstakehome="Intravenous"),5,4)),MATCH(E8,'Data store'!$B$1:$K$1,0))) -> 31249195
C17: Incidence | E17: =IF(G8="N/A",Pancan_incidence,INDEX(Incidence_Table,1,G8)) -> 0 | G17: =E17*G15 -> 0 | L17: Prevalence | N17: =IF(G8="N/A",Pancan_prev,INDEX(Prevalence_Table,1,G8)) -> 0 | P17: =N17*P15 -> 0
C19: =IF(ISBLANK('Inputs-Market Size'!B40)=TRUE,"No additional filter applied",'Inputs-Market Size'!B40) -> Proportion 18+ | E19: =IF(G8="N/A",'Inputs-Market Size'!F40,INDEX(Incidence_Filter_Table,1,G8)) -> 0 | G19: =IF(E19=0%,G17*100%,G17*E19) -> 0 | L19: =IF(ISBLANK('Inputs-Market Size'!B53)=TRUE,"No additional filter applied",'Inputs-Market Size'!B53) -> No additional filter applied | N19: =IF(G8="N/A",'Inputs-Market Size'!F53,INDEX(Prevalence_Filter_Table,1,G8)) -> 0 | P19: =IF(N19=0%,P17*100%,P17*N19) -> 0
C21: =IF(ISBLANK('Inputs-Market Size'!B41)=TRUE,"No additional filter applied",'Inputs-Market Size'!B41) -> Proportion with moderate to high severity condition | E21: =IF(G8="N/A",'Inputs-Market Size'!F41,INDEX(Incidence_Filter_Table,2,G8)) -> 0 | G21: =IF(E21=0%,G19*100%,G19*E21) -> 0 | L21: =IF(ISBLANK('Inputs-Market Size'!B54)=TRUE,"No additional filter applied",'Inputs-Market Size'!B54) -> No additional filter applied | N21: =IF(G8="N/A",'Inputs-Market Size'!F54,INDEX(Prevalence_Filter_Table,2,G8)) -> 0 | P21: =IF(N21=0%,P19*100%,P19*N21) -> 0
C23: =IF(ISBLANK('Inputs-Market Size'!B42)=TRUE,"No additional filter applied",'Inputs-Market Size'!B42) -> No additional filter applied | E23: =IF(G8="N/A",'Inputs-Market Size'!F42,INDEX(Incidence_Filter_Table,3,G8)) -> 0 | G23: =IF(E23=0%,G21*100%,G21*E23) -> 0 | L23: =IF(ISBLANK('Inputs-Market Size'!B55)=TRUE,"No additional filter applied",'Inputs-Market Size'!B55) -> No additional filter applied | N23: =IF(G8="N/A",'Inputs-Market Size'!F55,INDEX(Prevalence_Filter_Table,3,G8)) -> 0 | P23: =IF(N23=0%,P21*100%,P21*N23) -> 0
C25: =IF(ISBLANK('Inputs-Market Size'!B43)=TRUE,"No additional filter applied",'Inputs-Market Size'!B43) -> No additional filter applied | E25: =IF(G8="N/A",'Inputs-Market Size'!F43,INDEX(Incidence_Filter_Table,4,G8)) -> 0 | G25: =IF(E25=0%,G23*100%,G23*E25) -> 0 | L25: =IF(ISBLANK('Inputs-Market Size'!B56)=TRUE,"No additional filter applied",'Inputs-Market Size'!B56) -> No additional filter applied | N25: =IF(G8="N/A",'Inputs-Market Size'!F56,INDEX(Prevalence_Filter_Table,4,G8)) -> 0 | P25: =IF(N25=0%,P23*100%,P23*N25) -> 0
C27: =IF(ISBLANK('Inputs-Market Size'!B44)=TRUE,"No additional filter applied",'Inputs-Market Size'!B44) -> No additional filter applied | E27: =IF(G8="N/A",'Inputs-Market Size'!F44,INDEX(Incidence_Filter_Table,5,G8)) -> 0 | G27: =IF(E27=0%,G25*100%,G25*E27) -> 0 | L27: =IF(ISBLANK('Inputs-Market Size'!B57)=TRUE,"No additional filter applied",'Inputs-Market Size'!B57) -> No additional filter applied | N27: =IF(G8="N/A",'Inputs-Market Size'!F57,INDEX(Prevalence_Filter_Table,5,G8)) -> 0 | P27: =IF(N27=0%,P25*100%,P25*N27) -> 0
C29: =IF(ISBLANK('Inputs-Market Size'!B45)=TRUE,"No additional filter applied",'Inputs-Market Size'!B45) -> No additional filter applied | E29: =IF(G8="N/A",'Inputs-Market Size'!F45,INDEX(Incidence_Filter_Table,6,G8)) -> 0 | G29: =IF(E29=0%,G27*100%,G27*E29) -> 0 | L29: =IF(ISBLANK('Inputs-Market Size'!B58)=TRUE,"No additional filter applied",'Inputs-Market Size'!B58) -> No additional filter applied | N29: =IF(G8="N/A",'Inputs-Market Size'!F58,INDEX(Prevalence_Filter_Table,6,G8)) -> 0 | P29: =IF(N29=0%,P27*100%,P27*N29) -> 0
C31: =IF(ISBLANK('Inputs-Market Size'!B46)=TRUE,"No additional filter applied",'Inputs-Market Size'!B46) -> No additional filter applied | E31: =IF(G8="N/A",'Inputs-Market Size'!F46,INDEX(Incidence_Filter_Table,7,G8)) -> 0 | G31: =IF(E31=0%,G29*100%,G29*E31) -> 0 | L31: =IF(ISBLANK('Inputs-Market Size'!B59)=TRUE,"No additional filter applied",'Inputs-Market Size'!B59) -> No additional filter applied | N31: =IF(G8="N/A",'Inputs-Market Size'!F59,INDEX(Prevalence_Filter_Table,7,G8)) -> 0 | P31: =IF(N31=0%,P29*100%,P29*N31) -> 0
C33: =IF(ISBLANK('Inputs-Market Size'!B47)=TRUE,"No additional filter applied",'Inputs-Market Size'!B47) -> No additional filter applied | E33: =IF(G8="N/A",'Inputs-Market Size'!F47,INDEX(Incidence_Filter_Table,8,G8)) -> 0 | G33: =IF(E33=0%,G31*100%,G31*E33) -> 0 | L33: =IF(ISBLANK('Inputs-Market Size'!B60)=TRUE,"No additional filter applied",'Inputs-Market Size'!B60) -> No additional filter applied | N33: =IF(G8="N/A",'Inputs-Market Size'!F60,INDEX(Prevalence_Filter_Table,8,G8)) -> 0 | P33: =IF(N33=0%,P31*100%,P31*N33) -> 0
C35: =IF(ISBLANK('Inputs-Market Size'!B48)=TRUE,"No additional filter applied",'Inputs-Market Size'!B48) -> No additional filter applied | E35: =IF(G8="N/A",'Inputs-Market Size'!F48,INDEX(Incidence_Filter_Table,9,G8)) -> 0 | G35: =IF(E35=0%,G33*100%,G33*E35) -> 0 | L35: =IF(ISBLANK('Inputs-Market Size'!B61)=TRUE,"No additional filter applied",'Inputs-Market Size'!B61) -> No additional filter applied | N35: =IF(G8="N/A",'Inputs-Market Size'!F61,INDEX(Prevalence_Filter_Table,9,G8)) -> 0 | P35: =IF(N35=0%,P33*100%,P33*N35) -> 0
C37: =IF(ISBLANK('Inputs-Market Size'!B49)=TRUE,"No additional filter applied",'Inputs-Market Size'!B49) -> No additional filter applied | E37: =IF(G8="N/A",'Inputs-Market Size'!F49,INDEX(Incidence_Filter_Table,10,G8)) -> 0 | G37: =IF(E37=0%,G35*100%,G35*E37) -> 0 | L37: =IF(ISBLANK('Inputs-Market Size'!B62)=TRUE,"No additional filter applied",'Inputs-Market Size'!B62) -> No additional filter applied | N37: =IF(G8="N/A",'Inputs-Market Size'!F62,INDEX(Prevalence_Filter_Table,10,G8)) -> 0 | P37: =IF(N37=0%,P35*100%,P35*N37) -> 0
C39: =IF(Switch_CompanionDiag="Yes","Testing filters","No additional testing filters applied") -> No additional testing filters applied | E39: Percentage applied | G39: Size of population | L39: =IF(Switch_CompanionDiag="Yes","Testing filters","No additional testing filters applied") -> No additional testing filters applied | N39: Percentage applied | P39: Size of population
C41: Testing uptake | E41: =IF(Switch_CompanionDiag="Yes",IF(G8="N/A",'Inputs-Market Size'!F68,INDEX(Testing_Uptake_New_Drug,1,G8)),100%) -> 1 | G41: =G37*E41 -> 0 | L41: Testing uptake | N41: =IF(Switch_CompanionDiag="Yes",IF(G8="N/A",'Inputs-Market Size'!F68,INDEX(Testing_Uptake_New_Drug,1,G8)),100%) -> 1 | P41: =P37*N41 -> 0
C43: Percentage who test positive | E43: =IF(Switch_CompanionDiag="Yes",'Inputs-Market Size'!F75,100%) -> 1 | G43: =G41*E43 -> 0 | L43: Percentage who test positive | N43: =IF(Switch_CompanionDiag="Yes",'Inputs-Market Size'!F75,100%) -> 1 | P43: =P41*N43 -> 0
C46: Total patients eligible for treatment (baseline year) | G46: =G37*E41*E43 -> 0 | L46: Total patients eleigible for treatment (baseline year) | P46: =P37*N41*N43 -> 0
C48: Total patients eligible for treatment who receive public coverage (baseline year) | G48: =IF(G8="N/A",'Inputs-Market Size'!F88,INDEX(Public_Coverage_Table,1,G8))*G46 -> 0 | L48: Total patients eligible for treatment who receive public coverage (baseline year) | P48: =IF(G8="N/A",'Inputs-Market Size'!F88,INDEX(Public_Coverage_Table,1,G8))*P46 -> 0

Sheet Inputs-Drug Names
B4: Inputs - Drug Names
B6: Step 2. Enter drug names and the number of comparators
B8: Parameter | E8: User Input
B10: What is the name of the drug under review (DUR)?
B12: Enter the number of comparators (between 0 and 10) | D12: If 0 is selected then there is no active therapy
B14: Enter the names of all comparators to be included in the analysis | C14: 1
C15: 2
C16: 3
C17: 4
C18: 5
C19: 6
C20: 7
C21: 8
C22: 9
C23: 10
E24: =IF($E$12=(10-(COUNTIF($E$14:$E$23,""))),"","Error-Enter name for all comparators included in the analysis") -> 

Sheet Inputs-Market Shares
B4: Inputs - Market Shares
B6: Step 3. Input market shares
B7: For reimbursement review BIAs, 4 years of data must be presented: a 1-year baseline period and a 3-year forecast period in the base case. If the full implementation is expected to extend beyond 3 years, a longer time horizon may be submitted. First, select the desired time horizon for the analysis.
B8: Next, enter the market shares for each drug including the drug under review for all 5 years of the BIA. If market shares are stable after 3 years, copy the market shares from year 3 to years 4 and 5 as well. Market shares may be jurisdictionally-specific (columns M to CC) or pan-Canadian estimates can be used in columns F to K. In some cases patients who meet the indication criteria may still refuse treatment and remain untreated instead. When a new treatment is funded the proportion of patients who deny treatment may decrease, especially if the new treatment is a targeted treatment where none was available prior. As the proportion of untreated patients can vary based on whether a new drug is funded it is most relevant to consider them in market shares.
B12: Parameter | D12: Notes | F12: User Input (pan-Can) | M12: User Input (jurisdiction-specific)
B14: What is the time horizon of the analysis? | D14: Time horizon can be 3, 4 or 5 years. Only 1 time horizon can be selected (i.e., not jurisdiction specific).
B17: Reference scenario | F17: pan-Canadian | M17: Newfoundland and Labrador | T17: Prince Edward Island | AA17: Nova Scotia | AH17: New Brunswick | AO17: Ontario | AV17: Manitoba | BC17: Saskatchewan | BJ17: Alberta | BQ17: British Columbia | BX17: NIHB
D18: If market shares are expected to be jurisdiction specific, fill in columns M to CC. If market shares are the same across all jurisdictions only fill in cells F to K. | F18: Baseline | G18: Year 1 | H18: Year 2 | I18: Year 3 | J18: Year 4 | K18: Year 5 | M18: Baseline | N18: Year 1 | O18: Year 2 | P18: Year 3 | Q18: Year 4 | R18: Year 5 | T18: Baseline | U18: Year 1 | V18: Year 2 | W18: Year 3 | X18: Year 4 | Y18: Year 5 | AA18: Baseline | AB18: Year 1 | AC18: Year 2 | AD18: Year 3 | AE18: Year 4 | AF18: Year 5 | AH18: Baseline | AI18: Year 1 | AJ18: Year 2 | AK18: Year 3 | AL18: Year 4 | AM18: Year 5 | AO18: Baseline | AP18: Year 1 | AQ18: Year 2 | AR18: Year 3 | AS18: Year 4 | AT18: Year 5 | AV18: Baseline | AW18: Year 1 | AX18: Year 2 | AY18: Year 3 | AZ18: Year 4 | BA18: Year 5 | BC18: Baseline | BD18: Year 1 | BE18: Year 2 | BF18: Year 3 | BG18: Year 4 | BH18: Year 5 | BJ18: Baseline | BK18: Year 1 | BL18: Year 2 | BM18: Year 3 | BN18: Year 4 | BO18: Year 5 | BQ18: Baseline | BR18: Year 1 | BS18: Year 2 | BT18: Year 3 | BU18: Year 4 | BV18: Year 5 | BX18: Baseline | BY18: Year 1 | BZ18: Year 2 | CA18: Year 3 | CB18: Year 4 | CC18: Year 5
B19: =IF(Name_DUR="","Drug Under Review",Name_DUR) -> Drug Under Review
B20: Untreated
B21: =IF(Namedrug1="","Drug 1",Namedrug1) -> Drug 1
B22: =IF(Namedrug2="","Drug 2",Namedrug2) -> Drug 2
B23: =IF(Namedrug3="","Drug 3",Namedrug3) -> Drug 3
B24: =IF(Namedrug4="","Drug 4",Namedrug4) -> Drug 4
B25: =IF(Namedrug5="","Drug 5",Namedrug5) -> Drug 5
B26: =IF(Namedrug6="","Drug 6",Namedrug6) -> Drug 6
B27: =IF(Namedrug7="","Drug 7",Namedrug7) -> Drug 7
B28: =IF(Namedrug8="","Drug 8",Namedrug8) -> Drug 8
B29: =IF(Namedrug9="","Drug 9",Namedrug9) -> Drug 9
B30: =IF(Namedrug10="","Drug 10",Namedrug10) -> Drug 10
B31: Total | F31: =SUM(F19:F30) -> 0 | G31: 0 | H31: 0 | I31: =SUM(I19:I30) -> 0 | J31: 0 | K31: 0 | M31: =SUM(M19:M30) -> 0 | N31: 0 | O31: 0 | P31: 0 | Q31: 0 | R31: 0 | T31: =SUM(T19:T30) -> 0 | U31: 0 | V31: 0 | W31: 0 | X31: 0 | Y31: 0 | AA31: =SUM(AA19:AA30) -> 0 | AB31: 0 | AC31: 0 | AD31: 0 | AE31: 0 | AF31: 0 | AH31: =SUM(AH19:AH30) -> 0 | AI31: 0 | AJ31: 0 | AK31: 0 | AL31: 0 | AM31: 0 | AO31: =SUM(AO19:AO30) -> 0 | AP31: 0 | AQ31: 0 | AR31: 0 | AS31: 0 | AT31: 0 | AV31: =SUM(AV19:AV30) -> 0 | AW31: 0 | AX31: 0 | AY31: 0 | AZ31: 0 | BA31: 0 | BC31: =SUM(BC19:BC30) -> 0 | BD31: 0 | BE31: 0 | BF31: 0 | BG31: 0 | BH31: 0 | BJ31: =SUM(BJ19:BJ30) -> 0 | BK31: 0 | BL31: 0 | BM31: 0 | BN31: 0 | BO31: 0 | BQ31: =SUM(BQ19:BQ30) -> 0 | BR31: 0 | BS31: 0 | BT31: 0 | BU31: 0 | BV31: 0 | BX31: =SUM(BX19:BX30) -> 0 | BY31: 0 | BZ31: 0 | CA31: 0 | CB31: 0 | CC31: 0
F32: =IF(OR(F31=100%,F31=0%),"","Error-Total market shares in baseline year must sum to 100%") ->  | G32: =IF(OR(G31=100%,G31=0%),"","Error-Total market shares in Year 1 must sum to 100%") ->  | H32: =IF(OR(H31=100%,H31=0%),"","Error-Total market shares in Year 2 must sum to 100%") ->  | I32: =IF(OR(I31=100%,I31=0%),"","Error-Total market shares in Year 3 must sum to 100%") ->  | J32: =IF(OR(J31=100%,J31=0%),"","Error-Total market shares in Year 3 must sum to 100%") ->  | N32: =IF(OR(N31=100%,N31=0%),"","Error-Total market shares IN Year 1 must sum to 100%") ->  | O32: =IF(OR(O31=100%,O31=0%),"","Error-Total market shares in Year 2 must sum to 100%") ->  | P32: =IF(OR(P31=100%,P31=0%),"","Error-Total market shares in Year 3 must sum to 100%") ->  | Q32: =IF(OR(Q31=100%,Q31=0%),"","Error-Total market shares in Year 3 must sum to 100%") ->  | U32: =IF(OR(U31=100%,U31=0%),"","Error-Total market shares IN Year 1 must sum to 100%") ->  | V32: =IF(OR(V31=100%,V31=0%),"","Error-Total market shares in Year 2 must sum to 100%") ->  | W32: =IF(OR(W31=100%,W31=0%),"","Error-Total market shares in Year 3 must sum to 100%") ->  | X32: =IF(OR(X31=100%,X31=0%),"","Error-Total market shares in Year 3 must sum to 100%") ->  | Y32: =IF(OR(Y31=100%,Y31=0%),"","Error-Total market shares in Year 3 must sum to 100%") ->  | AB32: =IF(OR(AB31=100%,AB31=0%),"","Error-Total market shares IN Year 1 must sum to 100%") ->  | AC32: =IF(OR(AC31=100%,AC31=0%),"","Error-Total market shares in Year 2 must sum to 100%") ->  | AD32: =IF(OR(AD31=100%,AD31=0%),"","Error-Total market shares in Year 3 must sum to 100%") ->  | AE32: =IF(OR(AE31=100%,AE31=0%),"","Error-Total market shares in Year 3 must sum to 100%") ->  | AF32: =IF(OR(AF31=100%,AF31=0%),"","Error-Total market shares in Year 3 must sum to 100%") ->  | AI32: =IF(OR(AI31=100%,AI31=0%),"","Error-Total market shares IN Year 1 must sum to 100%") ->  | AJ32: =IF(OR(AJ31=100%,AJ31=0%),"","Error-Total market shares in Year 2 must sum to 100%") ->  | AK32: =IF(OR(AK31=100%,AK31=0%),"","Error-Total market shares in Year 3 must sum to 100%") ->  | AL32: =IF(OR(AL31=100%,AL31=0%),"","Error-Total market shares in Year 3 must sum to 100%") ->  | AM32: =IF(OR(AM31=100%,AM31=0%),"","Error-Total market shares in Year 3 must sum to 100%") ->  | AP32: =IF(OR(AP31=100%,AP31=0%),"","Error-Total market shares IN Year 1 must sum to 100%") ->  | AQ32: =IF(OR(AQ31=100%,AQ31=0%),"","Error-Total market shares in Year 2 must sum to 100%") ->  | AR32: =IF(OR(AR31=100%,AR31=0%),"","Error-Total market shares in Year 3 must sum to 100%") ->  | AS32: =IF(OR(AS31=100%,AS31=0%),"","Error-Total market shares in Year 3 must sum to 100%") ->  | AT32: =IF(OR(AT31=100%,AT31=0%),"","Error-Total market shares in Year 3 must sum to 100%") ->  | AW32: =IF(OR(AW31=100%,AW31=0%),"","Error-Total market shares IN Year 1 must sum to 100%") ->  | AX32: =IF(OR(AX31=100%,AX31=0%),"","Error-Total market shares in Year 2 must sum to 100%") ->  | AY32: =IF(OR(AY31=100%,AY31=0%),"","Error-Total market shares in Year 3 must sum to 100%") ->  | AZ32: =IF(OR(AZ31=100%,AZ31=0%),"","Error-Total market shares in Year 3 must sum to 100%") ->  | BA32: =IF(OR(BA31=100%,BA31=0%),"","Error-Total market shares in Year 3 must sum to 100%") ->  | BD32: =IF(OR(BD31=100%,BD31=0%),"","Error-Total market shares IN Year 1 must sum to 100%") ->  | BE32: =IF(OR(BE31=100%,BE31=0%),"","Error-Total market shares in Year 2 must sum to 100%") ->  | BF32: =IF(OR(BF31=100%,BF31=0%),"","Error-Total market shares in Year 3 must sum to 100%") ->  | BG32: =IF(OR(BG31=100%,BG31=0%),"","Error-Total market shares in Year 3 must sum to 100%") ->  | BH32: =IF(OR(BH31=100%,BH31=0%),"","Error-Total market shares in Year 3 must sum to 100%") ->  | BK32: =IF(OR(BK31=100%,BK31=0%),"","Error-Total market shares IN Year 1 must sum to 100%") ->  | BL32: =IF(OR(BL31=100%,BL31=0%),"","Error-Total market shares in Year 2 must sum to 100%") ->  | BM32: =IF(OR(BM31=100%,BM31=0%),"","Error-Total market shares in Year 3 must sum to 100%") ->  | BN32: =IF(OR(BN31=100%,BN31=0%),"","Error-Total market shares in Year 3 must sum to 100%") ->  | BO32: =IF(OR(BO31=100%,BO31=0%),"","Error-Total market shares in Year 3 must sum to 100%") ->  | BR32: =IF(OR(BR31=100%,BR31=0%),"","Error-Total market shares IN Year 1 must sum to 100%") ->  | BS32: =IF(OR(BS31=100%,BS31=0%),"","Error-Total market shares in Year 2 must sum to 100%") ->  | BT32: =IF(OR(BT31=100%,BT31=0%),"","Error-Total market shares in Year 3 must sum to 100%") ->  | BU32: =IF(OR(BU31=100%,BU31=0%),"","Error-Total market shares in Year 3 must sum to 100%") ->  | BV32: =IF(OR(BV31=100%,BV31=0%),"","Error-Total market shares in Year 3 must sum to 100%") ->  | BY32: =IF(OR(BY31=100%,BY31=0%),"","Error-Total market shares IN Year 1 must sum to 100%") ->  | BZ32: =IF(OR(BZ31=100%,BZ31=0%),"","Error-Total market shares in Year 2 must sum to 100%") ->  | CA32: =IF(OR(CA31=100%,CA31=0%),"","Error-Total market shares in Year 3 must sum to 100%") ->  | CB32: =IF(OR(CB31=100%,CB31=0%),"","Error-Total market shares in Year 3 must sum to 100%") ->  | CC32: =IF(OR(CC31=100%,CC31=0%),"","Error-Total market shares in Year 3 must sum to 100%") -> 
B33: New drug scenario
G34: Year 1 | H34: Year 2 | I34: Year 3 | J34: Year 4 | K34: Year 5 | N34: Year 1 | O34: Year 2 | P34: Year 3 | Q34: Year 4 | R34: Year 5 | U34: Year 1 | V34: Year 2 | W34: Year 3 | X34: Year 4 | Y34: Year 5 | AB34: Year 1 | AC34: Year 2 | AD34: Year 3 | AE34: Year 4 | AF34: Year 5 | AI34: Year 1 | AJ34: Year 2 | AK34: Year 3 | AL34: Year 4 | AM34: Year 5 | AP34: Year 1 | AQ34: Year 2 | AR34: Year 3 | AS34: Year 4 | AT34: Year 5 | AW34: Year 1 | AX34: Year 2 | AY34: Year 3 | AZ34: Year 4 | BA34: Year 5 | BD34: Year 1 | BE34: Year 2 | BF34: Year 3 | BG34: Year 4 | BH34: Year 5 | BK34: Year 1 | BL34: Year 2 | BM34: Year 3 | BN34: Year 4 | BO34: Year 5 | BR34: Year 1 | BS34: Year 2 | BT34: Year 3 | BU34: Year 4 | BV34: Year 5 | BY34: Year 1 | BZ34: Year 2 | CA34: Year 3 | CB34: Year 4 | CC34: Year 5
B35: =IF(Name_DUR="","Drug Under Review",Name_DUR) -> Drug Under Review
B36: Untreated
B37: =IF(Namedrug1="","Drug 1",Namedrug1) -> Drug 1
B38: =IF(Namedrug2="","Drug 2",Namedrug2) -> Drug 2
B39: =IF(Namedrug3="","Drug 3",Namedrug3) -> Drug 3
B40: =IF(Namedrug4="","Drug 4",Namedrug4) -> Drug 4
B41: =IF(Namedrug5="","Drug 5",Namedrug5) -> Drug 5
B42: =IF(Namedrug6="","Drug 6",Namedrug6) -> Drug 6
B43: =IF(Namedrug7="","Drug 7",Namedrug7) -> Drug 7
B44: =IF(Namedrug8="","Drug 8",Namedrug8) -> Drug 8
B45: =IF(Namedrug9="","Drug 9",Namedrug9) -> Drug 9
B46: =IF(Namedrug10="","Drug 10",Namedrug10) -> Drug 10
B47: Total | F47: =SUM(F35:F46) -> 0 | G47: =SUM(G35:G46) -> 0 | H47: =SUM(H35:H46) -> 0 | I47: =SUM(I35:I46) -> 0 | J47: 0 | K47: 0 | N47: =SUM(N35:N46) -> 0 | O47: =SUM(O35:O46) -> 0 | P47: =SUM(P35:P46) -> 0 | Q47: 0 | R47: 0 | U47: =SUM(U35:U46) -> 0 | V47: =SUM(V35:V46) -> 0 | W47: 0 | X47: 0 | Y47: 0 | AB47: =SUM(AB35:AB46) -> 0 | AC47: =SUM(AC35:AC46) -> 0 | AD47: 0 | AE47: 0 | AF47: 0 | AI47: =SUM(AI35:AI46) -> 0 | AJ47: =SUM(AJ35:AJ46) -> 0 | AK47: 0 | AL47: 0 | AM47: 0 | AP47: =SUM(AP35:AP46) -> 0 | AQ47: =SUM(AQ35:AQ46) -> 0 | AR47: 0 | AS47: 0 | AT47: 0 | AW47: =SUM(AW35:AW46) -> 0 | AX47: =SUM(AX35:AX46) -> 0 | AY47: 0 | AZ47: 0 | BA47: 0 | BD47: =SUM(BD35:BD46) -> 0 | BE47: =SUM(BE35:BE46) -> 0 | BF47: 0 | BG47: 0 | BH47: 0 | BK47: =SUM(BK35:BK46) -> 0 | BL47: =SUM(BL35:BL46) -> 0 | BM47: 0 | BN47: 0 | BO47: 0 | BR47: =SUM(BR35:BR46) -> 0 | BS47: =SUM(BS35:BS46) -> 0 | BT47: 0 | BU47: 0 | BV47: 0 | BY47: =SUM(BY35:BY46) -> 0 | BZ47: =SUM(BZ35:BZ46) -> 0 | CA47: 0 | CB47: 0 | CC47: 0
F48: =IF(OR(F47=100%,F47=0%),"","Error-Total market shares in baseline year must sum to 100%") -> 
M50: Current Value
B51: Reference scenario | M51: Newfoundland and Labrador | N51: Newfoundland and Labrador | O51: Newfoundland and Labrador | P51: Newfoundland and Labrador | Q51: Newfoundland and Labrador | R51: Newfoundland and Labrador | T51: Prince Edward Island | U51: Prince Edward Island | V51: Prince Edward Island | W51: Prince Edward Island | X51: Prince Edward Island | Y51: Prince Edward Island | AA51: Nova Scotia | AB51: Nova Scotia | AC51: Nova Scotia | AD51: Nova Scotia | AE51: Nova Scotia | AF51: Nova Scotia | AH51: New Brunswick | AI51: New Brunswick | AJ51: New Brunswick | AK51: New Brunswick | AL51: New Brunswick | AM51: New Brunswick | AO51: Ontario | AP51: Ontario | AQ51: Ontario | AR51: Ontario | AS51: Ontario | AT51: Ontario | AV51: Manitoba | AW51: Manitoba | AX51: Manitoba | AY51: Manitoba | AZ51: Manitoba | BA51: Manitoba | BC51: Saskatchewan | BD51: Saskatchewan | BE51: Saskatchewan | BF51: Saskatchewan | BG51: Saskatchewan | BH51: Saskatchewan | BJ51: Alberta | BK51: Alberta | BL51: Alberta | BM51: Alberta | BN51: Alberta | BO51: Alberta | BQ51: British Columbia | BR51: British Columbia | BS51: British Columbia | BT51: British Columbia | BU51: British Columbia | BV51: British Columbia | BX51: NIHB | BY51: NIHB | BZ51: NIHB | CA51: NIHB | CB51: NIHB | CC51: NIHB
B52: Drug Name | M52: Baseline | N52: Year 1 | O52: Year 2 | P52: Year 3 | Q52: Year 4 | R52: Year 5 | T52: Baseline | U52: Year 1 | V52: Year 2 | W52: Year 3 | X52: Year 4 | Y52: Year 5 | AA52: Baseline | AB52: Year 1 | AC52: Year 2 | AD52: Year 3 | AE52: Year 4 | AF52: Year 5 | AH52: Baseline | AI52: Year 1 | AJ52: Year 2 | AK52: Year 3 | AL52: Year 4 | AM52: Year 5 | AO52: Baseline | AP52: Year 1 | AQ52: Year 2 | AR52: Year 3 | AS52: Year 4 | AT52: Year 5 | AV52: Baseline | AW52: Year 1 | AX52: Year 2 | AY52: Year 3 | AZ52: Year 4 | BA52: Year 5 | BC52: Baseline | BD52: Year 1 | BE52: Year 2 | BF52: Year 3 | BG52: Year 4 | BH52: Year 5 | BJ52: Baseline | BK52: Year 1 | BL52: Year 2 | BM52: Year 3 | BN52: Year 4 | BO52: Year 5 | BQ52: Baseline | BR52: Year 1 | BS52: Year 2 | BT52: Year 3 | BU52: Year 4 | BV52: Year 5 | BX52: Baseline | BY52: Year 1 | BZ52: Year 2 | CA52: Year 3 | CB52: Year 4 | CC52: Year 5
B53: =IF(Name_DUR="","Drug Under Review",Name_DUR) -> Drug Under Review | M53: =IF(SUM($M$19:$R$30)=0,F19,M19) -> 0 | N53: =IF(SUM($M$19:$R$30)=0,G19,N19) -> 0 | O53: =IF(SUM($M$19:$R$30)=0,H19,O19) -> 0 | P53: =IF(SUM($M$19:$R$30)=0,I19,P19) -> 0 | Q53: =IF(SUM($M$19:$R$30)=0,J19,Q19) -> 0 | R53: =IF(SUM($M$19:$R$30)=0,K19,R19) -> 0 | T53: =IF(SUM($T$19:$Y$30)=0,F19,T19) -> 0 | U53: =IF(SUM($T$19:$Y$30)=0,G19,U19) -> 0 | V53: =IF(SUM($T$19:$Y$30)=0,H19,V19) -> 0 | W53: =IF(SUM($T$19:$Y$30)=0,I19,W19) -> 0 | X53: =IF(SUM($T$19:$Y$30)=0,J19,X19) -> 0 | Y53: =IF(SUM($T$19:$Y$30)=0,K19,Y19) -> 0 | AA53: =IF(SUM($AA$19:$AF$30)=0,F19,AA19) -> 0 | AB53: =IF(SUM($AA$19:$AF$30)=0,G19,AB19) -> 0 | AC53: =IF(SUM($AA$19:$AF$30)=0,H19,AC19) -> 0 | AD53: =IF(SUM($AA$19:$AF$30)=0,I19,AD19) -> 0 | AE53: =IF(SUM($AA$19:$AF$30)=0,J19,AE19) -> 0 | AF53: =IF(SUM($AA$19:$AF$30)=0,K19,AF19) -> 0 | AH53: =IF(SUM($AH$19:$AM$30)=0,F19,AH19) -> 0 | AI53: =IF(SUM($AH$19:$AM$30)=0,G19,AI19) -> 0 | AJ53: =IF(SUM($AH$19:$AM$30)=0,H19,AJ19) -> 0 | AK53: =IF(SUM($AH$19:$AM$30)=0,I19,AK19) -> 0 | AL53: =IF(SUM($AH$19:$AM$30)=0,J19,AL19) -> 0 | AM53: =IF(SUM($AH$19:$AM$30)=0,K19,AM19) -> 0 | AO53: =IF(SUM($AO$19:$AT$30)=0,F19,AO19) -> 0 | AP53: =IF(SUM($AO$19:$AT$30)=0,G19,AP19) -> 0 | AQ53: =IF(SUM($AO$19:$AT$30)=0,H19,AQ19) -> 0 | AR53: =IF(SUM($AO$19:$AT$30)=0,I19,AR19) -> 0 | AS53: =IF(SUM($AO$19:$AT$30)=0,J19,AS19) -> 0 | AT53: =IF(SUM($AO$19:$AT$30)=0,K19,AT19) -> 0 | AV53: =IF(SUM($AV$19:$BA$30)=0,F19,AV19) -> 0 | AW53: =IF(SUM($AV$19:$BA$30)=0,G19,AW19) -> 0 | AX53: =IF(SUM($AV$19:$BA$30)=0,H19,AX19) -> 0 | AY53: =IF(SUM($AV$19:$BA$30)=0,I19,AY19) -> 0 | AZ53: =IF(SUM($AV$19:$BA$30)=0,J19,AZ19) -> 0 | BA53: =IF(SUM($AV$19:$BA$30)=0,K19,BA19) -> 0 | BC53: =IF(SUM($BC$19:$BH$30)=0,F19,BC19) -> 0 | BD53: =IF(SUM($BC$19:$BH$30)=0,G19,BD19) -> 0 | BE53: =IF(SUM($BC$19:$BH$30)=0,H19,BE19) -> 0 | BF53: =IF(SUM($BC$19:$BH$30)=0,I19,BF19) -> 0 | BG53: =IF(SUM($BC$19:$BH$30)=0,J19,BG19) -> 0 | BH53: =IF(SUM($BC$19:$BH$30)=0,K19,BH19) -> 0 | BJ53: =IF(SUM($BJ$19:$BO$30)=0,F19,BJ19) -> 0 | BK53: =IF(SUM($BJ$19:$BO$30)=0,G19,BK19) -> 0 | BL53: =IF(SUM($BJ$19:$BO$30)=0,H19,BL19) -> 0 | BM53: =IF(SUM($BJ$19:$BO$30)=0,I19,BM19) -> 0 | BN53: =IF(SUM($BJ$19:$BO$30)=0,J19,BN19) -> 0 | BO53: =IF(SUM($BJ$19:$BO$30)=0,K19,BO19) -> 0 | BQ53: =IF(SUM($BQ$19:$BV$30)=0,F19,BQ19) -> 0 | BR53: =IF(SUM($BQ$19:$BV$30)=0,G19,BR19) -> 0 | BS53: =IF(SUM($BQ$19:$BV$30)=0,H19,BS19) -> 0 | BT53: =IF(SUM($BQ$19:$BV$30)=0,I19,BT19) -> 0 | BU53: =IF(SUM($BQ$19:$BV$30)=0,J19,BU19) -> 0 | BV53: =IF(SUM($BQ$19:$BV$30)=0,K19,BV19) -> 0 | BX53: =IF(SUM($BX$19:$CC$30)=0,F19,BX19) -> 0 | BY53: =IF(SUM($BX$19:$CC$30)=0,G19,BY19) -> 0 | BZ53: =IF(SUM($BX$19:$CC$30)=0,H19,BZ19) -> 0 | CA53: =IF(SUM($BX$19:$CC$30)=0,I19,CA19) -> 0 | CB53: =IF(SUM($BX$19:$CC$30)=0,J19,CB19) -> 0 | CC53: =IF(SUM($BX$19:$CC$30)=0,K19,CC19) -> 0
B54: Untreated | M54: =IF(SUM($M$19:$R$30)=0,F20,M20) -> 0 | N54: 0 | O54: 0 | P54: 0 | Q54: =IF(SUM($M$19:$R$30)=0,J20,Q20) -> 0 | R54: 0 | T54: =IF(SUM($T$19:$Y$30)=0,F20,T20) -> 0 | U54: 0 | V54: 0 | W54: 0 | X54: 0 | Y54: 0 | AA54: =IF(SUM($AA$19:$AF$30)=0,F20,AA20) -> 0 | AB54: 0 | AC54: 0 | AD54: 0 | AE54: 0 | AF54: 0 | AH54: =IF(SUM($AH$19:$AM$30)=0,F20,AH20) -> 0 | AI54: 0 | AJ54: 0 | AK54: 0 | AL54: 0 | AM54: 0 | AO54: =IF(SUM($AO$19:$AT$30)=0,F20,AO20) -> 0 | AP54: 0 | AQ54: 0 | AR54: 0 | AS54: 0 | AT54: 0 | AV54: =IF(SUM($AV$19:$BA$30)=0,F20,AV20) -> 0 | AW54: 0 | AX54: 0 | AY54: 0 | AZ54: 0 | BA54: 0 | BC54: =IF(SUM($BC$19:$BH$30)=0,F20,BC20) -> 0 | BD54: 0 | BE54: 0 | BF54: 0 | BG54: 0 | BH54: 0 | BJ54: =IF(SUM($BJ$19:$BO$30)=0,F20,BJ20) -> 0 | BK54: 0 | BL54: 0 | BM54: 0 | BN54: 0 | BO54: 0 | BQ54: =IF(SUM($BQ$19:$BV$30)=0,F20,BQ20) -> 0 | BR54: 0 | BS54: 0 | BT54: 0 | BU54: 0 | BV54: 0 | BX54: =IF(SUM($BX$19:$CC$30)=0,F20,BX20) -> 0 | BY54: 0 | BZ54: 0 | CA54: 0 | CB54: 0 | CC54: 0
B55: =IF(Namedrug1="","Drug 1",Namedrug1) -> Drug 1 | M55: 0 | N55: 0 | O55: 0 | P55: 0 | Q55: 0 | R55: 0 | T55: 0 | U55: 0 | V55: 0 | W55: 0 | X55: 0 | Y55: 0 | AA55: 0 | AB55: 0 | AC55: 0 | AD55: 0 | AE55: 0 | AF55: 0 | AH55: 0 | AI55: 0 | AJ55: 0 | AK55: 0 | AL55: 0 | AM55: 0 | AO55: 0 | AP55: 0 | AQ55: 0 | AR55: 0 | AS55: 0 | AT55: 0 | AV55: 0 | AW55: 0 | AX55: 0 | AY55: 0 | AZ55: 0 | BA55: 0 | BC55: 0 | BD55: 0 | BE55: 0 | BF55: 0 | BG55: 0 | BH55: 0 | BJ55: 0 | BK55: 0 | BL55: 0 | BM55: 0 | BN55: 0 | BO55: 0 | BQ55: 0 | BR55: 0 | BS55: 0 | BT55: 0 | BU55: 0 | BV55: 0 | BX55: 0 | BY55: 0 | BZ55: 0 | CA55: 0 | CB55: 0 | CC55: 0
B56: =IF(Namedrug2="","Drug 2",Namedrug2) -> Drug 2 | M56: 0 | N56: 0 | O56: 0 | P56: 0 | Q56: 0 | R56: 0 | T56: 0 | U56: 0 | V56: 0 | W56: 0 | X56: 0 | Y56: 0 | AA56: 0 | AB56: 0 | AC56: 0 | AD56: 0 | AE56: 0 | AF56: 0 | AH56: 0 | AI56: 0 | AJ56: 0 | AK56: 0 | AL56: 0 | AM56: 0 | AO56: 0 | AP56: 0 | AQ56: 0 | AR56: 0 | AS56: 0 | AT56: 0 | AV56: 0 | AW56: 0 | AX56: 0 | AY56: 0 | AZ56: 0 | BA56: 0 | BC56: 0 | BD56: 0 | BE56: 0 | BF56: 0 | BG56: 0 | BH56: 0 | BJ56: 0 | BK56: 0 | BL56: 0 | BM56: 0 | BN56: 0 | BO56: 0 | BQ56: 0 | BR56: 0 | BS56: 0 | BT56: 0 | BU56: 0 | BV56: 0 | BX56: 0 | BY56: 0 | BZ56: 0 | CA56: 0 | CB56: 0 | CC56: 0
B57: =IF(Namedrug3="","Drug 3",Namedrug3) -> Drug 3 | M57: 0 | N57: 0 | O57: 0 | P57: 0 | Q57: 0 | R57: =IF(SUM($M$19:$R$30)=0,K23,R23) -> 0 | T57: 0 | U57: 0 | V57: 0 | W57: 0 | X57: 0 | Y57: 0 | AA57: 0 | AB57: 0 | AC57: 0 | AD57: 0 | AE57: 0 | AF57: 0 | AH57: 0 | AI57: 0 | AJ57: 0 | AK57: 0 | AL57: 0 | AM57: 0 | AO57: 0 | AP57: 0 | AQ57: 0 | AR57: 0 | AS57: 0 | AT57: 0 | AV57: 0 | AW57: 0 | AX57: 0 | AY57: 0 | AZ57: 0 | BA57: 0 | BC57: 0 | BD57: 0 | BE57: 0 | BF57: 0 | BG57: 0 | BH57: 0 | BJ57: 0 | BK57: 0 | BL57: 0 | BM57: 0 | BN57: 0 | BO57: 0 | BQ57: 0 | BR57: 0 | BS57: 0 | BT57: 0 | BU57: 0 | BV57: 0 | BX57: 0 | BY57: 0 | BZ57: 0 | CA57: 0 | CB57: 0 | CC57: 0
B58: =IF(Namedrug4="","Drug 4",Namedrug4) -> Drug 4 | M58: 0 | N58: 0 | O58: 0 | P58: 0 | Q58: 0 | R58: 0 | T58: 0 | U58: 0 | V58: 0 | W58: 0 | X58: 0 | Y58: 0 | AA58: 0 | AB58: 0 | AC58: 0 | AD58: 0 | AE58: 0 | AF58: 0 | AH58: 0 | AI58: 0 | AJ58: 0 | AK58: 0 | AL58: 0 | AM58: 0 | AO58: 0 | AP58: 0 | AQ58: 0 | AR58: 0 | AS58: 0 | AT58: 0 | AV58: 0 | AW58: 0 | AX58: 0 | AY58: 0 | AZ58: 0 | BA58: 0 | BC58: 0 | BD58: 0 | BE58: 0 | BF58: 0 | BG58: 0 | BH58: 0 | BJ58: 0 | BK58: 0 | BL58: 0 | BM58: 0 | BN58: 0 | BO58: 0 | BQ58: 0 | BR58: 0 | BS58: 0 | BT58: 0 | BU58: 0 | BV58: 0 | BX58: 0 | BY58: 0 | BZ58: 0 | CA58: 0 | CB58: 0 | CC58: 0
B59: =IF(Namedrug5="","Drug 5",Namedrug5) -> Drug 5 | M59: 0 | N59: 0 | O59: 0 | P59: 0 | Q59: 0 | R59: 0 | T59: 0 | U59: 0 | V59: 0 | W59: 0 | X59: 0 | Y59: 0 | AA59: 0 | AB59: 0 | AC59: 0 | AD59: 0 | AE59: 0 | AF59: 0 | AH59: 0 | AI59: 0 | AJ59: 0 | AK59: 0 | AL59: 0 | AM59: 0 | AO59: 0 | AP59: 0 | AQ59: 0 | AR59: 0 | AS59: 0 | AT59: 0 | AV59: 0 | AW59: 0 | AX59: 0 | AY59: 0 | AZ59: 0 | BA59: 0 | BC59: 0 | BD59: 0 | BE59: 0 | BF59: 0 | BG59: 0 | BH59: 0 | BJ59: 0 | BK59: 0 | BL59: 0 | BM59: 0 | BN59: 0 | BO59: 0 | BQ59: 0 | BR59: 0 | BS59: 0 | BT59: 0 | BU59: 0 | BV59: 0 | BX59: 0 | BY59: 0 | BZ59: 0 | CA59: 0 | CB59: 0 | CC59: 0
B60: =IF(Namedrug6="","Drug 6",Namedrug6) -> Drug 6 | M60: 0 | N60: 0 | O60: 0 | P60: 0 | Q60: 0 | R60: 0 | T60: 0 | U60: 0 | V60: 0 | W60: 0 | X60: 0 | Y60: 0 | AA60: 0 | AB60: 0 | AC60: 0 | AD60: 0 | AE60: 0 | AF60: 0 | AH60: 0 | AI60: 0 | AJ60: 0 | AK60: 0 | AL60: 0 | AM60: 0 | AO60: 0 | AP60: 0 | AQ60: 0 | AR60: 0 | AS60: 0 | AT60: 0 | AV60: 0 | AW60: 0 | AX60: 0 | AY60: 0 | AZ60: 0 | BA60: 0 | BC60: 0 | BD60: 0 | BE60: 0 | BF60: 0 | BG60: 0 | BH60: 0 | BJ60: 0 | BK60: 0 | BL60: 0 | BM60: 0 | BN60: 0 | BO60: 0 | BQ60: 0 | BR60: 0 | BS60: 0 | BT60: 0 | BU60: 0 | BV60: 0 | BX60: 0 | BY60: 0 | BZ60: 0 | CA60: 0 | CB60: 0 | CC60: 0
B61: =IF(Namedrug7="","Drug 7",Namedrug7) -> Drug 7 | M61: 0 | N61: 0 | O61: 0 | P61: 0 | Q61: 0 | R61: 0 | T61: 0 | U61: 0 | V61: 0 | W61: 0 | X61: 0 | Y61: 0 | AA61: 0 | AB61: 0 | AC61: 0 | AD61: 0 | AE61: 0 | AF61: 0 | AH61: 0 | AI61: 0 | AJ61: 0 | AK61: 0 | AL61: 0 | AM61: 0 | AO61: 0 | AP61: 0 | AQ61: 0 | AR61: 0 | AS61: 0 | AT61: 0 | AV61: 0 | AW61: 0 | AX61: 0 | AY61: 0 | AZ61: 0 | BA61: 0 | BC61: 0 | BD61: 0 | BE61: 0 | BF61: 0 | BG61: 0 | BH61: 0 | BJ61: 0 | BK61: 0 | BL61: 0 | BM61: 0 | BN61: 0 | BO61: 0 | BQ61: 0 | BR61: 0 | BS61: 0 | BT61: 0 | BU61: 0 | BV61: 0 | BX61: 0 | BY61: 0 | BZ61: 0 | CA61: 0 | CB61: 0 | CC61: 0
B62: =IF(Namedrug8="","Drug 8",Namedrug8) -> Drug 8 | M62: 0 | N62: 0 | O62: 0 | P62: 0 | Q62: 0 | R62: 0 | T62: 0 | U62: 0 | V62: 0 | W62: 0 | X62: 0 | Y62: 0 | AA62: 0 | AB62: 0 | AC62: 0 | AD62: 0 | AE62: 0 | AF62: 0 | AH62: 0 | AI62: 0 | AJ62: 0 | AK62: 0 | AL62: 0 | AM62: 0 | AO62: 0 | AP62: 0 | AQ62: 0 | AR62: 0 | AS62: 0 | AT62: 0 | AV62: 0 | AW62: 0 | AX62: 0 | AY62: 0 | AZ62: 0 | BA62: 0 | BC62: 0 | BD62: 0 | BE62: 0 | BF62: 0 | BG62: 0 | BH62: 0 | BJ62: 0 | BK62: 0 | BL62: 0 | BM62: 0 | BN62: 0 | BO62: 0 | BQ62: 0 | BR62: 0 | BS62: 0 | BT62: 0 | BU62: 0 | BV62: 0 | BX62: 0 | BY62: 0 | BZ62: 0 | CA62: 0 | CB62: 0 | CC62: 0
B63: =IF(Namedrug9="","Drug 9",Namedrug9) -> Drug 9 | M63: 0 | N63: 0 | O63: 0 | P63: 0 | Q63: 0 | R63: 0 | T63: 0 | U63: 0 | V63: 0 | W63: 0 | X63: 0 | Y63: 0 | AA63: 0 | AB63: 0 | AC63: 0 | AD63: 0 | AE63: 0 | AF63: 0 | AH63: 0 | AI63: 0 | AJ63: 0 | AK63: 0 | AL63: 0 | AM63: 0 | AO63: 0 | AP63: 0 | AQ63: 0 | AR63: 0 | AS63: 0 | AT63: 0 | AV63: 0 | AW63: 0 | AX63: 0 | AY63: 0 | AZ63: 0 | BA63: 0 | BC63: 0 | BD63: 0 | BE63: 0 | BF63: 0 | BG63: 0 | BH63: 0 | BJ63: 0 | BK63: 0 | BL63: 0 | BM63: 0 | BN63: 0 | BO63: 0 | BQ63: 0 | BR63: 0 | BS63: 0 | BT63: 0 | BU63: 0 | BV63: 0 | BX63: 0 | BY63: 0 | BZ63: 0 | CA63: 0 | CB63: 0 | CC63: 0
B64: =IF(Namedrug10="","Drug 10",Namedrug10) -> Drug 10 | M64: 0 | N64: 0 | O64: 0 | P64: 0 | Q64: 0 | R64: =IF(SUM($M$19:$R$30)=0,K30,R30) -> 0 | T64: 0 | U64: 0 | V64: 0 | W64: 0 | X64: 0 | Y64: =IF(SUM($T$19:$Y$30)=0,K30,Y30) -> 0 | AA64: 0 | AB64: 0 | AC64: 0 | AD64: 0 | AE64: 0 | AF64: =IF(SUM($AA$19:$AF$30)=0,K30,AF30) -> 0 | AH64: 0 | AI64: 0 | AJ64: 0 | AK64: 0 | AL64: 0 | AM64: =IF(SUM($AH$19:$AM$30)=0,K30,AM30) -> 0 | AO64: 0 | AP64: 0 | AQ64: 0 | AR64: 0 | AS64: 0 | AT64: =IF(SUM($AO$19:$AT$30)=0,K30,AT30) -> 0 | AV64: 0 | AW64: 0 | AX64: 0 | AY64: 0 | AZ64: 0 | BA64: =IF(SUM($AV$19:$BA$30)=0,K30,BA30) -> 0 | BC64: 0 | BD64: 0 | BE64: 0 | BF64: 0 | BG64: 0 | BH64: =IF(SUM($BC$19:$BH$30)=0,K30,BH30) -> 0 | BJ64: 0 | BK64: 0 | BL64: 0 | BM64: 0 | BN64: 0 | BO64: =IF(SUM($BJ$19:$BO$30)=0,K30,BO30) -> 0 | BQ64: 0 | BR64: 0 | BS64: 0 | BT64: 0 | BU64: 0 | BV64: =IF(SUM($BQ$19:$BV$30)=0,K30,BV30) -> 0 | BX64: 0 | BY64: 0 | BZ64: 0 | CA64: 0 | CB64: 0 | CC64: =IF(SUM($BX$19:$CC$30)=0,K30,CC30) -> 0
B65: Total | M65: =SUM(M53:M64) -> 0 | N65: =SUM(N53:N64) -> 0 | O65: 0 | P65: 0 | Q65: =SUM(Q53:Q64) -> 0 | R65: =SUM(R53:R64) -> 0 | T65: =SUM(T53:T64) -> 0 | U65: =SUM(U53:U64) -> 0 | V65: =SUM(V53:V64) -> 0 | W65: =SUM(W53:W64) -> 0 | X65: =SUM(X53:X64) -> 0 | Y65: =SUM(Y53:Y64) -> 0 | AA65: =SUM(AA53:AA64) -> 0 | AB65: =SUM(AB53:AB64) -> 0 | AC65: =SUM(AC53:AC64) -> 0 | AD65: =SUM(AD53:AD64) -> 0 | AE65: =SUM(AE53:AE64) -> 0 | AF65: =SUM(AF53:AF64) -> 0 | AH65: =SUM(AH53:AH64) -> 0 | AI65: =SUM(AI53:AI64) -> 0 | AJ65: =SUM(AJ53:AJ64) -> 0 | AK65: =SUM(AK53:AK64) -> 0 | AL65: =SUM(AL53:AL64) -> 0 | AM65: =SUM(AM53:AM64) -> 0 | AO65: =SUM(AO53:AO64) -> 0 | AP65: =SUM(AP53:AP64) -> 0 | AQ65: =SUM(AQ53:AQ64) -> 0 | AR65: =SUM(AR53:AR64) -> 0 | AS65: =SUM(AS53:AS64) -> 0 | AT65: =SUM(AT53:AT64) -> 0 | AV65: =SUM(AV53:AV64) -> 0 | AW65: =SUM(AW53:AW64) -> 0 | AX65: =SUM(AX53:AX64) -> 0 | AY65: =SUM(AY53:AY64) -> 0 | AZ65: =SUM(AZ53:AZ64) -> 0 | BA65: =SUM(BA53:BA64) -> 0 | BC65: =SUM(BC53:BC64) -> 0 | BD65: =SUM(BD53:BD64) -> 0 | BE65: =SUM(BE53:BE64) -> 0 | BF65: =SUM(BF53:BF64) -> 0 | BG65: =SUM(BG53:BG64) -> 0 | BH65: =SUM(BH53:BH64) -> 0 | BJ65: =SUM(BJ53:BJ64) -> 0 | BK65: =SUM(BK53:BK64) -> 0 | BL65: =SUM(BL53:BL64) -> 0 | BM65: =SUM(BM53:BM64) -> 0 | BN65: =SUM(BN53:BN64) -> 0 | BO65: =SUM(BO53:BO64) -> 0 | BQ65: =SUM(BQ53:BQ64) -> 0 | BR65: =SUM(BR53:BR64) -> 0 | BS65: =SUM(BS53:BS64) -> 0 | BT65: =SUM(BT53:BT64) -> 0 | BU65: =SUM(BU53:BU64) -> 0 | BV65: =SUM(BV53:BV64) -> 0 | BX65: =SUM(BX53:BX64) -> 0 | BY65: =SUM(BY53:BY64) -> 0 | BZ65: =SUM(BZ53:BZ64) -> 0 | CA65: =SUM(CA53:CA64) -> 0 | CB65: =SUM(CB53:CB64) -> 0 | CC65: =SUM(CC53:CC64) -> 0
N66: =IF(OR(N65=100%,N65=0%),"","Error-Total market shares IN Year 1 must sum to 100%") ->  | O66: =IF(OR(O65=100%,O65=0%),"","Error-Total market shares in Year 2 must sum to 100%") ->  | P66: =IF(OR(P65=100%,P65=0%),"","Error-Total market shares in Year 3 must sum to 100%") ->  | Q66: =IF(OR(Q65=100%,Q65=0%),"","Error-Total market shares in Year 3 must sum to 100%") ->  | R66: =IF(OR(R65=100%,R65=0%),"","Error-Total market shares in Year 3 must sum to 100%") ->  | U66: =IF(OR(U65=100%,U65=0%),"","Error-Total market shares IN Year 1 must sum to 100%") ->  | V66: =IF(OR(V65=100%,V65=0%),"","Error-Total market shares in Year 2 must sum to 100%") ->  | W66: =IF(OR(W65=100%,W65=0%),"","Error-Total market shares in Year 3 must sum to 100%") ->  | X66: =IF(OR(X65=100%,X65=0%),"","Error-Total market shares in Year 3 must sum to 100%") ->  | Y66: =IF(OR(Y65=100%,Y65=0%),"","Error-Total market shares in Year 3 must sum to 100%") ->  | AB66: =IF(OR(AB65=100%,AB65=0%),"","Error-Total market shares IN Year 1 must sum to 100%") ->  | AC66: =IF(OR(AC65=100%,AC65=0%),"","Error-Total market shares in Year 2 must sum to 100%") ->  | AD66: =IF(OR(AD65=100%,AD65=0%),"","Error-Total market shares in Year 3 must sum to 100%") ->  | AE66: =IF(OR(AE65=100%,AE65=0%),"","Error-Total market shares in Year 3 must sum to 100%") ->  | AF66: =IF(OR(AF65=100%,AF65=0%),"","Error-Total market shares in Year 3 must sum to 100%") ->  | AI66: =IF(OR(AI65=100%,AI65=0%),"","Error-Total market shares IN Year 1 must sum to 100%") ->  | AJ66: =IF(OR(AJ65=100%,AJ65=0%),"","Error-Total market shares in Year 2 must sum to 100%") ->  | AK66: =IF(OR(AK65=100%,AK65=0%),"","Error-Total market shares in Year 3 must sum to 100%") ->  | AL66: =IF(OR(AL65=100%,AL65=0%),"","Error-Total market shares in Year 3 must sum to 100%") ->  | AM66: =IF(OR(AM65=100%,AM65=0%),"","Error-Total market shares in Year 3 must sum to 100%") ->  | AP66: =IF(OR(AP65=100%,AP65=0%),"","Error-Total market shares IN Year 1 must sum to 100%") ->  | AQ66: =IF(OR(AQ65=100%,AQ65=0%),"","Error-Total market shares in Year 2 must sum to 100%") ->  | AR66: =IF(OR(AR65=100%,AR65=0%),"","Error-Total market shares in Year 3 must sum to 100%") ->  | AS66: =IF(OR(AS65=100%,AS65=0%),"","Error-Total market shares in Year 3 must sum to 100%") ->  | AT66: =IF(OR(AT65=100%,AT65=0%),"","Error-Total market shares in Year 3 must sum to 100%") ->  | AW66: =IF(OR(AW65=100%,AW65=0%),"","Error-Total market shares IN Year 1 must sum to 100%") ->  | AX66: =IF(OR(AX65=100%,AX65=0%),"","Error-Total market shares in Year 2 must sum to 100%") ->  | AY66: =IF(OR(AY65=100%,AY65=0%),"","Error-Total market shares in Year 3 must sum to 100%") ->  | AZ66: =IF(OR(AZ65=100%,AZ65=0%),"","Error-Total market shares in Year 3 must sum to 100%") ->  | BA66: =IF(OR(BA65=100%,BA65=0%),"","Error-Total market shares in Year 3 must sum to 100%") ->  | BD66: =IF(OR(BD65=100%,BD65=0%),"","Error-Total market shares IN Year 1 must sum to 100%") ->  | BE66: =IF(OR(BE65=100%,BE65=0%),"","Error-Total market shares in Year 2 must sum to 100%") ->  | BF66: =IF(OR(BF65=100%,BF65=0%),"","Error-Total market shares in Year 3 must sum to 100%") ->  | BG66: =IF(OR(BG65=100%,BG65=0%),"","Error-Total market shares in Year 3 must sum to 100%") ->  | BH66: =IF(OR(BH65=100%,BH65=0%),"","Error-Total market shares in Year 3 must sum to 100%") ->  | BK66: =IF(OR(BK65=100%,BK65=0%),"","Error-Total market shares IN Year 1 must sum to 100%") ->  | BL66: =IF(OR(BL65=100%,BL65=0%),"","Error-Total market shares in Year 2 must sum to 100%") ->  | BM66: =IF(OR(BM65=100%,BM65=0%),"","Error-Total market shares in Year 3 must sum to 100%") ->  | BN66: =IF(OR(BN65=100%,BN65=0%),"","Error-Total market shares in Year 3 must sum to 100%") ->  | BO66: =IF(OR(BO65=100%,BO65=0%),"","Error-Total market shares in Year 3 must sum to 100%") ->  | BR66: =IF(OR(BR65=100%,BR65=0%),"","Error-Total market shares IN Year 1 must sum to 100%") ->  | BS66: =IF(OR(BS65=100%,BS65=0%),"","Error-Total market shares in Year 2 must sum to 100%") ->  | BT66: =IF(OR(BT65=100%,BT65=0%),"","Error-Total market shares in Year 3 must sum to 100%") ->  | BU66: =IF(OR(BU65=100%,BU65=0%),"","Error-Total market shares in Year 3 must sum to 100%") ->  | BV66: =IF(OR(BV65=100%,BV65=0%),"","Error-Total market shares in Year 3 must sum to 100%") ->  | BY66: =IF(OR(BY65=100%,BY65=0%),"","Error-Total market shares IN Year 1 must sum to 100%") ->  | BZ66: =IF(OR(BZ65=100%,BZ65=0%),"","Error-Total market shares in Year 2 must sum to 100%") ->  | CA66: =IF(OR(CA65=100%,CA65=0%),"","Error-Total market shares in Year 3 must sum to 100%") ->  | CB66: =IF(OR(CB65=100%,CB65=0%),"","Error-Total market shares in Year 3 must sum to 100%") ->  | CC66: =IF(OR(CC65=100%,CC65=0%),"","Error-Total market shares in Year 3 must sum to 100%") -> 
B67: New drug scenario
B68: Drug Name | M68: Baseline | N68: Year 1 | O68: Year 2 | P68: Year 3 | Q68: Year 4 | R68: Year 5 | T68: Baseline | U68: Year 1 | V68: Year 2 | W68: Year 3 | X68: Year 4 | Y68: Year 5 | AA68: Baseline | AB68: Year 1 | AC68: Year 2 | AD68: Year 3 | AE68: Year 4 | AF68: Year 5 | AH68: Baseline | AI68: Year 1 | AJ68: Year 2 | AK68: Year 3 | AL68: Year 4 | AM68: Year 5 | AO68: Baseline | AP68: Year 1 | AQ68: Year 2 | AR68: Year 3 | AS68: Year 4 | AT68: Year 5 | AV68: Baseline | AW68: Year 1 | AX68: Year 2 | AY68: Year 3 | AZ68: Year 4 | BA68: Year 5 | BC68: Baseline | BD68: Year 1 | BE68: Year 2 | BF68: Year 3 | BG68: Year 4 | BH68: Year 5 | BJ68: Baseline | BK68: Year 1 | BL68: Year 2 | BM68: Year 3 | BN68: Year 4 | BO68: Year 5 | BQ68: Baseline | BR68: Year 1 | BS68: Year 2 | BT68: Year 3 | BU68: Year 4 | BV68: Year 5 | BX68: Baseline | BY68: Year 1 | BZ68: Year 2 | CA68: Year 3 | CB68: Year 4 | CC68: Year 5
B69: =IF(Name_DUR="","Drug Under Review",Name_DUR) -> Drug Under Review | M69: =M53 -> 0 | N69: =IF(SUM($M$35:$R$46)=0,G35,N35) -> 0 | O69: =IF(SUM($M$35:$R$46)=0,H35,O35) -> 0 | P69: =IF(SUM($M$35:$R$46)=0,I35,P35) -> 0 | Q69: =IF(SUM($M$35:$R$46)=0,J35,Q35) -> 0 | R69: =IF(SUM($M$35:$R$46)=0,K35,R35) -> 0 | T69: =T53 -> 0 | U69: =IF(SUM($T$35:$Y$46)=0,G35,U35) -> 0 | V69: =IF(SUM($T$35:$Y$46)=0,H35,V35) -> 0 | W69: =IF(SUM($T$35:$Y$46)=0,I35,W35) -> 0 | X69: =IF(SUM($T$35:$Y$46)=0,J35,X35) -> 0 | Y69: =IF(SUM($T$35:$Y$46)=0,K35,Y35) -> 0 | AA69: =AA53 -> 0 | AB69: =IF(SUM($AA$35:$AF$46)=0,G35,AB35) -> 0 | AC69: =IF(SUM($AA$35:$AF$46)=0,H35,AC35) -> 0 | AD69: =IF(SUM($AA$35:$AF$46)=0,I35,AD35) -> 0 | AE69: =IF(SUM($AA$35:$AF$46)=0,J35,AE35) -> 0 | AF69: =IF(SUM($AA$35:$AF$46)=0,K35,AF35) -> 0 | AH69: =AH53 -> 0 | AI69: =IF(SUM($AH$35:$AM$46)=0,G35,AI35) -> 0 | AJ69: =IF(SUM($AH$35:$AM$46)=0,H35,AJ35) -> 0 | AK69: =IF(SUM($AH$35:$AM$46)=0,I35,AK35) -> 0 | AL69: =IF(SUM($AH$35:$AM$46)=0,J35,AL35) -> 0 | AM69: =IF(SUM($AH$35:$AM$46)=0,K35,AM35) -> 0 | AO69: =AO53 -> 0 | AP69: =IF(SUM($AO$35:$AT$46)=0,G35,AP35) -> 0 | AQ69: =IF(SUM($AO$35:$AT$46)=0,H35,AQ35) -> 0 | AR69: =IF(SUM($AO$35:$AT$46)=0,I35,AR35) -> 0 | AS69: =IF(SUM($AO$35:$AT$46)=0,J35,AS35) -> 0 | AT69: =IF(SUM($AO$35:$AT$46)=0,K35,AT35) -> 0 | AV69: =AV53 -> 0 | AW69: =IF(SUM($AV$35:$BA$46)=0,G35,AW35) -> 0 | AX69: =IF(SUM($AV$35:$BA$46)=0,H35,AX35) -> 0 | AY69: =IF(SUM($AV$35:$BA$46)=0,I35,AY35) -> 0 | AZ69: =IF(SUM($AV$35:$BA$46)=0,J35,AZ35) -> 0 | BA69: =IF(SUM($AV$35:$BA$46)=0,K35,BA35) -> 0 | BC69: =BC53 -> 0 | BD69: =IF(SUM($BC$35:$BH$46)=0,G35,BD35) -> 0 | BE69: =IF(SUM($BC$35:$BH$46)=0,H35,BE35) -> 0 | BF69: =IF(SUM($BC$35:$BH$46)=0,I35,BF35) -> 0 | BG69: =IF(SUM($BC$35:$BH$46)=0,J35,BG35) -> 0 | BH69: =IF(SUM($BC$35:$BH$46)=0,K35,BH35) -> 0 | BJ69: =BJ53 -> 0 | BK69: =IF(SUM($BJ$35:$BO$46)=0,G35,BK35) -> 0 | BL69: =IF(SUM($BJ$35:$BO$46)=0,H35,BL35) -> 0 | BM69: =IF(SUM($BJ$35:$BO$46)=0,I35,BM35) -> 0 | BN69: =IF(SUM($BJ$35:$BO$46)=0,J35,BN35) -> 0 | BO69: =IF(SUM($BJ$35:$BO$46)=0,K35,BO35) -> 0 | BQ69: =BQ53 -> 0 | BR69: =IF(SUM($BQ$35:$BV$46)=0,G35,BR35) -> 0 | BS69: =IF(SUM($BQ$35:$BV$46)=0,H35,BS35) -> 0 | BT69: =IF(SUM($BQ$35:$BV$46)=0,I35,BT35) -> 0 | BU69: =IF(SUM($BQ$35:$BV$46)=0,J35,BU35) -> 0 | BV69: =IF(SUM($BQ$35:$BV$46)=0,K35,BV35) -> 0 | BX69: =BX53 -> 0 | BY69: =IF(SUM($BX$35:$CC$46)=0,G35,BY35) -> 0 | BZ69: =IF(SUM($BX$35:$CC$46)=0,H35,BZ35) -> 0 | CA69: =IF(SUM($BX$35:$CC$46)=0,I35,CA35) -> 0 | CB69: =IF(SUM($BX$35:$CC$46)=0,J35,CB35) -> 0 | CC69: =IF(SUM($BX$35:$CC$46)=0,K35,CC35) -> 0
B70: Untreated | M70: =M54 -> 0 | N70: =IF(SUM($M$35:$R$46)=0,G36,N36) -> 0 | O70: 0 | P70: 0 | Q70: 0 | R70: 0 | T70: =T54 -> 0 | U70: =IF(SUM($T$35:$Y$46)=0,G36,U36) -> 0 | V70: 0 | W70: 0 | X70: 0 | Y70: 0 | AA70: =AA54 -> 0 | AB70: =IF(SUM($AA$35:$AF$46)=0,G36,AB36) -> 0 | AC70: 0 | AD70: 0 | AE70: 0 | AF70: 0 | AH70: =AH54 -> 0 | AI70: =IF(SUM($AH$35:$AM$46)=0,G36,AI36) -> 0 | AJ70: 0 | AK70: 0 | AL70: 0 | AM70: 0 | AO70: =AO54 -> 0 | AP70: =IF(SUM($AO$35:$AT$46)=0,G36,AP36) -> 0 | AQ70: 0 | AR70: 0 | AS70: 0 | AT70: 0 | AV70: =AV54 -> 0 | AW70: =IF(SUM($AV$35:$BA$46)=0,G36,AW36) -> 0 | AX70: 0 | AY70: 0 | AZ70: 0 | BA70: 0 | BC70: =BC54 -> 0 | BD70: =IF(SUM($BC$35:$BH$46)=0,G36,BD36) -> 0 | BE70: 0 | BF70: 0 | BG70: 0 | BH70: 0 | BJ70: =BJ54 -> 0 | BK70: =IF(SUM($BJ$35:$BO$46)=0,G36,BK36) -> 0 | BL70: 0 | BM70: 0 | BN70: 0 | BO70: 0 | BQ70: =BQ54 -> 0 | BR70: =IF(SUM($BQ$35:$BV$46)=0,G36,BR36) -> 0 | BS70: 0 | BT70: 0 | BU70: 0 | BV70: 0 | BX70: =BX54 -> 0 | BY70: =IF(SUM($BX$35:$CC$46)=0,G36,BY36) -> 0 | BZ70: 0 | CA70: 0 | CB70: 0 | CC70: 0
B71: =IF(Namedrug1="","Drug 1",Namedrug1) -> Drug 1 | M71: 0 | N71: 0 | O71: 0 | P71: 0 | Q71: 0 | R71: 0 | T71: 0 | U71: 0 | V71: 0 | W71: 0 | X71: 0 | Y71: 0 | AA71: 0 | AB71: 0 | AC71: 0 | AD71: 0 | AE71: 0 | AF71: 0 | AH71: 0 | AI71: 0 | AJ71: 0 | AK71: 0 | AL71: 0 | AM71: 0 | AO71: 0 | AP71: 0 | AQ71: 0 | AR71: 0 | AS71: 0 | AT71: 0 | AV71: 0 | AW71: 0 | AX71: 0 | AY71: 0 | AZ71: 0 | BA71: 0 | BC71: 0 | BD71: 0 | BE71: 0 | BF71: 0 | BG71: 0 | BH71: 0 | BJ71: 0 | BK71: 0 | BL71: 0 | BM71: 0 | BN71: 0 | BO71: 0 | BQ71: 0 | BR71: 0 | BS71: 0 | BT71: 0 | BU71: 0 | BV71: 0 | BX71: 0 | BY71: 0 | BZ71: 0 | CA71: 0 | CB71: 0 | CC71: 0
B72: =IF(Namedrug2="","Drug 2",Namedrug2) -> Drug 2 | M72: 0 | N72: 0 | O72: 0 | P72: 0 | Q72: 0 | R72: 0 | T72: 0 | U72: 0 | V72: 0 | W72: 0 | X72: 0 | Y72: =IF(SUM($T$35:$Y$46)=0,K38,Y38) -> 0 | AA72: 0 | AB72: 0 | AC72: 0 | AD72: 0 | AE72: 0 | AF72: 0 | AH72: 0 | AI72: 0 | AJ72: 0 | AK72: 0 | AL72: 0 | AM72: 0 | AO72: 0 | AP72: 0 | AQ72: 0 | AR72: 0 | AS72: 0 | AT72: 0 | AV72: 0 | AW72: 0 | AX72: 0 | AY72: 0 | AZ72: 0 | BA72: 0 | BC72: 0 | BD72: 0 | BE72: 0 | BF72: 0 | BG72: 0 | BH72: 0 | BJ72: 0 | BK72: 0 | BL72: 0 | BM72: 0 | BN72: 0 | BO72: 0 | BQ72: 0 | BR72: 0 | BS72: 0 | BT72: 0 | BU72: 0 | BV72: 0 | BX72: 0 | BY72: 0 | BZ72: 0 | CA72: 0 | CB72: 0 | CC72: 0
B73: =IF(Namedrug3="","Drug 3",Namedrug3) -> Drug 3 | M73: 0 | N73: 0 | O73: 0 | P73: 0 | Q73: 0 | R73: 0 | T73: 0 | U73: 0 | V73: 0 | W73: 0 | X73: 0 | Y73: 0 | AA73: 0 | AB73: 0 | AC73: 0 | AD73: 0 | AE73: 0 | AF73: 0 | AH73: 0 | AI73: 0 | AJ73: 0 | AK73: 0 | AL73: 0 | AM73: 0 | AO73: 0 | AP73: 0 | AQ73: 0 | AR73: 0 | AS73: 0 | AT73: 0 | AV73: 0 | AW73: 0 | AX73: 0 | AY73: 0 | AZ73: 0 | BA73: 0 | BC73: 0 | BD73: 0 | BE73: 0 | BF73: 0 | BG73: 0 | BH73: 0 | BJ73: 0 | BK73: 0 | BL73: 0 | BM73: 0 | BN73: 0 | BO73: 0 | BQ73: 0 | BR73: 0 | BS73: 0 | BT73: 0 | BU73: 0 | BV73: 0 | BX73: 0 | BY73: 0 | BZ73: 0 | CA73: 0 | CB73: 0 | CC73: 0
B74: =IF(Namedrug4="","Drug 4",Namedrug4) -> Drug 4 | M74: 0 | N74: 0 | O74: 0 | P74: 0 | Q74: 0 | R74: 0 | T74: 0 | U74: 0 | V74: 0 | W74: 0 | X74: 0 | Y74: 0 | AA74: 0 | AB74: 0 | AC74: 0 | AD74: 0 | AE74: 0 | AF74: 0 | AH74: 0 | AI74: 0 | AJ74: 0 | AK74: 0 | AL74: 0 | AM74: 0 | AO74: 0 | AP74: 0 | AQ74: 0 | AR74: 0 | AS74: 0 | AT74: 0 | AV74: 0 | AW74: 0 | AX74: 0 | AY74: 0 | AZ74: 0 | BA74: 0 | BC74: 0 | BD74: 0 | BE74: 0 | BF74: 0 | BG74: 0 | BH74: 0 | BJ74: 0 | BK74: 0 | BL74: 0 | BM74: 0 | BN74: 0 | BO74: 0 | BQ74: 0 | BR74: 0 | BS74: 0 | BT74: 0 | BU74: 0 | BV74: 0 | BX74: 0 | BY74: 0 | BZ74: 0 | CA74: 0 | CB74: 0 | CC74: 0
B75: =IF(Namedrug5="","Drug 5",Namedrug5) -> Drug 5 | M75: 0 | N75: 0 | O75: 0 | P75: 0 | Q75: 0 | R75: 0 | T75: 0 | U75: 0 | V75: 0 | W75: 0 | X75: 0 | Y75: 0 | AA75: 0 | AB75: 0 | AC75: 0 | AD75: 0 | AE75: 0 | AF75: 0 | AH75: 0 | AI75: 0 | AJ75: 0 | AK75: 0 | AL75: 0 | AM75: 0 | AO75: 0 | AP75: 0 | AQ75: 0 | AR75: 0 | AS75: 0 | AT75: 0 | AV75: 0 | AW75: 0 | AX75: 0 | AY75: 0 | AZ75: 0 | BA75: 0 | BC75: 0 | BD75: 0 | BE75: 0 | BF75: 0 | BG75: 0 | BH75: 0 | BJ75: 0 | BK75: 0 | BL75: 0 | BM75: 0 | BN75: 0 | BO75: 0 | BQ75: 0 | BR75: 0 | BS75: 0 | BT75: 0 | BU75: 0 | BV75: 0 | BX75: 0 | BY75: 0 | BZ75: 0 | CA75: 0 | CB75: 0 | CC75: 0
B76: =IF(Namedrug6="","Drug 6",Namedrug6) -> Drug 6 | M76: 0 | N76: 0 | O76: 0 | P76: 0 | Q76: 0 | R76: 0 | T76: 0 | U76: 0 | V76: 0 | W76: 0 | X76: 0 | Y76: 0 | AA76: 0 | AB76: 0 | AC76: 0 | AD76: 0 | AE76: 0 | AF76: 0 | AH76: 0 | AI76: 0 | AJ76: 0 | AK76: 0 | AL76: 0 | AM76: 0 | AO76: 0 | AP76: 0 | AQ76: 0 | AR76: 0 | AS76: 0 | AT76: 0 | AV76: 0 | AW76: 0 | AX76: 0 | AY76: 0 | AZ76: 0 | BA76: 0 | BC76: 0 | BD76: 0 | BE76: 0 | BF76: 0 | BG76: 0 | BH76: 0 | BJ76: 0 | BK76: 0 | BL76: 0 | BM76: 0 | BN76: 0 | BO76: 0 | BQ76: 0 | BR76: 0 | BS76: 0 | BT76: 0 | BU76: 0 | BV76: 0 | BX76: 0 | BY76: 0 | BZ76: 0 | CA76: 0 | CB76: 0 | CC76: 0
B77: =IF(Namedrug7="","Drug 7",Namedrug7) -> Drug 7 | M77: 0 | N77: 0 | O77: 0 | P77: 0 | Q77: 0 | R77: 0 | T77: 0 | U77: 0 | V77: 0 | W77: 0 | X77: 0 | Y77: 0 | AA77: 0 | AB77: 0 | AC77: 0 | AD77: 0 | AE77: 0 | AF77: 0 | AH77: 0 | AI77: 0 | AJ77: 0 | AK77: 0 | AL77: 0 | AM77: 0 | AO77: 0 | AP77: 0 | AQ77: 0 | AR77: 0 | AS77: 0 | AT77: 0 | AV77: 0 | AW77: 0 | AX77: 0 | AY77: 0 | AZ77: 0 | BA77: 0 | BC77: 0 | BD77: 0 | BE77: 0 | BF77: 0 | BG77: 0 | BH77: 0 | BJ77: 0 | BK77: 0 | BL77: 0 | BM77: 0 | BN77: 0 | BO77: 0 | BQ77: 0 | BR77: 0 | BS77: 0 | BT77: 0 | BU77: 0 | BV77: 0 | BX77: 0 | BY77: 0 | BZ77: 0 | CA77: 0 | CB77: 0 | CC77: 0
B78: =IF(Namedrug8="","Drug 8",Namedrug8) -> Drug 8 | M78: 0 | N78: 0 | O78: 0 | P78: 0 | Q78: 0 | R78: 0 | T78: 0 | U78: 0 | V78: 0 | W78: 0 | X78: 0 | Y78: 0 | AA78: 0 | AB78: 0 | AC78: 0 | AD78: 0 | AE78: 0 | AF78: 0 | AH78: 0 | AI78: 0 | AJ78: 0 | AK78: 0 | AL78: 0 | AM78: 0 | AO78: 0 | AP78: 0 | AQ78: 0 | AR78: 0 | AS78: 0 | AT78: 0 | AV78: 0 | AW78: 0 | AX78: 0 | AY78: 0 | AZ78: 0 | BA78: 0 | BC78: 0 | BD78: 0 | BE78: 0 | BF78: 0 | BG78: 0 | BH78: 0 | BJ78: 0 | BK78: 0 | BL78: 0 | BM78: 0 | BN78: 0 | BO78: 0 | BQ78: 0 | BR78: 0 | BS78: 0 | BT78: 0 | BU78: 0 | BV78: 0 | BX78: 0 | BY78: 0 | BZ78: 0 | CA78: 0 | CB78: 0 | CC78: 0
B79: =IF(Namedrug9="","Drug 9",Namedrug9) -> Drug 9 | M79: 0 | N79: 0 | O79: 0 | P79: 0 | Q79: 0 | R79: 0 | T79: 0 | U79: 0 | V79: 0 | W79: 0 | X79: 0 | Y79: 0 | AA79: 0 | AB79: 0 | AC79: 0 | AD79: 0 | AE79: 0 | AF79: 0 | AH79: 0 | AI79: 0 | AJ79: 0 | AK79: 0 | AL79: 0 | AM79: 0 | AO79: 0 | AP79: 0 | AQ79: 0 | AR79: 0 | AS79: 0 | AT79: 0 | AV79: 0 | AW79: 0 | AX79: 0 | AY79: 0 | AZ79: 0 | BA79: 0 | BC79: 0 | BD79: 0 | BE79: 0 | BF79: 0 | BG79: 0 | BH79: 0 | BJ79: 0 | BK79: 0 | BL79: 0 | BM79: 0 | BN79: 0 | BO79: 0 | BQ79: 0 | BR79: 0 | BS79: 0 | BT79: 0 | BU79: 0 | BV79: 0 | BX79: 0 | BY79: 0 | BZ79: 0 | CA79: 0 | CB79: 0 | CC79: 0
B80: =IF(Namedrug10="","Drug 10",Namedrug10) -> Drug 10 | M80: 0 | N80: 0 | O80: 0 | P80: 0 | Q80: 0 | R80: =IF(SUM($M$35:$R$46)=0,K46,R46) -> 0 | T80: 0 | U80: 0 | V80: 0 | W80: 0 | X80: 0 | Y80: =IF(SUM($T$35:$Y$46)=0,K46,Y46) -> 0 | AA80: 0 | AB80: 0 | AC80: 0 | AD80: 0 | AE80: 0 | AF80: =IF(SUM($AA$35:$AF$46)=0,K46,AF46) -> 0 | AH80: 0 | AI80: 0 | AJ80: 0 | AK80: 0 | AL80: 0 | AM80: =IF(SUM($AH$35:$AM$46)=0,K46,AM46) -> 0 | AO80: 0 | AP80: 0 | AQ80: 0 | AR80: 0 | AS80: 0 | AT80: =IF(SUM($AO$35:$AT$46)=0,K46,AT46) -> 0 | AV80: 0 | AW80: 0 | AX80: 0 | AY80: 0 | AZ80: 0 | BA80: =IF(SUM($AV$35:$BA$46)=0,K46,BA46) -> 0 | BC80: 0 | BD80: 0 | BE80: 0 | BF80: 0 | BG80: 0 | BH80: 0 | BJ80: 0 | BK80: 0 | BL80: 0 | BM80: 0 | BN80: 0 | BO80: =IF(SUM($BJ$35:$BO$46)=0,K46,BO46) -> 0 | BQ80: 0 | BR80: 0 | BS80: 0 | BT80: 0 | BU80: 0 | BV80: =IF(SUM($BQ$35:$BV$46)=0,K46,BV46) -> 0 | BX80: 0 | BY80: 0 | BZ80: 0 | CA80: 0 | CB80: 0 | CC80: =IF(SUM($BX$35:$CC$46)=0,K46,CC46) -> 0
B81: Total | M81: =SUM(M69:M80) -> 0 | N81: =SUM(N69:N80) -> 0 | O81: =SUM(O69:O80) -> 0 | P81: =SUM(P69:P80) -> 0 | Q81: 0 | R81: 0 | T81: =SUM(T69:T80) -> 0 | U81: =SUM(U69:U80) -> 0 | V81: =SUM(V69:V80) -> 0 | W81: 0 | X81: 0 | Y81: 0 | AA81: =SUM(AA69:AA80) -> 0 | AB81: =SUM(AB69:AB80) -> 0 | AC81: =SUM(AC69:AC80) -> 0 | AD81: 0 | AE81: 0 | AF81: 0 | AH81: =SUM(AH69:AH80) -> 0 | AI81: =SUM(AI69:AI80) -> 0 | AJ81: =SUM(AJ69:AJ80) -> 0 | AK81: 0 | AL81: 0 | AM81: 0 | AO81: =SUM(AO69:AO80) -> 0 | AP81: =SUM(AP69:AP80) -> 0 | AQ81: 0 | AR81: 0 | AS81: 0 | AT81: 0 | AV81: =SUM(AV69:AV80) -> 0 | AW81: =SUM(AW69:AW80) -> 0 | AX81: 0 | AY81: 0 | AZ81: 0 | BA81: 0 | BC81: =SUM(BC69:BC80) -> 0 | BD81: =SUM(BD69:BD80) -> 0 | BE81: 0 | BF81: 0 | BG81: 0 | BH81: 0 | BJ81: =SUM(BJ69:BJ80) -> 0 | BK81: 0 | BL81: 0 | BM81: 0 | BN81: 0 | BO81: 0 | BQ81: =SUM(BQ69:BQ80) -> 0 | BR81: 0 | BS81: 0 | BT81: 0 | BU81: 0 | BV81: 0 | BX81: =SUM(BX69:BX80) -> 0 | BY81: 0 | BZ81: 0 | CA81: 0 | CB81: 0 | CC81: 0

Sheet Outputs-Market Dynamics
B4: Output - Market Dynamics
B6: In the Inputs-Market Shares sheet, the market shares for each drug including the drug under review were entered under two scenarios; the Reference scenario and the New Drug scenario.
B7: The new drug generates market share by capturing it from existing products. Based on the market shares inputted, the implicit capture rates for the new product from each of the existing products for each year has been calculated below.
B8: For the chosen time horizon to be appropriate, it is expected that the market stabilizes. Thus, the capture rates for the new product should be low at the end of the time horizon, indicating that stability in the market has been achieved. Warnings will show if the capture rate for the new product from an existing product is either greater than or equal to 25% or is greater than in the previous year which indicates the market uptake of the treatment may continue to grow over time.
B9: Warnings are provided for information purposes only. If the market is unstable, it may be worth re-validating the estimates of market share or extending the time horizon of the analysis.
B11: Implied Capture Rates for NewDrug
D12: Year 1 | E12: Year 2 | F12: Year 3
B13: ='Inputs-Market Shares'!B20 -> Untreated | D13: =IF('Inputs-Market Shares'!F20=0,0,1-'Inputs-Market Shares'!G36/('Inputs-Market Shares'!G20/'Inputs-Market Shares'!F20*'Inputs-Market Shares'!F20)) -> 0 | E13: =IF('Inputs-Market Shares'!G36=0,0,1-'Inputs-Market Shares'!H36/('Inputs-Market Shares'!H20/'Inputs-Market Shares'!G20*'Inputs-Market Shares'!G36)) -> 0 | F13: =IF('Inputs-Market Shares'!H36=0,0,1-'Inputs-Market Shares'!I36/('Inputs-Market Shares'!I20/'Inputs-Market Shares'!H20*'Inputs-Market Shares'!H36)) -> 0 | H13: =IF(F13>0.25,CONCATENATE("The capture rate for ",Name_DUR," from ",B13," exceeds 25% in the final year."),IF(F13>E13,CONCATENATE("The capture rate for ",Name_DUR," from ",B13," is greater in the final year than the previous year."),"")) -> 
B14: ='Inputs-Market Shares'!B21 -> Drug 1 | D14: =IF('Inputs-Market Shares'!F21=0,0,1-'Inputs-Market Shares'!G37/('Inputs-Market Shares'!G21/'Inputs-Market Shares'!F21*'Inputs-Market Shares'!F21)) -> 0 | E14: =IF('Inputs-Market Shares'!G37=0,0,1-'Inputs-Market Shares'!H37/('Inputs-Market Shares'!H21/'Inputs-Market Shares'!G21*'Inputs-Market Shares'!G37)) -> 0 | F14: =IF('Inputs-Market Shares'!H37=0,0,1-'Inputs-Market Shares'!I37/('Inputs-Market Shares'!I21/'Inputs-Market Shares'!H21*'Inputs-Market Shares'!H37)) -> 0
B15: ='Inputs-Market Shares'!B22 -> Drug 2 | D15: =IF('Inputs-Market Shares'!F22=0,0,1-'Inputs-Market Shares'!G38/('Inputs-Market Shares'!G22/'Inputs-Market Shares'!F22*'Inputs-Market Shares'!F22)) -> 0 | E15: =IF('Inputs-Market Shares'!G38=0,0,1-'Inputs-Market Shares'!H38/('Inputs-Market Shares'!H22/'Inputs-Market Shares'!G22*'Inputs-Market Shares'!G38)) -> 0 | F15: =IF('Inputs-Market Shares'!H38=0,0,1-'Inputs-Market Shares'!I38/('Inputs-Market Shares'!I22/'Inputs-Market Shares'!H22*'Inputs-Market Shares'!H38)) -> 0
B16: ='Inputs-Market Shares'!B23 -> Drug 3 | D16: =IF('Inputs-Market Shares'!F23=0,0,1-'Inputs-Market Shares'!G39/('Inputs-Market Shares'!G23/'Inputs-Market Shares'!F23*'Inputs-Market Shares'!F23)) -> 0 | E16: =IF('Inputs-Market Shares'!G39=0,0,1-'Inputs-Market Shares'!H39/('Inputs-Market Shares'!H23/'Inputs-Market Shares'!G23*'Inputs-Market Shares'!G39)) -> 0 | F16: =IF('Inputs-Market Shares'!H39=0,0,1-'Inputs-Market Shares'!I39/('Inputs-Market Shares'!I23/'Inputs-Market Shares'!H23*'Inputs-Market Shares'!H39)) -> 0
B17: ='Inputs-Market Shares'!B24 -> Drug 4 | D17: =IF('Inputs-Market Shares'!F24=0,0,1-'Inputs-Market Shares'!G40/('Inputs-Market Shares'!G24/'Inputs-Market Shares'!F24*'Inputs-Market Shares'!F24)) -> 0 | E17: =IF('Inputs-Market Shares'!G40=0,0,1-'Inputs-Market Shares'!H40/('Inputs-Market Shares'!H24/'Inputs-Market Shares'!G24*'Inputs-Market Shares'!G40)) -> 0 | F17: =IF('Inputs-Market Shares'!H40=0,0,1-'Inputs-Market Shares'!I40/('Inputs-Market Shares'!I24/'Inputs-Market Shares'!H24*'Inputs-Market Shares'!H40)) -> 0
B18: ='Inputs-Market Shares'!B25 -> Drug 5 | D18: =IF('Inputs-Market Shares'!F25=0,0,1-'Inputs-Market Shares'!G41/('Inputs-Market Shares'!G25/'Inputs-Market Shares'!F25*'Inputs-Market Shares'!F25)) -> 0 | E18: =IF('Inputs-Market Shares'!G41=0,0,1-'Inputs-Market Shares'!H41/('Inputs-Market Shares'!H25/'Inputs-Market Shares'!G25*'Inputs-Market Shares'!G41)) -> 0 | F18: =IF('Inputs-Market Shares'!H41=0,0,1-'Inputs-Market Shares'!I41/('Inputs-Market Shares'!I25/'Inputs-Market Shares'!H25*'Inputs-Market Shares'!H41)) -> 0
B19: ='Inputs-Market Shares'!B26 -> Drug 6 | D19: =IF('Inputs-Market Shares'!F26=0,0,1-'Inputs-Market Shares'!G42/('Inputs-Market Shares'!G26/'Inputs-Market Shares'!F26*'Inputs-Market Shares'!F26)) -> 0 | E19: =IF('Inputs-Market Shares'!G42=0,0,1-'Inputs-Market Shares'!H42/('Inputs-Market Shares'!H26/'Inputs-Market Shares'!G26*'Inputs-Market Shares'!G42)) -> 0 | F19: =IF('Inputs-Market Shares'!H42=0,0,1-'Inputs-Market Shares'!I42/('Inputs-Market Shares'!I26/'Inputs-Market Shares'!H26*'Inputs-Market Shares'!H42)) -> 0
B20: ='Inputs-Market Shares'!B27 -> Drug 7 | D20: =IF('Inputs-Market Shares'!F27=0,0,1-'Inputs-Market Shares'!G43/('Inputs-Market Shares'!G27/'Inputs-Market Shares'!F27*'Inputs-Market Shares'!F27)) -> 0 | E20: =IF('Inputs-Market Shares'!G43=0,0,1-'Inputs-Market Shares'!H43/('Inputs-Market Shares'!H27/'Inputs-Market Shares'!G27*'Inputs-Market Shares'!G43)) -> 0 | F20: =IF('Inputs-Market Shares'!H43=0,0,1-'Inputs-Market Shares'!I43/('Inputs-Market Shares'!I27/'Inputs-Market Shares'!H27*'Inputs-Market Shares'!H43)) -> 0
B21: ='Inputs-Market Shares'!B28 -> Drug 8 | D21: =IF('Inputs-Market Shares'!F28=0,0,1-'Inputs-Market Shares'!G44/('Inputs-Market Shares'!G28/'Inputs-Market Shares'!F28*'Inputs-Market Shares'!F28)) -> 0 | E21: =IF('Inputs-Market Shares'!G44=0,0,1-'Inputs-Market Shares'!H44/('Inputs-Market Shares'!H28/'Inputs-Market Shares'!G28*'Inputs-Market Shares'!G44)) -> 0 | F21: =IF('Inputs-Market Shares'!H44=0,0,1-'Inputs-Market Shares'!I44/('Inputs-Market Shares'!I28/'Inputs-Market Shares'!H28*'Inputs-Market Shares'!H44)) -> 0
B22: ='Inputs-Market Shares'!B29 -> Drug 9 | D22: =IF('Inputs-Market Shares'!F29=0,0,1-'Inputs-Market Shares'!G45/('Inputs-Market Shares'!G29/'Inputs-Market Shares'!F29*'Inputs-Market Shares'!F29)) -> 0 | E22: =IF('Inputs-Market Shares'!G45=0,0,1-'Inputs-Market Shares'!H45/('Inputs-Market Shares'!H29/'Inputs-Market Shares'!G29*'Inputs-Market Shares'!G45)) -> 0 | F22: =IF('Inputs-Market Shares'!H45=0,0,1-'Inputs-Market Shares'!I45/('Inputs-Market Shares'!I29/'Inputs-Market Shares'!H29*'Inputs-Market Shares'!H45)) -> 0
B23: ='Inputs-Market Shares'!B30 -> Drug 10 | D23: =IF('Inputs-Market Shares'!F30=0,0,1-'Inputs-Market Shares'!G46/('Inputs-Market Shares'!G30/'Inputs-Market Shares'!F30*'Inputs-Market Shares'!F30)) -> 0 | E23: =IF('Inputs-Market Shares'!G46=0,0,1-'Inputs-Market Shares'!H46/('Inputs-Market Shares'!H30/'Inputs-Market Shares'!G30*'Inputs-Market Shares'!G46)) -> 0 | F23: =IF('Inputs-Market Shares'!H46=0,0,1-'Inputs-Market Shares'!I46/('Inputs-Market Shares'!I30/'Inputs-Market Shares'!H30*'Inputs-Market Shares'!H46)) -> 0

Sheet Inputs-Drug Cost User Worksheet
B4: Inputs-Drug Cost User Worksheet
B6: Step 4. Enter unit drug cost of all drugs to calculate annual costs
B7: This sheet is fully customisable for the user to calculate drug costs as they prefer. When finalised, results from this sheet should be linked to the "Inputs-Total Drug Costs" sheet. The following criteria must be adhered to:
B8: • Information on the unit cost (to 4 decimal places) per lowest dispensable unit and the per unit amount per lowest dispensable unit must be transparently detailed in the tool. • All calculations should be transparently laid out. • All assumptions must be clearly stipulated (these pertain to relative dose intensity, time on treatment, dose titration, and compliance for example). • If total costs are taken directly from the submitted economic evaluation, the user must list the assumptions used in the economic evaluation to derive drug costs.
B9: The following is an example for illustrative purposes only.
B11: Drug Name | C11: Unit Cost | D11: % Price reduction (if applicable) | E11: Unit cost (with rebate) | F11: Per (unit amount) | G11: Unit type | H11: Reference (if applicable)
B13: DUR | C13: 1000.256 | D13: 0 | E13: =C13*(1-D13) -> 1000.256 | F13: 100 | G13: mg
E14: =IF(D14="",C14,(1-D14)*C14) -> 0
E15: 0
B17: Drug A | C17: 1589.325 | D17: 0 | E17: =C17*(1-D17) -> 1589.325 | F17: 100 | G17: mg
E18: =IF(D18="",C18,(1-D18)*C18) -> 0
E19: 0
B21: Drug B | C21: 100 | D21: 0 | E21: =C21*(1-D21) -> 100 | F21: 100 | G21: mg
E22: =IF(D22="",C22,(1-D22)*C22) -> 0
E23: 0
G25: Days per year: | H25: Weeks per year: | I25: Days per month:
G26: 365.25 | H26: =G26/7 -> 52.17857143 | I26: =G26/12 -> 30.4375
C28: Treatment | D28: Dose required each administration as per product monograph | E28: Dose actually received each administration | F28: Number of units required (assuming wastage) | G28: Number of administrations per 28 days | H28: % who miss dose (IV therapies) | I28: Cost per 28 days | J28: Cost per month
C29: =B13 -> DUR | D29: 1000 | E29: 1000 | F29: =ROUNDUP(E29/F13,0) -> 10 | G29: 2 | H29: 0.1 | I29: =F29*G29*(1-H29)*E13 -> 18004.608 | J29: =I29/28*$I$26 -> 19571.97343
C30: =B17 -> Drug A | D30: 500 | E30: 500 | F30: =ROUNDUP(E30/F17,0) -> 5 | G30: 2 | H30: 0.1 | I30: =F30*G30*(1-H30)*E17 -> 14303.925 | J30: =I30/28*$I$26 -> 15549.13276
C31: =B21 -> Drug B | D31: 200 | E31: 200 | F31: =ROUNDUP(E31/F21,0) -> 2 | G31: 28 | H31: 0 | I31: =F31*G31*(1-H31)*E21 -> 5600 | J31: 6087.5
C33: Treatment | D33: Mean time on therapy over 1 year (months) | E33: Mean time on therapy over 2 years (months) | F33: Mean time on therapy over 3 years (months)
C34: =C29 -> DUR | D34: 9 | E34: 14 | F34: 15
C35: =C30 -> Drug A | D35: 6 | E35: 7 | F35: 7.2
C36: Drug B | D36: 3 | E36: 3 | F36: 3
C38: Treatment | D38: Average costs in year 1 | E38: Average costs in year 2 | F38: Average costs in year 3
C39: =C34 -> DUR | D39: =D34*$J$29 -> 176147.7609 | E39: =E34*J29-D39 -> 97859.86714 | F39: =F34*J29-E39-D39 -> 19571.97343
C40: =C35 -> Drug A | D40: =D35*$J$30 -> 93294.79654 | E40: =E35*$J$30-D40 -> 15549.13276 | F40: =F35*J30-E40-D40 -> 3109.826551
C41: Drug B | D41: =D36*$J$31 -> 18262.5 | E41: =E36*$J$31-D41 -> 0 | F41: =F36*J31-E41-D41 -> 0

Sheet Inputs-Total Drug Costs
B4: Inputs - Total Drug Costs
B6: Step 5. Enter annual costs for all drugs
B7: The user should link these cells to the final calculations made in the "Inputs-Drug Cost User Worksheet" For incidence-based models enter the annual costs for all drugs in the first, second, and third years on treatment, respectively, accounting for loading dose, titration, and discontinuation over time. For prevalence-based models, how long the current prevalent cohort has been on therapy is likely unknown. Therefore, drug costs for all comparators in a prevalence-based model should represent average annual drug costs and be equal across all years. For example, if drug costs are higher in subsequent years relative to the first year, the user must make an assumption regarding what percentage of patients are in their first year of therapy relative to subsequent years. This assumption will inform the “average” annual drug cost. For the drug under review, assuming the drug is not currently funded, a prevalence-based model can track all patients who receive the treatment. This assumes uptake in new diagnoses is captured in the market shares.
B10: Parameter | D10: Notes | F10: User Input
B12: =CONCATENATE("Is the annual per patient drug cost for patients receiving ", IF(Name_DUR=""," Drug Under Review", Name_DUR), " expected to remain constant over time?") -> Is the annual per patient drug cost for patients receiving Drug Under Review expected to remain constant over time? | D12: If “Yes” for incidence-based models, this assumes minimal discontinuation and dose titration within the BIA time horizon, therefore first-year costs will be used for all years. If “Yes” for prevalence-based models, this means drug costs are the same across all years on treatment.
B14: =IF(F12="Yes","Average per patient annual drug cost",CONCATENATE("Average per patient annual cost of first year of treatment",IF('Inputs-Market Size'!F24="Prevalence"," "," accounting for loading dose, discontinuation and titration"))) -> Average per patient annual cost of first year of treatment accounting for loading dose, discontinuation and titration
I15: Newfoundland and Labrador | J15: Prince Edward Island | K15: Nova Scotia | L15: New Brunswick | M15: Ontario | N15: Manitoba | O15: Saskatchewan | P15: Alberta | Q15: British Columbia | R15: NIHB
F16: pan-Canadian | I16: 1 | J16: 2 | K16: 3 | L16: 4 | M16: 5 | N16: 6 | O16: 7 | P16: 8 | Q16: 9 | R16: 10
B17: =IF(Name_DUR="","Drug Under Review",Name_DUR) -> Drug Under Review | D17: The drug cost estimate should make reference to the annual unit drug cost estimate calculated in Inputs - Unit Drug Cost User Worksheet | H17: 1 | I17: =$F17 -> 0 | J17: =$F17 -> 0 | K17: 0 | L17: 0 | M17: 0 | N17: 0 | O17: 0 | P17: 0 | Q17: 0 | R17: 0
B18: Untreated | H18: 2 | I18: 0 | J18: 0 | K18: 0 | L18: 0 | M18: 0 | N18: 0 | O18: 0 | P18: 0 | Q18: 0 | R18: 0
B19: =IF(Namedrug1="","Drug 1",Namedrug1) -> Drug 1 | D19: In a prevalence-based model comparator drug costs should be equal in all years. | H19: 3 | I19: 0 | J19: 0 | K19: 0 | L19: 0 | M19: 0 | N19: 0 | O19: 0 | P19: 0 | Q19: 0 | R19: 0
B20: =IF(Namedrug2="","Drug 2",Namedrug2) -> Drug 2 | H20: 4 | I20: 0 | J20: 0 | K20: 0 | L20: 0 | M20: 0 | N20: 0 | O20: 0 | P20: 0 | Q20: 0 | R20: 0
B21: =IF(Namedrug3="","Drug 3",Namedrug3) -> Drug 3 | H21: 5 | I21: 0 | J21: 0 | K21: 0 | L21: 0 | M21: 0 | N21: 0 | O21: 0 | P21: 0 | Q21: 0 | R21: 0
B22: =IF(Namedrug4="","Drug 4",Namedrug4) -> Drug 4 | H22: 6 | I22: 0 | J22: 0 | K22: 0 | L22: 0 | M22: 0 | N22: 0 | O22: 0 | P22: 0 | Q22: 0 | R22: 0
B23: =IF(Namedrug5="","Drug 5",Namedrug5) -> Drug 5 | H23: 7 | I23: 0 | J23: 0 | K23: 0 | L23: 0 | M23: 0 | N23: 0 | O23: 0 | P23: 0 | Q23: 0 | R23: 0
B24: =IF(Namedrug6="","Drug 6",Namedrug6) -> Drug 6 | H24: 8 | I24: 0 | J24: 0 | K24: 0 | L24: 0 | M24: 0 | N24: 0 | O24: 0 | P24: 0 | Q24: 0 | R24: 0
B25: =IF(Namedrug7="","Drug 7",Namedrug7) -> Drug 7 | H25: 9 | I25: 0 | J25: 0 | K25: 0 | L25: 0 | M25: 0 | N25: 0 | O25: 0 | P25: 0 | Q25: 0 | R25: 0
B26: =IF(Namedrug8="","Drug 8",Namedrug8) -> Drug 8 | H26: 10 | I26: 0 | J26: 0 | K26: 0 | L26: 0 | M26: 0 | N26: 0 | O26: 0 | P26: 0 | Q26: 0 | R26: 0
B27: =IF(Namedrug9="","Drug 9",Namedrug9) -> Drug 9 | H27: 11 | I27: 0 | J27: 0 | K27: 0 | L27: 0 | M27: 0 | N27: 0 | O27: 0 | P27: 0 | Q27: 0 | R27: 0
B28: =IF(Namedrug10="","Drug 10",Namedrug10) -> Drug 10 | H28: 12 | I28: 0 | J28: 0 | K28: 0 | L28: 0 | M28: 0 | N28: 0 | O28: 0 | P28: 0 | Q28: 0 | R28: 0
B31: =IF(F12="Yes","Not applicable",CONCATENATE("Average per patient annual cost of second year of treatment",IF('Inputs-Market Size'!F24="Prevalence"," "," accounting for loading dose, discontinuation and titration"))) -> Average per patient annual cost of second year of treatment accounting for loading dose, discontinuation and titration | I31: Newfoundland and Labrador | J31: Prince Edward Island | K31: Nova Scotia | L31: New Brunswick | M31: Ontario | N31: Manitoba | O31: Saskatchewan | P31: Alberta | Q31: British Columbia | R31: NIHB
F32: pan-Canadian | I32: 1 | J32: 2 | K32: 3 | L32: 4 | M32: 5 | N32: 6 | O32: 7 | P32: 8 | Q32: 9 | R32: 10
B33: =IF(Name_DUR="","Drug Under Review",Name_DUR) -> Drug Under Review | D33: The drug cost estimate should make reference to the annual unit drug cost estimate calculated in Inputs - Unit Drug Cost User Worksheet | H33: 1 | I33: =IF(Switch_stablecosts="Yes",I17,$F33) -> 0 | J33: 0 | K33: 0 | L33: 0 | M33: 0 | N33: 0 | O33: 0 | P33: 0 | Q33: 0 | R33: 0
B34: Untreated | H34: 2 | I34: =IF(Switch_stablecosts="Yes",I18,$F34) -> 0 | J34: 0 | K34: 0 | L34: 0 | M34: 0 | N34: 0 | O34: 0 | P34: 0 | Q34: 0 | R34: 0
B35: =IF(Namedrug1="","Drug 1",Namedrug1) -> Drug 1 | D35: In a prevalence-based model comparator drug costs should be equal in all years. | H35: 3 | I35: =IF(Switch_stablecosts="Yes",I19,$F35) -> 0 | J35: 0 | K35: 0 | L35: 0 | M35: 0 | N35: 0 | O35: 0 | P35: 0 | Q35: 0 | R35: 0
B36: =IF(Namedrug2="","Drug 2",Namedrug2) -> Drug 2 | H36: 4 | I36: =IF(Switch_stablecosts="Yes",I20,$F36) -> 0 | J36: 0 | K36: 0 | L36: 0 | M36: 0 | N36: 0 | O36: 0 | P36: 0 | Q36: 0 | R36: 0
B37: =IF(Namedrug3="","Drug 3",Namedrug3) -> Drug 3 | H37: 5 | I37: =IF(Switch_stablecosts="Yes",I21,$F37) -> 0 | J37: 0 | K37: 0 | L37: 0 | M37: 0 | N37: 0 | O37: 0 | P37: 0 | Q37: 0 | R37: 0
B38: =IF(Namedrug4="","Drug 4",Namedrug4) -> Drug 4 | H38: 6 | I38: =IF(Switch_stablecosts="Yes",I22,$F38) -> 0 | J38: 0 | K38: 0 | L38: 0 | M38: 0 | N38: 0 | O38: 0 | P38: 0 | Q38: 0 | R38: 0
B39: =IF(Namedrug5="","Drug 5",Namedrug5) -> Drug 5 | H39: 7 | I39: =IF(Switch_stablecosts="Yes",I23,$F39) -> 0 | J39: 0 | K39: 0 | L39: 0 | M39: 0 | N39: 0 | O39: 0 | P39: 0 | Q39: 0 | R39: 0
B40: =IF(Namedrug6="","Drug 6",Namedrug6) -> Drug 6 | H40: 8 | I40: =IF(Switch_stablecosts="Yes",I24,$F40) -> 0 | J40: 0 | K40: 0 | L40: 0 | M40: 0 | N40: 0 | O40: 0 | P40: 0 | Q40: 0 | R40: 0
B41: =IF(Namedrug7="","Drug 7",Namedrug7) -> Drug 7 | H41: 9 | I41: =IF(Switch_stablecosts="Yes",I25,$F41) -> 0 | J41: 0 | K41: 0 | L41: 0 | M41: 0 | N41: 0 | O41: 0 | P41: 0 | Q41: 0 | R41: 0
B42: =IF(Namedrug8="","Drug 8",Namedrug8) -> Drug 8 | H42: 10 | I42: =IF(Switch_stablecosts="Yes",I26,$F42) -> 0 | J42: 0 | K42: 0 | L42: 0 | M42: 0 | N42: 0 | O42: 0 | P42: 0 | Q42: 0 | R42: 0
B43: =IF(Namedrug9="","Drug 9",Namedrug9) -> Drug 9 | H43: 11 | I43: =IF(Switch_stablecosts="Yes",I27,$F43) -> 0 | J43: 0 | K43: 0 | L43: 0 | M43: 0 | N43: 0 | O43: 0 | P43: 0 | Q43: 0 | R43: 0
B44: =IF(Namedrug10="","Drug 10",Namedrug10) -> Drug 10 | H44: 12 | I44: =IF(Switch_stablecosts="Yes",I28,$F44) -> 0 | J44: 0 | K44: 0 | L44: 0 | M44: 0 | N44: 0 | O44: 0 | P44: 0 | Q44: 0 | R44: 0
B47: =IF(F12="Yes","Not applicable",CONCATENATE("Average per patient annual cost of third year of treatment",IF('Inputs-Market Size'!F24="Prevalence"," "," accounting for loading dose, discontinuation and titration"))) -> Average per patient annual cost of third year of treatment accounting for loading dose, discontinuation and titration | I47: Newfoundland and Labrador | J47: Prince Edward Island | K47: Nova Scotia | L47: New Brunswick | M47: Ontario | N47: Manitoba | O47: Saskatchewan | P47: Alberta | Q47: British Columbia | R47: NIHB
F48: pan-Canadian | I48: 1 | J48: 2 | K48: 3 | L48: 4 | M48: 5 | N48: 6 | O48: 7 | P48: 8 | Q48: 9 | R48: 10
B49: =IF(Name_DUR="","Drug Under Review",Name_DUR) -> Drug Under Review | D49: The drug cost estimate should make reference to the annual unit drug cost estimate calculated in Inputs - Unit Drug Cost User Worksheet | H49: 1 | I49: =IF(Switch_stablecosts="Yes",I17,$F49) -> 0 | J49: 0 | K49: 0 | L49: 0 | M49: 0 | N49: 0 | O49: 0 | P49: 0 | Q49: 0 | R49: 0
B50: Untreated | H50: 2 | I50: =IF(Switch_stablecosts="Yes",I18,$F50) -> 0 | J50: 0 | K50: 0 | L50: 0 | M50: 0 | N50: 0 | O50: 0 | P50: 0 | Q50: 0 | R50: 0
B51: =IF(Namedrug1="","Drug 1",Namedrug1) -> Drug 1 | D51: In a prevalence-based model comparator drug costs should be equal in all years. | H51: 3 | I51: =IF(Switch_stablecosts="Yes",I19,$F51) -> 0 | J51: 0 | K51: 0 | L51: 0 | M51: 0 | N51: 0 | O51: 0 | P51: 0 | Q51: 0 | R51: 0
B52: =IF(Namedrug2="","Drug 2",Namedrug2) -> Drug 2 | H52: 4 | I52: =IF(Switch_stablecosts="Yes",I20,$F52) -> 0 | J52: 0 | K52: 0 | L52: 0 | M52: 0 | N52: 0 | O52: 0 | P52: 0 | Q52: 0 | R52: 0
B53: =IF(Namedrug3="","Drug 3",Namedrug3) -> Drug 3 | H53: 5 | I53: =IF(Switch_stablecosts="Yes",I21,$F53) -> 0 | J53: 0 | K53: 0 | L53: 0 | M53: 0 | N53: 0 | O53: 0 | P53: 0 | Q53: 0 | R53: 0
B54: =IF(Namedrug4="","Drug 4",Namedrug4) -> Drug 4 | H54: 6 | I54: =IF(Switch_stablecosts="Yes",I22,$F54) -> 0 | J54: 0 | K54: 0 | L54: 0 | M54: 0 | N54: 0 | O54: 0 | P54: 0 | Q54: 0 | R54: 0
B55: =IF(Namedrug5="","Drug 5",Namedrug5) -> Drug 5 | H55: 7 | I55: =IF(Switch_stablecosts="Yes",I23,$F55) -> 0 | J55: 0 | K55: 0 | L55: 0 | M55: 0 | N55: 0 | O55: 0 | P55: 0 | Q55: 0 | R55: 0
B56: =IF(Namedrug6="","Drug 6",Namedrug6) -> Drug 6 | H56: 8 | I56: =IF(Switch_stablecosts="Yes",I24,$F56) -> 0 | J56: 0 | K56: 0 | L56: 0 | M56: 0 | N56: 0 | O56: 0 | P56: 0 | Q56: 0 | R56: 0
B57: =IF(Namedrug7="","Drug 7",Namedrug7) -> Drug 7 | H57: 9 | I57: =IF(Switch_stablecosts="Yes",I25,$F57) -> 0 | J57: 0 | K57: 0 | L57: 0 | M57: 0 | N57: 0 | O57: 0 | P57: 0 | Q57: 0 | R57: 0
B58: =IF(Namedrug8="","Drug 8",Namedrug8) -> Drug 8 | H58: 10 | I58: =IF(Switch_stablecosts="Yes",I26,$F58) -> 0 | J58: 0 | K58: 0 | L58: 0 | M58: 0 | N58: 0 | O58: 0 | P58: 0 | Q58: 0 | R58: 0
B59: =IF(Namedrug9="","Drug 9",Namedrug9) -> Drug 9 | H59: 11 | I59: =IF(Switch_stablecosts="Yes",I27,$F59) -> 0 | J59: 0 | K59: 0 | L59: 0 | M59: 0 | N59: 0 | O59: 0 | P59: 0 | Q59: 0 | R59: 0
B60: =IF(Namedrug10="","Drug 10",Namedrug10) -> Drug 10 | H60: 12 | I60: =IF(Switch_stablecosts="Yes",I28,$F60) -> 0 | J60: 0 | K60: 0 | L60: 0 | M60: 0 | N60: 0 | O60: 0 | P60: 0 | Q60: 0 | R60: 0
B63: =IF(F12="Yes","Not applicable",CONCATENATE("Average per patient annual cost of fourth year of treatment",IF('Inputs-Market Size'!F24="Prevalence"," "," accounting for loading dose, discontinuation and titration"))) -> Average per patient annual cost of fourth year of treatment accounting for loading dose, discontinuation and titration | I63: Newfoundland and Labrador | J63: Prince Edward Island | K63: Nova Scotia | L63: New Brunswick | M63: Ontario | N63: Manitoba | O63: Saskatchewan | P63: Alberta | Q63: British Columbia | R63: NIHB
F64: pan-Canadian | I64: 1 | J64: 2 | K64: 3 | L64: 4 | M64: 5 | N64: 6 | O64: 7 | P64: 8 | Q64: 9 | R64: 10
B65: =IF(Name_DUR="","Drug Under Review",Name_DUR) -> Drug Under Review | D65: The drug cost estimate should make reference to the annual unit drug cost estimate calculated in Inputs - Unit Drug Cost User Worksheet | H65: 1 | I65: =IF(Switch_stablecosts="Yes",I17,$F65) -> 0 | J65: 0 | K65: 0 | L65: 0 | M65: 0 | N65: 0 | O65: 0 | P65: 0 | Q65: 0 | R65: 0
B66: Untreated | H66: 2 | I66: =IF(Switch_stablecosts="Yes",I18,$F66) -> 0 | J66: 0 | K66: 0 | L66: 0 | M66: 0 | N66: 0 | O66: 0 | P66: 0 | Q66: 0 | R66: 0
B67: =IF(Namedrug1="","Drug 1",Namedrug1) -> Drug 1 | D67: In a prevalence-based model comparator drug costs should be equal in all years. | H67: 3 | I67: =IF(Switch_stablecosts="Yes",I19,$F67) -> 0 | J67: 0 | K67: 0 | L67: 0 | M67: 0 | N67: 0 | O67: 0 | P67: 0 | Q67: 0 | R67: 0
B68: =IF(Namedrug2="","Drug 2",Namedrug2) -> Drug 2 | H68: 4 | I68: =IF(Switch_stablecosts="Yes",I20,$F68) -> 0 | J68: 0 | K68: 0 | L68: 0 | M68: 0 | N68: 0 | O68: 0 | P68: 0 | Q68: 0 | R68: 0
B69: =IF(Namedrug3="","Drug 3",Namedrug3) -> Drug 3 | H69: 5 | I69: =IF(Switch_stablecosts="Yes",I21,$F69) -> 0 | J69: 0 | K69: 0 | L69: 0 | M69: 0 | N69: 0 | O69: 0 | P69: 0 | Q69: 0 | R69: 0
B70: =IF(Namedrug4="","Drug 4",Namedrug4) -> Drug 4 | H70: 6 | I70: =IF(Switch_stablecosts="Yes",I22,$F70) -> 0 | J70: 0 | K70: 0 | L70: 0 | M70: 0 | N70: 0 | O70: 0 | P70: 0 | Q70: 0 | R70: 0
B71: =IF(Namedrug5="","Drug 5",Namedrug5) -> Drug 5 | H71: 7 | I71: =IF(Switch_stablecosts="Yes",I23,$F71) -> 0 | J71: 0 | K71: 0 | L71: 0 | M71: 0 | N71: 0 | O71: 0 | P71: 0 | Q71: 0 | R71: 0
B72: =IF(Namedrug6="","Drug 6",Namedrug6) -> Drug 6 | H72: 8 | I72: =IF(Switch_stablecosts="Yes",I24,$F72) -> 0 | J72: 0 | K72: 0 | L72: 0 | M72: 0 | N72: 0 | O72: 0 | P72: 0 | Q72: 0 | R72: 0
B73: =IF(Namedrug7="","Drug 7",Namedrug7) -> Drug 7 | H73: 9 | I73: =IF(Switch_stablecosts="Yes",I25,$F73) -> 0 | J73: 0 | K73: 0 | L73: 0 | M73: 0 | N73: 0 | O73: 0 | P73: 0 | Q73: 0 | R73: 0
B74: =IF(Namedrug8="","Drug 8",Namedrug8) -> Drug 8 | H74: 10 | I74: =IF(Switch_stablecosts="Yes",I26,$F74) -> 0 | J74: 0 | K74: 0 | L74: 0 | M74: 0 | N74: 0 | O74: 0 | P74: 0 | Q74: 0 | R74: 0
B75: =IF(Namedrug9="","Drug 9",Namedrug9) -> Drug 9 | H75: 11 | I75: =IF(Switch_stablecosts="Yes",I27,$F75) -> 0 | J75: 0 | K75: 0 | L75: 0 | M75: 0 | N75: 0 | O75: 0 | P75: 0 | Q75: 0 | R75: 0
B76: =IF(Namedrug10="","Drug 10",Namedrug10) -> Drug 10 | H76: 12 | I76: =IF(Switch_stablecosts="Yes",I28,$F76) -> 0 | J76: 0 | K76: 0 | L76: 0 | M76: 0 | N76: 0 | O76: 0 | P76: 0 | Q76: 0 | R76: 0
B79: =IF(F12="Yes","Not applicable",CONCATENATE("Average per patient annual cost of fifth year of treatment",IF('Inputs-Market Size'!F24="Prevalence"," "," accounting for loading dose, discontinuation and titration"))) -> Average per patient annual cost of fifth year of treatment accounting for loading dose, discontinuation and titration | I79: Newfoundland and Labrador | J79: Prince Edward Island | K79: Nova Scotia | L79: New Brunswick | M79: Ontario | N79: Manitoba | O79: Saskatchewan | P79: Alberta | Q79: British Columbia | R79: NIHB
F80: pan-Canadian | I80: 1 | J80: 2 | K80: 3 | L80: 4 | M80: 5 | N80: 6 | O80: 7 | P80: 8 | Q80: 9 | R80: 10
B81: =IF(Name_DUR="","Drug Under Review",Name_DUR) -> Drug Under Review | D81: The drug cost estimate should make reference to the annual unit drug cost estimate calculated in Inputs - Unit Drug Cost User Worksheet | H81: 1 | I81: =IF(Switch_stablecosts="Yes",I17,$F81) -> 0 | J81: 0 | K81: 0 | L81: 0 | M81: 0 | N81: 0 | O81: 0 | P81: 0 | Q81: 0 | R81: 0
B82: Untreated | H82: 2 | I82: =IF(Switch_stablecosts="Yes",I18,$F82) -> 0 | J82: 0 | K82: 0 | L82: 0 | M82: 0 | N82: 0 | O82: 0 | P82: 0 | Q82: 0 | R82: 0
B83: =IF(Namedrug1="","Drug 1",Namedrug1) -> Drug 1 | D83: In a prevalence-based model comparator drug costs should be equal in all years. | H83: 3 | I83: =IF(Switch_stablecosts="Yes",I19,$F83) -> 0 | J83: 0 | K83: 0 | L83: 0 | M83: 0 | N83: 0 | O83: 0 | P83: 0 | Q83: 0 | R83: 0
B84: =IF(Namedrug2="","Drug 2",Namedrug2) -> Drug 2 | H84: 4 | I84: =IF(Switch_stablecosts="Yes",I20,$F84) -> 0 | J84: 0 | K84: 0 | L84: 0 | M84: 0 | N84: 0 | O84: 0 | P84: 0 | Q84: 0 | R84: 0
B85: =IF(Namedrug3="","Drug 3",Namedrug3) -> Drug 3 | H85: 5 | I85: =IF(Switch_stablecosts="Yes",I21,$F85) -> 0 | J85: 0 | K85: 0 | L85: 0 | M85: 0 | N85: 0 | O85: 0 | P85: 0 | Q85: 0 | R85: 0
B86: =IF(Namedrug4="","Drug 4",Namedrug4) -> Drug 4 | H86: 6 | I86: =IF(Switch_stablecosts="Yes",I22,$F86) -> 0 | J86: 0 | K86: 0 | L86: 0 | M86: 0 | N86: 0 | O86: 0 | P86: 0 | Q86: 0 | R86: 0
B87: =IF(Namedrug5="","Drug 5",Namedrug5) -> Drug 5 | H87: 7 | I87: =IF(Switch_stablecosts="Yes",I23,$F87) -> 0 | J87: 0 | K87: 0 | L87: 0 | M87: 0 | N87: 0 | O87: 0 | P87: 0 | Q87: 0 | R87: 0
B88: =IF(Namedrug6="","Drug 6",Namedrug6) -> Drug 6 | H88: 8 | I88: =IF(Switch_stablecosts="Yes",I24,$F88) -> 0 | J88: 0 | K88: 0 | L88: 0 | M88: 0 | N88: 0 | O88: 0 | P88: 0 | Q88: 0 | R88: 0
B89: =IF(Namedrug7="","Drug 7",Namedrug7) -> Drug 7 | H89: 9 | I89: =IF(Switch_stablecosts="Yes",I25,$F89) -> 0 | J89: 0 | K89: 0 | L89: 0 | M89: 0 | N89: 0 | O89: 0 | P89: 0 | Q89: 0 | R89: 0
B90: =IF(Namedrug8="","Drug 8",Namedrug8) -> Drug 8 | H90: 10 | I90: =IF(Switch_stablecosts="Yes",I26,$F90) -> 0 | J90: 0 | K90: 0 | L90: 0 | M90: 0 | N90: 0 | O90: 0 | P90: 0 | Q90: 0 | R90: 0
B91: =IF(Namedrug9="","Drug 9",Namedrug9) -> Drug 9 | H91: 11 | I91: =IF(Switch_stablecosts="Yes",I27,$F91) -> 0 | J91: 0 | K91: 0 | L91: 0 | M91: 0 | N91: 0 | O91: 0 | P91: 0 | Q91: 0 | R91: 0
B92: =IF(Namedrug10="","Drug 10",Namedrug10) -> Drug 10 | H92: 12 | I92: =IF(Switch_stablecosts="Yes",I28,$F92) -> 0 | J92: 0 | K92: 0 | L92: 0 | M92: 0 | N92: 0 | O92: 0 | P92: 0 | Q92: 0 | R92: 0

Sheet Inputs-Subsequent Therapy Costs
B4: Inputs - Subsequent therapy costs
B6: Step 6. Enter subsequent therapy costs
B7: If relevant, this sheet gives users the opportunity to specify costs associated with subsequent therapies. This sheet is not intended to capture treatment switching, which should be captured through market shares. Subsequent therapy use applies to patients moving onto a new line of therapy. Results from this analysis should be considered exploratory only. If an incidence-based model is conducted, the user should specify what the average subsequent therapy cost is expected to be each year from starting the original therapy. This takes into account the percentage of patients who require a subsequent therapy each year, the timing of when the subsequent therapy is initiated, and the cost of the subsequent therapy. If a prevalence-based model is conducted, the model assumes patients fail at the beginning of each year. This will likely overestimate subsequent therapy costs. Because we do not know when patients started comparator therapies, a constant subsequent therapy cost is applied that does not change over time. Due to the complexities that arise when estimating subsequent therapy costs, a more sophisticated analysis, such as a Markov model, may be required. The user is encouraged to use the calculation space in the Inputs–Unit Drug Costs User Worksheet to calculate subsequent therapy costs.
B10: Do you want to include subsequent therapy costs? | D10: If no, please proceed to 'Inputs-Additional Costs'
F11: =IF(Switch_subsequenttherapycosts="No","Proceed to next sheet","") -> 
B12: Parameter | D12: Notes | F12: User Input
S13: Newfoundland and Labrador | T13: Prince Edward Island | U13: Nova Scotia | V13: New Brunswick | W13: Ontario | X13: Manitoba | Y13: Saskatchewan | Z13: Alberta | AA13: British Columbia | AB13: NIHB
B14: =IF(Switch_Prev_Incidence="Prevalence","What is the average annual drug cost associated with subsequent therapies for patients who receive the following treatments","Average per patient cost of subsequent therapies in the first year since initiating the following therapies") -> Average per patient cost of subsequent therapies in the first year since initiating the following therapies | D14: Note for prevalence based models the 'average' cost takes into account the proportion who require subsequent therapy each year. For example, if 10% of patients require subsequent therapy each year and subsequent therapy costs $10,000 per year on average then the average annual drug spend will be $1,000 (10% of $10,000) each year. | F14: pan-Canadian | H14: Newfoundland and Labrador | I14: Prince Edward Island | J14: Nova Scotia | K14: New Brunswick | L14: Ontario | M14: Manitoba | N14: Saskatchewan | O14: Alberta | P14: British Columbia | Q14: NIHB | S14: 1 | T14: 2 | U14: 3 | V14: 4 | W14: 5 | X14: 6 | Y14: 7 | Z14: 8 | AA14: 9 | AB14: 10
B16: =IF(Name_DUR="","Drug Under Review",Name_DUR) -> Drug Under Review | D16: If subsequent therapy costs are expected to be jurisdictionally specific, fill in columns H to Q. If estimates are expected to be the same across all jurisdictions then only column F should be filled in as the default (pan-Canadian) value. | R16: 1 | S16: =IF(ISBLANK(H16)=TRUE,$F16,H16) -> 0 | T16: =IF(I16=0,$F16,I16) -> 0 | U16: =IF(J16=0,$F16,J16) -> 0 | V16: =IF(K16=0,$F16,K16) -> 0 | W16: =IF(L16=0,$F16,L16) -> 0 | X16: =IF(M16=0,$F16,M16) -> 0 | Y16: =IF(N16=0,$F16,N16) -> 0 | Z16: =IF(O16=0,$F16,O16) -> 0 | AA16: =IF(P16=0,$F16,P16) -> 0 | AB16: =IF(Q16=0,$F16,Q16) -> 0
B17: Untreated | R17: 2 | S17: =IF(H17=0,$F17,H17) -> 0 | T17: =IF(I17=0,$F17,I17) -> 0 | U17: 0 | V17: 0 | W17: 0 | X17: 0 | Y17: 0 | Z17: 0 | AA17: 0 | AB17: 0
B18: =IF(Namedrug1="","Drug 1",Namedrug1) -> Drug 1 | R18: 3 | S18: =IF(H18=0,$F18,H18) -> 0 | T18: 0 | U18: 0 | V18: 0 | W18: 0 | X18: 0 | Y18: 0 | Z18: 0 | AA18: 0 | AB18: 0
B19: =IF(Namedrug2="","Drug 2",Namedrug2) -> Drug 2 | R19: 4 | S19: 0 | T19: 0 | U19: 0 | V19: 0 | W19: 0 | X19: 0 | Y19: 0 | Z19: 0 | AA19: 0 | AB19: 0
B20: =IF(Namedrug3="","Drug 3",Namedrug3) -> Drug 3 | R20: 5 | S20: 0 | T20: 0 | U20: 0 | V20: 0 | W20: 0 | X20: 0 | Y20: 0 | Z20: 0 | AA20: 0 | AB20: 0
B21: =IF(Namedrug4="","Drug 4",Namedrug4) -> Drug 4 | R21: 6 | S21: 0 | T21: 0 | U21: 0 | V21: 0 | W21: 0 | X21: 0 | Y21: 0 | Z21: 0 | AA21: 0 | AB21: 0
B22: =IF(Namedrug5="","Drug 5",Namedrug5) -> Drug 5 | R22: 7 | S22: 0 | T22: 0 | U22: 0 | V22: 0 | W22: 0 | X22: 0 | Y22: 0 | Z22: 0 | AA22: 0 | AB22: 0
B23: =IF(Namedrug6="","Drug 6",Namedrug6) -> Drug 6 | R23: 8 | S23: 0 | T23: 0 | U23: 0 | V23: 0 | W23: 0 | X23: 0 | Y23: 0 | Z23: 0 | AA23: 0 | AB23: 0
B24: =IF(Namedrug7="","Drug 7",Namedrug7) -> Drug 7 | R24: 9 | S24: 0 | T24: 0 | U24: 0 | V24: 0 | W24: 0 | X24: 0 | Y24: 0 | Z24: 0 | AA24: 0 | AB24: 0
B25: =IF(Namedrug8="","Drug 8",Namedrug8) -> Drug 8 | R25: 10 | S25: 0 | T25: 0 | U25: 0 | V25: 0 | W25: 0 | X25: 0 | Y25: 0 | Z25: 0 | AA25: 0 | AB25: 0
B26: =IF(Namedrug9="","Drug 9",Namedrug9) -> Drug 9 | R26: 11 | S26: 0 | T26: 0 | U26: 0 | V26: 0 | W26: 0 | X26: 0 | Y26: 0 | Z26: 0 | AA26: 0 | AB26: 0
B27: =IF(Namedrug10="","Drug 10",Namedrug10) -> Drug 10 | R27: 12 | S27: 0 | T27: 0 | U27: 0 | V27: 0 | W27: 0 | X27: 0 | Y27: 0 | Z27: 0 | AA27: 0 | AB27: =IF(Q27=0,$F27,Q27) -> 0
B31: =IF(Switch_Prev_Incidence="Prevalence","Not Applicable","Average per patient cost of subsequent therapies in the second year after initiating the following therapies:") -> Average per patient cost of subsequent therapies in the second year after initiating the following therapies: | F31: pan-Canadian | H31: Newfoundland and Labrador | I31: Prince Edward Island | J31: Nova Scotia | K31: New Brunswick | L31: Ontario | M31: Manitoba | N31: Saskatchewan | O31: Alberta | P31: British Columbia | Q31: NIHB | S31: =INDEX('Data store'!$B$19:$K$19,1,MATCH(H14,'Data store'!$B$18:$K$18,0)) -> 1 | T31: =INDEX('Data store'!$B$19:$K$19,1,MATCH(I14,'Data store'!$B$18:$K$18,0)) -> 2 | U31: =INDEX('Data store'!$B$19:$K$19,1,MATCH(J14,'Data store'!$B$18:$K$18,0)) -> 3 | V31: =INDEX('Data store'!$B$19:$K$19,1,MATCH(K14,'Data store'!$B$18:$K$18,0)) -> 4 | W31: =INDEX('Data store'!$B$19:$K$19,1,MATCH(L14,'Data store'!$B$18:$K$18,0)) -> 5 | X31: =INDEX('Data store'!$B$19:$K$19,1,MATCH(M14,'Data store'!$B$18:$K$18,0)) -> 6 | Y31: =INDEX('Data store'!$B$19:$K$19,1,MATCH(N14,'Data store'!$B$18:$K$18,0)) -> 7 | Z31: =INDEX('Data store'!$B$19:$K$19,1,MATCH(O14,'Data store'!$B$18:$K$18,0)) -> 8 | AA31: =INDEX('Data store'!$B$19:$K$19,1,MATCH(P14,'Data store'!$B$18:$K$18,0)) -> 9 | AB31: =INDEX('Data store'!$B$19:$K$19,1,MATCH(Q14,'Data store'!$B$18:$K$18,0)) -> 10
B32: =IF(Name_DUR="","Drug Under Review",Name_DUR) -> Drug Under Review | D32: If drug costs are expected to be jurisdictionally specific, fill in columns H to Q. If estimates are expected to be the same across all jurisdictions then only column F should be filled in as the default (pan-Canadian) value. | R32: 1 | S32: =IF(H32=0,$F32,H32) -> 0 | T32: =IF(I32=0,$F32,I32) -> 0 | U32: =IF(J32=0,$F32,J32) -> 0 | V32: =IF(K32=0,$F32,K32) -> 0 | W32: =IF(L32=0,$F32,L32) -> 0 | X32: =IF(M32=0,$F32,M32) -> 0 | Y32: =IF(N32=0,$F32,N32) -> 0 | Z32: =IF(O32=0,$F32,O32) -> 0 | AA32: =IF(P32=0,$F32,P32) -> 0 | AB32: =IF(Q32=0,$F32,Q32) -> 0
B33: Untreated | R33: 2 | S33: =IF(H33=0,$F33,H33) -> 0 | T33: 0 | U33: 0 | V33: 0 | W33: 0 | X33: 0 | Y33: 0 | Z33: 0 | AA33: 0 | AB33: 0
B34: =IF(Namedrug1="","Drug 1",Namedrug1) -> Drug 1 | R34: 3 | S34: =IF(H34=0,$F34,H34) -> 0 | T34: 0 | U34: 0 | V34: 0 | W34: 0 | X34: 0 | Y34: 0 | Z34: 0 | AA34: 0 | AB34: 0
B35: =IF(Namedrug2="","Drug 2",Namedrug2) -> Drug 2 | R35: 4 | S35: 0 | T35: 0 | U35: 0 | V35: 0 | W35: 0 | X35: 0 | Y35: 0 | Z35: 0 | AA35: 0 | AB35: 0
B36: =IF(Namedrug3="","Drug 3",Namedrug3) -> Drug 3 | R36: 5 | S36: 0 | T36: 0 | U36: 0 | V36: 0 | W36: 0 | X36: 0 | Y36: 0 | Z36: 0 | AA36: 0 | AB36: 0
B37: =IF(Namedrug4="","Drug 4",Namedrug4) -> Drug 4 | R37: 6 | S37: 0 | T37: 0 | U37: 0 | V37: 0 | W37: 0 | X37: 0 | Y37: 0 | Z37: 0 | AA37: 0 | AB37: 0
B38: =IF(Namedrug5="","Drug 5",Namedrug5) -> Drug 5 | R38: 7 | S38: 0 | T38: 0 | U38: 0 | V38: 0 | W38: 0 | X38: 0 | Y38: 0 | Z38: 0 | AA38: 0 | AB38: 0
B39: =IF(Namedrug6="","Drug 6",Namedrug6) -> Drug 6 | R39: 8 | S39: 0 | T39: 0 | U39: 0 | V39: 0 | W39: 0 | X39: 0 | Y39: 0 | Z39: 0 | AA39: 0 | AB39: 0
B40: =IF(Namedrug7="","Drug 7",Namedrug7) -> Drug 7 | R40: 9 | S40: 0 | T40: 0 | U40: 0 | V40: 0 | W40: 0 | X40: 0 | Y40: 0 | Z40: 0 | AA40: 0 | AB40: 0
B41: =IF(Namedrug8="","Drug 8",Namedrug8) -> Drug 8 | R41: 10 | S41: 0 | T41: 0 | U41: 0 | V41: 0 | W41: 0 | X41: 0 | Y41: 0 | Z41: 0 | AA41: 0 | AB41: 0
B42: =IF(Namedrug9="","Drug 9",Namedrug9) -> Drug 9 | R42: 11 | S42: 0 | T42: 0 | U42: 0 | V42: 0 | W42: 0 | X42: 0 | Y42: 0 | Z42: 0 | AA42: 0 | AB42: 0
B43: =IF(Namedrug10="","Drug 10",Namedrug10) -> Drug 10 | R43: 12 | S43: 0 | T43: 0 | U43: 0 | V43: 0 | W43: 0 | X43: 0 | Y43: 0 | Z43: 0 | AA43: 0 | AB43: =IF(Q43=0,$F43,Q43) -> 0
B47: =IF(Switch_Prev_Incidence="Prevalence","Not Applicable","Average per patient cost of subsequent therapies in the third year after initiating the following therapies:") -> Average per patient cost of subsequent therapies in the third year after initiating the following therapies: | F47: pan-Canadian | H47: Newfoundland and Labrador | I47: Prince Edward Island | J47: Nova Scotia | K47: New Brunswick | L47: Ontario | M47: Manitoba | N47: Saskatchewan | O47: Alberta | P47: British Columbia | Q47: NIHB | S47: =INDEX('Data store'!$B$19:$K$19,1,MATCH(H14,'Data store'!$B$18:$K$18,0)) -> 1 | T47: =INDEX('Data store'!$B$19:$K$19,1,MATCH(I14,'Data store'!$B$18:$K$18,0)) -> 2 | U47: =INDEX('Data store'!$B$19:$K$19,1,MATCH(J14,'Data store'!$B$18:$K$18,0)) -> 3 | V47: =INDEX('Data store'!$B$19:$K$19,1,MATCH(K14,'Data store'!$B$18:$K$18,0)) -> 4 | W47: =INDEX('Data store'!$B$19:$K$19,1,MATCH(L14,'Data store'!$B$18:$K$18,0)) -> 5 | X47: =INDEX('Data store'!$B$19:$K$19,1,MATCH(M14,'Data store'!$B$18:$K$18,0)) -> 6 | Y47: =INDEX('Data store'!$B$19:$K$19,1,MATCH(N14,'Data store'!$B$18:$K$18,0)) -> 7 | Z47: =INDEX('Data store'!$B$19:$K$19,1,MATCH(O14,'Data store'!$B$18:$K$18,0)) -> 8 | AA47: =INDEX('Data store'!$B$19:$K$19,1,MATCH(P14,'Data store'!$B$18:$K$18,0)) -> 9 | AB47: =INDEX('Data store'!$B$19:$K$19,1,MATCH(Q14,'Data store'!$B$18:$K$18,0)) -> 10
B48: =IF(Name_DUR="","Drug Under Review",Name_DUR) -> Drug Under Review | D48: If drug costs are expected to be jurisdictionally specific, fill in columns H to Q. If estimates are expected to be the same across all jurisdictions then only column F should be filled in as the default (pan-Canadian) value. | R48: 1 | S48: =IF(H48=0,$F48,H48) -> 0 | T48: =IF(I48=0,$F48,I48) -> 0 | U48: =IF(J48=0,$F48,J48) -> 0 | V48: =IF(K48=0,$F48,K48) -> 0 | W48: =IF(L48=0,$F48,L48) -> 0 | X48: =IF(M48=0,$F48,M48) -> 0 | Y48: =IF(N48=0,$F48,N48) -> 0 | Z48: =IF(O48=0,$F48,O48) -> 0 | AA48: =IF(P48=0,$F48,P48) -> 0 | AB48: =IF(Q48=0,$F48,Q48) -> 0
B49: Untreated | R49: 2 | S49: =IF(H49=0,$F49,H49) -> 0 | T49: 0 | U49: 0 | V49: 0 | W49: 0 | X49: 0 | Y49: 0 | Z49: 0 | AA49: 0 | AB49: 0
B50: =IF(Namedrug1="","Drug 1",Namedrug1) -> Drug 1 | R50: 3 | S50: =IF(H50=0,$F50,H50) -> 0 | T50: 0 | U50: 0 | V50: 0 | W50: 0 | X50: 0 | Y50: 0 | Z50: 0 | AA50: 0 | AB50: 0
B51: =IF(Namedrug2="","Drug 2",Namedrug2) -> Drug 2 | R51: 4 | S51: 0 | T51: 0 | U51: 0 | V51: 0 | W51: 0 | X51: 0 | Y51: 0 | Z51: 0 | AA51: 0 | AB51: 0
B52: =IF(Namedrug3="","Drug 3",Namedrug3) -> Drug 3 | R52: 5 | S52: 0 | T52: 0 | U52: 0 | V52: 0 | W52: 0 | X52: 0 | Y52: 0 | Z52: 0 | AA52: 0 | AB52: 0
B53: =IF(Namedrug4="","Drug 4",Namedrug4) -> Drug 4 | R53: 6 | S53: 0 | T53: 0 | U53: 0 | V53: 0 | W53: 0 | X53: 0 | Y53: 0 | Z53: 0 | AA53: 0 | AB53: 0
B54: =IF(Namedrug5="","Drug 5",Namedrug5) -> Drug 5 | R54: 7 | S54: 0 | T54: 0 | U54: 0 | V54: 0 | W54: 0 | X54: 0 | Y54: 0 | Z54: 0 | AA54: 0 | AB54: 0
B55: =IF(Namedrug6="","Drug 6",Namedrug6) -> Drug 6 | R55: 8 | S55: 0 | T55: 0 | U55: 0 | V55: 0 | W55: 0 | X55: 0 | Y55: 0 | Z55: 0 | AA55: 0 | AB55: 0
B56: =IF(Namedrug7="","Drug 7",Namedrug7) -> Drug 7 | R56: 9 | S56: 0 | T56: 0 | U56: 0 | V56: 0 | W56: 0 | X56: 0 | Y56: 0 | Z56: 0 | AA56: 0 | AB56: 0
B57: =IF(Namedrug8="","Drug 8",Namedrug8) -> Drug 8 | R57: 10 | S57: 0 | T57: 0 | U57: 0 | V57: 0 | W57: 0 | X57: 0 | Y57: 0 | Z57: 0 | AA57: 0 | AB57: 0
B58: =IF(Namedrug9="","Drug 9",Namedrug9) -> Drug 9 | R58: 11 | S58: 0 | T58: 0 | U58: 0 | V58: 0 | W58: 0 | X58: 0 | Y58: 0 | Z58: 0 | AA58: 0 | AB58: 0
B59: =IF(Namedrug10="","Drug 10",Namedrug10) -> Drug 10 | R59: 12 | S59: 0 | T59: 0 | U59: 0 | V59: 0 | W59: 0 | X59: 0 | Y59: 0 | Z59: 0 | AA59: 0 | AB59: =IF(Q59=0,$F59,Q59) -> 0
B63: =IF(Switch_Prev_Incidence="Prevalence","Not Applicable","Average per patient cost of subsequent therapies in the fourth year after initiating the following therapies:") -> Average per patient cost of subsequent therapies in the fourth year after initiating the following therapies: | F63: pan-Canadian | H63: Newfoundland and Labrador | I63: Prince Edward Island | J63: Nova Scotia | K63: New Brunswick | L63: Ontario | M63: Manitoba | N63: Saskatchewan | O63: Alberta | P63: British Columbia | Q63: NIHB | S63: =INDEX('Data store'!$B$19:$K$19,1,MATCH(H14,'Data store'!$B$18:$K$18,0)) -> 1 | T63: =INDEX('Data store'!$B$19:$K$19,1,MATCH(I14,'Data store'!$B$18:$K$18,0)) -> 2 | U63: =INDEX('Data store'!$B$19:$K$19,1,MATCH(J14,'Data store'!$B$18:$K$18,0)) -> 3 | V63: =INDEX('Data store'!$B$19:$K$19,1,MATCH(K14,'Data store'!$B$18:$K$18,0)) -> 4 | W63: =INDEX('Data store'!$B$19:$K$19,1,MATCH(L14,'Data store'!$B$18:$K$18,0)) -> 5 | X63: =INDEX('Data store'!$B$19:$K$19,1,MATCH(M14,'Data store'!$B$18:$K$18,0)) -> 6 | Y63: =INDEX('Data store'!$B$19:$K$19,1,MATCH(N14,'Data store'!$B$18:$K$18,0)) -> 7 | Z63: =INDEX('Data store'!$B$19:$K$19,1,MATCH(O14,'Data store'!$B$18:$K$18,0)) -> 8 | AA63: =INDEX('Data store'!$B$19:$K$19,1,MATCH(P14,'Data store'!$B$18:$K$18,0)) -> 9 | AB63: =INDEX('Data store'!$B$19:$K$19,1,MATCH(Q14,'Data store'!$B$18:$K$18,0)) -> 10
B64: =IF(Name_DUR="","Drug Under Review",Name_DUR) -> Drug Under Review | D64: If drug costs are expected to be jurisdictionally specific, fill in columns H to Q. If estimates are expected to be the same across all jurisdictions then only column F should be filled in as the default (pan-Canadian) value. | R64: 1 | S64: =IF(H64=0,$F64,H64) -> 0 | T64: =IF(I64=0,$F64,I64) -> 0 | U64: =IF(J64=0,$F64,J64) -> 0 | V64: =IF(K64=0,$F64,K64) -> 0 | W64: =IF(L64=0,$F64,L64) -> 0 | X64: =IF(M64=0,$F64,M64) -> 0 | Y64: =IF(N64=0,$F64,N64) -> 0 | Z64: =IF(O64=0,$F64,O64) -> 0 | AA64: =IF(P64=0,$F64,P64) -> 0 | AB64: =IF(Q64=0,$F64,Q64) -> 0
B65: Untreated | R65: 2 | S65: =IF(H65=0,$F65,H65) -> 0 | T65: 0 | U65: 0 | V65: 0 | W65: 0 | X65: 0 | Y65: 0 | Z65: 0 | AA65: 0 | AB65: 0
B66: =IF(Namedrug1="","Drug 1",Namedrug1) -> Drug 1 | R66: 3 | S66: =IF(H66=0,$F66,H66) -> 0 | T66: 0 | U66: 0 | V66: 0 | W66: 0 | X66: 0 | Y66: 0 | Z66: 0 | AA66: 0 | AB66: 0
B67: =IF(Namedrug2="","Drug 2",Namedrug2) -> Drug 2 | R67: 4 | S67: 0 | T67: 0 | U67: 0 | V67: 0 | W67: 0 | X67: 0 | Y67: 0 | Z67: 0 | AA67: 0 | AB67: 0
B68: =IF(Namedrug3="","Drug 3",Namedrug3) -> Drug 3 | R68: 5 | S68: 0 | T68: 0 | U68: 0 | V68: 0 | W68: 0 | X68: 0 | Y68: 0 | Z68: 0 | AA68: 0 | AB68: 0
B69: =IF(Namedrug4="","Drug 4",Namedrug4) -> Drug 4 | R69: 6 | S69: 0 | T69: 0 | U69: 0 | V69: 0 | W69: 0 | X69: 0 | Y69: 0 | Z69: 0 | AA69: 0 | AB69: 0
B70: =IF(Namedrug5="","Drug 5",Namedrug5) -> Drug 5 | R70: 7 | S70: 0 | T70: 0 | U70: 0 | V70: 0 | W70: 0 | X70: 0 | Y70: 0 | Z70: 0 | AA70: 0 | AB70: 0
B71: =IF(Namedrug6="","Drug 6",Namedrug6) -> Drug 6 | R71: 8 | S71: 0 | T71: 0 | U71: 0 | V71: 0 | W71: 0 | X71: 0 | Y71: 0 | Z71: 0 | AA71: 0 | AB71: 0
B72: =IF(Namedrug7="","Drug 7",Namedrug7) -> Drug 7 | R72: 9 | S72: 0 | T72: 0 | U72: 0 | V72: 0 | W72: 0 | X72: 0 | Y72: 0 | Z72: 0 | AA72: 0 | AB72: 0
B73: =IF(Namedrug8="","Drug 8",Namedrug8) -> Drug 8 | R73: 10 | S73: 0 | T73: 0 | U73: 0 | V73: 0 | W73: 0 | X73: 0 | Y73: 0 | Z73: 0 | AA73: 0 | AB73: 0
B74: =IF(Namedrug9="","Drug 9",Namedrug9) -> Drug 9 | R74: 11 | S74: 0 | T74: 0 | U74: 0 | V74: 0 | W74: 0 | X74: 0 | Y74: 0 | Z74: 0 | AA74: 0 | AB74: 0
B75: =IF(Namedrug10="","Drug 10",Namedrug10) -> Drug 10 | R75: 12 | S75: 0 | T75: 0 | U75: 0 | V75: 0 | W75: 0 | X75: 0 | Y75: 0 | Z75: 0 | AA75: 0 | AB75: =IF(Q75=0,$F75,Q75) -> 0
B79: =IF(Switch_Prev_Incidence="Prevalence","Not Applicable","Average per patient cost of subsequent therapies in the fifth year after initiating the following therapies:") -> Average per patient cost of subsequent therapies in the fifth year after initiating the following therapies: | F79: pan-Canadian | H79: Newfoundland and Labrador | I79: Prince Edward Island | J79: Nova Scotia | K79: New Brunswick | L79: Ontario | M79: Manitoba | N79: Saskatchewan | O79: Alberta | P79: British Columbia | Q79: NIHB | S79: =INDEX('Data store'!$B$19:$K$19,1,MATCH(H14,'Data store'!$B$18:$K$18,0)) -> 1 | T79: =INDEX('Data store'!$B$19:$K$19,1,MATCH(I14,'Data store'!$B$18:$K$18,0)) -> 2 | U79: =INDEX('Data store'!$B$19:$K$19,1,MATCH(J14,'Data store'!$B$18:$K$18,0)) -> 3 | V79: =INDEX('Data store'!$B$19:$K$19,1,MATCH(K14,'Data store'!$B$18:$K$18,0)) -> 4 | W79: =INDEX('Data store'!$B$19:$K$19,1,MATCH(L14,'Data store'!$B$18:$K$18,0)) -> 5 | X79: =INDEX('Data store'!$B$19:$K$19,1,MATCH(M14,'Data store'!$B$18:$K$18,0)) -> 6 | Y79: =INDEX('Data store'!$B$19:$K$19,1,MATCH(N14,'Data store'!$B$18:$K$18,0)) -> 7 | Z79: =INDEX('Data store'!$B$19:$K$19,1,MATCH(O14,'Data store'!$B$18:$K$18,0)) -> 8 | AA79: =INDEX('Data store'!$B$19:$K$19,1,MATCH(P14,'Data store'!$B$18:$K$18,0)) -> 9 | AB79: =INDEX('Data store'!$B$19:$K$19,1,MATCH(Q14,'Data store'!$B$18:$K$18,0)) -> 10
B80: =IF(Name_DUR="","Drug Under Review",Name_DUR) -> Drug Under Review | D80: If drug costs are expected to be jurisdictionally specific, fill in columns H to Q. If estimates are expected to be the same across all jurisdictions then only column F should be filled in as the default (pan-Canadian) value. | R80: 1 | S80: =IF(H80=0,$F80,H80) -> 0 | T80: =IF(I80=0,$F80,I80) -> 0 | U80: =IF(J80=0,$F80,J80) -> 0 | V80: =IF(K80=0,$F80,K80) -> 0 | W80: =IF(L80=0,$F80,L80) -> 0 | X80: =IF(M80=0,$F80,M80) -> 0 | Y80: =IF(N80=0,$F80,N80) -> 0 | Z80: =IF(O80=0,$F80,O80) -> 0 | AA80: =IF(P80=0,$F80,P80) -> 0 | AB80: =IF(Q80=0,$F80,Q80) -> 0
B81: Untreated | R81: 2 | S81: =IF(H81=0,$F81,H81) -> 0 | T81: 0 | U81: 0 | V81: 0 | W81: 0 | X81: 0 | Y81: 0 | Z81: 0 | AA81: 0 | AB81: 0
B82: =IF(Namedrug1="","Drug 1",Namedrug1) -> Drug 1 | R82: 3 | S82: =IF(H82=0,$F82,H82) -> 0 | T82: 0 | U82: 0 | V82: 0 | W82: 0 | X82: 0 | Y82: 0 | Z82: 0 | AA82: 0 | AB82: 0
B83: =IF(Namedrug2="","Drug 2",Namedrug2) -> Drug 2 | R83: 4 | S83: 0 | T83: 0 | U83: 0 | V83: 0 | W83: 0 | X83: 0 | Y83: 0 | Z83: 0 | AA83: 0 | AB83: 0
B84: =IF(Namedrug3="","Drug 3",Namedrug3) -> Drug 3 | R84: 5 | S84: 0 | T84: 0 | U84: 0 | V84: 0 | W84: 0 | X84: 0 | Y84: 0 | Z84: 0 | AA84: 0 | AB84: 0
B85: =IF(Namedrug4="","Drug 4",Namedrug4) -> Drug 4 | R85: 6 | S85: 0 | T85: 0 | U85: 0 | V85: 0 | W85: 0 | X85: 0 | Y85: 0 | Z85: 0 | AA85: 0 | AB85: 0
B86: =IF(Namedrug5="","Drug 5",Namedrug5) -> Drug 5 | R86: 7 | S86: 0 | T86: 0 | U86: 0 | V86: 0 | W86: 0 | X86: 0 | Y86: 0 | Z86: 0 | AA86: 0 | AB86: 0
B87: =IF(Namedrug6="","Drug 6",Namedrug6) -> Drug 6 | R87: 8 | S87: 0 | T87: 0 | U87: 0 | V87: 0 | W87: 0 | X87: 0 | Y87: 0 | Z87: 0 | AA87: 0 | AB87: 0
B88: =IF(Namedrug7="","Drug 7",Namedrug7) -> Drug 7 | R88: 9 | S88: 0 | T88: 0 | U88: 0 | V88: 0 | W88: 0 | X88: 0 | Y88: 0 | Z88: 0 | AA88: 0 | AB88: 0
B89: =IF(Namedrug8="","Drug 8",Namedrug8) -> Drug 8 | R89: 10 | S89: 0 | T89: 0 | U89: 0 | V89: 0 | W89: 0 | X89: 0 | Y89: 0 | Z89: 0 | AA89: 0 | AB89: 0
B90: =IF(Namedrug9="","Drug 9",Namedrug9) -> Drug 9 | R90: 11 | S90: 0 | T90: 0 | U90: 0 | V90: 0 | W90: 0 | X90: 0 | Y90: 0 | Z90: 0 | AA90: 0 | AB90: 0
B91: =IF(Namedrug10="","Drug 10",Namedrug10) -> Drug 10 | R91: 12 | S91: 0 | T91: 0 | U91: 0 | V91: 0 | W91: 0 | X91: 0 | Y91: 0 | Z91: 0 | AA91: 0 | AB91: =IF(Q91=0,$F91,Q91) -> 0

Sheet Inputs-Administration Costs
B4: Inputs - Administration Costs
B6: Step 7. Enter administration costs (if applicable)
B7: If relevant, this sheet allows users to specify additional costs associated with treatment administration. If an incidence-based model is conducted, the user should specify what the expected administration cost is and what the frequency of administrations is each year from starting the original therapy. This takes into account discontinuation. Over time, treatment frequency may change due to treatment discontinuation. If, for example, 100% of patients discontinued treatment before year 2, the number of administrations in year 2 onward would be 0 (e.g., as is the case for 1-time therapies such as CAR T-cell therapy). If a prevalence-based model is conducted, the user should specify the “average” administration frequency, taking into account how long the average patient is expected to have been on therapy for. The tool assumes the drug under review is currently not funded, therefore all new cases represent individuals’ first year on treatment, which allows administration frequency to be tracked over time. This assumes minimal discontinuation over time. If there are high rates of discontinuation, these costs may not be accurately measured using a prevalence-based approach.
B10: Parameter | D10: Notes | F10: User Input | S10: Reference
B12: Are there any healthcare resources associated with administration? | D12: If "No", please proceed to next sheet
F13: =IF(Switch_AdminCosts="No","Proceed to next sheet","") -> 
B14: Costs associated with administration (per administration) | V14: Newfoundland and Labrador | W14: Prince Edward Island | X14: Nova Scotia | Y14: New Brunswick | Z14: Ontario | AA14: Manitoba | AB14: Saskatchewan | AC14: Alberta | AD14: British Columbia | AE14: NIHB
F15: pan-Canadian | H15: Newfoundland and Labrador | I15: Prince Edward Island | J15: Nova Scotia | K15: New Brunswick | L15: Ontario | M15: Manitoba | N15: Saskatchewan | O15: Alberta | P15: British Columbia | Q15: NIHB | V15: 1 | W15: 2 | X15: 3 | Y15: 4 | Z15: 5 | AA15: 6 | AB15: 7 | AC15: 8 | AD15: 9 | AE15: 10
B16: =IF(Name_DUR="","Drug Under Review",Name_DUR) -> Drug Under Review | D16: If administration costs are expected to be jurisdictionally specific, fill in columns H to Q. If estimates are expected to be the same across all jurisdictions then only column F should be filled in as the default (pan-Canadian) value. | T16: 1 | U16: =B16 -> Drug Under Review | V16: =IF(ISBLANK(H16)=TRUE,$F16,H16) -> 0 | W16: =IF($F16=0,IF(I16=0,0,I16),IF(I16>0,I16,$F16)) -> 0 | X16: 0 | Y16: 0 | Z16: 0 | AA16: 0 | AB16: 0 | AC16: 0 | AD16: 0 | AE16: 0
B17: Untreated | T17: 2 | V17: =IF($F17=0,IF(H17=0,0,H17),IF(H17>0,H17,$F17)) -> 0 | W17: 0 | X17: 0 | Y17: 0 | Z17: 0 | AA17: 0 | AB17: 0 | AC17: 0 | AD17: 0 | AE17: 0
B18: =IF(Namedrug1="","Drug 1",Namedrug1) -> Drug 1 | T18: 3 | U18: =B18 -> Drug 1 | V18: =IF($F18=0,IF(H18=0,0,H18),IF(H18>0,H18,$F18)) -> 0 | W18: 0 | X18: 0 | Y18: 0 | Z18: 0 | AA18: 0 | AB18: 0 | AC18: 0 | AD18: 0 | AE18: 0
B19: =IF(Namedrug2="","Drug 2",Namedrug2) -> Drug 2 | T19: 4 | U19: Drug 2 | V19: =IF($F19=0,IF(H19=0,0,H19),IF(H19>0,H19,$F19)) -> 0 | W19: =IF($F19=0,IF(I19=0,0,I19),IF(I19>0,I19,$F19)) -> 0 | X19: =IF($F19=0,IF(J19=0,0,J19),IF(J19>0,J19,$F19)) -> 0 | Y19: 0 | Z19: 0 | AA19: 0 | AB19: 0 | AC19: 0 | AD19: 0 | AE19: 0
B20: =IF(Namedrug3="","Drug 3",Namedrug3) -> Drug 3 | T20: 5 | U20: Drug 3 | V20: 0 | W20: 0 | X20: 0 | Y20: 0 | Z20: 0 | AA20: 0 | AB20: 0 | AC20: 0 | AD20: 0 | AE20: 0
B21: =IF(Namedrug4="","Drug 4",Namedrug4) -> Drug 4 | T21: 6 | U21: Drug 4 | V21: 0 | W21: =IF($F21=0,IF(I21=0,0,I21),IF(I21>0,I21,$F21)) -> 0 | X21: 0 | Y21: 0 | Z21: 0 | AA21: 0 | AB21: 0 | AC21: 0 | AD21: 0 | AE21: 0
B22: =IF(Namedrug5="","Drug 5",Namedrug5) -> Drug 5 | T22: 7 | U22: Drug 5 | V22: 0 | W22: 0 | X22: 0 | Y22: 0 | Z22: 0 | AA22: 0 | AB22: 0 | AC22: 0 | AD22: 0 | AE22: 0
B23: =IF(Namedrug6="","Drug 6",Namedrug6) -> Drug 6 | T23: 8 | U23: Drug 6 | V23: 0 | W23: 0 | X23: 0 | Y23: 0 | Z23: 0 | AA23: 0 | AB23: 0 | AC23: 0 | AD23: 0 | AE23: 0
B24: =IF(Namedrug7="","Drug 7",Namedrug7) -> Drug 7 | T24: 9 | U24: Drug 7 | V24: 0 | W24: 0 | X24: 0 | Y24: 0 | Z24: 0 | AA24: 0 | AB24: 0 | AC24: 0 | AD24: 0 | AE24: 0
B25: =IF(Namedrug8="","Drug 8",Namedrug8) -> Drug 8 | T25: 10 | U25: Drug 8 | V25: 0 | W25: 0 | X25: 0 | Y25: 0 | Z25: 0 | AA25: 0 | AB25: 0 | AC25: 0 | AD25: 0 | AE25: 0
B26: =IF(Namedrug9="","Drug 9",Namedrug9) -> Drug 9 | T26: 11 | U26: Drug 9 | V26: 0 | W26: 0 | X26: 0 | Y26: 0 | Z26: 0 | AA26: 0 | AB26: 0 | AC26: 0 | AD26: 0 | AE26: 0
B27: =IF(Namedrug10="","Drug 10",Namedrug10) -> Drug 10 | T27: 12 | U27: Drug 10 | V27: 0 | W27: 0 | X27: 0 | Y27: 0 | Z27: 0 | AA27: 0 | AB27: 0 | AC27: 0 | AD27: 0 | AE27: 0
B29: Administration frequency
F30: Number of administrations in year 1 | G30: =CONCATENATE(IF(Switch_Prev_Incidence="Prevalence","Number of administrations in subsequent years","Number of administrations in year 2")) -> Number of administrations in year 2 | H30: =CONCATENATE(IF(Switch_Prev_Incidence="Prevalence","NA in a prevalence based model","Number of administrations in year 3")) -> Number of administrations in year 3 | I30: =CONCATENATE(IF(Switch_Prev_Incidence="Prevalence","NA in a prevalence based model",IF(Switch_TH>3,"Number of administrations in year 4","NA"))) -> NA | J30: =CONCATENATE(IF(Switch_Prev_Incidence="Prevalence","NA in a prevalence based model",IF(Switch_TH>4,"Number of administrations in year 5","NA"))) -> NA
B31: =IF(Name_DUR="","Drug Under Review",Name_DUR) -> Drug Under Review | D31: In a prevalence based model time on treatment for comparator drugs is unknown which is why administration frequency only applies to 'subsequent' years for comparator treatments. This number should therefore be a weighted average of administration frequencies across all years. In an incidence based model administration frequency per year should account for treatment discontinuation due to treatment failure or death for example.
B32: Untreated
B33: =IF(Namedrug1="","Drug 1",Namedrug1) -> Drug 1
B34: =IF(Namedrug2="","Drug 2",Namedrug2) -> Drug 2
B35: =IF(Namedrug3="","Drug 3",Namedrug3) -> Drug 3
B36: =IF(Namedrug4="","Drug 4",Namedrug4) -> Drug 4
B37: =IF(Namedrug5="","Drug 5",Namedrug5) -> Drug 5
B38: =IF(Namedrug6="","Drug 6",Namedrug6) -> Drug 6
B39: =IF(Namedrug7="","Drug 7",Namedrug7) -> Drug 7
B40: =IF(Namedrug8="","Drug 8",Namedrug8) -> Drug 8
B41: =IF(Namedrug9="","Drug 9",Namedrug9) -> Drug 9
B42: =IF(Namedrug10="","Drug 10",Namedrug10) -> Drug 10

Sheet Inputs-Companion Diagnostic
B4: =IF(Switch_CompanionDiag="Yes","Inputs - Companion Diagnostic Costs","Not applicable - proceed to next sheet") -> Not applicable - proceed to next sheet
B6: Step 8. Enter testing costs (if applicable)
B7: If relevant, this sheet allows users to specify additional costs associated with a companion diagnostic required to fund the drug under review
B9: Parameter | D9: Notes | F9: User Input | S9: Reference
H11: Newfoundland and Labrador | I11: Prince Edward Island | J11: Nova Scotia | K11: New Brunswick | L11: Ontario | M11: Manitoba | N11: Saskatchewan | O11: Alberta | P11: British Columbia | Q11: NIHB
B12: Size of the population eligible for testing in baseline year | D12: No user input is required here but the size of the population elgible for testing is shown to the right based on what percentage of individuals with the disease under review are eligible for testing and the size of the incident/prevalent cohort specified in the 'Inputs - Market Size' sheet. | H12: ='Inputs-Market Size'!H123 -> 0 | I12: ='Inputs-Market Size'!I123 -> 0 | J12: ='Inputs-Market Size'!J123 -> 0 | K12: ='Inputs-Market Size'!K123 -> 0 | L12: ='Inputs-Market Size'!L123 -> 0 | M12: ='Inputs-Market Size'!M123 -> 0 | N12: ='Inputs-Market Size'!N123 -> 0 | O12: ='Inputs-Market Size'!O123 -> 0 | P12: ='Inputs-Market Size'!P123 -> 0 | Q12: ='Inputs-Market Size'!Q123 -> 0
B13: Size of the population eligible for testing in year 1 | H13: ='Inputs-Market Size'!H124 -> 0 | I13: ='Inputs-Market Size'!I124 -> 0 | J13: ='Inputs-Market Size'!J124 -> 0 | K13: ='Inputs-Market Size'!K124 -> 0 | L13: ='Inputs-Market Size'!L124 -> 0 | M13: ='Inputs-Market Size'!M124 -> 0 | N13: ='Inputs-Market Size'!N124 -> 0 | O13: ='Inputs-Market Size'!O124 -> 0 | P13: ='Inputs-Market Size'!P124 -> 0 | Q13: ='Inputs-Market Size'!Q124 -> 0
B14: Size of the population eligible for testing in year 2 | H14: ='Inputs-Market Size'!H125 -> 0 | I14: ='Inputs-Market Size'!I125 -> 0 | J14: ='Inputs-Market Size'!J125 -> 0 | K14: ='Inputs-Market Size'!K125 -> 0 | L14: ='Inputs-Market Size'!L125 -> 0 | M14: ='Inputs-Market Size'!M125 -> 0 | N14: ='Inputs-Market Size'!N125 -> 0 | O14: ='Inputs-Market Size'!O125 -> 0 | P14: ='Inputs-Market Size'!P125 -> 0 | Q14: ='Inputs-Market Size'!Q125 -> 0
B15: Size of the population eligible for testing in year 3 | H15: ='Inputs-Market Size'!H126 -> 0 | I15: ='Inputs-Market Size'!I126 -> 0 | J15: ='Inputs-Market Size'!J126 -> 0 | K15: ='Inputs-Market Size'!K126 -> 0 | L15: ='Inputs-Market Size'!L126 -> 0 | M15: ='Inputs-Market Size'!M126 -> 0 | N15: ='Inputs-Market Size'!N126 -> 0 | O15: ='Inputs-Market Size'!O126 -> 0 | P15: ='Inputs-Market Size'!P126 -> 0 | Q15: ='Inputs-Market Size'!Q126 -> 0
B16: Size of the population eligible for testing in year 4 | H16: ='Inputs-Market Size'!H127 -> 0 | I16: ='Inputs-Market Size'!I127 -> 0 | J16: ='Inputs-Market Size'!J127 -> 0 | K16: ='Inputs-Market Size'!K127 -> 0 | L16: ='Inputs-Market Size'!L127 -> 0 | M16: ='Inputs-Market Size'!M127 -> 0 | N16: ='Inputs-Market Size'!N127 -> 0 | O16: ='Inputs-Market Size'!O127 -> 0 | P16: ='Inputs-Market Size'!P127 -> 0 | Q16: ='Inputs-Market Size'!Q127 -> 0
B17: Size of the population eligible for testing in year 5 | H17: ='Inputs-Market Size'!H128 -> 0 | I17: ='Inputs-Market Size'!I128 -> 0 | J17: ='Inputs-Market Size'!J128 -> 0 | K17: ='Inputs-Market Size'!K128 -> 0 | L17: ='Inputs-Market Size'!L128 -> 0 | M17: ='Inputs-Market Size'!M128 -> 0 | N17: ='Inputs-Market Size'!N128 -> 0 | O17: ='Inputs-Market Size'!O128 -> 0 | P17: ='Inputs-Market Size'!P128 -> 0 | Q17: ='Inputs-Market Size'!Q128 -> 0
F18: pan-Canadian
V20: ='Inputs-Market Size'!U68 -> 0 | W20: ='Inputs-Market Size'!V68 -> 0 | X20: ='Inputs-Market Size'!W68 -> 0 | Y20: ='Inputs-Market Size'!X68 -> 0 | Z20: ='Inputs-Market Size'!Y68 -> 0 | AA20: ='Inputs-Market Size'!Z68 -> 0 | AB20: ='Inputs-Market Size'!AA68 -> 0 | AC20: ='Inputs-Market Size'!AB68 -> 0 | AD20: ='Inputs-Market Size'!AC68 -> 0 | AE20: ='Inputs-Market Size'!AD68 -> 0
B21: =CONCATENATE("In year 1 what % of patients eligible for testing will be tested if ",IF(Name_DUR="","Drug Under Review",Name_DUR), " is not funded") -> In year 1 what % of patients eligible for testing will be tested if Drug Under Review is not funded | V21: =IF(Switch_Testing="No",0%,IF(ISBLANK(H21)=TRUE,$F21,H21)) -> 0 | W21: 0 | X21: 0 | Y21: 0 | Z21: 0 | AA21: 0 | AB21: 0 | AC21: 0 | AD21: 0 | AE21: 0
B22: =CONCATENATE("In year 2 what % of patients eligible for testing will be tested if ",IF(Name_DUR="","Drug Under Review",Name_DUR), " is not funded") -> In year 2 what % of patients eligible for testing will be tested if Drug Under Review is not funded | V22: 0 | W22: 0 | X22: 0 | Y22: 0 | Z22: 0 | AA22: 0 | AB22: 0 | AC22: 0 | AD22: 0 | AE22: 0
B23: =CONCATENATE("In year 3 what % of patients eligible for testing will be tested if ",IF(Name_DUR="","Drug Under Review",Name_DUR), " is not funded") -> In year 3 what % of patients eligible for testing will be tested if Drug Under Review is not funded | V23: 0 | W23: 0 | X23: 0 | Y23: 0 | Z23: 0 | AA23: 0 | AB23: 0 | AC23: 0 | AD23: 0 | AE23: 0
B24: =CONCATENATE("In year 4 (if applicable) what % of patients eligible for testing will be tested if ",IF(Name_DUR="","Drug Under Review",Name_DUR), " is not funded") -> In year 4 (if applicable) what % of patients eligible for testing will be tested if Drug Under Review is not funded | V24: 0 | W24: 0 | X24: 0 | Y24: 0 | Z24: 0 | AA24: 0 | AB24: 0 | AC24: 0 | AD24: 0 | AE24: 0
B25: =CONCATENATE("In year 5 (if applicable) what % of patients eligible for testing will be tested if ",IF(Name_DUR="","Drug Under Review",Name_DUR), " is not funded") -> In year 5 (if applicable) what % of patients eligible for testing will be tested if Drug Under Review is not funded | V25: 0 | W25: 0 | X25: 0 | Y25: 0 | Z25: 0 | AA25: 0 | AB25: 0 | AC25: 0 | AD25: 0 | AE25: 0
B27: Cost of test | V27: =IF($F27=0,IF(H27=0,0,H27),IF(H27>0,H27,$F27)) -> 0 | W27: =IF($F27=0,IF(I27=0,0,I27),IF(I27>0,I27,$F27)) -> 0 | X27: 0 | Y27: 0 | Z27: 0 | AA27: 0 | AB27: 0 | AC27: 0 | AD27: 0 | AE27: 0

Sheet Results
B4: Results
B6: Select jurisdiction: | C6: pan Canadian
B8: Include drug costs? | C8: Yes
B9: Include subsequent drug costs? | C9: No
B10: Include testing costs? | C10: No
B11: Include administration costs? | C11: No
C13: Drug Costs Only Budget Impact Results-Summary
D15: Baseline | E15: Year 1 | F15: Year 2 | G15: Year 3 | H15: Year 4 | I15: Year 5 | J15: =CONCATENATE("Total across ", Switch_TH," Years") -> Total across Years
C16: Reference Scenario | D16: =D53 -> 0 | E16: =E53 -> 0 | F16: 0 | G16: 0 | H16: 0 | I16: 0 | J16: =SUM(E16:I16) -> 0
C17: New Drug Scenario | D17: =M53 -> 0 | E17: =N53 -> 0 | F17: 0 | G17: 0 | H17: 0 | I17: 0 | J17: =SUM(E17:I17) -> 0
C18: Net Budget Impact | D18: =D17-D16 -> 0 | E18: =E17-E16 -> 0 | F18: 0 | G18: 0 | H18: 0 | I18: 0 | J18: =SUM(E18:I18) -> 0
C19: *Note: Negative values reflect cost savings
C21: Patient Numbers
C23: Reference scenario | D23: Baseline | E23: Year 1 | F23: Year 2 | G23: Year 3 | H23: Year 4 | I23: Year 5 | L23: New Drug Scenario | M23: Baseline | N23: Year 1 | O23: Year 2 | P23: Year 3 | Q23: Year 4 | R23: Year 5
C24: =IF(Name_DUR="","Drug Under Review",Name_DUR) -> Drug Under Review | D24: =IF($C$6="British Columbia",'British Columbia'!K332, IF($C$6="Alberta",Alberta!K332, IF($C$6="Saskatchewan",Saskatchewan!K332, IF($C$6="Manitoba",Manitoba!K332, IF($C$6="Ontario",Ontario!K332, IF($C$6="New Brunswick",'New Brunswick'!K332, IF($C$6="Nova Scotia",'Nova Scotia'!K332, IF($C$6="Newfoundland and Labrador",'Newfoundland and Labrador'!K332, IF($C$6="Prince Edward Island",'Prince Edward Island'!K332, IF($C$6="NIHB",NIHB!K332, SUM('British Columbia'!K332, Alberta!K332, Saskatchewan!K332, Manitoba!K332, Ontario!K332, 'New Brunswick'!K332, 'Nova Scotia'!K332, 'Newfoundland and Labrador'!K332, 'Prince Edward Island'!K332, NIHB!K332, ) )))))))))) -> 0 | E24: =IF($C$6="British Columbia",'British Columbia'!L332, IF($C$6="Alberta",Alberta!L332, IF($C$6="Saskatchewan",Saskatchewan!L332, IF($C$6="Manitoba",Manitoba!L332, IF($C$6="Ontario",Ontario!L332, IF($C$6="New Brunswick",'New Brunswick'!L332, IF($C$6="Nova Scotia",'Nova Scotia'!L332, IF($C$6="Newfoundland and Labrador",'Newfoundland and Labrador'!L332, IF($C$6="Prince Edward Island",'Prince Edward Island'!L332, IF($C$6="NIHB",NIHB!L332, SUM('British Columbia'!L332, Alberta!L332, Saskatchewan!L332, Manitoba!L332, Ontario!L332, 'New Brunswick'!L332, 'Nova Scotia'!L332, 'Newfoundland and Labrador'!L332, 'Prince Edward Island'!L332, NIHB!L332, ) )))))))))) -> 0 | F24: =IF($C$6="British Columbia",'British Columbia'!M332, IF($C$6="Alberta",Alberta!M332, IF($C$6="Saskatchewan",Saskatchewan!M332, IF($C$6="Manitoba",Manitoba!M332, IF($C$6="Ontario",Ontario!M332, IF($C$6="New Brunswick",'New Brunswick'!M332, IF($C$6="Nova Scotia",'Nova Scotia'!M332, IF($C$6="Newfoundland and Labrador",'Newfoundland and Labrador'!M332, IF($C$6="Prince Edward Island",'Prince Edward Island'!M332, IF($C$6="NIHB",NIHB!M332, SUM('British Columbia'!M332, Alberta!M332, Saskatchewan!M332, Manitoba!M332, Ontario!M332, 'New Brunswick'!M332, 'Nova Scotia'!M332, 'Newfoundland and Labrador'!M332, 'Prince Edward Island'!M332, NIHB!M332, ) )))))))))) -> 0 | G24: =IF($C$6="British Columbia",'British Columbia'!N332, IF($C$6="Alberta",Alberta!N332, IF($C$6="Saskatchewan",Saskatchewan!N332, IF($C$6="Manitoba",Manitoba!N332, IF($C$6="Ontario",Ontario!N332, IF($C$6="New Brunswick",'New Brunswick'!N332, IF($C$6="Nova Scotia",'Nova Scotia'!N332, IF($C$6="Newfoundland and Labrador",'Newfoundland and Labrador'!N332, IF($C$6="Prince Edward Island",'Prince Edward Island'!N332, IF($C$6="NIHB",NIHB!N332, SUM('British Columbia'!N332, Alberta!N332, Saskatchewan!N332, Manitoba!N332, Ontario!N332, 'New Brunswick'!N332, 'Nova Scotia'!N332, 'Newfoundland and Labrador'!N332, 'Prince Edward Island'!N332, NIHB!N332, ) )))))))))) -> 0 | H24: =IF($C$6="British Columbia",'British Columbia'!O332, IF($C$6="Alberta",Alberta!O332, IF($C$6="Saskatchewan",Saskatchewan!O332, IF($C$6="Manitoba",Manitoba!O332, IF($C$6="Ontario",Ontario!O332, IF($C$6="New Brunswick",'New Brunswick'!O332, IF($C$6="Nova Scotia",'Nova Scotia'!O332, IF($C$6="Newfoundland and Labrador",'Newfoundland and Labrador'!O332, IF($C$6="Prince Edward Island",'Prince Edward Island'!O332, IF($C$6="NIHB",NIHB!O332, SUM('British Columbia'!O332, Alberta!O332, Saskatchewan!O332, Manitoba!O332, Ontario!O332, 'New Brunswick'!O332, 'Nova Scotia'!O332, 'Newfoundland and Labrador'!O332, 'Prince Edward Island'!O332, NIHB!O332, ) )))))))))) -> 0 | I24: =IF($C$6="British Columbia",'British Columbia'!P332, IF($C$6="Alberta",Alberta!P332, IF($C$6="Saskatchewan",Saskatchewan!P332, IF($C$6="Manitoba",Manitoba!P332, IF($C$6="Ontario",Ontario!P332, IF($C$6="New Brunswick",'New Brunswick'!P332, IF($C$6="Nova Scotia",'Nova Scotia'!P332, IF($C$6="Newfoundland and Labrador",'Newfoundland and Labrador'!P332, IF($C$6="Prince Edward Island",'Prince Edward Island'!P332, IF($C$6="NIHB",NIHB!P332, SUM('British Columbia'!P332, Alberta!P332, Saskatchewan!P332, Manitoba!P332, Ontario!P332, 'New Brunswick'!P332, 'Nova Scotia'!P332, 'Newfoundland and Labrador'!P332, 'Prince Edward Island'!P332, NIHB!P332, ) )))))))))) -> 0 | L24: =IF(Name_DUR="","Drug Under Review",Name_DUR) -> Drug Under Review | M24: =IF($C$6="British Columbia",'British Columbia'!S332, IF($C$6="Alberta",Alberta!S332, IF($C$6="Saskatchewan",Saskatchewan!S332, IF($C$6="Manitoba",Manitoba!S332, IF($C$6="Ontario",Ontario!S332, IF($C$6="New Brunswick",'New Brunswick'!S332, IF($C$6="Nova Scotia",'Nova Scotia'!S332, IF($C$6="Newfoundland and Labrador",'Newfoundland and Labrador'!S332, IF($C$6="Prince Edward Island",'Prince Edward Island'!S332, IF($C$6="NIHB",NIHB!S332, SUM('British Columbia'!S332, Alberta!S332, Saskatchewan!S332, Manitoba!S332, Ontario!S332, 'New Brunswick'!S332, 'Nova Scotia'!S332, 'Newfoundland and Labrador'!S332, 'Prince Edward Island'!S332, NIHB!S332, ) )))))))))) -> 0 | N24: =IF($C$6="British Columbia",'British Columbia'!T332, IF($C$6="Alberta",Alberta!T332, IF($C$6="Saskatchewan",Saskatchewan!T332, IF($C$6="Manitoba",Manitoba!T332, IF($C$6="Ontario",Ontario!T332, IF($C$6="New Brunswick",'New Brunswick'!T332, IF($C$6="Nova Scotia",'Nova Scotia'!T332, IF($C$6="Newfoundland and Labrador",'Newfoundland and Labrador'!T332, IF($C$6="Prince Edward Island",'Prince Edward Island'!T332, IF($C$6="NIHB",NIHB!T332, SUM('British Columbia'!T332, Alberta!T332, Saskatchewan!T332, Manitoba!T332, Ontario!T332, 'New Brunswick'!T332, 'Nova Scotia'!T332, 'Newfoundland and Labrador'!T332, 'Prince Edward Island'!T332, NIHB!T332, ) )))))))))) -> 0 | O24: =IF($C$6="British Columbia",'British Columbia'!U332, IF($C$6="Alberta",Alberta!U332, IF($C$6="Saskatchewan",Saskatchewan!U332, IF($C$6="Manitoba",Manitoba!U332, IF($C$6="Ontario",Ontario!U332, IF($C$6="New Brunswick",'New Brunswick'!U332, IF($C$6="Nova Scotia",'Nova Scotia'!U332, IF($C$6="Newfoundland and Labrador",'Newfoundland and Labrador'!U332, IF($C$6="Prince Edward Island",'Prince Edward Island'!U332, IF($C$6="NIHB",NIHB!U332, SUM('British Columbia'!U332, Alberta!U332, Saskatchewan!U332, Manitoba!U332, Ontario!U332, 'New Brunswick'!U332, 'Nova Scotia'!U332, 'Newfoundland and Labrador'!U332, 'Prince Edward Island'!U332, NIHB!U332, ) )))))))))) -> 0 | P24: =IF($C$6="British Columbia",'British Columbia'!V332, IF($C$6="Alberta",Alberta!V332, IF($C$6="Saskatchewan",Saskatchewan!V332, IF($C$6="Manitoba",Manitoba!V332, IF($C$6="Ontario",Ontario!V332, IF($C$6="New Brunswick",'New Brunswick'!V332, IF($C$6="Nova Scotia",'Nova Scotia'!V332, IF($C$6="Newfoundland and Labrador",'Newfoundland and Labrador'!V332, IF($C$6="Prince Edward Island",'Prince Edward Island'!V332, IF($C$6="NIHB",NIHB!V332, SUM('British Columbia'!V332, Alberta!V332, Saskatchewan!V332, Manitoba!V332, Ontario!V332, 'New Brunswick'!V332, 'Nova Scotia'!V332, 'Newfoundland and Labrador'!V332, 'Prince Edward Island'!V332, NIHB!V332, ) )))))))))) -> 0 | Q24: =IF($C$6="British Columbia",'British Columbia'!W332, IF($C$6="Alberta",Alberta!W332, IF($C$6="Saskatchewan",Saskatchewan!W332, IF($C$6="Manitoba",Manitoba!W332, IF($C$6="Ontario",Ontario!W332, IF($C$6="New Brunswick",'New Brunswick'!W332, IF($C$6="Nova Scotia",'Nova Scotia'!W332, IF($C$6="Newfoundland and Labrador",'Newfoundland and Labrador'!W332, IF($C$6="Prince Edward Island",'Prince Edward Island'!W332, IF($C$6="NIHB",NIHB!W332, SUM('British Columbia'!W332, Alberta!W332, Saskatchewan!W332, Manitoba!W332, Ontario!W332, 'New Brunswick'!W332, 'Nova Scotia'!W332, 'Newfoundland and Labrador'!W332, 'Prince Edward Island'!W332, NIHB!W332, ) )))))))))) -> 0 | R24: =IF($C$6="British Columbia",'British Columbia'!X332, IF($C$6="Alberta",Alberta!X332, IF($C$6="Saskatchewan",Saskatchewan!X332, IF($C$6="Manitoba",Manitoba!X332, IF($C$6="Ontario",Ontario!X332, IF($C$6="New Brunswick",'New Brunswick'!X332, IF($C$6="Nova Scotia",'Nova Scotia'!X332, IF($C$6="Newfoundland and Labrador",'Newfoundland and Labrador'!X332, IF($C$6="Prince Edward Island",'Prince Edward Island'!X332, IF($C$6="NIHB",NIHB!X332, SUM('British Columbia'!X332, Alberta!X332, Saskatchewan!X332, Manitoba!X332, Ontario!X332, 'New Brunswick'!X332, 'Nova Scotia'!X332, 'Newfoundland and Labrador'!X332, 'Prince Edward Island'!X332, NIHB!X332, ) )))))))))) -> 0
C25: Untreated | D25: =IF($C$6="British Columbia",'British Columbia'!K333, IF($C$6="Alberta",Alberta!K333, IF($C$6="Saskatchewan",Saskatchewan!K333, IF($C$6="Manitoba",Manitoba!K333, IF($C$6="Ontario",Ontario!K333, IF($C$6="New Brunswick",'New Brunswick'!K333, IF($C$6="Nova Scotia",'Nova Scotia'!K333, IF($C$6="Newfoundland and Labrador",'Newfoundland and Labrador'!K333, IF($C$6="Prince Edward Island",'Prince Edward Island'!K333, IF($C$6="NIHB",NIHB!K333, SUM('British Columbia'!K333, Alberta!K333, Saskatchewan!K333, Manitoba!K333, Ontario!K333, 'New Brunswick'!K333, 'Nova Scotia'!K333, 'Newfoundland and Labrador'!K333, 'Prince Edward Island'!K333, NIHB!K333, ) )))))))))) -> 0 | E25: =IF($C$6="British Columbia",'British Columbia'!L333, IF($C$6="Alberta",Alberta!L333, IF($C$6="Saskatchewan",Saskatchewan!L333, IF($C$6="Manitoba",Manitoba!L333, IF($C$6="Ontario",Ontario!L333, IF($C$6="New Brunswick",'New Brunswick'!L333, IF($C$6="Nova Scotia",'Nova Scotia'!L333, IF($C$6="Newfoundland and Labrador",'Newfoundland and Labrador'!L333, IF($C$6="Prince Edward Island",'Prince Edward Island'!L333, IF($C$6="NIHB",NIHB!L333, SUM('British Columbia'!L333, Alberta!L333, Saskatchewan!L333, Manitoba!L333, Ontario!L333, 'New Brunswick'!L333, 'Nova Scotia'!L333, 'Newfoundland and Labrador'!L333, 'Prince Edward Island'!L333, NIHB!L333, ) )))))))))) -> 0 | F25: =IF($C$6="British Columbia",'British Columbia'!M333, IF($C$6="Alberta",Alberta!M333, IF($C$6="Saskatchewan",Saskatchewan!M333, IF($C$6="Manitoba",Manitoba!M333, IF($C$6="Ontario",Ontario!M333, IF($C$6="New Brunswick",'New Brunswick'!M333, IF($C$6="Nova Scotia",'Nova Scotia'!M333, IF($C$6="Newfoundland and Labrador",'Newfoundland and Labrador'!M333, IF($C$6="Prince Edward Island",'Prince Edward Island'!M333, IF($C$6="NIHB",NIHB!M333, SUM('British Columbia'!M333, Alberta!M333, Saskatchewan!M333, Manitoba!M333, Ontario!M333, 'New Brunswick'!M333, 'Nova Scotia'!M333, 'Newfoundland and Labrador'!M333, 'Prince Edward Island'!M333, NIHB!M333, ) )))))))))) -> 0 | G25: =IF($C$6="British Columbia",'British Columbia'!N333, IF($C$6="Alberta",Alberta!N333, IF($C$6="Saskatchewan",Saskatchewan!N333, IF($C$6="Manitoba",Manitoba!N333, IF($C$6="Ontario",Ontario!N333, IF($C$6="New Brunswick",'New Brunswick'!N333, IF($C$6="Nova Scotia",'Nova Scotia'!N333, IF($C$6="Newfoundland and Labrador",'Newfoundland and Labrador'!N333, IF($C$6="Prince Edward Island",'Prince Edward Island'!N333, IF($C$6="NIHB",NIHB!N333, SUM('British Columbia'!N333, Alberta!N333, Saskatchewan!N333, Manitoba!N333, Ontario!N333, 'New Brunswick'!N333, 'Nova Scotia'!N333, 'Newfoundland and Labrador'!N333, 'Prince Edward Island'!N333, NIHB!N333, ) )))))))))) -> 0 | H25: =IF($C$6="British Columbia",'British Columbia'!O333, IF($C$6="Alberta",Alberta!O333, IF($C$6="Saskatchewan",Saskatchewan!O333, IF($C$6="Manitoba",Manitoba!O333, IF($C$6="Ontario",Ontario!O333, IF($C$6="New Brunswick",'New Brunswick'!O333, IF($C$6="Nova Scotia",'Nova Scotia'!O333, IF($C$6="Newfoundland and Labrador",'Newfoundland and Labrador'!O333, IF($C$6="Prince Edward Island",'Prince Edward Island'!O333, IF($C$6="NIHB",NIHB!O333, SUM('British Columbia'!O333, Alberta!O333, Saskatchewan!O333, Manitoba!O333, Ontario!O333, 'New Brunswick'!O333, 'Nova Scotia'!O333, 'Newfoundland and Labrador'!O333, 'Prince Edward Island'!O333, NIHB!O333, ) )))))))))) -> 0 | I25: =IF($C$6="British Columbia",'British Columbia'!P333, IF($C$6="Alberta",Alberta!P333, IF($C$6="Saskatchewan",Saskatchewan!P333, IF($C$6="Manitoba",Manitoba!P333, IF($C$6="Ontario",Ontario!P333, IF($C$6="New Brunswick",'New Brunswick'!P333, IF($C$6="Nova Scotia",'Nova Scotia'!P333, IF($C$6="Newfoundland and Labrador",'Newfoundland and Labrador'!P333, IF($C$6="Prince Edward Island",'Prince Edward Island'!P333, IF($C$6="NIHB",NIHB!P333, SUM('British Columbia'!P333, Alberta!P333, Saskatchewan!P333, Manitoba!P333, Ontario!P333, 'New Brunswick'!P333, 'Nova Scotia'!P333, 'Newfoundland and Labrador'!P333, 'Prince Edward Island'!P333, NIHB!P333, ) )))))))))) -> 0 | L25: Untreated | M25: =IF($C$6="British Columbia",'British Columbia'!S333, IF($C$6="Alberta",Alberta!S333, IF($C$6="Saskatchewan",Saskatchewan!S333, IF($C$6="Manitoba",Manitoba!S333, IF($C$6="Ontario",Ontario!S333, IF($C$6="New Brunswick",'New Brunswick'!S333, IF($C$6="Nova Scotia",'Nova Scotia'!S333, IF($C$6="Newfoundland and Labrador",'Newfoundland and Labrador'!S333, IF($C$6="Prince Edward Island",'Prince Edward Island'!S333, IF($C$6="NIHB",NIHB!S333, SUM('British Columbia'!S333, Alberta!S333, Saskatchewan!S333, Manitoba!S333, Ontario!S333, 'New Brunswick'!S333, 'Nova Scotia'!S333, 'Newfoundland and Labrador'!S333, 'Prince Edward Island'!S333, NIHB!S333, ) )))))))))) -> 0 | N25: =IF($C$6="British Columbia",'British Columbia'!T333, IF($C$6="Alberta",Alberta!T333, IF($C$6="Saskatchewan",Saskatchewan!T333, IF($C$6="Manitoba",Manitoba!T333, IF($C$6="Ontario",Ontario!T333, IF($C$6="New Brunswick",'New Brunswick'!T333, IF($C$6="Nova Scotia",'Nova Scotia'!T333, IF($C$6="Newfoundland and Labrador",'Newfoundland and Labrador'!T333, IF($C$6="Prince Edward Island",'Prince Edward Island'!T333, IF($C$6="NIHB",NIHB!T333, SUM('British Columbia'!T333, Alberta!T333, Saskatchewan!T333, Manitoba!T333, Ontario!T333, 'New Brunswick'!T333, 'Nova Scotia'!T333, 'Newfoundland and Labrador'!T333, 'Prince Edward Island'!T333, NIHB!T333, ) )))))))))) -> 0 | O25: =IF($C$6="British Columbia",'British Columbia'!U333, IF($C$6="Alberta",Alberta!U333, IF($C$6="Saskatchewan",Saskatchewan!U333, IF($C$6="Manitoba",Manitoba!U333, IF($C$6="Ontario",Ontario!U333, IF($C$6="New Brunswick",'New Brunswick'!U333, IF($C$6="Nova Scotia",'Nova Scotia'!U333, IF($C$6="Newfoundland and Labrador",'Newfoundland and Labrador'!U333, IF($C$6="Prince Edward Island",'Prince Edward Island'!U333, IF($C$6="NIHB",NIHB!U333, SUM('British Columbia'!U333, Alberta!U333, Saskatchewan!U333, Manitoba!U333, Ontario!U333, 'New Brunswick'!U333, 'Nova Scotia'!U333, 'Newfoundland and Labrador'!U333, 'Prince Edward Island'!U333, NIHB!U333, ) )))))))))) -> 0 | P25: =IF($C$6="British Columbia",'British Columbia'!V333, IF($C$6="Alberta",Alberta!V333, IF($C$6="Saskatchewan",Saskatchewan!V333, IF($C$6="Manitoba",Manitoba!V333, IF($C$6="Ontario",Ontario!V333, IF($C$6="New Brunswick",'New Brunswick'!V333, IF($C$6="Nova Scotia",'Nova Scotia'!V333, IF($C$6="Newfoundland and Labrador",'Newfoundland and Labrador'!V333, IF($C$6="Prince Edward Island",'Prince Edward Island'!V333, IF($C$6="NIHB",NIHB!V333, SUM('British Columbia'!V333, Alberta!V333, Saskatchewan!V333, Manitoba!V333, Ontario!V333, 'New Brunswick'!V333, 'Nova Scotia'!V333, 'Newfoundland and Labrador'!V333, 'Prince Edward Island'!V333, NIHB!V333, ) )))))))))) -> 0 | Q25: =IF($C$6="British Columbia",'British Columbia'!W333, IF($C$6="Alberta",Alberta!W333, IF($C$6="Saskatchewan",Saskatchewan!W333, IF($C$6="Manitoba",Manitoba!W333, IF($C$6="Ontario",Ontario!W333, IF($C$6="New Brunswick",'New Brunswick'!W333, IF($C$6="Nova Scotia",'Nova Scotia'!W333, IF($C$6="Newfoundland and Labrador",'Newfoundland and Labrador'!W333, IF($C$6="Prince Edward Island",'Prince Edward Island'!W333, IF($C$6="NIHB",NIHB!W333, SUM('British Columbia'!W333, Alberta!W333, Saskatchewan!W333, Manitoba!W333, Ontario!W333, 'New Brunswick'!W333, 'Nova Scotia'!W333, 'Newfoundland and Labrador'!W333, 'Prince Edward Island'!W333, NIHB!W333, ) )))))))))) -> 0 | R25: =IF($C$6="British Columbia",'British Columbia'!X333, IF($C$6="Alberta",Alberta!X333, IF($C$6="Saskatchewan",Saskatchewan!X333, IF($C$6="Manitoba",Manitoba!X333, IF($C$6="Ontario",Ontario!X333, IF($C$6="New Brunswick",'New Brunswick'!X333, IF($C$6="Nova Scotia",'Nova Scotia'!X333, IF($C$6="Newfoundland and Labrador",'Newfoundland and Labrador'!X333, IF($C$6="Prince Edward Island",'Prince Edward Island'!X333, IF($C$6="NIHB",NIHB!X333, SUM('British Columbia'!X333, Alberta!X333, Saskatchewan!X333, Manitoba!X333, Ontario!X333, 'New Brunswick'!X333, 'Nova Scotia'!X333, 'Newfoundland and Labrador'!X333, 'Prince Edward Island'!X333, NIHB!X333, ) )))))))))) -> 0
C26: =IF(Namedrug1="","Drug 1",Namedrug1) -> Drug 1 | D26: =IF($C$6="British Columbia",'British Columbia'!K334, IF($C$6="Alberta",Alberta!K334, IF($C$6="Saskatchewan",Saskatchewan!K334, IF($C$6="Manitoba",Manitoba!K334, IF($C$6="Ontario",Ontario!K334, IF($C$6="New Brunswick",'New Brunswick'!K334, IF($C$6="Nova Scotia",'Nova Scotia'!K334, IF($C$6="Newfoundland and Labrador",'Newfoundland and Labrador'!K334, IF($C$6="Prince Edward Island",'Prince Edward Island'!K334, IF($C$6="NIHB",NIHB!K334, SUM('British Columbia'!K334, Alberta!K334, Saskatchewan!K334, Manitoba!K334, Ontario!K334, 'New Brunswick'!K334, 'Nova Scotia'!K334, 'Newfoundland and Labrador'!K334, 'Prince Edward Island'!K334, NIHB!K334, ) )))))))))) -> 0 | E26: =IF($C$6="British Columbia",'British Columbia'!L334, IF($C$6="Alberta",Alberta!L334, IF($C$6="Saskatchewan",Saskatchewan!L334, IF($C$6="Manitoba",Manitoba!L334, IF($C$6="Ontario",Ontario!L334, IF($C$6="New Brunswick",'New Brunswick'!L334, IF($C$6="Nova Scotia",'Nova Scotia'!L334, IF($C$6="Newfoundland and Labrador",'Newfoundland and Labrador'!L334, IF($C$6="Prince Edward Island",'Prince Edward Island'!L334, IF($C$6="NIHB",NIHB!L334, SUM('British Columbia'!L334, Alberta!L334, Saskatchewan!L334, Manitoba!L334, Ontario!L334, 'New Brunswick'!L334, 'Nova Scotia'!L334, 'Newfoundland and Labrador'!L334, 'Prince Edward Island'!L334, NIHB!L334, ) )))))))))) -> 0 | F26: =IF($C$6="British Columbia",'British Columbia'!M334, IF($C$6="Alberta",Alberta!M334, IF($C$6="Saskatchewan",Saskatchewan!M334, IF($C$6="Manitoba",Manitoba!M334, IF($C$6="Ontario",Ontario!M334, IF($C$6="New Brunswick",'New Brunswick'!M334, IF($C$6="Nova Scotia",'Nova Scotia'!M334, IF($C$6="Newfoundland and Labrador",'Newfoundland and Labrador'!M334, IF($C$6="Prince Edward Island",'Prince Edward Island'!M334, IF($C$6="NIHB",NIHB!M334, SUM('British Columbia'!M334, Alberta!M334, Saskatchewan!M334, Manitoba!M334, Ontario!M334, 'New Brunswick'!M334, 'Nova Scotia'!M334, 'Newfoundland and Labrador'!M334, 'Prince Edward Island'!M334, NIHB!M334, ) )))))))))) -> 0 | G26: =IF($C$6="British Columbia",'British Columbia'!N334, IF($C$6="Alberta",Alberta!N334, IF($C$6="Saskatchewan",Saskatchewan!N334, IF($C$6="Manitoba",Manitoba!N334, IF($C$6="Ontario",Ontario!N334, IF($C$6="New Brunswick",'New Brunswick'!N334, IF($C$6="Nova Scotia",'Nova Scotia'!N334, IF($C$6="Newfoundland and Labrador",'Newfoundland and Labrador'!N334, IF($C$6="Prince Edward Island",'Prince Edward Island'!N334, IF($C$6="NIHB",NIHB!N334, SUM('British Columbia'!N334, Alberta!N334, Saskatchewan!N334, Manitoba!N334, Ontario!N334, 'New Brunswick'!N334, 'Nova Scotia'!N334, 'Newfoundland and Labrador'!N334, 'Prince Edward Island'!N334, NIHB!N334, ) )))))))))) -> 0 | H26: =IF($C$6="British Columbia",'British Columbia'!O334, IF($C$6="Alberta",Alberta!O334, IF($C$6="Saskatchewan",Saskatchewan!O334, IF($C$6="Manitoba",Manitoba!O334, IF($C$6="Ontario",Ontario!O334, IF($C$6="New Brunswick",'New Brunswick'!O334, IF($C$6="Nova Scotia",'Nova Scotia'!O334, IF($C$6="Newfoundland and Labrador",'Newfoundland and Labrador'!O334, IF($C$6="Prince Edward Island",'Prince Edward Island'!O334, IF($C$6="NIHB",NIHB!O334, SUM('British Columbia'!O334, Alberta!O334, Saskatchewan!O334, Manitoba!O334, Ontario!O334, 'New Brunswick'!O334, 'Nova Scotia'!O334, 'Newfoundland and Labrador'!O334, 'Prince Edward Island'!O334, NIHB!O334, ) )))))))))) -> 0 | I26: =IF($C$6="British Columbia",'British Columbia'!P334, IF($C$6="Alberta",Alberta!P334, IF($C$6="Saskatchewan",Saskatchewan!P334, IF($C$6="Manitoba",Manitoba!P334, IF($C$6="Ontario",Ontario!P334, IF($C$6="New Brunswick",'New Brunswick'!P334, IF($C$6="Nova Scotia",'Nova Scotia'!P334, IF($C$6="Newfoundland and Labrador",'Newfoundland and Labrador'!P334, IF($C$6="Prince Edward Island",'Prince Edward Island'!P334, IF($C$6="NIHB",NIHB!P334, SUM('British Columbia'!P334, Alberta!P334, Saskatchewan!P334, Manitoba!P334, Ontario!P334, 'New Brunswick'!P334, 'Nova Scotia'!P334, 'Newfoundland and Labrador'!P334, 'Prince Edward Island'!P334, NIHB!P334, ) )))))))))) -> 0 | L26: =IF(Namedrug1="","Drug 1",Namedrug1) -> Drug 1 | M26: =IF($C$6="British Columbia",'British Columbia'!S334, IF($C$6="Alberta",Alberta!S334, IF($C$6="Saskatchewan",Saskatchewan!S334, IF($C$6="Manitoba",Manitoba!S334, IF($C$6="Ontario",Ontario!S334, IF($C$6="New Brunswick",'New Brunswick'!S334, IF($C$6="Nova Scotia",'Nova Scotia'!S334, IF($C$6="Newfoundland and Labrador",'Newfoundland and Labrador'!S334, IF($C$6="Prince Edward Island",'Prince Edward Island'!S334, IF($C$6="NIHB",NIHB!S334, SUM('British Columbia'!S334, Alberta!S334, Saskatchewan!S334, Manitoba!S334, Ontario!S334, 'New Brunswick'!S334, 'Nova Scotia'!S334, 'Newfoundland and Labrador'!S334, 'Prince Edward Island'!S334, NIHB!S334, ) )))))))))) -> 0 | N26: =IF($C$6="British Columbia",'British Columbia'!T334, IF($C$6="Alberta",Alberta!T334, IF($C$6="Saskatchewan",Saskatchewan!T334, IF($C$6="Manitoba",Manitoba!T334, IF($C$6="Ontario",Ontario!T334, IF($C$6="New Brunswick",'New Brunswick'!T334, IF($C$6="Nova Scotia",'Nova Scotia'!T334, IF($C$6="Newfoundland and Labrador",'Newfoundland and Labrador'!T334, IF($C$6="Prince Edward Island",'Prince Edward Island'!T334, IF($C$6="NIHB",NIHB!T334, SUM('British Columbia'!T334, Alberta!T334, Saskatchewan!T334, Manitoba!T334, Ontario!T334, 'New Brunswick'!T334, 'Nova Scotia'!T334, 'Newfoundland and Labrador'!T334, 'Prince Edward Island'!T334, NIHB!T334, ) )))))))))) -> 0 | O26: =IF($C$6="British Columbia",'British Columbia'!U334, IF($C$6="Alberta",Alberta!U334, IF($C$6="Saskatchewan",Saskatchewan!U334, IF($C$6="Manitoba",Manitoba!U334, IF($C$6="Ontario",Ontario!U334, IF($C$6="New Brunswick",'New Brunswick'!U334, IF($C$6="Nova Scotia",'Nova Scotia'!U334, IF($C$6="Newfoundland and Labrador",'Newfoundland and Labrador'!U334, IF($C$6="Prince Edward Island",'Prince Edward Island'!U334, IF($C$6="NIHB",NIHB!U334, SUM('British Columbia'!U334, Alberta!U334, Saskatchewan!U334, Manitoba!U334, Ontario!U334, 'New Brunswick'!U334, 'Nova Scotia'!U334, 'Newfoundland and Labrador'!U334, 'Prince Edward Island'!U334, NIHB!U334, ) )))))))))) -> 0 | P26: =IF($C$6="British Columbia",'British Columbia'!V334, IF($C$6="Alberta",Alberta!V334, IF($C$6="Saskatchewan",Saskatchewan!V334, IF($C$6="Manitoba",Manitoba!V334, IF($C$6="Ontario",Ontario!V334, IF($C$6="New Brunswick",'New Brunswick'!V334, IF($C$6="Nova Scotia",'Nova Scotia'!V334, IF($C$6="Newfoundland and Labrador",'Newfoundland and Labrador'!V334, IF($C$6="Prince Edward Island",'Prince Edward Island'!V334, IF($C$6="NIHB",NIHB!V334, SUM('British Columbia'!V334, Alberta!V334, Saskatchewan!V334, Manitoba!V334, Ontario!V334, 'New Brunswick'!V334, 'Nova Scotia'!V334, 'Newfoundland and Labrador'!V334, 'Prince Edward Island'!V334, NIHB!V334, ) )))))))))) -> 0 | Q26: =IF($C$6="British Columbia",'British Columbia'!W334, IF($C$6="Alberta",Alberta!W334, IF($C$6="Saskatchewan",Saskatchewan!W334, IF($C$6="Manitoba",Manitoba!W334, IF($C$6="Ontario",Ontario!W334, IF($C$6="New Brunswick",'New Brunswick'!W334, IF($C$6="Nova Scotia",'Nova Scotia'!W334, IF($C$6="Newfoundland and Labrador",'Newfoundland and Labrador'!W334, IF($C$6="Prince Edward Island",'Prince Edward Island'!W334, IF($C$6="NIHB",NIHB!W334, SUM('British Columbia'!W334, Alberta!W334, Saskatchewan!W334, Manitoba!W334, Ontario!W334, 'New Brunswick'!W334, 'Nova Scotia'!W334, 'Newfoundland and Labrador'!W334, 'Prince Edward Island'!W334, NIHB!W334, ) )))))))))) -> 0 | R26: =IF($C$6="British Columbia",'British Columbia'!X334, IF($C$6="Alberta",Alberta!X334, IF($C$6="Saskatchewan",Saskatchewan!X334, IF($C$6="Manitoba",Manitoba!X334, IF($C$6="Ontario",Ontario!X334, IF($C$6="New Brunswick",'New Brunswick'!X334, IF($C$6="Nova Scotia",'Nova Scotia'!X334, IF($C$6="Newfoundland and Labrador",'Newfoundland and Labrador'!X334, IF($C$6="Prince Edward Island",'Prince Edward Island'!X334, IF($C$6="NIHB",NIHB!X334, SUM('British Columbia'!X334, Alberta!X334, Saskatchewan!X334, Manitoba!X334, Ontario!X334, 'New Brunswick'!X334, 'Nova Scotia'!X334, 'Newfoundland and Labrador'!X334, 'Prince Edward Island'!X334, NIHB!X334, ) )))))))))) -> 0
C27: =IF(Namedrug2="","Drug 2",Namedrug2) -> Drug 2 | D27: =IF($C$6="British Columbia",'British Columbia'!K335, IF($C$6="Alberta",Alberta!K335, IF($C$6="Saskatchewan",Saskatchewan!K335, IF($C$6="Manitoba",Manitoba!K335, IF($C$6="Ontario",Ontario!K335, IF($C$6="New Brunswick",'New Brunswick'!K335, IF($C$6="Nova Scotia",'Nova Scotia'!K335, IF($C$6="Newfoundland and Labrador",'Newfoundland and Labrador'!K335, IF($C$6="Prince Edward Island",'Prince Edward Island'!K335, IF($C$6="NIHB",NIHB!K335, SUM('British Columbia'!K335, Alberta!K335, Saskatchewan!K335, Manitoba!K335, Ontario!K335, 'New Brunswick'!K335, 'Nova Scotia'!K335, 'Newfoundland and Labrador'!K335, 'Prince Edward Island'!K335, NIHB!K335, ) )))))))))) -> 0 | E27: =IF($C$6="British Columbia",'British Columbia'!L335, IF($C$6="Alberta",Alberta!L335, IF($C$6="Saskatchewan",Saskatchewan!L335, IF($C$6="Manitoba",Manitoba!L335, IF($C$6="Ontario",Ontario!L335, IF($C$6="New Brunswick",'New Brunswick'!L335, IF($C$6="Nova Scotia",'Nova Scotia'!L335, IF($C$6="Newfoundland and Labrador",'Newfoundland and Labrador'!L335, IF($C$6="Prince Edward Island",'Prince Edward Island'!L335, IF($C$6="NIHB",NIHB!L335, SUM('British Columbia'!L335, Alberta!L335, Saskatchewan!L335, Manitoba!L335, Ontario!L335, 'New Brunswick'!L335, 'Nova Scotia'!L335, 'Newfoundland and Labrador'!L335, 'Prince Edward Island'!L335, NIHB!L335, ) )))))))))) -> 0 | F27: =IF($C$6="British Columbia",'British Columbia'!M335, IF($C$6="Alberta",Alberta!M335, IF($C$6="Saskatchewan",Saskatchewan!M335, IF($C$6="Manitoba",Manitoba!M335, IF($C$6="Ontario",Ontario!M335, IF($C$6="New Brunswick",'New Brunswick'!M335, IF($C$6="Nova Scotia",'Nova Scotia'!M335, IF($C$6="Newfoundland and Labrador",'Newfoundland and Labrador'!M335, IF($C$6="Prince Edward Island",'Prince Edward Island'!M335, IF($C$6="NIHB",NIHB!M335, SUM('British Columbia'!M335, Alberta!M335, Saskatchewan!M335, Manitoba!M335, Ontario!M335, 'New Brunswick'!M335, 'Nova Scotia'!M335, 'Newfoundland and Labrador'!M335, 'Prince Edward Island'!M335, NIHB!M335, ) )))))))))) -> 0 | G27: =IF($C$6="British Columbia",'British Columbia'!N335, IF($C$6="Alberta",Alberta!N335, IF($C$6="Saskatchewan",Saskatchewan!N335, IF($C$6="Manitoba",Manitoba!N335, IF($C$6="Ontario",Ontario!N335, IF($C$6="New Brunswick",'New Brunswick'!N335, IF($C$6="Nova Scotia",'Nova Scotia'!N335, IF($C$6="Newfoundland and Labrador",'Newfoundland and Labrador'!N335, IF($C$6="Prince Edward Island",'Prince Edward Island'!N335, IF($C$6="NIHB",NIHB!N335, SUM('British Columbia'!N335, Alberta!N335, Saskatchewan!N335, Manitoba!N335, Ontario!N335, 'New Brunswick'!N335, 'Nova Scotia'!N335, 'Newfoundland and Labrador'!N335, 'Prince Edward Island'!N335, NIHB!N335, ) )))))))))) -> 0 | H27: =IF($C$6="British Columbia",'British Columbia'!O335, IF($C$6="Alberta",Alberta!O335, IF($C$6="Saskatchewan",Saskatchewan!O335, IF($C$6="Manitoba",Manitoba!O335, IF($C$6="Ontario",Ontario!O335, IF($C$6="New Brunswick",'New Brunswick'!O335, IF($C$6="Nova Scotia",'Nova Scotia'!O335, IF($C$6="Newfoundland and Labrador",'Newfoundland and Labrador'!O335, IF($C$6="Prince Edward Island",'Prince Edward Island'!O335, IF($C$6="NIHB",NIHB!O335, SUM('British Columbia'!O335, Alberta!O335, Saskatchewan!O335, Manitoba!O335, Ontario!O335, 'New Brunswick'!O335, 'Nova Scotia'!O335, 'Newfoundland and Labrador'!O335, 'Prince Edward Island'!O335, NIHB!O335, ) )))))))))) -> 0 | I27: =IF($C$6="British Columbia",'British Columbia'!P335, IF($C$6="Alberta",Alberta!P335, IF($C$6="Saskatchewan",Saskatchewan!P335, IF($C$6="Manitoba",Manitoba!P335, IF($C$6="Ontario",Ontario!P335, IF($C$6="New Brunswick",'New Brunswick'!P335, IF($C$6="Nova Scotia",'Nova Scotia'!P335, IF($C$6="Newfoundland and Labrador",'Newfoundland and Labrador'!P335, IF($C$6="Prince Edward Island",'Prince Edward Island'!P335, IF($C$6="NIHB",NIHB!P335, SUM('British Columbia'!P335, Alberta!P335, Saskatchewan!P335, Manitoba!P335, Ontario!P335, 'New Brunswick'!P335, 'Nova Scotia'!P335, 'Newfoundland and Labrador'!P335, 'Prince Edward Island'!P335, NIHB!P335, ) )))))))))) -> 0 | L27: =IF(Namedrug2="","Drug 2",Namedrug2) -> Drug 2 | M27: =IF($C$6="British Columbia",'British Columbia'!S335, IF($C$6="Alberta",Alberta!S335, IF($C$6="Saskatchewan",Saskatchewan!S335, IF($C$6="Manitoba",Manitoba!S335, IF($C$6="Ontario",Ontario!S335, IF($C$6="New Brunswick",'New Brunswick'!S335, IF($C$6="Nova Scotia",'Nova Scotia'!S335, IF($C$6="Newfoundland and Labrador",'Newfoundland and Labrador'!S335, IF($C$6="Prince Edward Island",'Prince Edward Island'!S335, IF($C$6="NIHB",NIHB!S335, SUM('British Columbia'!S335, Alberta!S335, Saskatchewan!S335, Manitoba!S335, Ontario!S335, 'New Brunswick'!S335, 'Nova Scotia'!S335, 'Newfoundland and Labrador'!S335, 'Prince Edward Island'!S335, NIHB!S335, ) )))))))))) -> 0 | N27: =IF($C$6="British Columbia",'British Columbia'!T335, IF($C$6="Alberta",Alberta!T335, IF($C$6="Saskatchewan",Saskatchewan!T335, IF($C$6="Manitoba",Manitoba!T335, IF($C$6="Ontario",Ontario!T335, IF($C$6="New Brunswick",'New Brunswick'!T335, IF($C$6="Nova Scotia",'Nova Scotia'!T335, IF($C$6="Newfoundland and Labrador",'Newfoundland and Labrador'!T335, IF($C$6="Prince Edward Island",'Prince Edward Island'!T335, IF($C$6="NIHB",NIHB!T335, SUM('British Columbia'!T335, Alberta!T335, Saskatchewan!T335, Manitoba!T335, Ontario!T335, 'New Brunswick'!T335, 'Nova Scotia'!T335, 'Newfoundland and Labrador'!T335, 'Prince Edward Island'!T335, NIHB!T335, ) )))))))))) -> 0 | O27: =IF($C$6="British Columbia",'British Columbia'!U335, IF($C$6="Alberta",Alberta!U335, IF($C$6="Saskatchewan",Saskatchewan!U335, IF($C$6="Manitoba",Manitoba!U335, IF($C$6="Ontario",Ontario!U335, IF($C$6="New Brunswick",'New Brunswick'!U335, IF($C$6="Nova Scotia",'Nova Scotia'!U335, IF($C$6="Newfoundland and Labrador",'Newfoundland and Labrador'!U335, IF($C$6="Prince Edward Island",'Prince Edward Island'!U335, IF($C$6="NIHB",NIHB!U335, SUM('British Columbia'!U335, Alberta!U335, Saskatchewan!U335, Manitoba!U335, Ontario!U335, 'New Brunswick'!U335, 'Nova Scotia'!U335, 'Newfoundland and Labrador'!U335, 'Prince Edward Island'!U335, NIHB!U335, ) )))))))))) -> 0 | P27: =IF($C$6="British Columbia",'British Columbia'!V335, IF($C$6="Alberta",Alberta!V335, IF($C$6="Saskatchewan",Saskatchewan!V335, IF($C$6="Manitoba",Manitoba!V335, IF($C$6="Ontario",Ontario!V335, IF($C$6="New Brunswick",'New Brunswick'!V335, IF($C$6="Nova Scotia",'Nova Scotia'!V335, IF($C$6="Newfoundland and Labrador",'Newfoundland and Labrador'!V335, IF($C$6="Prince Edward Island",'Prince Edward Island'!V335, IF($C$6="NIHB",NIHB!V335, SUM('British Columbia'!V335, Alberta!V335, Saskatchewan!V335, Manitoba!V335, Ontario!V335, 'New Brunswick'!V335, 'Nova Scotia'!V335, 'Newfoundland and Labrador'!V335, 'Prince Edward Island'!V335, NIHB!V335, ) )))))))))) -> 0 | Q27: =IF($C$6="British Columbia",'British Columbia'!W335, IF($C$6="Alberta",Alberta!W335, IF($C$6="Saskatchewan",Saskatchewan!W335, IF($C$6="Manitoba",Manitoba!W335, IF($C$6="Ontario",Ontario!W335, IF($C$6="New Brunswick",'New Brunswick'!W335, IF($C$6="Nova Scotia",'Nova Scotia'!W335, IF($C$6="Newfoundland and Labrador",'Newfoundland and Labrador'!W335, IF($C$6="Prince Edward Island",'Prince Edward Island'!W335, IF($C$6="NIHB",NIHB!W335, SUM('British Columbia'!W335, Alberta!W335, Saskatchewan!W335, Manitoba!W335, Ontario!W335, 'New Brunswick'!W335, 'Nova Scotia'!W335, 'Newfoundland and Labrador'!W335, 'Prince Edward Island'!W335, NIHB!W335, ) )))))))))) -> 0 | R27: =IF($C$6="British Columbia",'British Columbia'!X335, IF($C$6="Alberta",Alberta!X335, IF($C$6="Saskatchewan",Saskatchewan!X335, IF($C$6="Manitoba",Manitoba!X335, IF($C$6="Ontario",Ontario!X335, IF($C$6="New Brunswick",'New Brunswick'!X335, IF($C$6="Nova Scotia",'Nova Scotia'!X335, IF($C$6="Newfoundland and Labrador",'Newfoundland and Labrador'!X335, IF($C$6="Prince Edward Island",'Prince Edward Island'!X335, IF($C$6="NIHB",NIHB!X335, SUM('British Columbia'!X335, Alberta!X335, Saskatchewan!X335, Manitoba!X335, Ontario!X335, 'New Brunswick'!X335, 'Nova Scotia'!X335, 'Newfoundland and Labrador'!X335, 'Prince Edward Island'!X335, NIHB!X335, ) )))))))))) -> 0
C28: =IF(Namedrug3="","Drug 3",Namedrug3) -> Drug 3 | D28: =IF($C$6="British Columbia",'British Columbia'!K336, IF($C$6="Alberta",Alberta!K336, IF($C$6="Saskatchewan",Saskatchewan!K336, IF($C$6="Manitoba",Manitoba!K336, IF($C$6="Ontario",Ontario!K336, IF($C$6="New Brunswick",'New Brunswick'!K336, IF($C$6="Nova Scotia",'Nova Scotia'!K336, IF($C$6="Newfoundland and Labrador",'Newfoundland and Labrador'!K336, IF($C$6="Prince Edward Island",'Prince Edward Island'!K336, IF($C$6="NIHB",NIHB!K336, SUM('British Columbia'!K336, Alberta!K336, Saskatchewan!K336, Manitoba!K336, Ontario!K336, 'New Brunswick'!K336, 'Nova Scotia'!K336, 'Newfoundland and Labrador'!K336, 'Prince Edward Island'!K336, NIHB!K336, ) )))))))))) -> 0 | E28: =IF($C$6="British Columbia",'British Columbia'!L336, IF($C$6="Alberta",Alberta!L336, IF($C$6="Saskatchewan",Saskatchewan!L336, IF($C$6="Manitoba",Manitoba!L336, IF($C$6="Ontario",Ontario!L336, IF($C$6="New Brunswick",'New Brunswick'!L336, IF($C$6="Nova Scotia",'Nova Scotia'!L336, IF($C$6="Newfoundland and Labrador",'Newfoundland and Labrador'!L336, IF($C$6="Prince Edward Island",'Prince Edward Island'!L336, IF($C$6="NIHB",NIHB!L336, SUM('British Columbia'!L336, Alberta!L336, Saskatchewan!L336, Manitoba!L336, Ontario!L336, 'New Brunswick'!L336, 'Nova Scotia'!L336, 'Newfoundland and Labrador'!L336, 'Prince Edward Island'!L336, NIHB!L336, ) )))))))))) -> 0 | F28: =IF($C$6="British Columbia",'British Columbia'!M336, IF($C$6="Alberta",Alberta!M336, IF($C$6="Saskatchewan",Saskatchewan!M336, IF($C$6="Manitoba",Manitoba!M336, IF($C$6="Ontario",Ontario!M336, IF($C$6="New Brunswick",'New Brunswick'!M336, IF($C$6="Nova Scotia",'Nova Scotia'!M336, IF($C$6="Newfoundland and Labrador",'Newfoundland and Labrador'!M336, IF($C$6="Prince Edward Island",'Prince Edward Island'!M336, IF($C$6="NIHB",NIHB!M336, SUM('British Columbia'!M336, Alberta!M336, Saskatchewan!M336, Manitoba!M336, Ontario!M336, 'New Brunswick'!M336, 'Nova Scotia'!M336, 'Newfoundland and Labrador'!M336, 'Prince Edward Island'!M336, NIHB!M336, ) )))))))))) -> 0 | G28: =IF($C$6="British Columbia",'British Columbia'!N336, IF($C$6="Alberta",Alberta!N336, IF($C$6="Saskatchewan",Saskatchewan!N336, IF($C$6="Manitoba",Manitoba!N336, IF($C$6="Ontario",Ontario!N336, IF($C$6="New Brunswick",'New Brunswick'!N336, IF($C$6="Nova Scotia",'Nova Scotia'!N336, IF($C$6="Newfoundland and Labrador",'Newfoundland and Labrador'!N336, IF($C$6="Prince Edward Island",'Prince Edward Island'!N336, IF($C$6="NIHB",NIHB!N336, SUM('British Columbia'!N336, Alberta!N336, Saskatchewan!N336, Manitoba!N336, Ontario!N336, 'New Brunswick'!N336, 'Nova Scotia'!N336, 'Newfoundland and Labrador'!N336, 'Prince Edward Island'!N336, NIHB!N336, ) )))))))))) -> 0 | H28: =IF($C$6="British Columbia",'British Columbia'!O336, IF($C$6="Alberta",Alberta!O336, IF($C$6="Saskatchewan",Saskatchewan!O336, IF($C$6="Manitoba",Manitoba!O336, IF($C$6="Ontario",Ontario!O336, IF($C$6="New Brunswick",'New Brunswick'!O336, IF($C$6="Nova Scotia",'Nova Scotia'!O336, IF($C$6="Newfoundland and Labrador",'Newfoundland and Labrador'!O336, IF($C$6="Prince Edward Island",'Prince Edward Island'!O336, IF($C$6="NIHB",NIHB!O336, SUM('British Columbia'!O336, Alberta!O336, Saskatchewan!O336, Manitoba!O336, Ontario!O336, 'New Brunswick'!O336, 'Nova Scotia'!O336, 'Newfoundland and Labrador'!O336, 'Prince Edward Island'!O336, NIHB!O336, ) )))))))))) -> 0 | I28: =IF($C$6="British Columbia",'British Columbia'!P336, IF($C$6="Alberta",Alberta!P336, IF($C$6="Saskatchewan",Saskatchewan!P336, IF($C$6="Manitoba",Manitoba!P336, IF($C$6="Ontario",Ontario!P336, IF($C$6="New Brunswick",'New Brunswick'!P336, IF($C$6="Nova Scotia",'Nova Scotia'!P336, IF($C$6="Newfoundland and Labrador",'Newfoundland and Labrador'!P336, IF($C$6="Prince Edward Island",'Prince Edward Island'!P336, IF($C$6="NIHB",NIHB!P336, SUM('British Columbia'!P336, Alberta!P336, Saskatchewan!P336, Manitoba!P336, Ontario!P336, 'New Brunswick'!P336, 'Nova Scotia'!P336, 'Newfoundland and Labrador'!P336, 'Prince Edward Island'!P336, NIHB!P336, ) )))))))))) -> 0 | L28: =IF(Namedrug3="","Drug 3",Namedrug3) -> Drug 3 | M28: =IF($C$6="British Columbia",'British Columbia'!S336, IF($C$6="Alberta",Alberta!S336, IF($C$6="Saskatchewan",Saskatchewan!S336, IF($C$6="Manitoba",Manitoba!S336, IF($C$6="Ontario",Ontario!S336, IF($C$6="New Brunswick",'New Brunswick'!S336, IF($C$6="Nova Scotia",'Nova Scotia'!S336, IF($C$6="Newfoundland and Labrador",'Newfoundland and Labrador'!S336, IF($C$6="Prince Edward Island",'Prince Edward Island'!S336, IF($C$6="NIHB",NIHB!S336, SUM('British Columbia'!S336, Alberta!S336, Saskatchewan!S336, Manitoba!S336, Ontario!S336, 'New Brunswick'!S336, 'Nova Scotia'!S336, 'Newfoundland and Labrador'!S336, 'Prince Edward Island'!S336, NIHB!S336, ) )))))))))) -> 0 | N28: =IF($C$6="British Columbia",'British Columbia'!T336, IF($C$6="Alberta",Alberta!T336, IF($C$6="Saskatchewan",Saskatchewan!T336, IF($C$6="Manitoba",Manitoba!T336, IF($C$6="Ontario",Ontario!T336, IF($C$6="New Brunswick",'New Brunswick'!T336, IF($C$6="Nova Scotia",'Nova Scotia'!T336, IF($C$6="Newfoundland and Labrador",'Newfoundland and Labrador'!T336, IF($C$6="Prince Edward Island",'Prince Edward Island'!T336, IF($C$6="NIHB",NIHB!T336, SUM('British Columbia'!T336, Alberta!T336, Saskatchewan!T336, Manitoba!T336, Ontario!T336, 'New Brunswick'!T336, 'Nova Scotia'!T336, 'Newfoundland and Labrador'!T336, 'Prince Edward Island'!T336, NIHB!T336, ) )))))))))) -> 0 | O28: =IF($C$6="British Columbia",'British Columbia'!U336, IF($C$6="Alberta",Alberta!U336, IF($C$6="Saskatchewan",Saskatchewan!U336, IF($C$6="Manitoba",Manitoba!U336, IF($C$6="Ontario",Ontario!U336, IF($C$6="New Brunswick",'New Brunswick'!U336, IF($C$6="Nova Scotia",'Nova Scotia'!U336, IF($C$6="Newfoundland and Labrador",'Newfoundland and Labrador'!U336, IF($C$6="Prince Edward Island",'Prince Edward Island'!U336, IF($C$6="NIHB",NIHB!U336, SUM('British Columbia'!U336, Alberta!U336, Saskatchewan!U336, Manitoba!U336, Ontario!U336, 'New Brunswick'!U336, 'Nova Scotia'!U336, 'Newfoundland and Labrador'!U336, 'Prince Edward Island'!U336, NIHB!U336, ) )))))))))) -> 0 | P28: =IF($C$6="British Columbia",'British Columbia'!V336, IF($C$6="Alberta",Alberta!V336, IF($C$6="Saskatchewan",Saskatchewan!V336, IF($C$6="Manitoba",Manitoba!V336, IF($C$6="Ontario",Ontario!V336, IF($C$6="New Brunswick",'New Brunswick'!V336, IF($C$6="Nova Scotia",'Nova Scotia'!V336, IF($C$6="Newfoundland and Labrador",'Newfoundland and Labrador'!V336, IF($C$6="Prince Edward Island",'Prince Edward Island'!V336, IF($C$6="NIHB",NIHB!V336, SUM('British Columbia'!V336, Alberta!V336, Saskatchewan!V336, Manitoba!V336, Ontario!V336, 'New Brunswick'!V336, 'Nova Scotia'!V336, 'Newfoundland and Labrador'!V336, 'Prince Edward Island'!V336, NIHB!V336, ) )))))))))) -> 0 | Q28: =IF($C$6="British Columbia",'British Columbia'!W336, IF($C$6="Alberta",Alberta!W336, IF($C$6="Saskatchewan",Saskatchewan!W336, IF($C$6="Manitoba",Manitoba!W336, IF($C$6="Ontario",Ontario!W336, IF($C$6="New Brunswick",'New Brunswick'!W336, IF($C$6="Nova Scotia",'Nova Scotia'!W336, IF($C$6="Newfoundland and Labrador",'Newfoundland and Labrador'!W336, IF($C$6="Prince Edward Island",'Prince Edward Island'!W336, IF($C$6="NIHB",NIHB!W336, SUM('British Columbia'!W336, Alberta!W336, Saskatchewan!W336, Manitoba!W336, Ontario!W336, 'New Brunswick'!W336, 'Nova Scotia'!W336, 'Newfoundland and Labrador'!W336, 'Prince Edward Island'!W336, NIHB!W336, ) )))))))))) -> 0 | R28: =IF($C$6="British Columbia",'British Columbia'!X336, IF($C$6="Alberta",Alberta!X336, IF($C$6="Saskatchewan",Saskatchewan!X336, IF($C$6="Manitoba",Manitoba!X336, IF($C$6="Ontario",Ontario!X336, IF($C$6="New Brunswick",'New Brunswick'!X336, IF($C$6="Nova Scotia",'Nova Scotia'!X336, IF($C$6="Newfoundland and Labrador",'Newfoundland and Labrador'!X336, IF($C$6="Prince Edward Island",'Prince Edward Island'!X336, IF($C$6="NIHB",NIHB!X336, SUM('British Columbia'!X336, Alberta!X336, Saskatchewan!X336, Manitoba!X336, Ontario!X336, 'New Brunswick'!X336, 'Nova Scotia'!X336, 'Newfoundland and Labrador'!X336, 'Prince Edward Island'!X336, NIHB!X336, ) )))))))))) -> 0
C29: =IF(Namedrug4="","Drug 4",Namedrug4) -> Drug 4 | D29: =IF($C$6="British Columbia",'British Columbia'!K337, IF($C$6="Alberta",Alberta!K337, IF($C$6="Saskatchewan",Saskatchewan!K337, IF($C$6="Manitoba",Manitoba!K337, IF($C$6="Ontario",Ontario!K337, IF($C$6="New Brunswick",'New Brunswick'!K337, IF($C$6="Nova Scotia",'Nova Scotia'!K337, IF($C$6="Newfoundland and Labrador",'Newfoundland and Labrador'!K337, IF($C$6="Prince Edward Island",'Prince Edward Island'!K337, IF($C$6="NIHB",NIHB!K337, SUM('British Columbia'!K337, Alberta!K337, Saskatchewan!K337, Manitoba!K337, Ontario!K337, 'New Brunswick'!K337, 'Nova Scotia'!K337, 'Newfoundland and Labrador'!K337, 'Prince Edward Island'!K337, NIHB!K337, ) )))))))))) -> 0 | E29: =IF($C$6="British Columbia",'British Columbia'!L337, IF($C$6="Alberta",Alberta!L337, IF($C$6="Saskatchewan",Saskatchewan!L337, IF($C$6="Manitoba",Manitoba!L337, IF($C$6="Ontario",Ontario!L337, IF($C$6="New Brunswick",'New Brunswick'!L337, IF($C$6="Nova Scotia",'Nova Scotia'!L337, IF($C$6="Newfoundland and Labrador",'Newfoundland and Labrador'!L337, IF($C$6="Prince Edward Island",'Prince Edward Island'!L337, IF($C$6="NIHB",NIHB!L337, SUM('British Columbia'!L337, Alberta!L337, Saskatchewan!L337, Manitoba!L337, Ontario!L337, 'New Brunswick'!L337, 'Nova Scotia'!L337, 'Newfoundland and Labrador'!L337, 'Prince Edward Island'!L337, NIHB!L337, ) )))))))))) -> 0 | F29: =IF($C$6="British Columbia",'British Columbia'!M337, IF($C$6="Alberta",Alberta!M337, IF($C$6="Saskatchewan",Saskatchewan!M337, IF($C$6="Manitoba",Manitoba!M337, IF($C$6="Ontario",Ontario!M337, IF($C$6="New Brunswick",'New Brunswick'!M337, IF($C$6="Nova Scotia",'Nova Scotia'!M337, IF($C$6="Newfoundland and Labrador",'Newfoundland and Labrador'!M337, IF($C$6="Prince Edward Island",'Prince Edward Island'!M337, IF($C$6="NIHB",NIHB!M337, SUM('British Columbia'!M337, Alberta!M337, Saskatchewan!M337, Manitoba!M337, Ontario!M337, 'New Brunswick'!M337, 'Nova Scotia'!M337, 'Newfoundland and Labrador'!M337, 'Prince Edward Island'!M337, NIHB!M337, ) )))))))))) -> 0 | G29: =IF($C$6="British Columbia",'British Columbia'!N337, IF($C$6="Alberta",Alberta!N337, IF($C$6="Saskatchewan",Saskatchewan!N337, IF($C$6="Manitoba",Manitoba!N337, IF($C$6="Ontario",Ontario!N337, IF($C$6="New Brunswick",'New Brunswick'!N337, IF($C$6="Nova Scotia",'Nova Scotia'!N337, IF($C$6="Newfoundland and Labrador",'Newfoundland and Labrador'!N337, IF($C$6="Prince Edward Island",'Prince Edward Island'!N337, IF($C$6="NIHB",NIHB!N337, SUM('British Columbia'!N337, Alberta!N337, Saskatchewan!N337, Manitoba!N337, Ontario!N337, 'New Brunswick'!N337, 'Nova Scotia'!N337, 'Newfoundland and Labrador'!N337, 'Prince Edward Island'!N337, NIHB!N337, ) )))))))))) -> 0 | H29: =IF($C$6="British Columbia",'British Columbia'!O337, IF($C$6="Alberta",Alberta!O337, IF($C$6="Saskatchewan",Saskatchewan!O337, IF($C$6="Manitoba",Manitoba!O337, IF($C$6="Ontario",Ontario!O337, IF($C$6="New Brunswick",'New Brunswick'!O337, IF($C$6="Nova Scotia",'Nova Scotia'!O337, IF($C$6="Newfoundland and Labrador",'Newfoundland and Labrador'!O337, IF($C$6="Prince Edward Island",'Prince Edward Island'!O337, IF($C$6="NIHB",NIHB!O337, SUM('British Columbia'!O337, Alberta!O337, Saskatchewan!O337, Manitoba!O337, Ontario!O337, 'New Brunswick'!O337, 'Nova Scotia'!O337, 'Newfoundland and Labrador'!O337, 'Prince Edward Island'!O337, NIHB!O337, ) )))))))))) -> 0 | I29: =IF($C$6="British Columbia",'British Columbia'!P337, IF($C$6="Alberta",Alberta!P337, IF($C$6="Saskatchewan",Saskatchewan!P337, IF($C$6="Manitoba",Manitoba!P337, IF($C$6="Ontario",Ontario!P337, IF($C$6="New Brunswick",'New Brunswick'!P337, IF($C$6="Nova Scotia",'Nova Scotia'!P337, IF($C$6="Newfoundland and Labrador",'Newfoundland and Labrador'!P337, IF($C$6="Prince Edward Island",'Prince Edward Island'!P337, IF($C$6="NIHB",NIHB!P337, SUM('British Columbia'!P337, Alberta!P337, Saskatchewan!P337, Manitoba!P337, Ontario!P337, 'New Brunswick'!P337, 'Nova Scotia'!P337, 'Newfoundland and Labrador'!P337, 'Prince Edward Island'!P337, NIHB!P337, ) )))))))))) -> 0 | L29: =IF(Namedrug4="","Drug 4",Namedrug4) -> Drug 4 | M29: =IF($C$6="British Columbia",'British Columbia'!S337, IF($C$6="Alberta",Alberta!S337, IF($C$6="Saskatchewan",Saskatchewan!S337, IF($C$6="Manitoba",Manitoba!S337, IF($C$6="Ontario",Ontario!S337, IF($C$6="New Brunswick",'New Brunswick'!S337, IF($C$6="Nova Scotia",'Nova Scotia'!S337, IF($C$6="Newfoundland and Labrador",'Newfoundland and Labrador'!S337, IF($C$6="Prince Edward Island",'Prince Edward Island'!S337, IF($C$6="NIHB",NIHB!S337, SUM('British Columbia'!S337, Alberta!S337, Saskatchewan!S337, Manitoba!S337, Ontario!S337, 'New Brunswick'!S337, 'Nova Scotia'!S337, 'Newfoundland and Labrador'!S337, 'Prince Edward Island'!S337, NIHB!S337, ) )))))))))) -> 0 | N29: =IF($C$6="British Columbia",'British Columbia'!T337, IF($C$6="Alberta",Alberta!T337, IF($C$6="Saskatchewan",Saskatchewan!T337, IF($C$6="Manitoba",Manitoba!T337, IF($C$6="Ontario",Ontario!T337, IF($C$6="New Brunswick",'New Brunswick'!T337, IF($C$6="Nova Scotia",'Nova Scotia'!T337, IF($C$6="Newfoundland and Labrador",'Newfoundland and Labrador'!T337, IF($C$6="Prince Edward Island",'Prince Edward Island'!T337, IF($C$6="NIHB",NIHB!T337, SUM('British Columbia'!T337, Alberta!T337, Saskatchewan!T337, Manitoba!T337, Ontario!T337, 'New Brunswick'!T337, 'Nova Scotia'!T337, 'Newfoundland and Labrador'!T337, 'Prince Edward Island'!T337, NIHB!T337, ) )))))))))) -> 0 | O29: =IF($C$6="British Columbia",'British Columbia'!U337, IF($C$6="Alberta",Alberta!U337, IF($C$6="Saskatchewan",Saskatchewan!U337, IF($C$6="Manitoba",Manitoba!U337, IF($C$6="Ontario",Ontario!U337, IF($C$6="New Brunswick",'New Brunswick'!U337, IF($C$6="Nova Scotia",'Nova Scotia'!U337, IF($C$6="Newfoundland and Labrador",'Newfoundland and Labrador'!U337, IF($C$6="Prince Edward Island",'Prince Edward Island'!U337, IF($C$6="NIHB",NIHB!U337, SUM('British Columbia'!U337, Alberta!U337, Saskatchewan!U337, Manitoba!U337, Ontario!U337, 'New Brunswick'!U337, 'Nova Scotia'!U337, 'Newfoundland and Labrador'!U337, 'Prince Edward Island'!U337, NIHB!U337, ) )))))))))) -> 0 | P29: =IF($C$6="British Columbia",'British Columbia'!V337, IF($C$6="Alberta",Alberta!V337, IF($C$6="Saskatchewan",Saskatchewan!V337, IF($C$6="Manitoba",Manitoba!V337, IF($C$6="Ontario",Ontario!V337, IF($C$6="New Brunswick",'New Brunswick'!V337, IF($C$6="Nova Scotia",'Nova Scotia'!V337, IF($C$6="Newfoundland and Labrador",'Newfoundland and Labrador'!V337, IF($C$6="Prince Edward Island",'Prince Edward Island'!V337, IF($C$6="NIHB",NIHB!V337, SUM('British Columbia'!V337, Alberta!V337, Saskatchewan!V337, Manitoba!V337, Ontario!V337, 'New Brunswick'!V337, 'Nova Scotia'!V337, 'Newfoundland and Labrador'!V337, 'Prince Edward Island'!V337, NIHB!V337, ) )))))))))) -> 0 | Q29: =IF($C$6="British Columbia",'British Columbia'!W337, IF($C$6="Alberta",Alberta!W337, IF($C$6="Saskatchewan",Saskatchewan!W337, IF($C$6="Manitoba",Manitoba!W337, IF($C$6="Ontario",Ontario!W337, IF($C$6="New Brunswick",'New Brunswick'!W337, IF($C$6="Nova Scotia",'Nova Scotia'!W337, IF($C$6="Newfoundland and Labrador",'Newfoundland and Labrador'!W337, IF($C$6="Prince Edward Island",'Prince Edward Island'!W337, IF($C$6="NIHB",NIHB!W337, SUM('British Columbia'!W337, Alberta!W337, Saskatchewan!W337, Manitoba!W337, Ontario!W337, 'New Brunswick'!W337, 'Nova Scotia'!W337, 'Newfoundland and Labrador'!W337, 'Prince Edward Island'!W337, NIHB!W337, ) )))))))))) -> 0 | R29: =IF($C$6="British Columbia",'British Columbia'!X337, IF($C$6="Alberta",Alberta!X337, IF($C$6="Saskatchewan",Saskatchewan!X337, IF($C$6="Manitoba",Manitoba!X337, IF($C$6="Ontario",Ontario!X337, IF($C$6="New Brunswick",'New Brunswick'!X337, IF($C$6="Nova Scotia",'Nova Scotia'!X337, IF($C$6="Newfoundland and Labrador",'Newfoundland and Labrador'!X337, IF($C$6="Prince Edward Island",'Prince Edward Island'!X337, IF($C$6="NIHB",NIHB!X337, SUM('British Columbia'!X337, Alberta!X337, Saskatchewan!X337, Manitoba!X337, Ontario!X337, 'New Brunswick'!X337, 'Nova Scotia'!X337, 'Newfoundland and Labrador'!X337, 'Prince Edward Island'!X337, NIHB!X337, ) )))))))))) -> 0
C30: =IF(Namedrug5="","Drug 5",Namedrug5) -> Drug 5 | D30: =IF($C$6="British Columbia",'British Columbia'!K338, IF($C$6="Alberta",Alberta!K338, IF($C$6="Saskatchewan",Saskatchewan!K338, IF($C$6="Manitoba",Manitoba!K338, IF($C$6="Ontario",Ontario!K338, IF($C$6="New Brunswick",'New Brunswick'!K338, IF($C$6="Nova Scotia",'Nova Scotia'!K338, IF($C$6="Newfoundland and Labrador",'Newfoundland and Labrador'!K338, IF($C$6="Prince Edward Island",'Prince Edward Island'!K338, IF($C$6="NIHB",NIHB!K338, SUM('British Columbia'!K338, Alberta!K338, Saskatchewan!K338, Manitoba!K338, Ontario!K338, 'New Brunswick'!K338, 'Nova Scotia'!K338, 'Newfoundland and Labrador'!K338, 'Prince Edward Island'!K338, NIHB!K338, ) )))))))))) -> 0 | E30: =IF($C$6="British Columbia",'British Columbia'!L338, IF($C$6="Alberta",Alberta!L338, IF($C$6="Saskatchewan",Saskatchewan!L338, IF($C$6="Manitoba",Manitoba!L338, IF($C$6="Ontario",Ontario!L338, IF($C$6="New Brunswick",'New Brunswick'!L338, IF($C$6="Nova Scotia",'Nova Scotia'!L338, IF($C$6="Newfoundland and Labrador",'Newfoundland and Labrador'!L338, IF($C$6="Prince Edward Island",'Prince Edward Island'!L338, IF($C$6="NIHB",NIHB!L338, SUM('British Columbia'!L338, Alberta!L338, Saskatchewan!L338, Manitoba!L338, Ontario!L338, 'New Brunswick'!L338, 'Nova Scotia'!L338, 'Newfoundland and Labrador'!L338, 'Prince Edward Island'!L338, NIHB!L338, ) )))))))))) -> 0 | F30: =IF($C$6="British Columbia",'British Columbia'!M338, IF($C$6="Alberta",Alberta!M338, IF($C$6="Saskatchewan",Saskatchewan!M338, IF($C$6="Manitoba",Manitoba!M338, IF($C$6="Ontario",Ontario!M338, IF($C$6="New Brunswick",'New Brunswick'!M338, IF($C$6="Nova Scotia",'Nova Scotia'!M338, IF($C$6="Newfoundland and Labrador",'Newfoundland and Labrador'!M338, IF($C$6="Prince Edward Island",'Prince Edward Island'!M338, IF($C$6="NIHB",NIHB!M338, SUM('British Columbia'!M338, Alberta!M338, Saskatchewan!M338, Manitoba!M338, Ontario!M338, 'New Brunswick'!M338, 'Nova Scotia'!M338, 'Newfoundland and Labrador'!M338, 'Prince Edward Island'!M338, NIHB!M338, ) )))))))))) -> 0 | G30: =IF($C$6="British Columbia",'British Columbia'!N338, IF($C$6="Alberta",Alberta!N338, IF($C$6="Saskatchewan",Saskatchewan!N338, IF($C$6="Manitoba",Manitoba!N338, IF($C$6="Ontario",Ontario!N338, IF($C$6="New Brunswick",'New Brunswick'!N338, IF($C$6="Nova Scotia",'Nova Scotia'!N338, IF($C$6="Newfoundland and Labrador",'Newfoundland and Labrador'!N338, IF($C$6="Prince Edward Island",'Prince Edward Island'!N338, IF($C$6="NIHB",NIHB!N338, SUM('British Columbia'!N338, Alberta!N338, Saskatchewan!N338, Manitoba!N338, Ontario!N338, 'New Brunswick'!N338, 'Nova Scotia'!N338, 'Newfoundland and Labrador'!N338, 'Prince Edward Island'!N338, NIHB!N338, ) )))))))))) -> 0 | H30: =IF($C$6="British Columbia",'British Columbia'!O338, IF($C$6="Alberta",Alberta!O338, IF($C$6="Saskatchewan",Saskatchewan!O338, IF($C$6="Manitoba",Manitoba!O338, IF($C$6="Ontario",Ontario!O338, IF($C$6="New Brunswick",'New Brunswick'!O338, IF($C$6="Nova Scotia",'Nova Scotia'!O338, IF($C$6="Newfoundland and Labrador",'Newfoundland and Labrador'!O338, IF($C$6="Prince Edward Island",'Prince Edward Island'!O338, IF($C$6="NIHB",NIHB!O338, SUM('British Columbia'!O338, Alberta!O338, Saskatchewan!O338, Manitoba!O338, Ontario!O338, 'New Brunswick'!O338, 'Nova Scotia'!O338, 'Newfoundland and Labrador'!O338, 'Prince Edward Island'!O338, NIHB!O338, ) )))))))))) -> 0 | I30: =IF($C$6="British Columbia",'British Columbia'!P338, IF($C$6="Alberta",Alberta!P338, IF($C$6="Saskatchewan",Saskatchewan!P338, IF($C$6="Manitoba",Manitoba!P338, IF($C$6="Ontario",Ontario!P338, IF($C$6="New Brunswick",'New Brunswick'!P338, IF($C$6="Nova Scotia",'Nova Scotia'!P338, IF($C$6="Newfoundland and Labrador",'Newfoundland and Labrador'!P338, IF($C$6="Prince Edward Island",'Prince Edward Island'!P338, IF($C$6="NIHB",NIHB!P338, SUM('British Columbia'!P338, Alberta!P338, Saskatchewan!P338, Manitoba!P338, Ontario!P338, 'New Brunswick'!P338, 'Nova Scotia'!P338, 'Newfoundland and Labrador'!P338, 'Prince Edward Island'!P338, NIHB!P338, ) )))))))))) -> 0 | L30: =IF(Namedrug5="","Drug 5",Namedrug5) -> Drug 5 | M30: =IF($C$6="British Columbia",'British Columbia'!S338, IF($C$6="Alberta",Alberta!S338, IF($C$6="Saskatchewan",Saskatchewan!S338, IF($C$6="Manitoba",Manitoba!S338, IF($C$6="Ontario",Ontario!S338, IF($C$6="New Brunswick",'New Brunswick'!S338, IF($C$6="Nova Scotia",'Nova Scotia'!S338, IF($C$6="Newfoundland and Labrador",'Newfoundland and Labrador'!S338, IF($C$6="Prince Edward Island",'Prince Edward Island'!S338, IF($C$6="NIHB",NIHB!S338, SUM('British Columbia'!S338, Alberta!S338, Saskatchewan!S338, Manitoba!S338, Ontario!S338, 'New Brunswick'!S338, 'Nova Scotia'!S338, 'Newfoundland and Labrador'!S338, 'Prince Edward Island'!S338, NIHB!S338, ) )))))))))) -> 0 | N30: =IF($C$6="British Columbia",'British Columbia'!T338, IF($C$6="Alberta",Alberta!T338, IF($C$6="Saskatchewan",Saskatchewan!T338, IF($C$6="Manitoba",Manitoba!T338, IF($C$6="Ontario",Ontario!T338, IF($C$6="New Brunswick",'New Brunswick'!T338, IF($C$6="Nova Scotia",'Nova Scotia'!T338, IF($C$6="Newfoundland and Labrador",'Newfoundland and Labrador'!T338, IF($C$6="Prince Edward Island",'Prince Edward Island'!T338, IF($C$6="NIHB",NIHB!T338, SUM('British Columbia'!T338, Alberta!T338, Saskatchewan!T338, Manitoba!T338, Ontario!T338, 'New Brunswick'!T338, 'Nova Scotia'!T338, 'Newfoundland and Labrador'!T338, 'Prince Edward Island'!T338, NIHB!T338, ) )))))))))) -> 0 | O30: =IF($C$6="British Columbia",'British Columbia'!U338, IF($C$6="Alberta",Alberta!U338, IF($C$6="Saskatchewan",Saskatchewan!U338, IF($C$6="Manitoba",Manitoba!U338, IF($C$6="Ontario",Ontario!U338, IF($C$6="New Brunswick",'New Brunswick'!U338, IF($C$6="Nova Scotia",'Nova Scotia'!U338, IF($C$6="Newfoundland and Labrador",'Newfoundland and Labrador'!U338, IF($C$6="Prince Edward Island",'Prince Edward Island'!U338, IF($C$6="NIHB",NIHB!U338, SUM('British Columbia'!U338, Alberta!U338, Saskatchewan!U338, Manitoba!U338, Ontario!U338, 'New Brunswick'!U338, 'Nova Scotia'!U338, 'Newfoundland and Labrador'!U338, 'Prince Edward Island'!U338, NIHB!U338, ) )))))))))) -> 0 | P30: =IF($C$6="British Columbia",'British Columbia'!V338, IF($C$6="Alberta",Alberta!V338, IF($C$6="Saskatchewan",Saskatchewan!V338, IF($C$6="Manitoba",Manitoba!V338, IF($C$6="Ontario",Ontario!V338, IF($C$6="New Brunswick",'New Brunswick'!V338, IF($C$6="Nova Scotia",'Nova Scotia'!V338, IF($C$6="Newfoundland and Labrador",'Newfoundland and Labrador'!V338, IF($C$6="Prince Edward Island",'Prince Edward Island'!V338, IF($C$6="NIHB",NIHB!V338, SUM('British Columbia'!V338, Alberta!V338, Saskatchewan!V338, Manitoba!V338, Ontario!V338, 'New Brunswick'!V338, 'Nova Scotia'!V338, 'Newfoundland and Labrador'!V338, 'Prince Edward Island'!V338, NIHB!V338, ) )))))))))) -> 0 | Q30: =IF($C$6="British Columbia",'British Columbia'!W338, IF($C$6="Alberta",Alberta!W338, IF($C$6="Saskatchewan",Saskatchewan!W338, IF($C$6="Manitoba",Manitoba!W338, IF($C$6="Ontario",Ontario!W338, IF($C$6="New Brunswick",'New Brunswick'!W338, IF($C$6="Nova Scotia",'Nova Scotia'!W338, IF($C$6="Newfoundland and Labrador",'Newfoundland and Labrador'!W338, IF($C$6="Prince Edward Island",'Prince Edward Island'!W338, IF($C$6="NIHB",NIHB!W338, SUM('British Columbia'!W338, Alberta!W338, Saskatchewan!W338, Manitoba!W338, Ontario!W338, 'New Brunswick'!W338, 'Nova Scotia'!W338, 'Newfoundland and Labrador'!W338, 'Prince Edward Island'!W338, NIHB!W338, ) )))))))))) -> 0 | R30: =IF($C$6="British Columbia",'British Columbia'!X338, IF($C$6="Alberta",Alberta!X338, IF($C$6="Saskatchewan",Saskatchewan!X338, IF($C$6="Manitoba",Manitoba!X338, IF($C$6="Ontario",Ontario!X338, IF($C$6="New Brunswick",'New Brunswick'!X338, IF($C$6="Nova Scotia",'Nova Scotia'!X338, IF($C$6="Newfoundland and Labrador",'Newfoundland and Labrador'!X338, IF($C$6="Prince Edward Island",'Prince Edward Island'!X338, IF($C$6="NIHB",NIHB!X338, SUM('British Columbia'!X338, Alberta!X338, Saskatchewan!X338, Manitoba!X338, Ontario!X338, 'New Brunswick'!X338, 'Nova Scotia'!X338, 'Newfoundland and Labrador'!X338, 'Prince Edward Island'!X338, NIHB!X338, ) )))))))))) -> 0
C31: =IF(Namedrug6="","Drug 6",Namedrug7) -> Drug 6 | D31: =IF($C$6="British Columbia",'British Columbia'!K339, IF($C$6="Alberta",Alberta!K339, IF($C$6="Saskatchewan",Saskatchewan!K339, IF($C$6="Manitoba",Manitoba!K339, IF($C$6="Ontario",Ontario!K339, IF($C$6="New Brunswick",'New Brunswick'!K339, IF($C$6="Nova Scotia",'Nova Scotia'!K339, IF($C$6="Newfoundland and Labrador",'Newfoundland and Labrador'!K339, IF($C$6="Prince Edward Island",'Prince Edward Island'!K339, IF($C$6="NIHB",NIHB!K339, SUM('British Columbia'!K339, Alberta!K339, Saskatchewan!K339, Manitoba!K339, Ontario!K339, 'New Brunswick'!K339, 'Nova Scotia'!K339, 'Newfoundland and Labrador'!K339, 'Prince Edward Island'!K339, NIHB!K339, ) )))))))))) -> 0 | E31: =IF($C$6="British Columbia",'British Columbia'!L339, IF($C$6="Alberta",Alberta!L339, IF($C$6="Saskatchewan",Saskatchewan!L339, IF($C$6="Manitoba",Manitoba!L339, IF($C$6="Ontario",Ontario!L339, IF($C$6="New Brunswick",'New Brunswick'!L339, IF($C$6="Nova Scotia",'Nova Scotia'!L339, IF($C$6="Newfoundland and Labrador",'Newfoundland and Labrador'!L339, IF($C$6="Prince Edward Island",'Prince Edward Island'!L339, IF($C$6="NIHB",NIHB!L339, SUM('British Columbia'!L339, Alberta!L339, Saskatchewan!L339, Manitoba!L339, Ontario!L339, 'New Brunswick'!L339, 'Nova Scotia'!L339, 'Newfoundland and Labrador'!L339, 'Prince Edward Island'!L339, NIHB!L339, ) )))))))))) -> 0 | F31: =IF($C$6="British Columbia",'British Columbia'!M339, IF($C$6="Alberta",Alberta!M339, IF($C$6="Saskatchewan",Saskatchewan!M339, IF($C$6="Manitoba",Manitoba!M339, IF($C$6="Ontario",Ontario!M339, IF($C$6="New Brunswick",'New Brunswick'!M339, IF($C$6="Nova Scotia",'Nova Scotia'!M339, IF($C$6="Newfoundland and Labrador",'Newfoundland and Labrador'!M339, IF($C$6="Prince Edward Island",'Prince Edward Island'!M339, IF($C$6="NIHB",NIHB!M339, SUM('British Columbia'!M339, Alberta!M339, Saskatchewan!M339, Manitoba!M339, Ontario!M339, 'New Brunswick'!M339, 'Nova Scotia'!M339, 'Newfoundland and Labrador'!M339, 'Prince Edward Island'!M339, NIHB!M339, ) )))))))))) -> 0 | G31: =IF($C$6="British Columbia",'British Columbia'!N339, IF($C$6="Alberta",Alberta!N339, IF($C$6="Saskatchewan",Saskatchewan!N339, IF($C$6="Manitoba",Manitoba!N339, IF($C$6="Ontario",Ontario!N339, IF($C$6="New Brunswick",'New Brunswick'!N339, IF($C$6="Nova Scotia",'Nova Scotia'!N339, IF($C$6="Newfoundland and Labrador",'Newfoundland and Labrador'!N339, IF($C$6="Prince Edward Island",'Prince Edward Island'!N339, IF($C$6="NIHB",NIHB!N339, SUM('British Columbia'!N339, Alberta!N339, Saskatchewan!N339, Manitoba!N339, Ontario!N339, 'New Brunswick'!N339, 'Nova Scotia'!N339, 'Newfoundland and Labrador'!N339, 'Prince Edward Island'!N339, NIHB!N339, ) )))))))))) -> 0 | H31: =IF($C$6="British Columbia",'British Columbia'!O339, IF($C$6="Alberta",Alberta!O339, IF($C$6="Saskatchewan",Saskatchewan!O339, IF($C$6="Manitoba",Manitoba!O339, IF($C$6="Ontario",Ontario!O339, IF($C$6="New Brunswick",'New Brunswick'!O339, IF($C$6="Nova Scotia",'Nova Scotia'!O339, IF($C$6="Newfoundland and Labrador",'Newfoundland and Labrador'!O339, IF($C$6="Prince Edward Island",'Prince Edward Island'!O339, IF($C$6="NIHB",NIHB!O339, SUM('British Columbia'!O339, Alberta!O339, Saskatchewan!O339, Manitoba!O339, Ontario!O339, 'New Brunswick'!O339, 'Nova Scotia'!O339, 'Newfoundland and Labrador'!O339, 'Prince Edward Island'!O339, NIHB!O339, ) )))))))))) -> 0 | I31: =IF($C$6="British Columbia",'British Columbia'!P339, IF($C$6="Alberta",Alberta!P339, IF($C$6="Saskatchewan",Saskatchewan!P339, IF($C$6="Manitoba",Manitoba!P339, IF($C$6="Ontario",Ontario!P339, IF($C$6="New Brunswick",'New Brunswick'!P339, IF($C$6="Nova Scotia",'Nova Scotia'!P339, IF($C$6="Newfoundland and Labrador",'Newfoundland and Labrador'!P339, IF($C$6="Prince Edward Island",'Prince Edward Island'!P339, IF($C$6="NIHB",NIHB!P339, SUM('British Columbia'!P339, Alberta!P339, Saskatchewan!P339, Manitoba!P339, Ontario!P339, 'New Brunswick'!P339, 'Nova Scotia'!P339, 'Newfoundland and Labrador'!P339, 'Prince Edward Island'!P339, NIHB!P339, ) )))))))))) -> 0 | L31: =IF(Namedrug6="","Drug 6",Namedrug7) -> Drug 6 | M31: =IF($C$6="British Columbia",'British Columbia'!S339, IF($C$6="Alberta",Alberta!S339, IF($C$6="Saskatchewan",Saskatchewan!S339, IF($C$6="Manitoba",Manitoba!S339, IF($C$6="Ontario",Ontario!S339, IF($C$6="New Brunswick",'New Brunswick'!S339, IF($C$6="Nova Scotia",'Nova Scotia'!S339, IF($C$6="Newfoundland and Labrador",'Newfoundland and Labrador'!S339, IF($C$6="Prince Edward Island",'Prince Edward Island'!S339, IF($C$6="NIHB",NIHB!S339, SUM('British Columbia'!S339, Alberta!S339, Saskatchewan!S339, Manitoba!S339, Ontario!S339, 'New Brunswick'!S339, 'Nova Scotia'!S339, 'Newfoundland and Labrador'!S339, 'Prince Edward Island'!S339, NIHB!S339, ) )))))))))) -> 0 | N31: =IF($C$6="British Columbia",'British Columbia'!T339, IF($C$6="Alberta",Alberta!T339, IF($C$6="Saskatchewan",Saskatchewan!T339, IF($C$6="Manitoba",Manitoba!T339, IF($C$6="Ontario",Ontario!T339, IF($C$6="New Brunswick",'New Brunswick'!T339, IF($C$6="Nova Scotia",'Nova Scotia'!T339, IF($C$6="Newfoundland and Labrador",'Newfoundland and Labrador'!T339, IF($C$6="Prince Edward Island",'Prince Edward Island'!T339, IF($C$6="NIHB",NIHB!T339, SUM('British Columbia'!T339, Alberta!T339, Saskatchewan!T339, Manitoba!T339, Ontario!T339, 'New Brunswick'!T339, 'Nova Scotia'!T339, 'Newfoundland and Labrador'!T339, 'Prince Edward Island'!T339, NIHB!T339, ) )))))))))) -> 0 | O31: =IF($C$6="British Columbia",'British Columbia'!U339, IF($C$6="Alberta",Alberta!U339, IF($C$6="Saskatchewan",Saskatchewan!U339, IF($C$6="Manitoba",Manitoba!U339, IF($C$6="Ontario",Ontario!U339, IF($C$6="New Brunswick",'New Brunswick'!U339, IF($C$6="Nova Scotia",'Nova Scotia'!U339, IF($C$6="Newfoundland and Labrador",'Newfoundland and Labrador'!U339, IF($C$6="Prince Edward Island",'Prince Edward Island'!U339, IF($C$6="NIHB",NIHB!U339, SUM('British Columbia'!U339, Alberta!U339, Saskatchewan!U339, Manitoba!U339, Ontario!U339, 'New Brunswick'!U339, 'Nova Scotia'!U339, 'Newfoundland and Labrador'!U339, 'Prince Edward Island'!U339, NIHB!U339, ) )))))))))) -> 0 | P31: =IF($C$6="British Columbia",'British Columbia'!V339, IF($C$6="Alberta",Alberta!V339, IF($C$6="Saskatchewan",Saskatchewan!V339, IF($C$6="Manitoba",Manitoba!V339, IF($C$6="Ontario",Ontario!V339, IF($C$6="New Brunswick",'New Brunswick'!V339, IF($C$6="Nova Scotia",'Nova Scotia'!V339, IF($C$6="Newfoundland and Labrador",'Newfoundland and Labrador'!V339, IF($C$6="Prince Edward Island",'Prince Edward Island'!V339, IF($C$6="NIHB",NIHB!V339, SUM('British Columbia'!V339, Alberta!V339, Saskatchewan!V339, Manitoba!V339, Ontario!V339, 'New Brunswick'!V339, 'Nova Scotia'!V339, 'Newfoundland and Labrador'!V339, 'Prince Edward Island'!V339, NIHB!V339, ) )))))))))) -> 0 | Q31: =IF($C$6="British Columbia",'British Columbia'!W339, IF($C$6="Alberta",Alberta!W339, IF($C$6="Saskatchewan",Saskatchewan!W339, IF($C$6="Manitoba",Manitoba!W339, IF($C$6="Ontario",Ontario!W339, IF($C$6="New Brunswick",'New Brunswick'!W339, IF($C$6="Nova Scotia",'Nova Scotia'!W339, IF($C$6="Newfoundland and Labrador",'Newfoundland and Labrador'!W339, IF($C$6="Prince Edward Island",'Prince Edward Island'!W339, IF($C$6="NIHB",NIHB!W339, SUM('British Columbia'!W339, Alberta!W339, Saskatchewan!W339, Manitoba!W339, Ontario!W339, 'New Brunswick'!W339, 'Nova Scotia'!W339, 'Newfoundland and Labrador'!W339, 'Prince Edward Island'!W339, NIHB!W339, ) )))))))))) -> 0 | R31: =IF($C$6="British Columbia",'British Columbia'!X339, IF($C$6="Alberta",Alberta!X339, IF($C$6="Saskatchewan",Saskatchewan!X339, IF($C$6="Manitoba",Manitoba!X339, IF($C$6="Ontario",Ontario!X339, IF($C$6="New Brunswick",'New Brunswick'!X339, IF($C$6="Nova Scotia",'Nova Scotia'!X339, IF($C$6="Newfoundland and Labrador",'Newfoundland and Labrador'!X339, IF($C$6="Prince Edward Island",'Prince Edward Island'!X339, IF($C$6="NIHB",NIHB!X339, SUM('British Columbia'!X339, Alberta!X339, Saskatchewan!X339, Manitoba!X339, Ontario!X339, 'New Brunswick'!X339, 'Nova Scotia'!X339, 'Newfoundland and Labrador'!X339, 'Prince Edward Island'!X339, NIHB!X339, ) )))))))))) -> 0
C32: =IF(Namedrug7="","Drug 7",Namedrug7) -> Drug 7 | D32: =IF($C$6="British Columbia",'British Columbia'!K340, IF($C$6="Alberta",Alberta!K340, IF($C$6="Saskatchewan",Saskatchewan!K340, IF($C$6="Manitoba",Manitoba!K340, IF($C$6="Ontario",Ontario!K340, IF($C$6="New Brunswick",'New Brunswick'!K340, IF($C$6="Nova Scotia",'Nova Scotia'!K340, IF($C$6="Newfoundland and Labrador",'Newfoundland and Labrador'!K340, IF($C$6="Prince Edward Island",'Prince Edward Island'!K340, IF($C$6="NIHB",NIHB!K340, SUM('British Columbia'!K340, Alberta!K340, Saskatchewan!K340, Manitoba!K340, Ontario!K340, 'New Brunswick'!K340, 'Nova Scotia'!K340, 'Newfoundland and Labrador'!K340, 'Prince Edward Island'!K340, NIHB!K340, ) )))))))))) -> 0 | E32: =IF($C$6="British Columbia",'British Columbia'!L340, IF($C$6="Alberta",Alberta!L340, IF($C$6="Saskatchewan",Saskatchewan!L340, IF($C$6="Manitoba",Manitoba!L340, IF($C$6="Ontario",Ontario!L340, IF($C$6="New Brunswick",'New Brunswick'!L340, IF($C$6="Nova Scotia",'Nova Scotia'!L340, IF($C$6="Newfoundland and Labrador",'Newfoundland and Labrador'!L340, IF($C$6="Prince Edward Island",'Prince Edward Island'!L340, IF($C$6="NIHB",NIHB!L340, SUM('British Columbia'!L340, Alberta!L340, Saskatchewan!L340, Manitoba!L340, Ontario!L340, 'New Brunswick'!L340, 'Nova Scotia'!L340, 'Newfoundland and Labrador'!L340, 'Prince Edward Island'!L340, NIHB!L340, ) )))))))))) -> 0 | F32: =IF($C$6="British Columbia",'British Columbia'!M340, IF($C$6="Alberta",Alberta!M340, IF($C$6="Saskatchewan",Saskatchewan!M340, IF($C$6="Manitoba",Manitoba!M340, IF($C$6="Ontario",Ontario!M340, IF($C$6="New Brunswick",'New Brunswick'!M340, IF($C$6="Nova Scotia",'Nova Scotia'!M340, IF($C$6="Newfoundland and Labrador",'Newfoundland and Labrador'!M340, IF($C$6="Prince Edward Island",'Prince Edward Island'!M340, IF($C$6="NIHB",NIHB!M340, SUM('British Columbia'!M340, Alberta!M340, Saskatchewan!M340, Manitoba!M340, Ontario!M340, 'New Brunswick'!M340, 'Nova Scotia'!M340, 'Newfoundland and Labrador'!M340, 'Prince Edward Island'!M340, NIHB!M340, ) )))))))))) -> 0 | G32: =IF($C$6="British Columbia",'British Columbia'!N340, IF($C$6="Alberta",Alberta!N340, IF($C$6="Saskatchewan",Saskatchewan!N340, IF($C$6="Manitoba",Manitoba!N340, IF($C$6="Ontario",Ontario!N340, IF($C$6="New Brunswick",'New Brunswick'!N340, IF($C$6="Nova Scotia",'Nova Scotia'!N340, IF($C$6="Newfoundland and Labrador",'Newfoundland and Labrador'!N340, IF($C$6="Prince Edward Island",'Prince Edward Island'!N340, IF($C$6="NIHB",NIHB!N340, SUM('British Columbia'!N340, Alberta!N340, Saskatchewan!N340, Manitoba!N340, Ontario!N340, 'New Brunswick'!N340, 'Nova Scotia'!N340, 'Newfoundland and Labrador'!N340, 'Prince Edward Island'!N340, NIHB!N340, ) )))))))))) -> 0 | H32: =IF($C$6="British Columbia",'British Columbia'!O340, IF($C$6="Alberta",Alberta!O340, IF($C$6="Saskatchewan",Saskatchewan!O340, IF($C$6="Manitoba",Manitoba!O340, IF($C$6="Ontario",Ontario!O340, IF($C$6="New Brunswick",'New Brunswick'!O340, IF($C$6="Nova Scotia",'Nova Scotia'!O340, IF($C$6="Newfoundland and Labrador",'Newfoundland and Labrador'!O340, IF($C$6="Prince Edward Island",'Prince Edward Island'!O340, IF($C$6="NIHB",NIHB!O340, SUM('British Columbia'!O340, Alberta!O340, Saskatchewan!O340, Manitoba!O340, Ontario!O340, 'New Brunswick'!O340, 'Nova Scotia'!O340, 'Newfoundland and Labrador'!O340, 'Prince Edward Island'!O340, NIHB!O340, ) )))))))))) -> 0 | I32: =IF($C$6="British Columbia",'British Columbia'!P340, IF($C$6="Alberta",Alberta!P340, IF($C$6="Saskatchewan",Saskatchewan!P340, IF($C$6="Manitoba",Manitoba!P340, IF($C$6="Ontario",Ontario!P340, IF($C$6="New Brunswick",'New Brunswick'!P340, IF($C$6="Nova Scotia",'Nova Scotia'!P340, IF($C$6="Newfoundland and Labrador",'Newfoundland and Labrador'!P340, IF($C$6="Prince Edward Island",'Prince Edward Island'!P340, IF($C$6="NIHB",NIHB!P340, SUM('British Columbia'!P340, Alberta!P340, Saskatchewan!P340, Manitoba!P340, Ontario!P340, 'New Brunswick'!P340, 'Nova Scotia'!P340, 'Newfoundland and Labrador'!P340, 'Prince Edward Island'!P340, NIHB!P340, ) )))))))))) -> 0 | L32: =IF(Namedrug7="","Drug 7",Namedrug7) -> Drug 7 | M32: =IF($C$6="British Columbia",'British Columbia'!S340, IF($C$6="Alberta",Alberta!S340, IF($C$6="Saskatchewan",Saskatchewan!S340, IF($C$6="Manitoba",Manitoba!S340, IF($C$6="Ontario",Ontario!S340, IF($C$6="New Brunswick",'New Brunswick'!S340, IF($C$6="Nova Scotia",'Nova Scotia'!S340, IF($C$6="Newfoundland and Labrador",'Newfoundland and Labrador'!S340, IF($C$6="Prince Edward Island",'Prince Edward Island'!S340, IF($C$6="NIHB",NIHB!S340, SUM('British Columbia'!S340, Alberta!S340, Saskatchewan!S340, Manitoba!S340, Ontario!S340, 'New Brunswick'!S340, 'Nova Scotia'!S340, 'Newfoundland and Labrador'!S340, 'Prince Edward Island'!S340, NIHB!S340, ) )))))))))) -> 0 | N32: =IF($C$6="British Columbia",'British Columbia'!T340, IF($C$6="Alberta",Alberta!T340, IF($C$6="Saskatchewan",Saskatchewan!T340, IF($C$6="Manitoba",Manitoba!T340, IF($C$6="Ontario",Ontario!T340, IF($C$6="New Brunswick",'New Brunswick'!T340, IF($C$6="Nova Scotia",'Nova Scotia'!T340, IF($C$6="Newfoundland and Labrador",'Newfoundland and Labrador'!T340, IF($C$6="Prince Edward Island",'Prince Edward Island'!T340, IF($C$6="NIHB",NIHB!T340, SUM('British Columbia'!T340, Alberta!T340, Saskatchewan!T340, Manitoba!T340, Ontario!T340, 'New Brunswick'!T340, 'Nova Scotia'!T340, 'Newfoundland and Labrador'!T340, 'Prince Edward Island'!T340, NIHB!T340, ) )))))))))) -> 0 | O32: =IF($C$6="British Columbia",'British Columbia'!U340, IF($C$6="Alberta",Alberta!U340, IF($C$6="Saskatchewan",Saskatchewan!U340, IF($C$6="Manitoba",Manitoba!U340, IF($C$6="Ontario",Ontario!U340, IF($C$6="New Brunswick",'New Brunswick'!U340, IF($C$6="Nova Scotia",'Nova Scotia'!U340, IF($C$6="Newfoundland and Labrador",'Newfoundland and Labrador'!U340, IF($C$6="Prince Edward Island",'Prince Edward Island'!U340, IF($C$6="NIHB",NIHB!U340, SUM('British Columbia'!U340, Alberta!U340, Saskatchewan!U340, Manitoba!U340, Ontario!U340, 'New Brunswick'!U340, 'Nova Scotia'!U340, 'Newfoundland and Labrador'!U340, 'Prince Edward Island'!U340, NIHB!U340, ) )))))))))) -> 0 | P32: =IF($C$6="British Columbia",'British Columbia'!V340, IF($C$6="Alberta",Alberta!V340, IF($C$6="Saskatchewan",Saskatchewan!V340, IF($C$6="Manitoba",Manitoba!V340, IF($C$6="Ontario",Ontario!V340, IF($C$6="New Brunswick",'New Brunswick'!V340, IF($C$6="Nova Scotia",'Nova Scotia'!V340, IF($C$6="Newfoundland and Labrador",'Newfoundland and Labrador'!V340, IF($C$6="Prince Edward Island",'Prince Edward Island'!V340, IF($C$6="NIHB",NIHB!V340, SUM('British Columbia'!V340, Alberta!V340, Saskatchewan!V340, Manitoba!V340, Ontario!V340, 'New Brunswick'!V340, 'Nova Scotia'!V340, 'Newfoundland and Labrador'!V340, 'Prince Edward Island'!V340, NIHB!V340, ) )))))))))) -> 0 | Q32: =IF($C$6="British Columbia",'British Columbia'!W340, IF($C$6="Alberta",Alberta!W340, IF($C$6="Saskatchewan",Saskatchewan!W340, IF($C$6="Manitoba",Manitoba!W340, IF($C$6="Ontario",Ontario!W340, IF($C$6="New Brunswick",'New Brunswick'!W340, IF($C$6="Nova Scotia",'Nova Scotia'!W340, IF($C$6="Newfoundland and Labrador",'Newfoundland and Labrador'!W340, IF($C$6="Prince Edward Island",'Prince Edward Island'!W340, IF($C$6="NIHB",NIHB!W340, SUM('British Columbia'!W340, Alberta!W340, Saskatchewan!W340, Manitoba!W340, Ontario!W340, 'New Brunswick'!W340, 'Nova Scotia'!W340, 'Newfoundland and Labrador'!W340, 'Prince Edward Island'!W340, NIHB!W340, ) )))))))))) -> 0 | R32: =IF($C$6="British Columbia",'British Columbia'!X340, IF($C$6="Alberta",Alberta!X340, IF($C$6="Saskatchewan",Saskatchewan!X340, IF($C$6="Manitoba",Manitoba!X340, IF($C$6="Ontario",Ontario!X340, IF($C$6="New Brunswick",'New Brunswick'!X340, IF($C$6="Nova Scotia",'Nova Scotia'!X340, IF($C$6="Newfoundland and Labrador",'Newfoundland and Labrador'!X340, IF($C$6="Prince Edward Island",'Prince Edward Island'!X340, IF($C$6="NIHB",NIHB!X340, SUM('British Columbia'!X340, Alberta!X340, Saskatchewan!X340, Manitoba!X340, Ontario!X340, 'New Brunswick'!X340, 'Nova Scotia'!X340, 'Newfoundland and Labrador'!X340, 'Prince Edward Island'!X340, NIHB!X340, ) )))))))))) -> 0
C33: =IF(Namedrug8="","Drug 8",Namedrug8) -> Drug 8 | D33: =IF($C$6="British Columbia",'British Columbia'!K341, IF($C$6="Alberta",Alberta!K341, IF($C$6="Saskatchewan",Saskatchewan!K341, IF($C$6="Manitoba",Manitoba!K341, IF($C$6="Ontario",Ontario!K341, IF($C$6="New Brunswick",'New Brunswick'!K341, IF($C$6="Nova Scotia",'Nova Scotia'!K341, IF($C$6="Newfoundland and Labrador",'Newfoundland and Labrador'!K341, IF($C$6="Prince Edward Island",'Prince Edward Island'!K341, IF($C$6="NIHB",NIHB!K341, SUM('British Columbia'!K341, Alberta!K341, Saskatchewan!K341, Manitoba!K341, Ontario!K341, 'New Brunswick'!K341, 'Nova Scotia'!K341, 'Newfoundland and Labrador'!K341, 'Prince Edward Island'!K341, NIHB!K341, ) )))))))))) -> 0 | E33: =IF($C$6="British Columbia",'British Columbia'!L341, IF($C$6="Alberta",Alberta!L341, IF($C$6="Saskatchewan",Saskatchewan!L341, IF($C$6="Manitoba",Manitoba!L341, IF($C$6="Ontario",Ontario!L341, IF($C$6="New Brunswick",'New Brunswick'!L341, IF($C$6="Nova Scotia",'Nova Scotia'!L341, IF($C$6="Newfoundland and Labrador",'Newfoundland and Labrador'!L341, IF($C$6="Prince Edward Island",'Prince Edward Island'!L341, IF($C$6="NIHB",NIHB!L341, SUM('British Columbia'!L341, Alberta!L341, Saskatchewan!L341, Manitoba!L341, Ontario!L341, 'New Brunswick'!L341, 'Nova Scotia'!L341, 'Newfoundland and Labrador'!L341, 'Prince Edward Island'!L341, NIHB!L341, ) )))))))))) -> 0 | F33: =IF($C$6="British Columbia",'British Columbia'!M341, IF($C$6="Alberta",Alberta!M341, IF($C$6="Saskatchewan",Saskatchewan!M341, IF($C$6="Manitoba",Manitoba!M341, IF($C$6="Ontario",Ontario!M341, IF($C$6="New Brunswick",'New Brunswick'!M341, IF($C$6="Nova Scotia",'Nova Scotia'!M341, IF($C$6="Newfoundland and Labrador",'Newfoundland and Labrador'!M341, IF($C$6="Prince Edward Island",'Prince Edward Island'!M341, IF($C$6="NIHB",NIHB!M341, SUM('British Columbia'!M341, Alberta!M341, Saskatchewan!M341, Manitoba!M341, Ontario!M341, 'New Brunswick'!M341, 'Nova Scotia'!M341, 'Newfoundland and Labrador'!M341, 'Prince Edward Island'!M341, NIHB!M341, ) )))))))))) -> 0 | G33: =IF($C$6="British Columbia",'British Columbia'!N341, IF($C$6="Alberta",Alberta!N341, IF($C$6="Saskatchewan",Saskatchewan!N341, IF($C$6="Manitoba",Manitoba!N341, IF($C$6="Ontario",Ontario!N341, IF($C$6="New Brunswick",'New Brunswick'!N341, IF($C$6="Nova Scotia",'Nova Scotia'!N341, IF($C$6="Newfoundland and Labrador",'Newfoundland and Labrador'!N341, IF($C$6="Prince Edward Island",'Prince Edward Island'!N341, IF($C$6="NIHB",NIHB!N341, SUM('British Columbia'!N341, Alberta!N341, Saskatchewan!N341, Manitoba!N341, Ontario!N341, 'New Brunswick'!N341, 'Nova Scotia'!N341, 'Newfoundland and Labrador'!N341, 'Prince Edward Island'!N341, NIHB!N341, ) )))))))))) -> 0 | H33: =IF($C$6="British Columbia",'British Columbia'!O341, IF($C$6="Alberta",Alberta!O341, IF($C$6="Saskatchewan",Saskatchewan!O341, IF($C$6="Manitoba",Manitoba!O341, IF($C$6="Ontario",Ontario!O341, IF($C$6="New Brunswick",'New Brunswick'!O341, IF($C$6="Nova Scotia",'Nova Scotia'!O341, IF($C$6="Newfoundland and Labrador",'Newfoundland and Labrador'!O341, IF($C$6="Prince Edward Island",'Prince Edward Island'!O341, IF($C$6="NIHB",NIHB!O341, SUM('British Columbia'!O341, Alberta!O341, Saskatchewan!O341, Manitoba!O341, Ontario!O341, 'New Brunswick'!O341, 'Nova Scotia'!O341, 'Newfoundland and Labrador'!O341, 'Prince Edward Island'!O341, NIHB!O341, ) )))))))))) -> 0 | I33: =IF($C$6="British Columbia",'British Columbia'!P341, IF($C$6="Alberta",Alberta!P341, IF($C$6="Saskatchewan",Saskatchewan!P341, IF($C$6="Manitoba",Manitoba!P341, IF($C$6="Ontario",Ontario!P341, IF($C$6="New Brunswick",'New Brunswick'!P341, IF($C$6="Nova Scotia",'Nova Scotia'!P341, IF($C$6="Newfoundland and Labrador",'Newfoundland and Labrador'!P341, IF($C$6="Prince Edward Island",'Prince Edward Island'!P341, IF($C$6="NIHB",NIHB!P341, SUM('British Columbia'!P341, Alberta!P341, Saskatchewan!P341, Manitoba!P341, Ontario!P341, 'New Brunswick'!P341, 'Nova Scotia'!P341, 'Newfoundland and Labrador'!P341, 'Prince Edward Island'!P341, NIHB!P341, ) )))))))))) -> 0 | L33: =IF(Namedrug8="","Drug 8",Namedrug8) -> Drug 8 | M33: =IF($C$6="British Columbia",'British Columbia'!S341, IF($C$6="Alberta",Alberta!S341, IF($C$6="Saskatchewan",Saskatchewan!S341, IF($C$6="Manitoba",Manitoba!S341, IF($C$6="Ontario",Ontario!S341, IF($C$6="New Brunswick",'New Brunswick'!S341, IF($C$6="Nova Scotia",'Nova Scotia'!S341, IF($C$6="Newfoundland and Labrador",'Newfoundland and Labrador'!S341, IF($C$6="Prince Edward Island",'Prince Edward Island'!S341, IF($C$6="NIHB",NIHB!S341, SUM('British Columbia'!S341, Alberta!S341, Saskatchewan!S341, Manitoba!S341, Ontario!S341, 'New Brunswick'!S341, 'Nova Scotia'!S341, 'Newfoundland and Labrador'!S341, 'Prince Edward Island'!S341, NIHB!S341, ) )))))))))) -> 0 | N33: =IF($C$6="British Columbia",'British Columbia'!T341, IF($C$6="Alberta",Alberta!T341, IF($C$6="Saskatchewan",Saskatchewan!T341, IF($C$6="Manitoba",Manitoba!T341, IF($C$6="Ontario",Ontario!T341, IF($C$6="New Brunswick",'New Brunswick'!T341, IF($C$6="Nova Scotia",'Nova Scotia'!T341, IF($C$6="Newfoundland and Labrador",'Newfoundland and Labrador'!T341, IF($C$6="Prince Edward Island",'Prince Edward Island'!T341, IF($C$6="NIHB",NIHB!T341, SUM('British Columbia'!T341, Alberta!T341, Saskatchewan!T341, Manitoba!T341, Ontario!T341, 'New Brunswick'!T341, 'Nova Scotia'!T341, 'Newfoundland and Labrador'!T341, 'Prince Edward Island'!T341, NIHB!T341, ) )))))))))) -> 0 | O33: =IF($C$6="British Columbia",'British Columbia'!U341, IF($C$6="Alberta",Alberta!U341, IF($C$6="Saskatchewan",Saskatchewan!U341, IF($C$6="Manitoba",Manitoba!U341, IF($C$6="Ontario",Ontario!U341, IF($C$6="New Brunswick",'New Brunswick'!U341, IF($C$6="Nova Scotia",'Nova Scotia'!U341, IF($C$6="Newfoundland and Labrador",'Newfoundland and Labrador'!U341, IF($C$6="Prince Edward Island",'Prince Edward Island'!U341, IF($C$6="NIHB",NIHB!U341, SUM('British Columbia'!U341, Alberta!U341, Saskatchewan!U341, Manitoba!U341, Ontario!U341, 'New Brunswick'!U341, 'Nova Scotia'!U341, 'Newfoundland and Labrador'!U341, 'Prince Edward Island'!U341, NIHB!U341, ) )))))))))) -> 0 | P33: =IF($C$6="British Columbia",'British Columbia'!V341, IF($C$6="Alberta",Alberta!V341, IF($C$6="Saskatchewan",Saskatchewan!V341, IF($C$6="Manitoba",Manitoba!V341, IF($C$6="Ontario",Ontario!V341, IF($C$6="New Brunswick",'New Brunswick'!V341, IF($C$6="Nova Scotia",'Nova Scotia'!V341, IF($C$6="Newfoundland and Labrador",'Newfoundland and Labrador'!V341, IF($C$6="Prince Edward Island",'Prince Edward Island'!V341, IF($C$6="NIHB",NIHB!V341, SUM('British Columbia'!V341, Alberta!V341, Saskatchewan!V341, Manitoba!V341, Ontario!V341, 'New Brunswick'!V341, 'Nova Scotia'!V341, 'Newfoundland and Labrador'!V341, 'Prince Edward Island'!V341, NIHB!V341, ) )))))))))) -> 0 | Q33: =IF($C$6="British Columbia",'British Columbia'!W341, IF($C$6="Alberta",Alberta!W341, IF($C$6="Saskatchewan",Saskatchewan!W341, IF($C$6="Manitoba",Manitoba!W341, IF($C$6="Ontario",Ontario!W341, IF($C$6="New Brunswick",'New Brunswick'!W341, IF($C$6="Nova Scotia",'Nova Scotia'!W341, IF($C$6="Newfoundland and Labrador",'Newfoundland and Labrador'!W341, IF($C$6="Prince Edward Island",'Prince Edward Island'!W341, IF($C$6="NIHB",NIHB!W341, SUM('British Columbia'!W341, Alberta!W341, Saskatchewan!W341, Manitoba!W341, Ontario!W341, 'New Brunswick'!W341, 'Nova Scotia'!W341, 'Newfoundland and Labrador'!W341, 'Prince Edward Island'!W341, NIHB!W341, ) )))))))))) -> 0 | R33: =IF($C$6="British Columbia",'British Columbia'!X341, IF($C$6="Alberta",Alberta!X341, IF($C$6="Saskatchewan",Saskatchewan!X341, IF($C$6="Manitoba",Manitoba!X341, IF($C$6="Ontario",Ontario!X341, IF($C$6="New Brunswick",'New Brunswick'!X341, IF($C$6="Nova Scotia",'Nova Scotia'!X341, IF($C$6="Newfoundland and Labrador",'Newfoundland and Labrador'!X341, IF($C$6="Prince Edward Island",'Prince Edward Island'!X341, IF($C$6="NIHB",NIHB!X341, SUM('British Columbia'!X341, Alberta!X341, Saskatchewan!X341, Manitoba!X341, Ontario!X341, 'New Brunswick'!X341, 'Nova Scotia'!X341, 'Newfoundland and Labrador'!X341, 'Prince Edward Island'!X341, NIHB!X341, ) )))))))))) -> 0
C34: =IF(Namedrug9="","Drug 9",Namedrug9) -> Drug 9 | D34: =IF($C$6="British Columbia",'British Columbia'!K342, IF($C$6="Alberta",Alberta!K342, IF($C$6="Saskatchewan",Saskatchewan!K342, IF($C$6="Manitoba",Manitoba!K342, IF($C$6="Ontario",Ontario!K342, IF($C$6="New Brunswick",'New Brunswick'!K342, IF($C$6="Nova Scotia",'Nova Scotia'!K342, IF($C$6="Newfoundland and Labrador",'Newfoundland and Labrador'!K342, IF($C$6="Prince Edward Island",'Prince Edward Island'!K342, IF($C$6="NIHB",NIHB!K342, SUM('British Columbia'!K342, Alberta!K342, Saskatchewan!K342, Manitoba!K342, Ontario!K342, 'New Brunswick'!K342, 'Nova Scotia'!K342, 'Newfoundland and Labrador'!K342, 'Prince Edward Island'!K342, NIHB!K342, ) )))))))))) -> 0 | E34: =IF($C$6="British Columbia",'British Columbia'!L342, IF($C$6="Alberta",Alberta!L342, IF($C$6="Saskatchewan",Saskatchewan!L342, IF($C$6="Manitoba",Manitoba!L342, IF($C$6="Ontario",Ontario!L342, IF($C$6="New Brunswick",'New Brunswick'!L342, IF($C$6="Nova Scotia",'Nova Scotia'!L342, IF($C$6="Newfoundland and Labrador",'Newfoundland and Labrador'!L342, IF($C$6="Prince Edward Island",'Prince Edward Island'!L342, IF($C$6="NIHB",NIHB!L342, SUM('British Columbia'!L342, Alberta!L342, Saskatchewan!L342, Manitoba!L342, Ontario!L342, 'New Brunswick'!L342, 'Nova Scotia'!L342, 'Newfoundland and Labrador'!L342, 'Prince Edward Island'!L342, NIHB!L342, ) )))))))))) -> 0 | F34: =IF($C$6="British Columbia",'British Columbia'!M342, IF($C$6="Alberta",Alberta!M342, IF($C$6="Saskatchewan",Saskatchewan!M342, IF($C$6="Manitoba",Manitoba!M342, IF($C$6="Ontario",Ontario!M342, IF($C$6="New Brunswick",'New Brunswick'!M342, IF($C$6="Nova Scotia",'Nova Scotia'!M342, IF($C$6="Newfoundland and Labrador",'Newfoundland and Labrador'!M342, IF($C$6="Prince Edward Island",'Prince Edward Island'!M342, IF($C$6="NIHB",NIHB!M342, SUM('British Columbia'!M342, Alberta!M342, Saskatchewan!M342, Manitoba!M342, Ontario!M342, 'New Brunswick'!M342, 'Nova Scotia'!M342, 'Newfoundland and Labrador'!M342, 'Prince Edward Island'!M342, NIHB!M342, ) )))))))))) -> 0 | G34: =IF($C$6="British Columbia",'British Columbia'!N342, IF($C$6="Alberta",Alberta!N342, IF($C$6="Saskatchewan",Saskatchewan!N342, IF($C$6="Manitoba",Manitoba!N342, IF($C$6="Ontario",Ontario!N342, IF($C$6="New Brunswick",'New Brunswick'!N342, IF($C$6="Nova Scotia",'Nova Scotia'!N342, IF($C$6="Newfoundland and Labrador",'Newfoundland and Labrador'!N342, IF($C$6="Prince Edward Island",'Prince Edward Island'!N342, IF($C$6="NIHB",NIHB!N342, SUM('British Columbia'!N342, Alberta!N342, Saskatchewan!N342, Manitoba!N342, Ontario!N342, 'New Brunswick'!N342, 'Nova Scotia'!N342, 'Newfoundland and Labrador'!N342, 'Prince Edward Island'!N342, NIHB!N342, ) )))))))))) -> 0 | H34: =IF($C$6="British Columbia",'British Columbia'!O342, IF($C$6="Alberta",Alberta!O342, IF($C$6="Saskatchewan",Saskatchewan!O342, IF($C$6="Manitoba",Manitoba!O342, IF($C$6="Ontario",Ontario!O342, IF($C$6="New Brunswick",'New Brunswick'!O342, IF($C$6="Nova Scotia",'Nova Scotia'!O342, IF($C$6="Newfoundland and Labrador",'Newfoundland and Labrador'!O342, IF($C$6="Prince Edward Island",'Prince Edward Island'!O342, IF($C$6="NIHB",NIHB!O342, SUM('British Columbia'!O342, Alberta!O342, Saskatchewan!O342, Manitoba!O342, Ontario!O342, 'New Brunswick'!O342, 'Nova Scotia'!O342, 'Newfoundland and Labrador'!O342, 'Prince Edward Island'!O342, NIHB!O342, ) )))))))))) -> 0 | I34: =IF($C$6="British Columbia",'British Columbia'!P342, IF($C$6="Alberta",Alberta!P342, IF($C$6="Saskatchewan",Saskatchewan!P342, IF($C$6="Manitoba",Manitoba!P342, IF($C$6="Ontario",Ontario!P342, IF($C$6="New Brunswick",'New Brunswick'!P342, IF($C$6="Nova Scotia",'Nova Scotia'!P342, IF($C$6="Newfoundland and Labrador",'Newfoundland and Labrador'!P342, IF($C$6="Prince Edward Island",'Prince Edward Island'!P342, IF($C$6="NIHB",NIHB!P342, SUM('British Columbia'!P342, Alberta!P342, Saskatchewan!P342, Manitoba!P342, Ontario!P342, 'New Brunswick'!P342, 'Nova Scotia'!P342, 'Newfoundland and Labrador'!P342, 'Prince Edward Island'!P342, NIHB!P342, ) )))))))))) -> 0 | L34: =IF(Namedrug9="","Drug 9",Namedrug9) -> Drug 9 | M34: =IF($C$6="British Columbia",'British Columbia'!S342, IF($C$6="Alberta",Alberta!S342, IF($C$6="Saskatchewan",Saskatchewan!S342, IF($C$6="Manitoba",Manitoba!S342, IF($C$6="Ontario",Ontario!S342, IF($C$6="New Brunswick",'New Brunswick'!S342, IF($C$6="Nova Scotia",'Nova Scotia'!S342, IF($C$6="Newfoundland and Labrador",'Newfoundland and Labrador'!S342, IF($C$6="Prince Edward Island",'Prince Edward Island'!S342, IF($C$6="NIHB",NIHB!S342, SUM('British Columbia'!S342, Alberta!S342, Saskatchewan!S342, Manitoba!S342, Ontario!S342, 'New Brunswick'!S342, 'Nova Scotia'!S342, 'Newfoundland and Labrador'!S342, 'Prince Edward Island'!S342, NIHB!S342, ) )))))))))) -> 0 | N34: =IF($C$6="British Columbia",'British Columbia'!T342, IF($C$6="Alberta",Alberta!T342, IF($C$6="Saskatchewan",Saskatchewan!T342, IF($C$6="Manitoba",Manitoba!T342, IF($C$6="Ontario",Ontario!T342, IF($C$6="New Brunswick",'New Brunswick'!T342, IF($C$6="Nova Scotia",'Nova Scotia'!T342, IF($C$6="Newfoundland and Labrador",'Newfoundland and Labrador'!T342, IF($C$6="Prince Edward Island",'Prince Edward Island'!T342, IF($C$6="NIHB",NIHB!T342, SUM('British Columbia'!T342, Alberta!T342, Saskatchewan!T342, Manitoba!T342, Ontario!T342, 'New Brunswick'!T342, 'Nova Scotia'!T342, 'Newfoundland and Labrador'!T342, 'Prince Edward Island'!T342, NIHB!T342, ) )))))))))) -> 0 | O34: =IF($C$6="British Columbia",'British Columbia'!U342, IF($C$6="Alberta",Alberta!U342, IF($C$6="Saskatchewan",Saskatchewan!U342, IF($C$6="Manitoba",Manitoba!U342, IF($C$6="Ontario",Ontario!U342, IF($C$6="New Brunswick",'New Brunswick'!U342, IF($C$6="Nova Scotia",'Nova Scotia'!U342, IF($C$6="Newfoundland and Labrador",'Newfoundland and Labrador'!U342, IF($C$6="Prince Edward Island",'Prince Edward Island'!U342, IF($C$6="NIHB",NIHB!U342, SUM('British Columbia'!U342, Alberta!U342, Saskatchewan!U342, Manitoba!U342, Ontario!U342, 'New Brunswick'!U342, 'Nova Scotia'!U342, 'Newfoundland and Labrador'!U342, 'Prince Edward Island'!U342, NIHB!U342, ) )))))))))) -> 0 | P34: =IF($C$6="British Columbia",'British Columbia'!V342, IF($C$6="Alberta",Alberta!V342, IF($C$6="Saskatchewan",Saskatchewan!V342, IF($C$6="Manitoba",Manitoba!V342, IF($C$6="Ontario",Ontario!V342, IF($C$6="New Brunswick",'New Brunswick'!V342, IF($C$6="Nova Scotia",'Nova Scotia'!V342, IF($C$6="Newfoundland and Labrador",'Newfoundland and Labrador'!V342, IF($C$6="Prince Edward Island",'Prince Edward Island'!V342, IF($C$6="NIHB",NIHB!V342, SUM('British Columbia'!V342, Alberta!V342, Saskatchewan!V342, Manitoba!V342, Ontario!V342, 'New Brunswick'!V342, 'Nova Scotia'!V342, 'Newfoundland and Labrador'!V342, 'Prince Edward Island'!V342, NIHB!V342, ) )))))))))) -> 0 | Q34: =IF($C$6="British Columbia",'British Columbia'!W342, IF($C$6="Alberta",Alberta!W342, IF($C$6="Saskatchewan",Saskatchewan!W342, IF($C$6="Manitoba",Manitoba!W342, IF($C$6="Ontario",Ontario!W342, IF($C$6="New Brunswick",'New Brunswick'!W342, IF($C$6="Nova Scotia",'Nova Scotia'!W342, IF($C$6="Newfoundland and Labrador",'Newfoundland and Labrador'!W342, IF($C$6="Prince Edward Island",'Prince Edward Island'!W342, IF($C$6="NIHB",NIHB!W342, SUM('British Columbia'!W342, Alberta!W342, Saskatchewan!W342, Manitoba!W342, Ontario!W342, 'New Brunswick'!W342, 'Nova Scotia'!W342, 'Newfoundland and Labrador'!W342, 'Prince Edward Island'!W342, NIHB!W342, ) )))))))))) -> 0 | R34: =IF($C$6="British Columbia",'British Columbia'!X342, IF($C$6="Alberta",Alberta!X342, IF($C$6="Saskatchewan",Saskatchewan!X342, IF($C$6="Manitoba",Manitoba!X342, IF($C$6="Ontario",Ontario!X342, IF($C$6="New Brunswick",'New Brunswick'!X342, IF($C$6="Nova Scotia",'Nova Scotia'!X342, IF($C$6="Newfoundland and Labrador",'Newfoundland and Labrador'!X342, IF($C$6="Prince Edward Island",'Prince Edward Island'!X342, IF($C$6="NIHB",NIHB!X342, SUM('British Columbia'!X342, Alberta!X342, Saskatchewan!X342, Manitoba!X342, Ontario!X342, 'New Brunswick'!X342, 'Nova Scotia'!X342, 'Newfoundland and Labrador'!X342, 'Prince Edward Island'!X342, NIHB!X342, ) )))))))))) -> 0
C35: =IF(Namedrug10="","Drug 10",Namedrug10) -> Drug 10 | D35: =IF($C$6="British Columbia",'British Columbia'!K343, IF($C$6="Alberta",Alberta!K343, IF($C$6="Saskatchewan",Saskatchewan!K343, IF($C$6="Manitoba",Manitoba!K343, IF($C$6="Ontario",Ontario!K343, IF($C$6="New Brunswick",'New Brunswick'!K343, IF($C$6="Nova Scotia",'Nova Scotia'!K343, IF($C$6="Newfoundland and Labrador",'Newfoundland and Labrador'!K343, IF($C$6="Prince Edward Island",'Prince Edward Island'!K343, IF($C$6="NIHB",NIHB!K343, SUM('British Columbia'!K343, Alberta!K343, Saskatchewan!K343, Manitoba!K343, Ontario!K343, 'New Brunswick'!K343, 'Nova Scotia'!K343, 'Newfoundland and Labrador'!K343, 'Prince Edward Island'!K343, NIHB!K343, ) )))))))))) -> 0 | E35: =IF($C$6="British Columbia",'British Columbia'!L343, IF($C$6="Alberta",Alberta!L343, IF($C$6="Saskatchewan",Saskatchewan!L343, IF($C$6="Manitoba",Manitoba!L343, IF($C$6="Ontario",Ontario!L343, IF($C$6="New Brunswick",'New Brunswick'!L343, IF($C$6="Nova Scotia",'Nova Scotia'!L343, IF($C$6="Newfoundland and Labrador",'Newfoundland and Labrador'!L343, IF($C$6="Prince Edward Island",'Prince Edward Island'!L343, IF($C$6="NIHB",NIHB!L343, SUM('British Columbia'!L343, Alberta!L343, Saskatchewan!L343, Manitoba!L343, Ontario!L343, 'New Brunswick'!L343, 'Nova Scotia'!L343, 'Newfoundland and Labrador'!L343, 'Prince Edward Island'!L343, NIHB!L343, ) )))))))))) -> 0 | F35: =IF($C$6="British Columbia",'British Columbia'!M343, IF($C$6="Alberta",Alberta!M343, IF($C$6="Saskatchewan",Saskatchewan!M343, IF($C$6="Manitoba",Manitoba!M343, IF($C$6="Ontario",Ontario!M343, IF($C$6="New Brunswick",'New Brunswick'!M343, IF($C$6="Nova Scotia",'Nova Scotia'!M343, IF($C$6="Newfoundland and Labrador",'Newfoundland and Labrador'!M343, IF($C$6="Prince Edward Island",'Prince Edward Island'!M343, IF($C$6="NIHB",NIHB!M343, SUM('British Columbia'!M343, Alberta!M343, Saskatchewan!M343, Manitoba!M343, Ontario!M343, 'New Brunswick'!M343, 'Nova Scotia'!M343, 'Newfoundland and Labrador'!M343, 'Prince Edward Island'!M343, NIHB!M343, ) )))))))))) -> 0 | G35: =IF($C$6="British Columbia",'British Columbia'!N343, IF($C$6="Alberta",Alberta!N343, IF($C$6="Saskatchewan",Saskatchewan!N343, IF($C$6="Manitoba",Manitoba!N343, IF($C$6="Ontario",Ontario!N343, IF($C$6="New Brunswick",'New Brunswick'!N343, IF($C$6="Nova Scotia",'Nova Scotia'!N343, IF($C$6="Newfoundland and Labrador",'Newfoundland and Labrador'!N343, IF($C$6="Prince Edward Island",'Prince Edward Island'!N343, IF($C$6="NIHB",NIHB!N343, SUM('British Columbia'!N343, Alberta!N343, Saskatchewan!N343, Manitoba!N343, Ontario!N343, 'New Brunswick'!N343, 'Nova Scotia'!N343, 'Newfoundland and Labrador'!N343, 'Prince Edward Island'!N343, NIHB!N343, ) )))))))))) -> 0 | H35: =IF($C$6="British Columbia",'British Columbia'!O343, IF($C$6="Alberta",Alberta!O343, IF($C$6="Saskatchewan",Saskatchewan!O343, IF($C$6="Manitoba",Manitoba!O343, IF($C$6="Ontario",Ontario!O343, IF($C$6="New Brunswick",'New Brunswick'!O343, IF($C$6="Nova Scotia",'Nova Scotia'!O343, IF($C$6="Newfoundland and Labrador",'Newfoundland and Labrador'!O343, IF($C$6="Prince Edward Island",'Prince Edward Island'!O343, IF($C$6="NIHB",NIHB!O343, SUM('British Columbia'!O343, Alberta!O343, Saskatchewan!O343, Manitoba!O343, Ontario!O343, 'New Brunswick'!O343, 'Nova Scotia'!O343, 'Newfoundland and Labrador'!O343, 'Prince Edward Island'!O343, NIHB!O343, ) )))))))))) -> 0 | I35: =IF($C$6="British Columbia",'British Columbia'!P343, IF($C$6="Alberta",Alberta!P343, IF($C$6="Saskatchewan",Saskatchewan!P343, IF($C$6="Manitoba",Manitoba!P343, IF($C$6="Ontario",Ontario!P343, IF($C$6="New Brunswick",'New Brunswick'!P343, IF($C$6="Nova Scotia",'Nova Scotia'!P343, IF($C$6="Newfoundland and Labrador",'Newfoundland and Labrador'!P343, IF($C$6="Prince Edward Island",'Prince Edward Island'!P343, IF($C$6="NIHB",NIHB!P343, SUM('British Columbia'!P343, Alberta!P343, Saskatchewan!P343, Manitoba!P343, Ontario!P343, 'New Brunswick'!P343, 'Nova Scotia'!P343, 'Newfoundland and Labrador'!P343, 'Prince Edward Island'!P343, NIHB!P343, ) )))))))))) -> 0 | L35: =IF(Namedrug10="","Drug 10",Namedrug10) -> Drug 10 | M35: =IF($C$6="British Columbia",'British Columbia'!S343, IF($C$6="Alberta",Alberta!S343, IF($C$6="Saskatchewan",Saskatchewan!S343, IF($C$6="Manitoba",Manitoba!S343, IF($C$6="Ontario",Ontario!S343, IF($C$6="New Brunswick",'New Brunswick'!S343, IF($C$6="Nova Scotia",'Nova Scotia'!S343, IF($C$6="Newfoundland and Labrador",'Newfoundland and Labrador'!S343, IF($C$6="Prince Edward Island",'Prince Edward Island'!S343, IF($C$6="NIHB",NIHB!S343, SUM('British Columbia'!S343, Alberta!S343, Saskatchewan!S343, Manitoba!S343, Ontario!S343, 'New Brunswick'!S343, 'Nova Scotia'!S343, 'Newfoundland and Labrador'!S343, 'Prince Edward Island'!S343, NIHB!S343, ) )))))))))) -> 0 | N35: =IF($C$6="British Columbia",'British Columbia'!T343, IF($C$6="Alberta",Alberta!T343, IF($C$6="Saskatchewan",Saskatchewan!T343, IF($C$6="Manitoba",Manitoba!T343, IF($C$6="Ontario",Ontario!T343, IF($C$6="New Brunswick",'New Brunswick'!T343, IF($C$6="Nova Scotia",'Nova Scotia'!T343, IF($C$6="Newfoundland and Labrador",'Newfoundland and Labrador'!T343, IF($C$6="Prince Edward Island",'Prince Edward Island'!T343, IF($C$6="NIHB",NIHB!T343, SUM('British Columbia'!T343, Alberta!T343, Saskatchewan!T343, Manitoba!T343, Ontario!T343, 'New Brunswick'!T343, 'Nova Scotia'!T343, 'Newfoundland and Labrador'!T343, 'Prince Edward Island'!T343, NIHB!T343, ) )))))))))) -> 0 | O35: =IF($C$6="British Columbia",'British Columbia'!U343, IF($C$6="Alberta",Alberta!U343, IF($C$6="Saskatchewan",Saskatchewan!U343, IF($C$6="Manitoba",Manitoba!U343, IF($C$6="Ontario",Ontario!U343, IF($C$6="New Brunswick",'New Brunswick'!U343, IF($C$6="Nova Scotia",'Nova Scotia'!U343, IF($C$6="Newfoundland and Labrador",'Newfoundland and Labrador'!U343, IF($C$6="Prince Edward Island",'Prince Edward Island'!U343, IF($C$6="NIHB",NIHB!U343, SUM('British Columbia'!U343, Alberta!U343, Saskatchewan!U343, Manitoba!U343, Ontario!U343, 'New Brunswick'!U343, 'Nova Scotia'!U343, 'Newfoundland and Labrador'!U343, 'Prince Edward Island'!U343, NIHB!U343, ) )))))))))) -> 0 | P35: =IF($C$6="British Columbia",'British Columbia'!V343, IF($C$6="Alberta",Alberta!V343, IF($C$6="Saskatchewan",Saskatchewan!V343, IF($C$6="Manitoba",Manitoba!V343, IF($C$6="Ontario",Ontario!V343, IF($C$6="New Brunswick",'New Brunswick'!V343, IF($C$6="Nova Scotia",'Nova Scotia'!V343, IF($C$6="Newfoundland and Labrador",'Newfoundland and Labrador'!V343, IF($C$6="Prince Edward Island",'Prince Edward Island'!V343, IF($C$6="NIHB",NIHB!V343, SUM('British Columbia'!V343, Alberta!V343, Saskatchewan!V343, Manitoba!V343, Ontario!V343, 'New Brunswick'!V343, 'Nova Scotia'!V343, 'Newfoundland and Labrador'!V343, 'Prince Edward Island'!V343, NIHB!V343, ) )))))))))) -> 0 | Q35: =IF($C$6="British Columbia",'British Columbia'!W343, IF($C$6="Alberta",Alberta!W343, IF($C$6="Saskatchewan",Saskatchewan!W343, IF($C$6="Manitoba",Manitoba!W343, IF($C$6="Ontario",Ontario!W343, IF($C$6="New Brunswick",'New Brunswick'!W343, IF($C$6="Nova Scotia",'Nova Scotia'!W343, IF($C$6="Newfoundland and Labrador",'Newfoundland and Labrador'!W343, IF($C$6="Prince Edward Island",'Prince Edward Island'!W343, IF($C$6="NIHB",NIHB!W343, SUM('British Columbia'!W343, Alberta!W343, Saskatchewan!W343, Manitoba!W343, Ontario!W343, 'New Brunswick'!W343, 'Nova Scotia'!W343, 'Newfoundland and Labrador'!W343, 'Prince Edward Island'!W343, NIHB!W343, ) )))))))))) -> 0 | R35: =IF($C$6="British Columbia",'British Columbia'!X343, IF($C$6="Alberta",Alberta!X343, IF($C$6="Saskatchewan",Saskatchewan!X343, IF($C$6="Manitoba",Manitoba!X343, IF($C$6="Ontario",Ontario!X343, IF($C$6="New Brunswick",'New Brunswick'!X343, IF($C$6="Nova Scotia",'Nova Scotia'!X343, IF($C$6="Newfoundland and Labrador",'Newfoundland and Labrador'!X343, IF($C$6="Prince Edward Island",'Prince Edward Island'!X343, IF($C$6="NIHB",NIHB!X343, SUM('British Columbia'!X343, Alberta!X343, Saskatchewan!X343, Manitoba!X343, Ontario!X343, 'New Brunswick'!X343, 'Nova Scotia'!X343, 'Newfoundland and Labrador'!X343, 'Prince Edward Island'!X343, NIHB!X343, ) )))))))))) -> 0
C36: Total | D36: =IF($C$6="British Columbia",'British Columbia'!K344, IF($C$6="Alberta",Alberta!K344, IF($C$6="Saskatchewan",Saskatchewan!K344, IF($C$6="Manitoba",Manitoba!K344, IF($C$6="Ontario",Ontario!K344, IF($C$6="New Brunswick",'New Brunswick'!K344, IF($C$6="Nova Scotia",'Nova Scotia'!K344, IF($C$6="Newfoundland and Labrador",'Newfoundland and Labrador'!K344, IF($C$6="Prince Edward Island",'Prince Edward Island'!K344, IF($C$6="NIHB",NIHB!K344, SUM('British Columbia'!K344, Alberta!K344, Saskatchewan!K344, Manitoba!K344, Ontario!K344, 'New Brunswick'!K344, 'Nova Scotia'!K344, 'Newfoundland and Labrador'!K344, 'Prince Edward Island'!K344, NIHB!K344, ) )))))))))) -> 0 | E36: =IF($C$6="British Columbia",'British Columbia'!L344, IF($C$6="Alberta",Alberta!L344, IF($C$6="Saskatchewan",Saskatchewan!L344, IF($C$6="Manitoba",Manitoba!L344, IF($C$6="Ontario",Ontario!L344, IF($C$6="New Brunswick",'New Brunswick'!L344, IF($C$6="Nova Scotia",'Nova Scotia'!L344, IF($C$6="Newfoundland and Labrador",'Newfoundland and Labrador'!L344, IF($C$6="Prince Edward Island",'Prince Edward Island'!L344, IF($C$6="NIHB",NIHB!L344, SUM('British Columbia'!L344, Alberta!L344, Saskatchewan!L344, Manitoba!L344, Ontario!L344, 'New Brunswick'!L344, 'Nova Scotia'!L344, 'Newfoundland and Labrador'!L344, 'Prince Edward Island'!L344, NIHB!L344, ) )))))))))) -> 0 | F36: =IF($C$6="British Columbia",'British Columbia'!M344, IF($C$6="Alberta",Alberta!M344, IF($C$6="Saskatchewan",Saskatchewan!M344, IF($C$6="Manitoba",Manitoba!M344, IF($C$6="Ontario",Ontario!M344, IF($C$6="New Brunswick",'New Brunswick'!M344, IF($C$6="Nova Scotia",'Nova Scotia'!M344, IF($C$6="Newfoundland and Labrador",'Newfoundland and Labrador'!M344, IF($C$6="Prince Edward Island",'Prince Edward Island'!M344, IF($C$6="NIHB",NIHB!M344, SUM('British Columbia'!M344, Alberta!M344, Saskatchewan!M344, Manitoba!M344, Ontario!M344, 'New Brunswick'!M344, 'Nova Scotia'!M344, 'Newfoundland and Labrador'!M344, 'Prince Edward Island'!M344, NIHB!M344, ) )))))))))) -> 0 | G36: =IF($C$6="British Columbia",'British Columbia'!N344, IF($C$6="Alberta",Alberta!N344, IF($C$6="Saskatchewan",Saskatchewan!N344, IF($C$6="Manitoba",Manitoba!N344, IF($C$6="Ontario",Ontario!N344, IF($C$6="New Brunswick",'New Brunswick'!N344, IF($C$6="Nova Scotia",'Nova Scotia'!N344, IF($C$6="Newfoundland and Labrador",'Newfoundland and Labrador'!N344, IF($C$6="Prince Edward Island",'Prince Edward Island'!N344, IF($C$6="NIHB",NIHB!N344, SUM('British Columbia'!N344, Alberta!N344, Saskatchewan!N344, Manitoba!N344, Ontario!N344, 'New Brunswick'!N344, 'Nova Scotia'!N344, 'Newfoundland and Labrador'!N344, 'Prince Edward Island'!N344, NIHB!N344, ) )))))))))) -> 0 | H36: =IF($C$6="British Columbia",'British Columbia'!O344, IF($C$6="Alberta",Alberta!O344, IF($C$6="Saskatchewan",Saskatchewan!O344, IF($C$6="Manitoba",Manitoba!O344, IF($C$6="Ontario",Ontario!O344, IF($C$6="New Brunswick",'New Brunswick'!O344, IF($C$6="Nova Scotia",'Nova Scotia'!O344, IF($C$6="Newfoundland and Labrador",'Newfoundland and Labrador'!O344, IF($C$6="Prince Edward Island",'Prince Edward Island'!O344, IF($C$6="NIHB",NIHB!O344, SUM('British Columbia'!O344, Alberta!O344, Saskatchewan!O344, Manitoba!O344, Ontario!O344, 'New Brunswick'!O344, 'Nova Scotia'!O344, 'Newfoundland and Labrador'!O344, 'Prince Edward Island'!O344, NIHB!O344, ) )))))))))) -> 0 | I36: =IF($C$6="British Columbia",'British Columbia'!P344, IF($C$6="Alberta",Alberta!P344, IF($C$6="Saskatchewan",Saskatchewan!P344, IF($C$6="Manitoba",Manitoba!P344, IF($C$6="Ontario",Ontario!P344, IF($C$6="New Brunswick",'New Brunswick'!P344, IF($C$6="Nova Scotia",'Nova Scotia'!P344, IF($C$6="Newfoundland and Labrador",'Newfoundland and Labrador'!P344, IF($C$6="Prince Edward Island",'Prince Edward Island'!P344, IF($C$6="NIHB",NIHB!P344, SUM('British Columbia'!P344, Alberta!P344, Saskatchewan!P344, Manitoba!P344, Ontario!P344, 'New Brunswick'!P344, 'Nova Scotia'!P344, 'Newfoundland and Labrador'!P344, 'Prince Edward Island'!P344, NIHB!P344, ) )))))))))) -> 0 | L36: Total | M36: =IF($C$6="British Columbia",'British Columbia'!S344, IF($C$6="Alberta",Alberta!S344, IF($C$6="Saskatchewan",Saskatchewan!S344, IF($C$6="Manitoba",Manitoba!S344, IF($C$6="Ontario",Ontario!S344, IF($C$6="New Brunswick",'New Brunswick'!S344, IF($C$6="Nova Scotia",'Nova Scotia'!S344, IF($C$6="Newfoundland and Labrador",'Newfoundland and Labrador'!S344, IF($C$6="Prince Edward Island",'Prince Edward Island'!S344, IF($C$6="NIHB",NIHB!S344, SUM('British Columbia'!S344, Alberta!S344, Saskatchewan!S344, Manitoba!S344, Ontario!S344, 'New Brunswick'!S344, 'Nova Scotia'!S344, 'Newfoundland and Labrador'!S344, 'Prince Edward Island'!S344, NIHB!S344, ) )))))))))) -> 0 | N36: =IF($C$6="British Columbia",'British Columbia'!T344, IF($C$6="Alberta",Alberta!T344, IF($C$6="Saskatchewan",Saskatchewan!T344, IF($C$6="Manitoba",Manitoba!T344, IF($C$6="Ontario",Ontario!T344, IF($C$6="New Brunswick",'New Brunswick'!T344, IF($C$6="Nova Scotia",'Nova Scotia'!T344, IF($C$6="Newfoundland and Labrador",'Newfoundland and Labrador'!T344, IF($C$6="Prince Edward Island",'Prince Edward Island'!T344, IF($C$6="NIHB",NIHB!T344, SUM('British Columbia'!T344, Alberta!T344, Saskatchewan!T344, Manitoba!T344, Ontario!T344, 'New Brunswick'!T344, 'Nova Scotia'!T344, 'Newfoundland and Labrador'!T344, 'Prince Edward Island'!T344, NIHB!T344, ) )))))))))) -> 0 | O36: =IF($C$6="British Columbia",'British Columbia'!U344, IF($C$6="Alberta",Alberta!U344, IF($C$6="Saskatchewan",Saskatchewan!U344, IF($C$6="Manitoba",Manitoba!U344, IF($C$6="Ontario",Ontario!U344, IF($C$6="New Brunswick",'New Brunswick'!U344, IF($C$6="Nova Scotia",'Nova Scotia'!U344, IF($C$6="Newfoundland and Labrador",'Newfoundland and Labrador'!U344, IF($C$6="Prince Edward Island",'Prince Edward Island'!U344, IF($C$6="NIHB",NIHB!U344, SUM('British Columbia'!U344, Alberta!U344, Saskatchewan!U344, Manitoba!U344, Ontario!U344, 'New Brunswick'!U344, 'Nova Scotia'!U344, 'Newfoundland and Labrador'!U344, 'Prince Edward Island'!U344, NIHB!U344, ) )))))))))) -> 0 | P36: =IF($C$6="British Columbia",'British Columbia'!V344, IF($C$6="Alberta",Alberta!V344, IF($C$6="Saskatchewan",Saskatchewan!V344, IF($C$6="Manitoba",Manitoba!V344, IF($C$6="Ontario",Ontario!V344, IF($C$6="New Brunswick",'New Brunswick'!V344, IF($C$6="Nova Scotia",'Nova Scotia'!V344, IF($C$6="Newfoundland and Labrador",'Newfoundland and Labrador'!V344, IF($C$6="Prince Edward Island",'Prince Edward Island'!V344, IF($C$6="NIHB",NIHB!V344, SUM('British Columbia'!V344, Alberta!V344, Saskatchewan!V344, Manitoba!V344, Ontario!V344, 'New Brunswick'!V344, 'Nova Scotia'!V344, 'Newfoundland and Labrador'!V344, 'Prince Edward Island'!V344, NIHB!V344, ) )))))))))) -> 0 | Q36: =IF($C$6="British Columbia",'British Columbia'!W344, IF($C$6="Alberta",Alberta!W344, IF($C$6="Saskatchewan",Saskatchewan!W344, IF($C$6="Manitoba",Manitoba!W344, IF($C$6="Ontario",Ontario!W344, IF($C$6="New Brunswick",'New Brunswick'!W344, IF($C$6="Nova Scotia",'Nova Scotia'!W344, IF($C$6="Newfoundland and Labrador",'Newfoundland and Labrador'!W344, IF($C$6="Prince Edward Island",'Prince Edward Island'!W344, IF($C$6="NIHB",NIHB!W344, SUM('British Columbia'!W344, Alberta!W344, Saskatchewan!W344, Manitoba!W344, Ontario!W344, 'New Brunswick'!W344, 'Nova Scotia'!W344, 'Newfoundland and Labrador'!W344, 'Prince Edward Island'!W344, NIHB!W344, ) )))))))))) -> 0 | R36: =IF($C$6="British Columbia",'British Columbia'!X344, IF($C$6="Alberta",Alberta!X344, IF($C$6="Saskatchewan",Saskatchewan!X344, IF($C$6="Manitoba",Manitoba!X344, IF($C$6="Ontario",Ontario!X344, IF($C$6="New Brunswick",'New Brunswick'!X344, IF($C$6="Nova Scotia",'Nova Scotia'!X344, IF($C$6="Newfoundland and Labrador",'Newfoundland and Labrador'!X344, IF($C$6="Prince Edward Island",'Prince Edward Island'!X344, IF($C$6="NIHB",NIHB!X344, SUM('British Columbia'!X344, Alberta!X344, Saskatchewan!X344, Manitoba!X344, Ontario!X344, 'New Brunswick'!X344, 'Nova Scotia'!X344, 'Newfoundland and Labrador'!X344, 'Prince Edward Island'!X344, NIHB!X344, ) )))))))))) -> 0
C38: Drug costs
C40: Reference scenario | D40: Baseline | E40: Year 1 | F40: Year 2 | G40: Year 3 | H40: Year 4 | I40: Year 5 | J40: =CONCATENATE("Total across ", Switch_TH," Years") -> Total across Years | L40: New Drug Scenario | M40: Baseline | N40: Year 1 | O40: Year 2 | P40: Year 3 | Q40: Year 4 | R40: Year 5 | S40: =CONCATENATE("Total across ", Switch_TH," Years") -> Total across Years
C41: =IF(Name_DUR="","Drug Under Review",Name_DUR) -> Drug Under Review | D41: =IF($C$6="British Columbia",'British Columbia'!K348, IF($C$6="Alberta",Alberta!K348, IF($C$6="Saskatchewan",Saskatchewan!K348, IF($C$6="Manitoba",Manitoba!K348, IF($C$6="Ontario",Ontario!K348, IF($C$6="New Brunswick",'New Brunswick'!K348, IF($C$6="Nova Scotia",'Nova Scotia'!K348, IF($C$6="Newfoundland and Labrador",'Newfoundland and Labrador'!K348, IF($C$6="Prince Edward Island",'Prince Edward Island'!K348, IF($C$6="NIHB",NIHB!K348, SUM('British Columbia'!K348, Alberta!K348, Saskatchewan!K348, Manitoba!K348, Ontario!K348, 'New Brunswick'!K348, 'Nova Scotia'!K348, 'Newfoundland and Labrador'!K348, 'Prince Edward Island'!K348, NIHB!K348, ) )))))))))) -> 0 | E41: =IF($C$6="British Columbia",'British Columbia'!L348, IF($C$6="Alberta",Alberta!L348, IF($C$6="Saskatchewan",Saskatchewan!L348, IF($C$6="Manitoba",Manitoba!L348, IF($C$6="Ontario",Ontario!L348, IF($C$6="New Brunswick",'New Brunswick'!L348, IF($C$6="Nova Scotia",'Nova Scotia'!L348, IF($C$6="Newfoundland and Labrador",'Newfoundland and Labrador'!L348, IF($C$6="Prince Edward Island",'Prince Edward Island'!L348, IF($C$6="NIHB",NIHB!L348, SUM('British Columbia'!L348, Alberta!L348, Saskatchewan!L348, Manitoba!L348, Ontario!L348, 'New Brunswick'!L348, 'Nova Scotia'!L348, 'Newfoundland and Labrador'!L348, 'Prince Edward Island'!L348, NIHB!L348, ) )))))))))) -> 0 | F41: =IF($C$6="British Columbia",'British Columbia'!M348, IF($C$6="Alberta",Alberta!M348, IF($C$6="Saskatchewan",Saskatchewan!M348, IF($C$6="Manitoba",Manitoba!M348, IF($C$6="Ontario",Ontario!M348, IF($C$6="New Brunswick",'New Brunswick'!M348, IF($C$6="Nova Scotia",'Nova Scotia'!M348, IF($C$6="Newfoundland and Labrador",'Newfoundland and Labrador'!M348, IF($C$6="Prince Edward Island",'Prince Edward Island'!M348, IF($C$6="NIHB",NIHB!M348, SUM('British Columbia'!M348, Alberta!M348, Saskatchewan!M348, Manitoba!M348, Ontario!M348, 'New Brunswick'!M348, 'Nova Scotia'!M348, 'Newfoundland and Labrador'!M348, 'Prince Edward Island'!M348, NIHB!M348, ) )))))))))) -> 0 | G41: =IF($C$6="British Columbia",'British Columbia'!N348, IF($C$6="Alberta",Alberta!N348, IF($C$6="Saskatchewan",Saskatchewan!N348, IF($C$6="Manitoba",Manitoba!N348, IF($C$6="Ontario",Ontario!N348, IF($C$6="New Brunswick",'New Brunswick'!N348, IF($C$6="Nova Scotia",'Nova Scotia'!N348, IF($C$6="Newfoundland and Labrador",'Newfoundland and Labrador'!N348, IF($C$6="Prince Edward Island",'Prince Edward Island'!N348, IF($C$6="NIHB",NIHB!N348, SUM('British Columbia'!N348, Alberta!N348, Saskatchewan!N348, Manitoba!N348, Ontario!N348, 'New Brunswick'!N348, 'Nova Scotia'!N348, 'Newfoundland and Labrador'!N348, 'Prince Edward Island'!N348, NIHB!N348, ) )))))))))) -> 0 | H41: =IF($C$6="British Columbia",'British Columbia'!O348, IF($C$6="Alberta",Alberta!O348, IF($C$6="Saskatchewan",Saskatchewan!O348, IF($C$6="Manitoba",Manitoba!O348, IF($C$6="Ontario",Ontario!O348, IF($C$6="New Brunswick",'New Brunswick'!O348, IF($C$6="Nova Scotia",'Nova Scotia'!O348, IF($C$6="Newfoundland and Labrador",'Newfoundland and Labrador'!O348, IF($C$6="Prince Edward Island",'Prince Edward Island'!O348, IF($C$6="NIHB",NIHB!O348, SUM('British Columbia'!O348, Alberta!O348, Saskatchewan!O348, Manitoba!O348, Ontario!O348, 'New Brunswick'!O348, 'Nova Scotia'!O348, 'Newfoundland and Labrador'!O348, 'Prince Edward Island'!O348, NIHB!O348, ) )))))))))) -> 0 | I41: =IF($C$6="British Columbia",'British Columbia'!P348, IF($C$6="Alberta",Alberta!P348, IF($C$6="Saskatchewan",Saskatchewan!P348, IF($C$6="Manitoba",Manitoba!P348, IF($C$6="Ontario",Ontario!P348, IF($C$6="New Brunswick",'New Brunswick'!P348, IF($C$6="Nova Scotia",'Nova Scotia'!P348, IF($C$6="Newfoundland and Labrador",'Newfoundland and Labrador'!P348, IF($C$6="Prince Edward Island",'Prince Edward Island'!P348, IF($C$6="NIHB",NIHB!P348, SUM('British Columbia'!P348, Alberta!P348, Saskatchewan!P348, Manitoba!P348, Ontario!P348, 'New Brunswick'!P348, 'Nova Scotia'!P348, 'Newfoundland and Labrador'!P348, 'Prince Edward Island'!P348, NIHB!P348, ) )))))))))) -> 0 | J41: =SUM(E41:I41) -> 0 | L41: =IF(Name_DUR="","Drug Under Review",Name_DUR) -> Drug Under Review | M41: =IF($C$6="British Columbia",'British Columbia'!S348, IF($C$6="Alberta",Alberta!S348, IF($C$6="Saskatchewan",Saskatchewan!S348, IF($C$6="Manitoba",Manitoba!S348, IF($C$6="Ontario",Ontario!S348, IF($C$6="New Brunswick",'New Brunswick'!S348, IF($C$6="Nova Scotia",'Nova Scotia'!S348, IF($C$6="Newfoundland and Labrador",'Newfoundland and Labrador'!S348, IF($C$6="Prince Edward Island",'Prince Edward Island'!S348, IF($C$6="NIHB",NIHB!S348, SUM('British Columbia'!S348, Alberta!S348, Saskatchewan!S348, Manitoba!S348, Ontario!S348, 'New Brunswick'!S348, 'Nova Scotia'!S348, 'Newfoundland and Labrador'!S348, 'Prince Edward Island'!S348, NIHB!S348, ) )))))))))) -> 0 | N41: =IF($C$6="British Columbia",'British Columbia'!T348, IF($C$6="Alberta",Alberta!T348, IF($C$6="Saskatchewan",Saskatchewan!T348, IF($C$6="Manitoba",Manitoba!T348, IF($C$6="Ontario",Ontario!T348, IF($C$6="New Brunswick",'New Brunswick'!T348, IF($C$6="Nova Scotia",'Nova Scotia'!T348, IF($C$6="Newfoundland and Labrador",'Newfoundland and Labrador'!T348, IF($C$6="Prince Edward Island",'Prince Edward Island'!T348, IF($C$6="NIHB",NIHB!T348, SUM('British Columbia'!T348, Alberta!T348, Saskatchewan!T348, Manitoba!T348, Ontario!T348, 'New Brunswick'!T348, 'Nova Scotia'!T348, 'Newfoundland and Labrador'!T348, 'Prince Edward Island'!T348, NIHB!T348, ) )))))))))) -> 0 | O41: =IF($C$6="British Columbia",'British Columbia'!U348, IF($C$6="Alberta",Alberta!U348, IF($C$6="Saskatchewan",Saskatchewan!U348, IF($C$6="Manitoba",Manitoba!U348, IF($C$6="Ontario",Ontario!U348, IF($C$6="New Brunswick",'New Brunswick'!U348, IF($C$6="Nova Scotia",'Nova Scotia'!U348, IF($C$6="Newfoundland and Labrador",'Newfoundland and Labrador'!U348, IF($C$6="Prince Edward Island",'Prince Edward Island'!U348, IF($C$6="NIHB",NIHB!U348, SUM('British Columbia'!U348, Alberta!U348, Saskatchewan!U348, Manitoba!U348, Ontario!U348, 'New Brunswick'!U348, 'Nova Scotia'!U348, 'Newfoundland and Labrador'!U348, 'Prince Edward Island'!U348, NIHB!U348, ) )))))))))) -> 0 | P41: =IF($C$6="British Columbia",'British Columbia'!V348, IF($C$6="Alberta",Alberta!V348, IF($C$6="Saskatchewan",Saskatchewan!V348, IF($C$6="Manitoba",Manitoba!V348, IF($C$6="Ontario",Ontario!V348, IF($C$6="New Brunswick",'New Brunswick'!V348, IF($C$6="Nova Scotia",'Nova Scotia'!V348, IF($C$6="Newfoundland and Labrador",'Newfoundland and Labrador'!V348, IF($C$6="Prince Edward Island",'Prince Edward Island'!V348, IF($C$6="NIHB",NIHB!V348, SUM('British Columbia'!V348, Alberta!V348, Saskatchewan!V348, Manitoba!V348, Ontario!V348, 'New Brunswick'!V348, 'Nova Scotia'!V348, 'Newfoundland and Labrador'!V348, 'Prince Edward Island'!V348, NIHB!V348, ) )))))))))) -> 0 | Q41: =IF($C$6="British Columbia",'British Columbia'!W348, IF($C$6="Alberta",Alberta!W348, IF($C$6="Saskatchewan",Saskatchewan!W348, IF($C$6="Manitoba",Manitoba!W348, IF($C$6="Ontario",Ontario!W348, IF($C$6="New Brunswick",'New Brunswick'!W348, IF($C$6="Nova Scotia",'Nova Scotia'!W348, IF($C$6="Newfoundland and Labrador",'Newfoundland and Labrador'!W348, IF($C$6="Prince Edward Island",'Prince Edward Island'!W348, IF($C$6="NIHB",NIHB!W348, SUM('British Columbia'!W348, Alberta!W348, Saskatchewan!W348, Manitoba!W348, Ontario!W348, 'New Brunswick'!W348, 'Nova Scotia'!W348, 'Newfoundland and Labrador'!W348, 'Prince Edward Island'!W348, NIHB!W348, ) )))))))))) -> 0 | R41: =IF($C$6="British Columbia",'British Columbia'!X348, IF($C$6="Alberta",Alberta!X348, IF($C$6="Saskatchewan",Saskatchewan!X348, IF($C$6="Manitoba",Manitoba!X348, IF($C$6="Ontario",Ontario!X348, IF($C$6="New Brunswick",'New Brunswick'!X348, IF($C$6="Nova Scotia",'Nova Scotia'!X348, IF($C$6="Newfoundland and Labrador",'Newfoundland and Labrador'!X348, IF($C$6="Prince Edward Island",'Prince Edward Island'!X348, IF($C$6="NIHB",NIHB!X348, SUM('British Columbia'!X348, Alberta!X348, Saskatchewan!X348, Manitoba!X348, Ontario!X348, 'New Brunswick'!X348, 'Nova Scotia'!X348, 'Newfoundland and Labrador'!X348, 'Prince Edward Island'!X348, NIHB!X348, ) )))))))))) -> 0 | S41: =SUM(N41:R41) -> 0
C42: Untreated | D42: =IF($C$6="British Columbia",'British Columbia'!K349, IF($C$6="Alberta",Alberta!K349, IF($C$6="Saskatchewan",Saskatchewan!K349, IF($C$6="Manitoba",Manitoba!K349, IF($C$6="Ontario",Ontario!K349, IF($C$6="New Brunswick",'New Brunswick'!K349, IF($C$6="Nova Scotia",'Nova Scotia'!K349, IF($C$6="Newfoundland and Labrador",'Newfoundland and Labrador'!K349, IF($C$6="Prince Edward Island",'Prince Edward Island'!K349, IF($C$6="NIHB",NIHB!K349, SUM('British Columbia'!K349, Alberta!K349, Saskatchewan!K349, Manitoba!K349, Ontario!K349, 'New Brunswick'!K349, 'Nova Scotia'!K349, 'Newfoundland and Labrador'!K349, 'Prince Edward Island'!K349, NIHB!K349, ) )))))))))) -> 0 | E42: =IF($C$6="British Columbia",'British Columbia'!L349, IF($C$6="Alberta",Alberta!L349, IF($C$6="Saskatchewan",Saskatchewan!L349, IF($C$6="Manitoba",Manitoba!L349, IF($C$6="Ontario",Ontario!L349, IF($C$6="New Brunswick",'New Brunswick'!L349, IF($C$6="Nova Scotia",'Nova Scotia'!L349, IF($C$6="Newfoundland and Labrador",'Newfoundland and Labrador'!L349, IF($C$6="Prince Edward Island",'Prince Edward Island'!L349, IF($C$6="NIHB",NIHB!L349, SUM('British Columbia'!L349, Alberta!L349, Saskatchewan!L349, Manitoba!L349, Ontario!L349, 'New Brunswick'!L349, 'Nova Scotia'!L349, 'Newfoundland and Labrador'!L349, 'Prince Edward Island'!L349, NIHB!L349, ) )))))))))) -> 0 | F42: =IF($C$6="British Columbia",'British Columbia'!M349, IF($C$6="Alberta",Alberta!M349, IF($C$6="Saskatchewan",Saskatchewan!M349, IF($C$6="Manitoba",Manitoba!M349, IF($C$6="Ontario",Ontario!M349, IF($C$6="New Brunswick",'New Brunswick'!M349, IF($C$6="Nova Scotia",'Nova Scotia'!M349, IF($C$6="Newfoundland and Labrador",'Newfoundland and Labrador'!M349, IF($C$6="Prince Edward Island",'Prince Edward Island'!M349, IF($C$6="NIHB",NIHB!M349, SUM('British Columbia'!M349, Alberta!M349, Saskatchewan!M349, Manitoba!M349, Ontario!M349, 'New Brunswick'!M349, 'Nova Scotia'!M349, 'Newfoundland and Labrador'!M349, 'Prince Edward Island'!M349, NIHB!M349, ) )))))))))) -> 0 | G42: =IF($C$6="British Columbia",'British Columbia'!N349, IF($C$6="Alberta",Alberta!N349, IF($C$6="Saskatchewan",Saskatchewan!N349, IF($C$6="Manitoba",Manitoba!N349, IF($C$6="Ontario",Ontario!N349, IF($C$6="New Brunswick",'New Brunswick'!N349, IF($C$6="Nova Scotia",'Nova Scotia'!N349, IF($C$6="Newfoundland and Labrador",'Newfoundland and Labrador'!N349, IF($C$6="Prince Edward Island",'Prince Edward Island'!N349, IF($C$6="NIHB",NIHB!N349, SUM('British Columbia'!N349, Alberta!N349, Saskatchewan!N349, Manitoba!N349, Ontario!N349, 'New Brunswick'!N349, 'Nova Scotia'!N349, 'Newfoundland and Labrador'!N349, 'Prince Edward Island'!N349, NIHB!N349, ) )))))))))) -> 0 | H42: =IF($C$6="British Columbia",'British Columbia'!O349, IF($C$6="Alberta",Alberta!O349, IF($C$6="Saskatchewan",Saskatchewan!O349, IF($C$6="Manitoba",Manitoba!O349, IF($C$6="Ontario",Ontario!O349, IF($C$6="New Brunswick",'New Brunswick'!O349, IF($C$6="Nova Scotia",'Nova Scotia'!O349, IF($C$6="Newfoundland and Labrador",'Newfoundland and Labrador'!O349, IF($C$6="Prince Edward Island",'Prince Edward Island'!O349, IF($C$6="NIHB",NIHB!O349, SUM('British Columbia'!O349, Alberta!O349, Saskatchewan!O349, Manitoba!O349, Ontario!O349, 'New Brunswick'!O349, 'Nova Scotia'!O349, 'Newfoundland and Labrador'!O349, 'Prince Edward Island'!O349, NIHB!O349, ) )))))))))) -> 0 | I42: =IF($C$6="British Columbia",'British Columbia'!P349, IF($C$6="Alberta",Alberta!P349, IF($C$6="Saskatchewan",Saskatchewan!P349, IF($C$6="Manitoba",Manitoba!P349, IF($C$6="Ontario",Ontario!P349, IF($C$6="New Brunswick",'New Brunswick'!P349, IF($C$6="Nova Scotia",'Nova Scotia'!P349, IF($C$6="Newfoundland and Labrador",'Newfoundland and Labrador'!P349, IF($C$6="Prince Edward Island",'Prince Edward Island'!P349, IF($C$6="NIHB",NIHB!P349, SUM('British Columbia'!P349, Alberta!P349, Saskatchewan!P349, Manitoba!P349, Ontario!P349, 'New Brunswick'!P349, 'Nova Scotia'!P349, 'Newfoundland and Labrador'!P349, 'Prince Edward Island'!P349, NIHB!P349, ) )))))))))) -> 0 | J42: =SUM(E42:I42) -> 0 | L42: Untreated | M42: =IF($C$6="British Columbia",'British Columbia'!S349, IF($C$6="Alberta",Alberta!S349, IF($C$6="Saskatchewan",Saskatchewan!S349, IF($C$6="Manitoba",Manitoba!S349, IF($C$6="Ontario",Ontario!S349, IF($C$6="New Brunswick",'New Brunswick'!S349, IF($C$6="Nova Scotia",'Nova Scotia'!S349, IF($C$6="Newfoundland and Labrador",'Newfoundland and Labrador'!S349, IF($C$6="Prince Edward Island",'Prince Edward Island'!S349, IF($C$6="NIHB",NIHB!S349, SUM('British Columbia'!S349, Alberta!S349, Saskatchewan!S349, Manitoba!S349, Ontario!S349, 'New Brunswick'!S349, 'Nova Scotia'!S349, 'Newfoundland and Labrador'!S349, 'Prince Edward Island'!S349, NIHB!S349, ) )))))))))) -> 0 | N42: =IF($C$6="British Columbia",'British Columbia'!T349, IF($C$6="Alberta",Alberta!T349, IF($C$6="Saskatchewan",Saskatchewan!T349, IF($C$6="Manitoba",Manitoba!T349, IF($C$6="Ontario",Ontario!T349, IF($C$6="New Brunswick",'New Brunswick'!T349, IF($C$6="Nova Scotia",'Nova Scotia'!T349, IF($C$6="Newfoundland and Labrador",'Newfoundland and Labrador'!T349, IF($C$6="Prince Edward Island",'Prince Edward Island'!T349, IF($C$6="NIHB",NIHB!T349, SUM('British Columbia'!T349, Alberta!T349, Saskatchewan!T349, Manitoba!T349, Ontario!T349, 'New Brunswick'!T349, 'Nova Scotia'!T349, 'Newfoundland and Labrador'!T349, 'Prince Edward Island'!T349, NIHB!T349, ) )))))))))) -> 0 | O42: =IF($C$6="British Columbia",'British Columbia'!U349, IF($C$6="Alberta",Alberta!U349, IF($C$6="Saskatchewan",Saskatchewan!U349, IF($C$6="Manitoba",Manitoba!U349, IF($C$6="Ontario",Ontario!U349, IF($C$6="New Brunswick",'New Brunswick'!U349, IF($C$6="Nova Scotia",'Nova Scotia'!U349, IF($C$6="Newfoundland and Labrador",'Newfoundland and Labrador'!U349, IF($C$6="Prince Edward Island",'Prince Edward Island'!U349, IF($C$6="NIHB",NIHB!U349, SUM('British Columbia'!U349, Alberta!U349, Saskatchewan!U349, Manitoba!U349, Ontario!U349, 'New Brunswick'!U349, 'Nova Scotia'!U349, 'Newfoundland and Labrador'!U349, 'Prince Edward Island'!U349, NIHB!U349, ) )))))))))) -> 0 | P42: =IF($C$6="British Columbia",'British Columbia'!V349, IF($C$6="Alberta",Alberta!V349, IF($C$6="Saskatchewan",Saskatchewan!V349, IF($C$6="Manitoba",Manitoba!V349, IF($C$6="Ontario",Ontario!V349, IF($C$6="New Brunswick",'New Brunswick'!V349, IF($C$6="Nova Scotia",'Nova Scotia'!V349, IF($C$6="Newfoundland and Labrador",'Newfoundland and Labrador'!V349, IF($C$6="Prince Edward Island",'Prince Edward Island'!V349, IF($C$6="NIHB",NIHB!V349, SUM('British Columbia'!V349, Alberta!V349, Saskatchewan!V349, Manitoba!V349, Ontario!V349, 'New Brunswick'!V349, 'Nova Scotia'!V349, 'Newfoundland and Labrador'!V349, 'Prince Edward Island'!V349, NIHB!V349, ) )))))))))) -> 0 | Q42: =IF($C$6="British Columbia",'British Columbia'!W349, IF($C$6="Alberta",Alberta!W349, IF($C$6="Saskatchewan",Saskatchewan!W349, IF($C$6="Manitoba",Manitoba!W349, IF($C$6="Ontario",Ontario!W349, IF($C$6="New Brunswick",'New Brunswick'!W349, IF($C$6="Nova Scotia",'Nova Scotia'!W349, IF($C$6="Newfoundland and Labrador",'Newfoundland and Labrador'!W349, IF($C$6="Prince Edward Island",'Prince Edward Island'!W349, IF($C$6="NIHB",NIHB!W349, SUM('British Columbia'!W349, Alberta!W349, Saskatchewan!W349, Manitoba!W349, Ontario!W349, 'New Brunswick'!W349, 'Nova Scotia'!W349, 'Newfoundland and Labrador'!W349, 'Prince Edward Island'!W349, NIHB!W349, ) )))))))))) -> 0 | R42: =IF($C$6="British Columbia",'British Columbia'!X349, IF($C$6="Alberta",Alberta!X349, IF($C$6="Saskatchewan",Saskatchewan!X349, IF($C$6="Manitoba",Manitoba!X349, IF($C$6="Ontario",Ontario!X349, IF($C$6="New Brunswick",'New Brunswick'!X349, IF($C$6="Nova Scotia",'Nova Scotia'!X349, IF($C$6="Newfoundland and Labrador",'Newfoundland and Labrador'!X349, IF($C$6="Prince Edward Island",'Prince Edward Island'!X349, IF($C$6="NIHB",NIHB!X349, SUM('British Columbia'!X349, Alberta!X349, Saskatchewan!X349, Manitoba!X349, Ontario!X349, 'New Brunswick'!X349, 'Nova Scotia'!X349, 'Newfoundland and Labrador'!X349, 'Prince Edward Island'!X349, NIHB!X349, ) )))))))))) -> 0 | S42: =SUM(N42:R42) -> 0
C43: =IF(Namedrug1="","Drug 1",Namedrug1) -> Drug 1 | D43: =IF($C$6="British Columbia",'British Columbia'!K350, IF($C$6="Alberta",Alberta!K350, IF($C$6="Saskatchewan",Saskatchewan!K350, IF($C$6="Manitoba",Manitoba!K350, IF($C$6="Ontario",Ontario!K350, IF($C$6="New Brunswick",'New Brunswick'!K350, IF($C$6="Nova Scotia",'Nova Scotia'!K350, IF($C$6="Newfoundland and Labrador",'Newfoundland and Labrador'!K350, IF($C$6="Prince Edward Island",'Prince Edward Island'!K350, IF($C$6="NIHB",NIHB!K350, SUM('British Columbia'!K350, Alberta!K350, Saskatchewan!K350, Manitoba!K350, Ontario!K350, 'New Brunswick'!K350, 'Nova Scotia'!K350, 'Newfoundland and Labrador'!K350, 'Prince Edward Island'!K350, NIHB!K350, ) )))))))))) -> 0 | E43: =IF($C$6="British Columbia",'British Columbia'!L350, IF($C$6="Alberta",Alberta!L350, IF($C$6="Saskatchewan",Saskatchewan!L350, IF($C$6="Manitoba",Manitoba!L350, IF($C$6="Ontario",Ontario!L350, IF($C$6="New Brunswick",'New Brunswick'!L350, IF($C$6="Nova Scotia",'Nova Scotia'!L350, IF($C$6="Newfoundland and Labrador",'Newfoundland and Labrador'!L350, IF($C$6="Prince Edward Island",'Prince Edward Island'!L350, IF($C$6="NIHB",NIHB!L350, SUM('British Columbia'!L350, Alberta!L350, Saskatchewan!L350, Manitoba!L350, Ontario!L350, 'New Brunswick'!L350, 'Nova Scotia'!L350, 'Newfoundland and Labrador'!L350, 'Prince Edward Island'!L350, NIHB!L350, ) )))))))))) -> 0 | F43: =IF($C$6="British Columbia",'British Columbia'!M350, IF($C$6="Alberta",Alberta!M350, IF($C$6="Saskatchewan",Saskatchewan!M350, IF($C$6="Manitoba",Manitoba!M350, IF($C$6="Ontario",Ontario!M350, IF($C$6="New Brunswick",'New Brunswick'!M350, IF($C$6="Nova Scotia",'Nova Scotia'!M350, IF($C$6="Newfoundland and Labrador",'Newfoundland and Labrador'!M350, IF($C$6="Prince Edward Island",'Prince Edward Island'!M350, IF($C$6="NIHB",NIHB!M350, SUM('British Columbia'!M350, Alberta!M350, Saskatchewan!M350, Manitoba!M350, Ontario!M350, 'New Brunswick'!M350, 'Nova Scotia'!M350, 'Newfoundland and Labrador'!M350, 'Prince Edward Island'!M350, NIHB!M350, ) )))))))))) -> 0 | G43: =IF($C$6="British Columbia",'British Columbia'!N350, IF($C$6="Alberta",Alberta!N350, IF($C$6="Saskatchewan",Saskatchewan!N350, IF($C$6="Manitoba",Manitoba!N350, IF($C$6="Ontario",Ontario!N350, IF($C$6="New Brunswick",'New Brunswick'!N350, IF($C$6="Nova Scotia",'Nova Scotia'!N350, IF($C$6="Newfoundland and Labrador",'Newfoundland and Labrador'!N350, IF($C$6="Prince Edward Island",'Prince Edward Island'!N350, IF($C$6="NIHB",NIHB!N350, SUM('British Columbia'!N350, Alberta!N350, Saskatchewan!N350, Manitoba!N350, Ontario!N350, 'New Brunswick'!N350, 'Nova Scotia'!N350, 'Newfoundland and Labrador'!N350, 'Prince Edward Island'!N350, NIHB!N350, ) )))))))))) -> 0 | H43: =IF($C$6="British Columbia",'British Columbia'!O350, IF($C$6="Alberta",Alberta!O350, IF($C$6="Saskatchewan",Saskatchewan!O350, IF($C$6="Manitoba",Manitoba!O350, IF($C$6="Ontario",Ontario!O350, IF($C$6="New Brunswick",'New Brunswick'!O350, IF($C$6="Nova Scotia",'Nova Scotia'!O350, IF($C$6="Newfoundland and Labrador",'Newfoundland and Labrador'!O350, IF($C$6="Prince Edward Island",'Prince Edward Island'!O350, IF($C$6="NIHB",NIHB!O350, SUM('British Columbia'!O350, Alberta!O350, Saskatchewan!O350, Manitoba!O350, Ontario!O350, 'New Brunswick'!O350, 'Nova Scotia'!O350, 'Newfoundland and Labrador'!O350, 'Prince Edward Island'!O350, NIHB!O350, ) )))))))))) -> 0 | I43: =IF($C$6="British Columbia",'British Columbia'!P350, IF($C$6="Alberta",Alberta!P350, IF($C$6="Saskatchewan",Saskatchewan!P350, IF($C$6="Manitoba",Manitoba!P350, IF($C$6="Ontario",Ontario!P350, IF($C$6="New Brunswick",'New Brunswick'!P350, IF($C$6="Nova Scotia",'Nova Scotia'!P350, IF($C$6="Newfoundland and Labrador",'Newfoundland and Labrador'!P350, IF($C$6="Prince Edward Island",'Prince Edward Island'!P350, IF($C$6="NIHB",NIHB!P350, SUM('British Columbia'!P350, Alberta!P350, Saskatchewan!P350, Manitoba!P350, Ontario!P350, 'New Brunswick'!P350, 'Nova Scotia'!P350, 'Newfoundland and Labrador'!P350, 'Prince Edward Island'!P350, NIHB!P350, ) )))))))))) -> 0 | J43: 0 | L43: =IF(Namedrug1="","Drug 1",Namedrug1) -> Drug 1 | M43: =IF($C$6="British Columbia",'British Columbia'!S350, IF($C$6="Alberta",Alberta!S350, IF($C$6="Saskatchewan",Saskatchewan!S350, IF($C$6="Manitoba",Manitoba!S350, IF($C$6="Ontario",Ontario!S350, IF($C$6="New Brunswick",'New Brunswick'!S350, IF($C$6="Nova Scotia",'Nova Scotia'!S350, IF($C$6="Newfoundland and Labrador",'Newfoundland and Labrador'!S350, IF($C$6="Prince Edward Island",'Prince Edward Island'!S350, IF($C$6="NIHB",NIHB!S350, SUM('British Columbia'!S350, Alberta!S350, Saskatchewan!S350, Manitoba!S350, Ontario!S350, 'New Brunswick'!S350, 'Nova Scotia'!S350, 'Newfoundland and Labrador'!S350, 'Prince Edward Island'!S350, NIHB!S350, ) )))))))))) -> 0 | N43: =IF($C$6="British Columbia",'British Columbia'!T350, IF($C$6="Alberta",Alberta!T350, IF($C$6="Saskatchewan",Saskatchewan!T350, IF($C$6="Manitoba",Manitoba!T350, IF($C$6="Ontario",Ontario!T350, IF($C$6="New Brunswick",'New Brunswick'!T350, IF($C$6="Nova Scotia",'Nova Scotia'!T350, IF($C$6="Newfoundland and Labrador",'Newfoundland and Labrador'!T350, IF($C$6="Prince Edward Island",'Prince Edward Island'!T350, IF($C$6="NIHB",NIHB!T350, SUM('British Columbia'!T350, Alberta!T350, Saskatchewan!T350, Manitoba!T350, Ontario!T350, 'New Brunswick'!T350, 'Nova Scotia'!T350, 'Newfoundland and Labrador'!T350, 'Prince Edward Island'!T350, NIHB!T350, ) )))))))))) -> 0 | O43: =IF($C$6="British Columbia",'British Columbia'!U350, IF($C$6="Alberta",Alberta!U350, IF($C$6="Saskatchewan",Saskatchewan!U350, IF($C$6="Manitoba",Manitoba!U350, IF($C$6="Ontario",Ontario!U350, IF($C$6="New Brunswick",'New Brunswick'!U350, IF($C$6="Nova Scotia",'Nova Scotia'!U350, IF($C$6="Newfoundland and Labrador",'Newfoundland and Labrador'!U350, IF($C$6="Prince Edward Island",'Prince Edward Island'!U350, IF($C$6="NIHB",NIHB!U350, SUM('British Columbia'!U350, Alberta!U350, Saskatchewan!U350, Manitoba!U350, Ontario!U350, 'New Brunswick'!U350, 'Nova Scotia'!U350, 'Newfoundland and Labrador'!U350, 'Prince Edward Island'!U350, NIHB!U350, ) )))))))))) -> 0 | P43: =IF($C$6="British Columbia",'British Columbia'!V350, IF($C$6="Alberta",Alberta!V350, IF($C$6="Saskatchewan",Saskatchewan!V350, IF($C$6="Manitoba",Manitoba!V350, IF($C$6="Ontario",Ontario!V350, IF($C$6="New Brunswick",'New Brunswick'!V350, IF($C$6="Nova Scotia",'Nova Scotia'!V350, IF($C$6="Newfoundland and Labrador",'Newfoundland and Labrador'!V350, IF($C$6="Prince Edward Island",'Prince Edward Island'!V350, IF($C$6="NIHB",NIHB!V350, SUM('British Columbia'!V350, Alberta!V350, Saskatchewan!V350, Manitoba!V350, Ontario!V350, 'New Brunswick'!V350, 'Nova Scotia'!V350, 'Newfoundland and Labrador'!V350, 'Prince Edward Island'!V350, NIHB!V350, ) )))))))))) -> 0 | Q43: =IF($C$6="British Columbia",'British Columbia'!W350, IF($C$6="Alberta",Alberta!W350, IF($C$6="Saskatchewan",Saskatchewan!W350, IF($C$6="Manitoba",Manitoba!W350, IF($C$6="Ontario",Ontario!W350, IF($C$6="New Brunswick",'New Brunswick'!W350, IF($C$6="Nova Scotia",'Nova Scotia'!W350, IF($C$6="Newfoundland and Labrador",'Newfoundland and Labrador'!W350, IF($C$6="Prince Edward Island",'Prince Edward Island'!W350, IF($C$6="NIHB",NIHB!W350, SUM('British Columbia'!W350, Alberta!W350, Saskatchewan!W350, Manitoba!W350, Ontario!W350, 'New Brunswick'!W350, 'Nova Scotia'!W350, 'Newfoundland and Labrador'!W350, 'Prince Edward Island'!W350, NIHB!W350, ) )))))))))) -> 0 | R43: =IF($C$6="British Columbia",'British Columbia'!X350, IF($C$6="Alberta",Alberta!X350, IF($C$6="Saskatchewan",Saskatchewan!X350, IF($C$6="Manitoba",Manitoba!X350, IF($C$6="Ontario",Ontario!X350, IF($C$6="New Brunswick",'New Brunswick'!X350, IF($C$6="Nova Scotia",'Nova Scotia'!X350, IF($C$6="Newfoundland and Labrador",'Newfoundland and Labrador'!X350, IF($C$6="Prince Edward Island",'Prince Edward Island'!X350, IF($C$6="NIHB",NIHB!X350, SUM('British Columbia'!X350, Alberta!X350, Saskatchewan!X350, Manitoba!X350, Ontario!X350, 'New Brunswick'!X350, 'Nova Scotia'!X350, 'Newfoundland and Labrador'!X350, 'Prince Edward Island'!X350, NIHB!X350, ) )))))))))) -> 0 | S43: 0
C44: =IF(Namedrug2="","Drug 2",Namedrug2) -> Drug 2 | D44: =IF($C$6="British Columbia",'British Columbia'!K351, IF($C$6="Alberta",Alberta!K351, IF($C$6="Saskatchewan",Saskatchewan!K351, IF($C$6="Manitoba",Manitoba!K351, IF($C$6="Ontario",Ontario!K351, IF($C$6="New Brunswick",'New Brunswick'!K351, IF($C$6="Nova Scotia",'Nova Scotia'!K351, IF($C$6="Newfoundland and Labrador",'Newfoundland and Labrador'!K351, IF($C$6="Prince Edward Island",'Prince Edward Island'!K351, IF($C$6="NIHB",NIHB!K351, SUM('British Columbia'!K351, Alberta!K351, Saskatchewan!K351, Manitoba!K351, Ontario!K351, 'New Brunswick'!K351, 'Nova Scotia'!K351, 'Newfoundland and Labrador'!K351, 'Prince Edward Island'!K351, NIHB!K351, ) )))))))))) -> 0 | E44: =IF($C$6="British Columbia",'British Columbia'!L351, IF($C$6="Alberta",Alberta!L351, IF($C$6="Saskatchewan",Saskatchewan!L351, IF($C$6="Manitoba",Manitoba!L351, IF($C$6="Ontario",Ontario!L351, IF($C$6="New Brunswick",'New Brunswick'!L351, IF($C$6="Nova Scotia",'Nova Scotia'!L351, IF($C$6="Newfoundland and Labrador",'Newfoundland and Labrador'!L351, IF($C$6="Prince Edward Island",'Prince Edward Island'!L351, IF($C$6="NIHB",NIHB!L351, SUM('British Columbia'!L351, Alberta!L351, Saskatchewan!L351, Manitoba!L351, Ontario!L351, 'New Brunswick'!L351, 'Nova Scotia'!L351, 'Newfoundland and Labrador'!L351, 'Prince Edward Island'!L351, NIHB!L351, ) )))))))))) -> 0 | F44: =IF($C$6="British Columbia",'British Columbia'!M351, IF($C$6="Alberta",Alberta!M351, IF($C$6="Saskatchewan",Saskatchewan!M351, IF($C$6="Manitoba",Manitoba!M351, IF($C$6="Ontario",Ontario!M351, IF($C$6="New Brunswick",'New Brunswick'!M351, IF($C$6="Nova Scotia",'Nova Scotia'!M351, IF($C$6="Newfoundland and Labrador",'Newfoundland and Labrador'!M351, IF($C$6="Prince Edward Island",'Prince Edward Island'!M351, IF($C$6="NIHB",NIHB!M351, SUM('British Columbia'!M351, Alberta!M351, Saskatchewan!M351, Manitoba!M351, Ontario!M351, 'New Brunswick'!M351, 'Nova Scotia'!M351, 'Newfoundland and Labrador'!M351, 'Prince Edward Island'!M351, NIHB!M351, ) )))))))))) -> 0 | G44: =IF($C$6="British Columbia",'British Columbia'!N351, IF($C$6="Alberta",Alberta!N351, IF($C$6="Saskatchewan",Saskatchewan!N351, IF($C$6="Manitoba",Manitoba!N351, IF($C$6="Ontario",Ontario!N351, IF($C$6="New Brunswick",'New Brunswick'!N351, IF($C$6="Nova Scotia",'Nova Scotia'!N351, IF($C$6="Newfoundland and Labrador",'Newfoundland and Labrador'!N351, IF($C$6="Prince Edward Island",'Prince Edward Island'!N351, IF($C$6="NIHB",NIHB!N351, SUM('British Columbia'!N351, Alberta!N351, Saskatchewan!N351, Manitoba!N351, Ontario!N351, 'New Brunswick'!N351, 'Nova Scotia'!N351, 'Newfoundland and Labrador'!N351, 'Prince Edward Island'!N351, NIHB!N351, ) )))))))))) -> 0 | H44: =IF($C$6="British Columbia",'British Columbia'!O351, IF($C$6="Alberta",Alberta!O351, IF($C$6="Saskatchewan",Saskatchewan!O351, IF($C$6="Manitoba",Manitoba!O351, IF($C$6="Ontario",Ontario!O351, IF($C$6="New Brunswick",'New Brunswick'!O351, IF($C$6="Nova Scotia",'Nova Scotia'!O351, IF($C$6="Newfoundland and Labrador",'Newfoundland and Labrador'!O351, IF($C$6="Prince Edward Island",'Prince Edward Island'!O351, IF($C$6="NIHB",NIHB!O351, SUM('British Columbia'!O351, Alberta!O351, Saskatchewan!O351, Manitoba!O351, Ontario!O351, 'New Brunswick'!O351, 'Nova Scotia'!O351, 'Newfoundland and Labrador'!O351, 'Prince Edward Island'!O351, NIHB!O351, ) )))))))))) -> 0 | I44: =IF($C$6="British Columbia",'British Columbia'!P351, IF($C$6="Alberta",Alberta!P351, IF($C$6="Saskatchewan",Saskatchewan!P351, IF($C$6="Manitoba",Manitoba!P351, IF($C$6="Ontario",Ontario!P351, IF($C$6="New Brunswick",'New Brunswick'!P351, IF($C$6="Nova Scotia",'Nova Scotia'!P351, IF($C$6="Newfoundland and Labrador",'Newfoundland and Labrador'!P351, IF($C$6="Prince Edward Island",'Prince Edward Island'!P351, IF($C$6="NIHB",NIHB!P351, SUM('British Columbia'!P351, Alberta!P351, Saskatchewan!P351, Manitoba!P351, Ontario!P351, 'New Brunswick'!P351, 'Nova Scotia'!P351, 'Newfoundland and Labrador'!P351, 'Prince Edward Island'!P351, NIHB!P351, ) )))))))))) -> 0 | J44: 0 | L44: =IF(Namedrug2="","Drug 2",Namedrug2) -> Drug 2 | M44: =IF($C$6="British Columbia",'British Columbia'!S351, IF($C$6="Alberta",Alberta!S351, IF($C$6="Saskatchewan",Saskatchewan!S351, IF($C$6="Manitoba",Manitoba!S351, IF($C$6="Ontario",Ontario!S351, IF($C$6="New Brunswick",'New Brunswick'!S351, IF($C$6="Nova Scotia",'Nova Scotia'!S351, IF($C$6="Newfoundland and Labrador",'Newfoundland and Labrador'!S351, IF($C$6="Prince Edward Island",'Prince Edward Island'!S351, IF($C$6="NIHB",NIHB!S351, SUM('British Columbia'!S351, Alberta!S351, Saskatchewan!S351, Manitoba!S351, Ontario!S351, 'New Brunswick'!S351, 'Nova Scotia'!S351, 'Newfoundland and Labrador'!S351, 'Prince Edward Island'!S351, NIHB!S351, ) )))))))))) -> 0 | N44: =IF($C$6="British Columbia",'British Columbia'!T351, IF($C$6="Alberta",Alberta!T351, IF($C$6="Saskatchewan",Saskatchewan!T351, IF($C$6="Manitoba",Manitoba!T351, IF($C$6="Ontario",Ontario!T351, IF($C$6="New Brunswick",'New Brunswick'!T351, IF($C$6="Nova Scotia",'Nova Scotia'!T351, IF($C$6="Newfoundland and Labrador",'Newfoundland and Labrador'!T351, IF($C$6="Prince Edward Island",'Prince Edward Island'!T351, IF($C$6="NIHB",NIHB!T351, SUM('British Columbia'!T351, Alberta!T351, Saskatchewan!T351, Manitoba!T351, Ontario!T351, 'New Brunswick'!T351, 'Nova Scotia'!T351, 'Newfoundland and Labrador'!T351, 'Prince Edward Island'!T351, NIHB!T351, ) )))))))))) -> 0 | O44: =IF($C$6="British Columbia",'British Columbia'!U351, IF($C$6="Alberta",Alberta!U351, IF($C$6="Saskatchewan",Saskatchewan!U351, IF($C$6="Manitoba",Manitoba!U351, IF($C$6="Ontario",Ontario!U351, IF($C$6="New Brunswick",'New Brunswick'!U351, IF($C$6="Nova Scotia",'Nova Scotia'!U351, IF($C$6="Newfoundland and Labrador",'Newfoundland and Labrador'!U351, IF($C$6="Prince Edward Island",'Prince Edward Island'!U351, IF($C$6="NIHB",NIHB!U351, SUM('British Columbia'!U351, Alberta!U351, Saskatchewan!U351, Manitoba!U351, Ontario!U351, 'New Brunswick'!U351, 'Nova Scotia'!U351, 'Newfoundland and Labrador'!U351, 'Prince Edward Island'!U351, NIHB!U351, ) )))))))))) -> 0 | P44: =IF($C$6="British Columbia",'British Columbia'!V351, IF($C$6="Alberta",Alberta!V351, IF($C$6="Saskatchewan",Saskatchewan!V351, IF($C$6="Manitoba",Manitoba!V351, IF($C$6="Ontario",Ontario!V351, IF($C$6="New Brunswick",'New Brunswick'!V351, IF($C$6="Nova Scotia",'Nova Scotia'!V351, IF($C$6="Newfoundland and Labrador",'Newfoundland and Labrador'!V351, IF($C$6="Prince Edward Island",'Prince Edward Island'!V351, IF($C$6="NIHB",NIHB!V351, SUM('British Columbia'!V351, Alberta!V351, Saskatchewan!V351, Manitoba!V351, Ontario!V351, 'New Brunswick'!V351, 'Nova Scotia'!V351, 'Newfoundland and Labrador'!V351, 'Prince Edward Island'!V351, NIHB!V351, ) )))))))))) -> 0 | Q44: =IF($C$6="British Columbia",'British Columbia'!W351, IF($C$6="Alberta",Alberta!W351, IF($C$6="Saskatchewan",Saskatchewan!W351, IF($C$6="Manitoba",Manitoba!W351, IF($C$6="Ontario",Ontario!W351, IF($C$6="New Brunswick",'New Brunswick'!W351, IF($C$6="Nova Scotia",'Nova Scotia'!W351, IF($C$6="Newfoundland and Labrador",'Newfoundland and Labrador'!W351, IF($C$6="Prince Edward Island",'Prince Edward Island'!W351, IF($C$6="NIHB",NIHB!W351, SUM('British Columbia'!W351, Alberta!W351, Saskatchewan!W351, Manitoba!W351, Ontario!W351, 'New Brunswick'!W351, 'Nova Scotia'!W351, 'Newfoundland and Labrador'!W351, 'Prince Edward Island'!W351, NIHB!W351, ) )))))))))) -> 0 | R44: =IF($C$6="British Columbia",'British Columbia'!X351, IF($C$6="Alberta",Alberta!X351, IF($C$6="Saskatchewan",Saskatchewan!X351, IF($C$6="Manitoba",Manitoba!X351, IF($C$6="Ontario",Ontario!X351, IF($C$6="New Brunswick",'New Brunswick'!X351, IF($C$6="Nova Scotia",'Nova Scotia'!X351, IF($C$6="Newfoundland and Labrador",'Newfoundland and Labrador'!X351, IF($C$6="Prince Edward Island",'Prince Edward Island'!X351, IF($C$6="NIHB",NIHB!X351, SUM('British Columbia'!X351, Alberta!X351, Saskatchewan!X351, Manitoba!X351, Ontario!X351, 'New Brunswick'!X351, 'Nova Scotia'!X351, 'Newfoundland and Labrador'!X351, 'Prince Edward Island'!X351, NIHB!X351, ) )))))))))) -> 0 | S44: 0
